{"text_format":"1","workbook":"xlsx","n_sheets":6,"sheets":["申込手順","入力シート","申込","プログラム女子","入力規則","申込選手一覧（個人）"],"not_rendered":{"charts":0,"images":0,"macros":1,"external_links":0,"defined_names":0,"comments":0,"pivot_tables":0},"unopened":[],"bounds":{"document_bytes":16777216,"sheet_cells":100000,"rows_first":2000,"rows_last":500,"rows_between":2000,"halvings":0,"cell_chars":16384,"cell_head_chars":4096},"cells_cut":0,"cells_raw":0,"read":"whole","date_system":"1900"}

{"sheet":"申込手順","index":0,"n_rows":25,"n_cols":7,"rows_kept":25,"cut":false,"hidden":false,"merged":[[14,0,15,0],[14,1,15,11],[0,0,1,0],[0,1,1,3],[0,6,1,11],[2,1,3,11],[4,0,5,0],[4,1,5,11],[6,0,6,8],[7,0,7,8],[9,0,9,10],[10,0,10,8],[13,0,13,10],[24,0,25,0],[24,1,25,11],[16,1,17,11],[18,1,19,11],[20,0,21,0],[20,1,21,11],[22,0,23,0],[22,1,23,11]]}
["①","入力シートに必要事項を記入し",null,null,null,null,"をクリックしてください。　郵送用の申込用紙が印刷されます。"]
[]
[null,"※用紙は「B5」でお願いします。　(団体はB5　1枚　　個人は2名でB5　1枚　に印刷されます）"]
[]
["②","印刷された、申込用紙に「公印」を押して、期日までに所定の申込先に郵送してください。（こちらが正式申込となります）"]
[]
["　　　　男子　〒532-0031　大阪市淀川区加島1-52-81 ℡ 06-6302-1035"]
["大阪市立　東淀工業高等学校　　　梅垣　穂高　先生"]
[]
["　　　　女子　〒583-0037　藤井寺市津堂3-516　　　 ℡ 072-939-7750"]
["大阪府立　藤井寺高等学校　　　　瀬川　綾子　先生"]
[]
["　　申込締切日：令和元(2019)年５月１５日(水)正午　※郵送・メール共"]
["　　　"]
["③","入力済みのファイルを　ファイル＞名前を付けて保存＞で　"]
[]
[null,"　　　ファイル名を　「　学校番号（数字３桁）＋（学校名）＋性別（男子：M　女子：F）　」に変更して保存してください。"]
[]
[null,"　　　　　　　　例）八尾高校（学校番号434）男子　＝　434（八尾）M"]
[]
["④","③で保存したファイルをメールに添付して　mail@highschool.osakajudo.info　　に送信してください"]
[]
["⑤","申込メールを受理した旨の、確認メールが数日中に返信されます"]
[]
["⑥","個人戦の申込で「特別枠」該当生徒は必ず特別枠で申込してください。"]

{"sheet":"入力シート","index":1,"n_rows":796,"n_cols":179,"rows_kept":796,"cut":false,"hidden":false,"merged":[[182,63,185,65],[182,54,185,57],[174,38,177,40],[179,22,179,23],[182,62,185,62],[176,22,177,23],[175,24,177,37],[174,24,174,37],[174,22,174,23],[174,49,177,53],[174,62,177,62],[174,63,177,65],[67,8,69,21],[70,8,70,21],[70,22,70,23],[86,8,86,21],[82,8,82,21],[74,22,74,23],[84,22,85,23],[74,8,74,21],[182,22,182,23],[179,8,181,21],[178,41,181,43],[178,8,178,21],[178,38,181,40],[175,8,177,21],[138,62,141,62],[82,54,85,57],[75,22,75,23],[75,8,77,21],[78,8,78,21],[138,2,141,5],[134,22,134,23],[106,2,109,5],[147,6,147,7],[176,6,177,7],[175,22,175,23],[163,6,163,7],[174,8,174,21],[171,22,171,23],[172,6,173,7],[168,22,169,23],[163,8,165,21],[159,22,159,23],[167,22,167,23],[170,22,170,23],[162,22,162,23],[148,6,149,7],[110,2,113,5],[146,2,149,5],[146,8,146,21],[143,6,143,7],[140,6,141,7],[175,6,175,7],[174,2,177,5],[142,8,142,21],[127,6,127,7],[131,8,133,21],[130,8,130,21],[139,8,141,21],[143,8,145,21],[132,6,133,7],[130,2,133,5],[1,2,2,10],[25,8,27,21],[12,2,15,5],[4,6,4,10],[4,2,4,5],[126,2,129,5],[46,2,49,5],[47,6,47,7],[102,2,105,5],[114,2,117,5],[51,6,51,7],[128,6,129,7],[122,2,125,5],[118,2,121,5],[67,6,67,7],[66,22,66,23],[67,22,67,23],[55,8,57,21],[100,6,101,7],[90,8,90,21],[119,22,119,23],[108,22,109,23],[111,6,111,7],[127,8,129,21],[107,22,107,23],[106,22,106,23],[102,8,102,21],[106,8,106,21],[110,8,110,21],[114,8,114,21],[126,8,126,21],[122,8,122,21],[74,24,74,37],[70,58,73,58],[66,38,69,40],[70,38,73,40],[74,38,77,40],[146,22,146,23],[170,24,170,37],[159,24,161,37],[142,22,142,23],[91,24,93,37],[90,38,93,40],[82,24,82,37],[90,41,93,43],[94,38,97,40],[118,22,118,23],[110,24,110,37],[138,22,138,23],[115,24,117,37],[120,22,121,23],[146,24,146,37],[127,22,127,23],[110,22,110,23],[112,22,113,23],[147,22,147,23],[114,58,117,58],[122,41,125,43],[126,49,129,53],[142,49,145,53],[114,54,117,57],[90,62,93,62],[82,38,85,40],[86,41,89,43],[86,38,89,40],[94,41,97,43],[86,49,89,53],[86,58,89,58],[86,59,89,61],[86,62,89,62],[86,54,89,57],[82,49,85,53],[78,49,81,53],[74,49,77,53],[70,59,73,61],[70,54,73,57],[86,44,89,48],[78,44,81,48],[82,58,85,58],[90,44,93,48],[98,62,101,62],[98,59,101,61],[122,49,125,53],[122,44,125,48],[94,63,97,65],[118,63,121,65],[106,62,109,62],[94,59,97,61],[130,41,133,43],[128,22,129,23],[122,22,122,23],[102,41,105,43],[118,62,121,62],[118,54,121,57],[126,62,129,62],[134,38,137,40],[134,44,137,48],[134,41,137,43],[130,54,133,57],[102,58,105,58],[98,41,101,43],[102,49,105,53],[98,58,101,58],[102,38,105,40],[126,22,126,23],[136,22,137,23],[131,22,131,23],[132,22,133,23],[110,54,113,57],[106,49,109,53],[114,59,117,61],[118,59,121,61],[106,59,109,61],[94,54,97,57],[98,54,101,57],[138,58,141,58],[130,22,130,23],[116,22,117,23],[127,24,129,37],[126,24,126,37],[135,24,137,37],[134,24,134,37],[122,24,122,37],[123,24,125,37],[126,58,129,58],[126,54,129,57],[134,58,137,58],[134,54,137,57],[126,38,129,40],[122,59,125,61],[98,44,101,48],[98,38,101,40],[118,58,121,58],[118,41,121,43],[106,41,109,43],[98,24,98,37],[103,24,105,37],[106,24,106,37],[106,54,109,57],[111,24,113,37],[138,44,141,48],[119,24,121,37],[122,58,125,58],[98,49,101,53],[499,29,500,36],[489,24,491,37],[495,34,496,37],[107,24,109,37],[78,58,81,58],[396,38,396,40],[380,51,381,65],[103,22,103,23],[82,22,82,23],[78,24,78,37],[79,24,81,37],[94,58,97,58],[78,54,81,57],[158,63,161,65],[82,44,85,48],[78,38,81,40],[126,63,129,65],[138,49,141,53],[122,54,125,57],[104,22,105,23],[83,22,83,23],[122,63,125,65],[95,22,95,23],[92,22,93,23],[114,41,117,43],[110,41,113,43],[106,63,109,65],[94,49,97,53],[110,59,113,61],[90,63,93,65],[102,54,105,57],[122,62,125,62],[493,2,494,15],[505,2,506,5],[499,28,500,28],[130,63,133,65],[142,41,145,43],[130,38,133,40],[130,44,133,48],[134,49,137,53],[134,59,137,61],[138,59,141,61],[94,22,94,23],[96,22,97,23],[110,63,113,65],[114,63,117,65],[126,59,129,61],[115,22,115,23],[110,62,113,62],[114,38,117,40],[114,44,117,48],[118,44,121,48],[114,49,117,53],[182,59,185,61],[182,58,185,58],[110,44,113,48],[134,63,137,65],[130,49,133,53],[135,22,135,23],[119,6,119,7],[138,8,138,21],[110,38,113,40],[126,44,129,48],[122,38,125,40],[554,27,556,37],[549,0,550,65],[545,29,546,36],[449,48,450,50],[443,41,445,43],[162,44,165,48],[154,38,157,40],[397,49,399,53],[403,48,404,50],[174,41,177,43],[541,38,542,47],[534,49,534,53],[531,51,533,62],[534,38,534,40],[535,59,537,61],[535,62,537,62],[535,54,537,57],[539,38,540,65],[512,22,512,23],[512,8,514,21],[380,29,381,33],[403,29,404,33],[401,34,402,37],[397,24,399,37],[186,22,186,23],[513,22,514,23],[493,17,494,21],[499,37,500,37],[505,25,506,65],[495,38,496,47],[554,51,556,62],[551,21,552,24],[553,51,553,65],[551,25,552,65],[541,17,542,21],[541,2,542,15],[535,58,537,58],[534,6,534,7],[534,8,534,21],[534,54,534,65],[535,2,537,5],[534,22,534,23],[541,51,542,65],[534,44,534,48],[534,41,534,43],[528,25,529,65],[526,0,527,65],[545,28,546,28],[554,38,556,48],[541,28,542,28],[541,34,542,37],[553,6,553,37],[545,37,546,37],[551,6,552,12],[541,22,542,27],[551,2,552,5],[553,2,553,5],[554,6,556,26],[551,13,552,20],[554,63,556,65],[541,48,542,50],[554,49,556,50],[541,29,542,33],[541,16,542,16],[535,63,537,65],[539,17,540,21],[511,24,511,37],[511,44,511,48],[539,29,540,33],[553,38,553,50],[554,2,556,5],[518,17,519,21],[518,48,519,50],[522,28,523,28],[518,2,519,15],[531,6,533,26],[535,8,537,21],[534,24,534,37],[539,34,540,37],[539,16,540,16],[539,28,540,28],[539,2,540,15],[539,22,540,27],[536,6,537,7],[536,22,537,23],[512,2,514,5],[516,28,517,28],[516,2,517,15],[516,22,517,27],[518,16,519,16],[516,34,517,37],[516,16,517,16],[531,27,533,37],[531,63,533,65],[531,2,533,5],[528,13,529,20],[528,21,529,24],[530,2,530,5],[528,2,529,5],[528,6,529,12],[530,51,530,65],[505,13,506,20],[493,16,494,16],[495,2,496,15],[511,6,511,7],[508,2,510,5],[465,22,465,23],[505,6,506,12],[516,38,517,65],[518,38,519,47],[493,29,494,33],[495,28,496,28],[142,2,145,5],[511,2,511,5],[465,38,465,40],[507,38,507,50],[495,48,496,50],[492,2,492,65],[489,44,491,48],[493,34,494,37],[505,21,506,24],[485,38,487,48],[515,2,515,65],[503,0,504,65],[511,8,511,21],[507,6,507,37],[449,22,450,27],[512,49,514,53],[538,2,538,65],[535,24,537,37],[535,22,535,23],[534,2,534,5],[535,44,537,48],[535,6,535,7],[530,6,530,37],[535,49,537,53],[522,29,523,36],[522,37,523,37],[518,29,519,33],[518,34,519,37],[513,6,514,7],[535,41,537,43],[535,38,537,40],[184,22,185,23],[187,22,187,23],[187,24,189,37],[344,13,345,20],[443,58,445,58],[397,44,399,48],[397,63,399,65],[531,38,533,48],[531,49,533,50],[518,28,519,28],[518,51,519,65],[516,17,517,21],[530,38,530,50],[516,29,517,33],[512,62,514,62],[518,22,519,27],[512,54,514,57],[512,41,514,43],[512,44,514,48],[511,38,511,40],[508,38,510,48],[508,6,510,26],[512,24,514,37],[465,24,465,37],[512,58,514,58],[489,49,491,53],[82,62,85,62],[106,38,109,40],[102,44,105,48],[106,44,109,48],[124,22,125,23],[123,22,123,23],[99,24,101,37],[102,22,102,23],[511,41,511,43],[512,6,512,7],[512,59,514,61],[511,22,511,23],[378,22,379,27],[390,21,391,24],[390,13,391,20],[90,58,93,58],[90,54,93,57],[118,24,118,37],[138,38,141,40],[150,24,150,37],[151,24,153,37],[146,38,149,40],[142,59,145,61],[512,63,514,65],[170,62,173,62],[170,58,173,58],[160,22,161,23],[158,58,161,58],[158,22,158,23],[508,63,510,65],[489,58,491,58],[511,54,511,65],[508,51,510,62],[489,54,491,57],[493,38,494,65],[512,38,514,40],[470,29,471,33],[466,24,468,37],[180,6,181,7],[172,22,173,23],[166,54,169,57],[164,22,165,23],[158,59,161,61],[158,49,161,53],[158,24,158,37],[413,21,414,24],[488,24,488,37],[489,22,489,23],[489,6,489,7],[490,6,491,7],[361,29,362,36],[367,25,368,65],[351,38,353,40],[351,44,353,48],[347,49,349,50],[508,27,510,37],[493,22,494,27],[62,59,65,61],[20,62,23,62],[50,59,53,61],[24,49,27,53],[50,54,53,57],[46,49,49,53],[54,54,57,57],[50,58,53,58],[138,54,141,57],[142,44,145,48],[447,28,448,28],[86,22,86,23],[78,22,78,23],[79,22,79,23],[76,22,77,23],[144,22,145,23],[111,22,111,23],[158,44,161,48],[154,44,157,48],[102,59,105,61],[80,22,81,23],[83,24,85,37],[87,24,89,37],[95,24,97,37],[98,22,98,23],[74,54,77,57],[74,44,77,48],[74,59,77,61],[75,24,77,37],[126,41,129,43],[443,59,445,61],[443,49,445,53],[415,6,415,37],[54,38,57,40],[55,24,57,37],[54,58,57,58],[58,62,61,62],[62,44,65,48],[58,44,61,48],[62,49,65,53],[54,62,57,62],[54,63,57,65],[62,38,65,40],[58,59,61,61],[58,54,61,57],[1,11,3,29],[50,22,50,23],[50,8,50,21],[1,52,1,54],[2,52,2,54],[3,52,3,54],[20,49,23,53],[46,54,49,57],[7,50,7,65],[54,59,57,61],[11,54,11,65],[12,58,15,58],[58,58,61,58],[51,24,53,37],[50,38,53,40],[58,49,61,53],[58,38,61,40],[439,63,441,65],[426,51,427,65],[438,51,438,65],[442,41,442,43],[393,63,395,65],[444,6,445,7],[378,28,379,28],[416,38,418,48],[416,51,418,62],[380,17,381,21],[390,6,391,12],[392,6,392,37],[396,49,396,53],[82,41,85,43],[490,22,491,23],[495,29,496,33],[495,22,496,27],[493,28,494,28],[495,51,496,65],[351,54,353,57],[370,38,372,48],[397,22,397,23],[361,37,362,37],[186,24,186,37],[393,49,395,50],[495,17,496,21],[393,6,395,26],[397,58,399,58],[420,58,422,58],[420,54,422,57],[439,51,441,62],[420,59,422,61],[485,2,487,5],[488,49,488,53],[488,22,488,23],[489,8,491,21],[392,2,392,5],[396,2,396,5],[488,8,488,21],[472,48,473,50],[466,58,468,58],[466,54,468,57],[470,28,471,28],[470,22,471,27],[466,62,468,62],[484,6,484,37],[467,6,468,7],[466,6,466,7],[466,8,468,21],[397,59,399,61],[396,44,396,48],[393,27,395,37],[397,41,399,43],[396,41,396,43],[396,6,396,7],[396,8,396,21],[442,54,442,65],[442,49,442,53],[419,49,419,53],[400,2,400,65],[442,44,442,48],[393,51,395,62],[415,51,415,65],[443,63,445,65],[434,0,435,65],[397,2,399,5],[398,6,399,7],[397,38,399,40],[397,8,399,21],[396,54,396,65],[415,2,415,5],[401,22,402,27],[420,8,422,21],[421,22,422,23],[424,2,425,15],[375,22,376,23],[357,22,358,27],[416,63,418,65],[401,2,402,15],[401,16,402,16],[489,2,491,5],[472,29,473,33],[484,51,484,65],[466,44,468,48],[472,38,473,47],[466,22,466,23],[489,59,491,61],[485,6,487,26],[485,27,487,37],[480,0,481,65],[488,41,488,43],[488,38,488,40],[488,54,488,65],[485,49,487,50],[466,49,468,53],[488,2,488,5],[378,34,379,37],[375,6,376,7],[374,22,374,23],[397,6,397,7],[380,28,381,28],[393,38,395,48],[390,25,391,65],[380,34,381,37],[373,22,373,23],[373,41,373,43],[352,22,353,23],[370,2,372,5],[367,2,368,5],[396,22,396,23],[370,6,372,26],[374,8,376,21],[351,63,353,65],[355,34,356,37],[355,16,356,16],[351,62,353,62],[374,62,376,62],[374,59,376,61],[374,44,376,48],[380,38,381,47],[374,63,376,65],[393,2,395,5],[397,62,399,62],[357,29,358,33],[374,54,376,57],[370,63,372,65],[392,38,392,50],[380,16,381,16],[384,28,385,28],[373,24,373,37],[374,24,376,37],[373,44,373,48],[171,8,173,21],[388,0,389,65],[350,22,350,23],[350,41,350,43],[188,6,189,7],[374,6,374,7],[378,2,379,15],[378,16,379,16],[357,51,358,65],[182,49,185,53],[370,51,372,62],[369,51,369,65],[373,49,373,53],[351,58,353,58],[357,48,358,50],[355,28,356,28],[350,38,350,40],[367,6,368,12],[361,28,362,28],[380,48,381,50],[186,63,189,65],[186,54,189,57],[186,62,189,62],[390,2,391,5],[374,38,376,40],[374,41,376,43],[465,44,465,48],[465,49,465,53],[465,41,465,43],[170,49,173,53],[347,51,349,62],[350,54,350,65],[347,63,349,65],[350,49,350,53],[462,63,464,65],[170,41,173,43],[346,38,346,50],[174,44,177,48],[178,49,181,53],[186,49,189,53],[347,38,349,48],[355,38,356,65],[346,51,346,65],[351,49,353,53],[351,41,353,43],[350,44,350,48],[170,59,173,61],[170,54,173,57],[351,59,353,61],[365,0,366,65],[367,21,368,24],[369,6,369,37],[373,6,373,7],[398,22,399,23],[351,24,353,37],[401,38,402,65],[411,0,412,65],[378,38,379,65],[183,24,185,37],[179,24,181,37],[351,8,353,21],[374,2,376,5],[380,22,381,27],[166,58,169,58],[355,29,356,33],[374,49,376,53],[182,24,182,37],[170,63,173,65],[174,54,177,57],[166,41,169,43],[167,24,169,37],[370,49,372,50],[182,44,185,48],[178,44,181,48],[186,44,189,48],[344,25,345,65],[186,59,189,61],[186,58,189,58],[357,38,358,47],[354,2,354,65],[357,28,358,28],[344,2,345,5],[187,6,187,7],[187,8,189,21],[352,6,353,7],[373,8,373,21],[357,17,358,21],[370,27,372,37],[351,2,353,5],[357,16,358,16],[156,22,157,23],[147,24,149,37],[154,41,157,43],[162,41,165,43],[162,24,162,37],[355,17,356,21],[346,2,346,5],[166,44,169,48],[351,6,351,7],[355,2,356,15],[355,22,356,27],[166,38,169,40],[350,8,350,21],[350,6,350,7],[174,59,177,61],[183,8,185,21],[350,2,350,5],[344,21,345,24],[170,44,173,48],[170,38,173,40],[350,24,350,37],[186,8,186,21],[186,41,189,43],[186,38,189,40],[188,22,189,23],[178,58,181,58],[180,22,181,23],[178,59,181,61],[171,24,173,37],[182,2,185,5],[178,24,178,37],[183,22,183,23],[158,41,161,43],[106,58,109,58],[90,49,93,53],[94,44,97,48],[90,24,90,37],[86,24,86,37],[91,8,93,21],[94,8,94,21],[103,8,105,21],[107,6,107,7],[154,49,157,53],[146,41,149,43],[155,24,157,37],[154,24,154,37],[139,22,139,23],[146,58,149,58],[150,41,153,43],[150,38,153,40],[154,22,154,23],[146,44,149,48],[142,24,142,37],[143,24,145,37],[139,24,141,37],[154,58,157,58],[150,44,153,48],[143,22,143,23],[140,22,141,23],[138,24,138,37],[146,49,149,53],[138,41,141,43],[142,38,145,40],[150,49,153,53],[135,6,135,7],[136,6,137,7],[135,8,137,21],[139,6,139,7],[151,8,153,21],[147,8,149,21],[144,6,145,7],[114,24,114,37],[115,6,115,7],[115,8,117,21],[98,2,101,5],[99,6,99,7],[87,8,89,21],[108,6,109,7],[88,6,89,7],[86,2,89,5],[91,6,91,7],[116,6,117,7],[103,6,103,7],[112,6,113,7],[111,8,113,21],[92,6,93,7],[95,8,97,21],[99,8,101,21],[96,6,97,7],[98,8,98,21],[151,22,151,23],[148,22,149,23],[90,22,90,23],[90,2,93,5],[104,6,105,7],[134,2,137,5],[155,8,157,21],[160,6,161,7],[166,2,169,5],[167,6,167,7],[168,6,169,7],[170,8,170,21],[351,22,351,23],[163,22,163,23],[167,8,169,21],[150,22,150,23],[152,22,153,23],[163,24,165,37],[150,2,153,5],[119,8,121,21],[107,8,109,21],[114,22,114,23],[102,24,102,37],[155,22,155,23],[151,6,151,7],[155,6,155,7],[123,6,123,7],[118,8,118,21],[123,8,125,21],[124,6,125,7],[120,6,121,7],[131,24,133,37],[130,24,130,37],[150,8,150,21],[152,6,153,7],[154,8,154,21],[134,8,134,21],[131,6,131,7],[158,38,161,40],[170,2,173,5],[154,2,157,5],[159,6,159,7],[166,22,166,23],[166,8,166,21],[159,8,161,21],[162,8,162,21],[346,6,346,37],[347,6,349,26],[344,6,345,12],[166,24,166,37],[347,2,349,5],[347,27,349,37],[183,6,183,7],[182,8,182,21],[179,6,179,7],[186,2,189,5],[156,6,157,7],[158,8,158,21],[178,22,178,23],[342,0,343,65],[182,41,185,43],[182,38,185,40],[158,2,161,5],[162,58,165,58],[162,38,165,40],[162,2,165,5],[178,2,181,5],[184,6,185,7],[164,6,165,7],[171,6,171,7],[114,62,117,62],[110,58,113,58],[150,63,153,65],[142,63,145,65],[142,62,145,62],[178,63,181,65],[154,63,157,65],[154,59,157,61],[146,63,149,65],[146,59,149,61],[158,62,161,62],[154,62,157,62],[146,62,149,62],[162,59,165,61],[154,54,157,57],[166,49,169,53],[178,54,181,57],[158,54,161,57],[162,54,165,57],[162,49,165,53],[138,63,141,65],[134,62,137,62],[178,62,181,62],[162,63,165,65],[166,63,169,65],[166,59,169,61],[162,62,165,62],[174,58,177,58],[166,62,169,62],[95,6,95,7],[24,41,27,43],[94,2,97,5],[82,63,85,65],[90,59,93,61],[82,59,85,61],[102,63,105,65],[102,62,105,62],[150,59,153,61],[99,22,99,23],[20,63,23,65],[16,62,19,62],[16,49,19,53],[20,54,23,57],[20,58,23,58],[20,59,23,61],[50,63,53,65],[50,62,53,62],[150,58,153,58],[146,54,149,57],[150,54,153,57],[24,62,27,62],[24,59,27,61],[110,49,113,53],[142,58,145,58],[142,54,145,57],[118,49,121,53],[130,58,133,58],[78,63,81,65],[98,63,101,65]],"merged_total":2096,"flags":["merged_cut"]}
[null,null,null,null,null,null,null,null,null,null,null,null,null,null,null,null,null,null,null,null,null,null,null,null,null,null,null,null,null,null,null,null,null,null,null,null,null,null,null,null,null,null,null,null,null,null,null,null,null,null,null,null,null,null,null,null,null,null,null,null,null,null,null,null,null,null,null,null,null,null,null,null,null,null,null,null,null,null,null,null,null,null,null,null,null,null,null,null,null,null,null,null,null,null,null,null,null,null,null,null,null,null,null,null,null,null,null,null,null,null,null,null,null,null,null,null,null,null,null,null,null,null,null,null,null,null,null,null,null,null,null,null,null,null,null,null,null,null,null,null,null,null,null,null,null,null,null,null,null,null,null,null,null,null,null,null,null,null,null,null,null,null,null,null,null,null,"学年","段位","西暦","月","日","個人戦年度","ランク","男子階級","入賞","女子階級","登録番号","校名","校名略"]
[null,null,"女子団体",null,null,null,null,null,null,null,null,{"$f":"VLOOKUP(C9,$FU$3:$FW$251,3)","v":{"$error":"#N/A"}},null,null,null,null,null,null,null,null,null,null,null,null,null,null,null,null,null,null,null,null,null,null,null,null,null,null,null,null,null,null,null,null,null,null,null,null,null,null,null,null,null,null,null,"必須入力"]
[null,null,null,null,null,null,null,null,null,null,null,null,null,null,null,null,null,null,null,null,null,null,null,null,null,null,null,null,null,null,null,null,null,null,null,null,null,null,null,null,null,null,null,null,null,null,null,null,null,null,null,null,null,null,null,"リストから選択",null,null,null,null,null,null,null,null,null,null,null,null,null,null,null,null,null,null,null,null,null,null,null,null,null,null,null,null,null,null,null,null,null,null,null,null,null,null,null,null,null,null,null,null,null,null,null,null,null,null,null,null,null,null,null,null,null,null,null,null,null,null,null,null,null,null,null,null,null,null,null,null,null,null,null,null,null,null,null,null,null,null,null,null,null,null,null,null,null,null,null,null,null,null,null,null,null,null,null,null,null,null,null,null,null,null,null,null,null,null,1,"無",1996,1,1,25,"A",60,1,48,301,"旭","　 旭　 "]
[null,null,null,null,null,null,null,null,null,null,null,null,null,null,null,null,null,null,null,null,null,null,null,null,null,null,null,null,null,null,null,null,null,null,null,null,null,null,null,null,null,null,null,null,null,null,null,null,null,null,null,null,null,null,null,"直接入力",null,null,null,null,null,null,null,null,null,null,null,null,null,null,null,null,null,null,null,null,null,null,null,null,null,null,null,null,null,null,null,null,null,null,null,null,null,null,null,null,null,null,null,null,null,null,null,null,null,null,null,null,null,null,null,null,null,null,null,null,null,null,null,null,null,null,null,null,null,null,null,null,null,null,null,null,null,null,null,null,null,null,null,null,null,null,null,null,null,null,null,null,null,null,null,null,null,null,null,null,null,null,null,null,null,null,null,null,null,null,2,"初",1997,2,2,26,"B",66,2,52,302,"枚方なぎさ","枚方なぎ"]
[null,null,{"$f":"ROUND(COUNTA(C47:F190)/2,0)","v":0},null,null,null,{"$f":"COUNTA(C9:BN11)","v":4},null,null,null,null,null,null,null,null,null,null,null,null,null,null,null,null,null,null,null,null,null,null,null,null,null,null,null,null,null,null,null,null,null,null,null,null,null,null,null,null,null,null,null,null,null,null,null,null,null,null,null,null,null,null,null,null,null,null,null,null,null,null,null,null,null,null,null,null,null,null,null,null,null,null,null,null,null,null,null,null,null,null,null,null,null,null,null,null,null,null,null,null,null,null,null,null,null,null,null,null,null,null,null,null,null,null,null,null,null,null,null,null,null,null,null,null,null,null,null,null,null,null,null,null,null,null,null,null,null,null,null,null,null,null,null,null,null,null,null,null,null,null,null,null,null,null,null,null,null,null,null,null,null,null,null,null,null,null,null,3,"弐",1998,3,3,27,"C",73,3,57,303,"大手前","大 手 前"]
[null,null,"※抽選番号",null,null,null,null,null,null,null,null,null,null,null,null,"第６８回　全国大会予選会申込書（女子）",null,null,null,null,null,null,null,null,null,null,null,null,null,null,null,null,null,null,null,null,null,null,null,null,null,null,null,null,null,null,null,null,null,null,null,null,null,null,null,null,null,null,null,null,null,null,null,null,null,null,null,null,null,null,null,null,null,null,null,null,null,null,null,null,null,null,null,null,null,null,null,null,null,null,null,null,null,null,null,null,null,null,null,null,null,null,null,null,null,null,null,null,null,null,null,null,null,null,null,null,null,null,null,null,null,null,null,null,null,null,null,null,null,null,null,null,null,null,null,null,null,null,null,null,null,null,null,null,null,null,null,null,null,null,null,null,null,null,null,null,null,null,null,null,null,null,null,null,null,null,4,"参",1999,4,4,28,"D",81,null,63,304,"勝山","勝　　山"]
[null,null,null,null,null,null,null,null,null,null,null,null,null,null,null,null,null,null,null,null,null,null,null,null,null,null,null,null,null,null,null,null,null,null,null,null,null,null,null,null,null,null,null,null,null,null,null,null,null,null,null,null,null,null,null,null,null,null,null,null,null,null,null,null,null,null,null,null,null,null,null,null,null,null,null,null,null,null,null,null,null,null,null,null,null,null,null,null,null,null,null,null,null,null,null,null,null,null,null,null,null,null,null,null,null,null,null,null,null,null,null,null,null,null,null,null,null,null,null,null,null,null,null,null,null,null,null,null,null,null,null,null,null,null,null,null,null,null,null,null,null,null,null,null,null,null,null,null,null,null,null,null,null,null,null,null,null,null,null,null,null,null,null,null,null,null,null,null,2000,5,5,29,null,90,null,70,305,"門真なみはや","門真なみ"]
[null,null,"学校番号",null,null,null,"学　　　　校　　　　名",null,null,null,null,null,null,null,null,null,null,null,null,null,null,null,null,null,null,null,null,null,null,null,null,null,null,null,null,"監督名",null,null,null,null,null,null,null,null,null,null,null,null,null,null,"校長名",null,null,null,null,null,null,null,null,null,null,null,null,null,null,null,null,null,null,null,null,null,null,null,null,null,null,null,null,null,null,null,null,null,null,null,null,null,null,null,null,null,null,null,null,null,null,null,null,null,null,null,null,null,null,null,null,null,null,null,null,null,null,null,null,null,null,null,null,null,null,null,null,null,null,null,null,null,null,null,null,null,null,null,null,null,null,null,null,null,null,null,null,null,null,null,null,null,null,null,null,null,null,null,null,null,null,null,null,null,null,null,null,null,null,null,null,null,2001,6,6,30,null,100,null,78,306,"門真西","門 真 西"]
[null,null,null,null,null,null,{"$f":"IF(C9=\"\",\"\",VLOOKUP(C9,$FU$3:$FW$251,2))","v":""},null,null,null,null,null,null,null,null,null,null,null,null,null,null,null,null,null,null,"高等学校",null,null,null,null,null,null,null,null,null,null,null,null,null,null,null,null,null,null,null,null,null,"印",null,null,null,null,null,null,null,null,null,null,null,null,null,null,"印",null,null,null,null,null,null,null,null,null,null,null,null,null,null,null,null,null,null,null,null,null,null,null,null,null,null,null,null,null,null,null,null,null,null,null,null,null,null,null,null,null,null,null,null,null,null,null,null,null,null,null,null,null,null,null,null,null,null,null,null,null,null,null,null,null,null,null,null,null,null,null,null,null,null,null,null,null,null,null,null,null,null,null,null,null,null,null,null,null,null,null,null,null,null,null,null,null,null,null,null,null,null,null,null,null,2002,7,7,31,null,"+100",null,"+78",308,"香里丘","香 里 丘"]
[null,null,null,null,null,null,null,null,null,null,null,null,null,null,null,null,null,null,null,null,null,null,null,null,null,null,null,null,null,null,null,null,null,null,null,null,null,null,null,null,null,null,null,null,null,null,null,null,null,null,null,null,null,null,null,null,null,null,null,null,null,null,null,null,null,null,null,null,null,null,null,null,null,null,null,null,null,null,null,null,null,null,null,null,null,null,null,null,null,null,null,null,null,null,null,null,null,null,null,null,null,null,null,null,null,null,null,null,null,null,null,null,null,null,null,null,null,null,null,null,null,null,null,null,null,null,null,null,null,null,null,null,null,null,null,null,null,null,null,null,null,null,null,null,null,null,null,null,null,null,null,null,null,null,null,null,null,null,null,null,null,null,null,null,null,null,null,null,2003,8,8,32,null,55,null,44,309,"高津","高　　津"]
[null,null,null,null,null,null,null,null,null,null,null,null,null,null,null,null,null,null,null,null,null,null,null,null,null,null,null,null,null,null,null,null,null,null,null,null,null,null,null,null,null,null,null,null,null,null,null,null,null,null,null,null,null,null,null,null,null,null,null,null,null,null,null,null,null,null,null,null,null,null,null,null,null,null,null,null,null,null,null,null,null,null,null,null,null,null,null,null,null,null,null,null,null,null,null,null,null,null,null,null,null,null,null,null,null,null,null,null,null,null,null,null,null,null,null,null,null,null,null,null,null,null,null,null,null,null,null,null,null,null,null,null,null,null,null,null,null,null,null,null,null,null,null,null,null,null,null,null,null,null,null,null,null,null,null,null,null,null,null,null,null,null,null,null,null,null,null,null,2004,9,9,33,null,null,null,null,310,"四條畷","四 條 畷"]
[null,null,null,null,null,null,"選手名",null,null,null,null,null,null,null,null,null,null,null,null,null,null,null,null,null,null,null,null,null,null,null,null,null,null,null,null,null,null,null,"学年",null,null,"段位",null,null,"体重（kg）",null,null,null,null,"身長（cm）",null,null,null,null,"生年月日（西暦）",null,null,null,null,null,null,null,null,null,null,null,null,null,null,null,null,null,null,null,null,null,null,null,null,null,null,null,null,null,null,null,null,null,null,null,null,null,null,null,null,null,null,null,null,null,null,null,null,null,null,null,null,null,null,null,null,null,null,null,null,null,null,null,null,null,null,null,null,null,null,null,null,null,null,null,null,null,null,null,null,null,null,null,null,null,null,null,null,null,null,null,null,null,null,null,null,null,null,null,null,null,null,null,null,null,null,null,null,null,null,null,null,null,2005,10,10,34,null,null,null,null,311,"清水谷","清 水 谷"]
[null,null,"先鋒",null,null,null,"ふりがな",null,null,null,null,null,null,null,null,null,null,null,null,null,null,null,null,null,null,null,null,null,null,null,null,null,null,null,null,null,null,null,null,null,null,null,null,null,null,null,null,null,null,null,null,null,null,null,null,null,null,null,"・",null,null,null,"・",null,null,null,null,null,null,null,null,null,null,null,null,null,null,null,null,null,null,null,null,null,null,null,null,null,null,null,null,null,null,null,null,null,null,null,null,null,null,null,null,null,null,null,null,null,null,null,null,null,null,null,null,null,null,null,null,null,null,null,null,null,null,null,null,null,null,null,null,null,null,null,null,null,null,null,null,null,null,null,null,null,null,null,null,null,null,null,null,null,null,null,null,null,null,null,null,null,null,null,null,null,null,null,null,null,2006,11,11,35,null,null,null,null,312,"緑風冠","緑 風 冠"]
[null,null,null,null,null,null,"（姓）",null,null,null,null,null,null,null,null,null,null,null,null,null,null,null,"（名）",null,null,null,null,null,null,null,null,null,null,null,null,null,null,null,null,null,null,null,null,null,null,null,null,null,null,null,null,null,null,null,null,null,null,null,null,null,null,null,null,null,null,null,null,null,null,null,null,null,null,null,null,null,null,null,null,null,null,null,null,null,null,null,null,null,null,null,null,null,null,null,null,null,null,null,null,null,null,null,null,null,null,null,null,null,null,null,null,null,null,null,null,null,null,null,null,null,null,null,null,null,null,null,null,null,null,null,null,null,null,null,null,null,null,null,null,null,null,null,null,null,null,null,null,null,null,null,null,null,null,null,null,null,null,null,null,null,null,null,null,null,null,null,null,null,2007,12,12,36,null,null,null,null,313,"かわち野","かわち野"]
[null,null,null,null,null,null,null,null,null,null,null,null,null,null,null,null,null,null,null,null,null,null,null,null,null,null,null,null,null,null,null,null,null,null,null,null,null,null,null,null,null,null,null,null,null,null,null,null,null,null,null,null,null,null,null,null,null,null,null,null,null,null,null,null,null,null,null,null,null,null,null,null,null,null,null,null,null,null,null,null,null,null,null,null,null,null,null,null,null,null,null,null,null,null,null,null,null,null,null,null,null,null,null,null,null,null,null,null,null,null,null,null,null,null,null,null,null,null,null,null,null,null,null,null,null,null,null,null,null,null,null,null,null,null,null,null,null,null,null,null,null,null,null,null,null,null,null,null,null,null,null,null,null,null,null,null,null,null,null,null,null,null,null,null,null,null,null,null,2008,null,13,37,null,null,null,null,314,"長尾","長　　尾"]
[null,null,null,null,null,null,null,null,null,null,null,null,null,null,null,null,null,null,null,null,null,null,null,null,null,null,null,null,null,null,null,null,null,null,null,null,null,null,null,null,null,null,null,null,null,null,null,null,null,null,null,null,null,null,null,null,null,null,null,null,null,null,null,null,null,null,null,null,null,null,null,null,null,null,null,null,null,null,null,null,null,null,null,null,null,null,null,null,null,null,null,null,null,null,null,null,null,null,null,null,null,null,null,null,null,null,null,null,null,null,null,null,null,null,null,null,null,null,null,null,null,null,null,null,null,null,null,null,null,null,null,null,null,null,null,null,null,null,null,null,null,null,null,null,null,null,null,null,null,null,null,null,null,null,null,null,null,null,null,null,null,null,null,null,null,null,null,null,2009,null,14,38,null,null,null,null,315,"西寝屋川","西寝屋川"]
[null,null,"中堅",null,null,null,"ふりがな",null,null,null,null,null,null,null,null,null,null,null,null,null,null,null,null,null,null,null,null,null,null,null,null,null,null,null,null,null,null,null,null,null,null,null,null,null,null,null,null,null,null,null,null,null,null,null,null,null,null,null,"・",null,null,null,"・",null,null,null,null,null,null,null,null,null,null,null,null,null,null,null,null,null,null,null,null,null,null,null,null,null,null,null,null,null,null,null,null,null,null,null,null,null,null,null,null,null,null,null,null,null,null,null,null,null,null,null,null,null,null,null,null,null,null,null,null,null,null,null,null,null,null,null,null,null,null,null,null,null,null,null,null,null,null,null,null,null,null,null,null,null,null,null,null,null,null,null,null,null,null,null,null,null,null,null,null,null,null,null,null,null,2010,null,15,39,null,null,null,null,316,"寝屋川","寝 屋 川"]
[null,null,null,null,null,null,"（姓）",null,null,null,null,null,null,null,null,null,null,null,null,null,null,null,"（名）",null,null,null,null,null,null,null,null,null,null,null,null,null,null,null,null,null,null,null,null,null,null,null,null,null,null,null,null,null,null,null,null,null,null,null,null,null,null,null,null,null,null,null,null,null,null,null,null,null,null,null,null,null,null,null,null,null,null,null,null,null,null,null,null,null,null,null,null,null,null,null,null,null,null,null,null,null,null,null,null,null,null,null,null,null,null,null,null,null,null,null,null,null,null,null,null,null,null,null,null,null,null,null,null,null,null,null,null,null,null,null,null,null,null,null,null,null,null,null,null,null,null,null,null,null,null,null,null,null,null,null,null,null,null,null,null,null,null,null,null,null,null,null,null,null,2011,null,16,40,null,null,null,null,317,"北かわち皐が丘","北かわち"]
[null,null,null,null,null,null,null,null,null,null,null,null,null,null,null,null,null,null,null,null,null,null,null,null,null,null,null,null,null,null,null,null,null,null,null,null,null,null,null,null,null,null,null,null,null,null,null,null,null,null,null,null,null,null,null,null,null,null,null,null,null,null,null,null,null,null,null,null,null,null,null,null,null,null,null,null,null,null,null,null,null,null,null,null,null,null,null,null,null,null,null,null,null,null,null,null,null,null,null,null,null,null,null,null,null,null,null,null,null,null,null,null,null,null,null,null,null,null,null,null,null,null,null,null,null,null,null,null,null,null,null,null,null,null,null,null,null,null,null,null,null,null,null,null,null,null,null,null,null,null,null,null,null,null,null,null,null,null,null,null,null,null,null,null,null,null,null,null,2012,null,17,41,null,null,null,null,318,"枚方","枚　　方"]
[null,null,null,null,null,null,null,null,null,null,null,null,null,null,null,null,null,null,null,null,null,null,null,null,null,null,null,null,null,null,null,null,null,null,null,null,null,null,null,null,null,null,null,null,null,null,null,null,null,null,null,null,null,null,null,null,null,null,null,null,null,null,null,null,null,null,null,null,null,null,null,null,null,null,null,null,null,null,null,null,null,null,null,null,null,null,null,null,null,null,null,null,null,null,null,null,null,null,null,null,null,null,null,null,null,null,null,null,null,null,null,null,null,null,null,null,null,null,null,null,null,null,null,null,null,null,null,null,null,null,null,null,null,null,null,null,null,null,null,null,null,null,null,null,null,null,null,null,null,null,null,null,null,null,null,null,null,null,null,null,null,null,null,null,null,null,null,null,2013,null,18,42,null,null,null,null,319,"牧野","牧　　野"]
[null,null,"大将",null,null,null,"ふりがな",null,null,null,null,null,null,null,null,null,null,null,null,null,null,null,null,null,null,null,null,null,null,null,null,null,null,null,null,null,null,null,null,null,null,null,null,null,null,null,null,null,null,null,null,null,null,null,null,null,null,null,"・",null,null,null,"・",null,null,null,null,null,null,null,null,null,null,null,null,null,null,null,null,null,null,null,null,null,null,null,null,null,null,null,null,null,null,null,null,null,null,null,null,null,null,null,null,null,null,null,null,null,null,null,null,null,null,null,null,null,null,null,null,null,null,null,null,null,null,null,null,null,null,null,null,null,null,null,null,null,null,null,null,null,null,null,null,null,null,null,null,null,null,null,null,null,null,null,null,null,null,null,null,null,null,null,null,null,null,null,null,null,2014,null,19,43,null,null,null,null,320,"茨田","茨　　田"]
[null,null,null,null,null,null,"（姓）",null,null,null,null,null,null,null,null,null,null,null,null,null,null,null,"（名）",null,null,null,null,null,null,null,null,null,null,null,null,null,null,null,null,null,null,null,null,null,null,null,null,null,null,null,null,null,null,null,null,null,null,null,null,null,null,null,null,null,null,null,null,null,null,null,null,null,null,null,null,null,null,null,null,null,null,null,null,null,null,null,null,null,null,null,null,null,null,null,null,null,null,null,null,null,null,null,null,null,null,null,null,null,null,null,null,null,null,null,null,null,null,null,null,null,null,null,null,null,null,null,null,null,null,null,null,null,null,null,null,null,null,null,null,null,null,null,null,null,null,null,null,null,null,null,null,null,null,null,null,null,null,null,null,null,null,null,null,null,null,null,null,null,2015,null,20,44,null,null,null,null,322,"芦間","芦　　間"]
[null,null,null,null,null,null,null,null,null,null,null,null,null,null,null,null,null,null,null,null,null,null,null,null,null,null,null,null,null,null,null,null,null,null,null,null,null,null,null,null,null,null,null,null,null,null,null,null,null,null,null,null,null,null,null,null,null,null,null,null,null,null,null,null,null,null,null,null,null,null,null,null,null,null,null,null,null,null,null,null,null,null,null,null,null,null,null,null,null,null,null,null,null,null,null,null,null,null,null,null,null,null,null,null,null,null,null,null,null,null,null,null,null,null,null,null,null,null,null,null,null,null,null,null,null,null,null,null,null,null,null,null,null,null,null,null,null,null,null,null,null,null,null,null,null,null,null,null,null,null,null,null,null,null,null,null,null,null,null,null,null,null,null,null,null,null,null,null,2016,null,21,45,null,null,null,null,323,"守口東","守 口 東"]
[null,null,null,null,null,null,null,null,null,null,null,null,null,null,null,null,null,null,null,null,null,null,null,null,null,null,null,null,null,null,null,null,null,null,null,null,null,null,null,null,null,null,null,null,null,null,null,null,null,null,null,null,null,null,null,null,null,null,null,null,null,null,null,null,null,null,null,null,null,null,null,null,null,null,null,null,null,null,null,null,null,null,null,null,null,null,null,null,null,null,null,null,null,null,null,null,null,null,null,null,null,null,null,null,null,null,null,null,null,null,null,null,null,null,null,null,null,null,null,null,null,null,null,null,null,null,null,null,null,null,null,null,null,null,null,null,null,null,null,null,null,null,null,null,null,null,null,null,null,null,null,null,null,null,null,null,null,null,null,null,null,null,null,null,null,null,null,null,2017,null,22,46,null,null,null,null,324,"夕陽丘","夕 陽 丘"]
[null,null,"補欠",null,null,null,"ふりがな",null,null,null,null,null,null,null,null,null,null,null,null,null,null,null,null,null,null,null,null,null,null,null,null,null,null,null,null,null,null,null,null,null,null,null,null,null,null,null,null,null,null,null,null,null,null,null,null,null,null,null,"・",null,null,null,"・",null,null,null,null,null,null,null,null,null,null,null,null,null,null,null,null,null,null,null,null,null,null,null,null,null,null,null,null,null,null,null,null,null,null,null,null,null,null,null,null,null,null,null,null,null,null,null,null,null,null,null,null,null,null,null,null,null,null,null,null,null,null,null,null,null,null,null,null,null,null,null,null,null,null,null,null,null,null,null,null,null,null,null,null,null,null,null,null,null,null,null,null,null,null,null,null,null,null,null,null,null,null,null,null,null,2018,null,23,47,null,null,null,null,325,"城東工科","城東工科"]
[null,null,null,null,null,null,"（姓）",null,null,null,null,null,null,null,null,null,null,null,null,null,null,null,"（名）",null,null,null,null,null,null,null,null,null,null,null,null,null,null,null,null,null,null,null,null,null,null,null,null,null,null,null,null,null,null,null,null,null,null,null,null,null,null,null,null,null,null,null,null,null,null,null,null,null,null,null,null,null,null,null,null,null,null,null,null,null,null,null,null,null,null,null,null,null,null,null,null,null,null,null,null,null,null,null,null,null,null,null,null,null,null,null,null,null,null,null,null,null,null,null,null,null,null,null,null,null,null,null,null,null,null,null,null,null,null,null,null,null,null,null,null,null,null,null,null,null,null,null,null,null,null,null,null,null,null,null,null,null,null,null,null,null,null,null,null,null,null,null,null,null,2019,null,24,48,null,null,null,null,326,"成城","成　　城"]
[null,null,null,null,null,null,null,null,null,null,null,null,null,null,null,null,null,null,null,null,null,null,null,null,null,null,null,null,null,null,null,null,null,null,null,null,null,null,null,null,null,null,null,null,null,null,null,null,null,null,null,null,null,null,null,null,null,null,null,null,null,null,null,null,null,null,null,null,null,null,null,null,null,null,null,null,null,null,null,null,null,null,null,null,null,null,null,null,null,null,null,null,null,null,null,null,null,null,null,null,null,null,null,null,null,null,null,null,null,null,null,null,null,null,null,null,null,null,null,null,null,null,null,null,null,null,null,null,null,null,null,null,null,null,null,null,null,null,null,null,null,null,null,null,null,null,null,null,null,null,null,null,null,null,null,null,null,null,null,null,null,null,null,null,null,null,null,null,2020,null,25,49,null,null,null,null,327,"淀川工科","淀川工科"]
[null,null,null,null,null,null,null,null,null,null,null,null,null,null,null,null,null,null,null,null,null,null,null,null,null,null,null,null,null,null,null,null,null,null,null,null,null,null,null,null,null,null,null,null,null,null,null,null,null,null,null,null,null,null,null,null,null,null,null,null,null,null,null,null,null,null,null,null,null,null,null,null,null,null,null,null,null,null,null,null,null,null,null,null,null,null,null,null,null,null,null,null,null,null,null,null,null,null,null,null,null,null,null,null,null,null,null,null,null,null,null,null,null,null,null,null,null,null,null,null,null,null,null,null,null,null,null,null,null,null,null,null,null,null,null,null,null,null,null,null,null,null,null,null,null,null,null,null,null,null,null,null,null,null,null,null,null,null,null,null,null,null,null,null,null,null,null,null,null,null,26,50,null,null,null,null,329,"扇町総合","扇町総合"]
[null,null,null,null,null,null,null,null,null,null,null,null,null,null,null,null,null,null,null,null,null,null,null,null,null,null,null,null,null,null,null,null,null,null,null,null,null,null,null,null,null,null,null,null,null,null,null,null,null,null,null,null,null,null,null,null,null,null,null,null,null,null,null,null,null,null,null,null,null,null,null,null,null,null,null,null,null,null,null,null,null,null,null,null,null,null,null,null,null,null,null,null,null,null,null,null,null,null,null,null,null,null,null,null,null,null,null,null,null,null,null,null,null,null,null,null,null,null,null,null,null,null,null,null,null,null,null,null,null,null,null,null,null,null,null,null,null,null,null,null,null,null,null,null,null,null,null,null,null,null,null,null,null,null,null,null,null,null,null,null,null,null,null,null,null,null,null,null,null,null,27,51,null,null,null,null,330,"大阪市立","大阪市立"]
[null,null,null,null,null,null,null,null,null,null,null,null,null,null,null,null,null,null,null,null,null,null,null,null,null,null,null,null,null,null,null,null,null,null,null,null,null,null,null,null,null,null,null,null,null,null,null,null,null,null,null,null,null,null,null,null,null,null,null,null,null,null,null,null,null,null,null,null,null,null,null,null,null,null,null,null,null,null,null,null,null,null,null,null,null,null,null,null,null,null,null,null,null,null,null,null,null,null,null,null,null,null,null,null,null,null,null,null,null,null,null,null,null,null,null,null,null,null,null,null,null,null,null,null,null,null,null,null,null,null,null,null,null,null,null,null,null,null,null,null,null,null,null,null,null,null,null,null,null,null,null,null,null,null,null,null,null,null,null,null,null,null,null,null,null,null,null,null,null,null,28,52,null,null,null,null,331,"桜宮","桜　　宮"]
[null,null,null,null,null,null,null,null,null,null,null,null,null,null,null,null,null,null,null,null,null,null,null,null,null,null,null,null,null,null,null,null,null,null,null,null,null,null,null,null,null,null,null,null,null,null,null,null,null,null,null,null,null,null,null,null,null,null,null,null,null,null,null,null,null,null,null,null,null,null,null,null,null,null,null,null,null,null,null,null,null,null,null,null,null,null,null,null,null,null,null,null,null,null,null,null,null,null,null,null,null,null,null,null,null,null,null,null,null,null,null,null,null,null,null,null,null,null,null,null,null,null,null,null,null,null,null,null,null,null,null,null,null,null,null,null,null,null,null,null,null,null,null,null,null,null,null,null,null,null,null,null,null,null,null,null,null,null,null,null,null,null,null,null,null,null,null,null,null,null,29,53,null,null,null,null,332,"汎愛","汎　　愛"]
[null,null,null,null,null,null,null,null,null,null,null,null,null,null,null,null,null,null,null,null,null,null,null,null,null,null,null,null,null,null,null,null,null,null,null,null,null,null,null,null,null,null,null,null,null,null,null,null,null,null,null,null,null,null,null,null,null,null,null,null,null,null,null,null,null,null,null,null,null,null,null,null,null,null,null,null,null,null,null,null,null,null,null,null,null,null,null,null,null,null,null,null,null,null,null,null,null,null,null,null,null,null,null,null,null,null,null,null,null,null,null,null,null,null,null,null,null,null,null,null,null,null,null,null,null,null,null,null,null,null,null,null,null,null,null,null,null,null,null,null,null,null,null,null,null,null,null,null,null,null,null,null,null,null,null,null,null,null,null,null,null,null,null,null,null,null,null,null,null,null,30,54,null,null,null,null,333,"東","　 東　 "]
[null,null,null,null,null,null,null,null,null,null,null,null,null,null,null,null,null,null,null,null,null,null,null,null,null,null,null,null,null,null,null,null,null,null,null,null,null,null,null,null,null,null,null,null,null,null,null,null,null,null,null,null,null,null,null,null,null,null,null,null,null,null,null,null,null,null,null,null,null,null,null,null,null,null,null,null,null,null,null,null,null,null,null,null,null,null,null,null,null,null,null,null,null,null,null,null,null,null,null,null,null,null,null,null,null,null,null,null,null,null,null,null,null,null,null,null,null,null,null,null,null,null,null,null,null,null,null,null,null,null,null,null,null,null,null,null,null,null,null,null,null,null,null,null,null,null,null,null,null,null,null,null,null,null,null,null,null,null,null,null,null,null,null,null,null,null,null,null,null,null,31,55,null,null,null,null,334,"南","　 南　 "]
[null,null,null,null,null,null,null,null,null,null,null,null,null,null,null,null,null,null,null,null,null,null,null,null,null,null,null,null,null,null,null,null,null,null,null,null,null,null,null,null,null,null,null,null,null,null,null,null,null,null,null,null,null,null,null,null,null,null,null,null,null,null,null,null,null,null,null,null,null,null,null,null,null,null,null,null,null,null,null,null,null,null,null,null,null,null,null,null,null,null,null,null,null,null,null,null,null,null,null,null,null,null,null,null,null,null,null,null,null,null,null,null,null,null,null,null,null,null,null,null,null,null,null,null,null,null,null,null,null,null,null,null,null,null,null,null,null,null,null,null,null,null,null,null,null,null,null,null,null,null,null,null,null,null,null,null,null,null,null,null,null,null,null,null,null,null,null,null,null,null,null,null,null,null,null,null,335,"生野工業","生野工業"]
[null,null,null,null,null,null,null,null,null,null,null,null,null,null,null,null,null,null,null,null,null,null,null,null,null,null,null,null,null,null,null,null,null,null,null,null,null,null,null,null,null,null,null,null,null,null,null,null,null,null,null,null,null,null,null,null,null,null,null,null,null,null,null,null,null,null,null,null,null,null,null,null,null,null,null,null,null,null,null,null,null,null,null,null,null,null,null,null,null,null,null,null,null,null,null,null,null,null,null,null,null,null,null,null,null,null,null,null,null,null,null,null,null,null,null,null,null,null,null,null,null,null,null,null,null,null,null,null,null,null,null,null,null,null,null,null,null,null,null,null,null,null,null,null,null,null,null,null,null,null,null,null,null,null,null,null,null,null,null,null,null,null,null,null,null,null,null,null,null,null,null,null,null,null,null,null,336,"都島工業","都島工業"]
[null,null,null,null,null,null,null,null,null,null,null,null,null,null,null,null,null,null,null,null,null,null,null,null,null,null,null,null,null,null,null,null,null,null,null,null,null,null,null,null,null,null,null,null,null,null,null,null,null,null,null,null,null,null,null,null,null,null,null,null,null,null,null,null,null,null,null,null,null,null,null,null,null,null,null,null,null,null,null,null,null,null,null,null,null,null,null,null,null,null,null,null,null,null,null,null,null,null,null,null,null,null,null,null,null,null,null,null,null,null,null,null,null,null,null,null,null,null,null,null,null,null,null,null,null,null,null,null,null,null,null,null,null,null,null,null,null,null,null,null,null,null,null,null,null,null,null,null,null,null,null,null,null,null,null,null,null,null,null,null,null,null,null,null,null,null,null,null,null,null,null,null,null,null,null,null,338,"常翔学園","常翔学園"]
[null,null,null,null,null,null,null,null,null,null,null,null,null,null,null,null,null,null,null,null,null,null,null,null,null,null,null,null,null,null,null,null,null,null,null,null,null,null,null,null,null,null,null,null,null,null,null,null,null,null,null,null,null,null,null,null,null,null,null,null,null,null,null,null,null,null,null,null,null,null,null,null,null,null,null,null,null,null,null,null,null,null,null,null,null,null,null,null,null,null,null,null,null,null,null,null,null,null,null,null,null,null,null,null,null,null,null,null,null,null,null,null,null,null,null,null,null,null,null,null,null,null,null,null,null,null,null,null,null,null,null,null,null,null,null,null,null,null,null,null,null,null,null,null,null,null,null,null,null,null,null,null,null,null,null,null,null,null,null,null,null,null,null,null,null,null,null,null,null,null,null,null,null,null,null,null,339,"大阪産業大学附属","大産大附"]
[null,null,null,null,null,null,null,null,null,null,null,null,null,null,null,null,null,null,null,null,null,null,null,null,null,null,null,null,null,null,null,null,null,null,null,null,null,null,null,null,null,null,null,null,null,null,null,null,null,null,null,null,null,null,null,null,null,null,null,null,null,null,null,null,null,null,null,null,null,null,null,null,null,null,null,null,null,null,null,null,null,null,null,null,null,null,null,null,null,null,null,null,null,null,null,null,null,null,null,null,null,null,null,null,null,null,null,null,null,null,null,null,null,null,null,null,null,null,null,null,null,null,null,null,null,null,null,null,null,null,null,null,null,null,null,null,null,null,null,null,null,null,null,null,null,null,null,null,null,null,null,null,null,null,null,null,null,null,null,null,null,null,null,null,null,null,null,null,null,null,null,null,null,null,null,null,340,"追手門大手前","追手門大"]
[null,null,null,null,null,null,null,null,null,null,null,null,null,null,null,null,null,null,null,null,null,null,null,null,null,null,null,null,null,null,null,null,null,null,null,null,null,null,null,null,null,null,null,null,null,null,null,null,null,null,null,null,null,null,null,null,null,null,null,null,null,null,null,null,null,null,null,null,null,null,null,null,null,null,null,null,null,null,null,null,null,null,null,null,null,null,null,null,null,null,null,null,null,null,null,null,null,null,null,null,null,null,null,null,null,null,null,null,null,null,null,null,null,null,null,null,null,null,null,null,null,null,null,null,null,null,null,null,null,null,null,null,null,null,null,null,null,null,null,null,null,null,null,null,null,null,null,null,null,null,null,null,null,null,null,null,null,null,null,null,null,null,null,null,null,null,null,null,null,null,null,null,null,null,null,null,341,"常翔啓光学園","常翔啓光"]
[null,null,null,null,null,null,null,null,null,null,null,null,null,null,null,null,null,null,null,null,null,null,null,null,null,null,null,null,null,null,null,null,null,null,null,null,null,null,null,null,null,null,null,null,null,null,null,null,null,null,null,null,null,null,null,null,null,null,null,null,null,null,null,null,null,null,null,null,null,null,null,null,null,null,null,null,null,null,null,null,null,null,null,null,null,null,null,null,null,null,null,null,null,null,null,null,null,null,null,null,null,null,null,null,null,null,null,null,null,null,null,null,null,null,null,null,null,null,null,null,null,null,null,null,null,null,null,null,null,null,null,null,null,null,null,null,null,null,null,null,null,null,null,null,null,null,null,null,null,null,null,null,null,null,null,null,null,null,null,null,null,null,null,null,null,null,null,null,null,null,null,null,null,null,null,null,342,"大阪偕星学園","大阪偕星"]
[null,null,null,null,null,null,null,null,null,null,null,null,null,null,null,null,null,null,null,null,null,null,null,null,null,null,null,null,null,null,null,null,null,null,null,null,null,null,null,null,null,null,null,null,null,null,null,null,null,null,null,null,null,null,null,null,null,null,null,null,null,null,null,null,null,null,null,null,null,null,null,null,null,null,null,null,null,null,null,null,null,null,null,null,null,null,null,null,null,null,null,null,null,null,null,null,null,null,null,null,null,null,null,null,null,null,null,null,null,null,null,null,null,null,null,null,null,null,null,null,null,null,null,null,null,null,null,null,null,null,null,null,null,null,null,null,null,null,null,null,null,null,null,null,null,null,null,null,null,null,null,null,null,null,null,null,null,null,null,null,null,null,null,null,null,null,null,null,null,null,null,null,null,null,null,null,343,"太成学院大学","太成学院"]
[null,null,null,null,null,null,null,null,null,null,null,null,null,null,null,null,null,null,null,null,null,null,null,null,null,null,null,null,null,null,null,null,null,null,null,null,null,null,null,null,null,null,null,null,null,null,null,null,null,null,null,null,null,null,null,null,null,null,null,null,null,null,null,null,null,null,null,null,null,null,null,null,null,null,null,null,null,null,null,null,null,null,null,null,null,null,null,null,null,null,null,null,null,null,null,null,null,null,null,null,null,null,null,null,null,null,null,null,null,null,null,null,null,null,null,null,null,null,null,null,null,null,null,null,null,null,null,null,null,null,null,null,null,null,null,null,null,null,null,null,null,null,null,null,null,null,null,null,null,null,null,null,null,null,null,null,null,null,null,null,null,null,null,null,null,null,null,null,null,null,null,null,null,null,null,null,344,"電通大","電 通 大"]
[null,null,"女子個人",null,null,null,null,null,null,null,null,null,null,null,"第６８回　全国大会大阪府予選会",null,null,null,null,null,null,null,null,null,null,null,null,null,null,null,null,null,null,null,null,null,null,null,null,null,null,null,null,null,null,null,null,null,null,null,null,null,null,null,null,null,null,null,null,null,null,null,null,null,null,null,null,null,null,null,null,null,null,null,null,null,null,null,null,null,null,null,null,null,null,null,null,null,null,null,null,null,null,null,null,null,null,null,null,null,null,null,null,null,null,null,null,null,null,null,null,null,null,null,null,null,null,null,null,null,null,null,null,null,null,null,null,null,null,null,null,null,null,null,null,null,null,null,null,null,null,null,null,null,null,null,null,null,null,null,null,null,null,null,null,null,null,null,null,null,null,null,null,null,null,null,null,null,null,null,null,null,null,null,null,null,345,"同志社香里","同志社香"]
[null,null,null,null,null,null,null,null,null,null,null,null,null,null,null,null,null,null,null,null,null,null,null,null,null,null,null,null,null,null,null,null,null,null,null,null,null,null,null,null,null,null,null,null,null,null,null,null,null,null,null,null,null,null,null,null,null,null,null,null,null,null,null,null,null,null,null,null,null,null,null,null,null,null,null,null,null,null,null,null,null,null,null,null,null,null,null,null,null,null,null,null,null,null,null,null,null,null,null,null,null,null,null,null,null,null,null,null,null,null,null,null,null,null,null,null,null,null,null,null,null,null,null,null,null,null,null,null,null,null,null,null,null,null,null,null,null,null,null,null,null,null,null,null,null,null,null,null,null,null,null,null,null,null,null,null,null,null,null,null,null,null,null,null,null,null,null,null,null,null,null,null,null,null,null,null,346,"開明","開　　明"]
[null,null,null,null,null,null,null,null,null,null,null,null,null,null,null,null,null,null,null,null,null,null,null,null,null,null,null,null,null,null,null,null,null,null,null,null,null,null,null,null,null,null,null,null,null,null,null,null,null,null,null,null,null,null,null,null,null,null,null,null,null,null,null,null,null,null,null,null,null,null,null,null,null,null,null,null,null,null,null,null,null,null,null,null,null,null,null,null,null,null,null,null,null,null,null,null,null,null,null,null,null,null,null,null,null,null,null,null,null,null,null,null,null,null,null,null,null,null,null,null,null,null,null,null,null,null,null,null,null,null,null,null,null,null,null,null,null,null,null,null,null,null,null,null,null,null,null,null,null,null,null,null,null,null,null,null,null,null,null,null,null,null,null,null,null,null,null,null,null,null,null,null,null,null,null,null,347,"東海大学付属仰星","東海仰星"]
[null,null,"階級",null,null,null,"選手名",null,null,null,null,null,null,null,null,null,null,null,null,null,null,null,null,null,null,null,null,null,null,null,null,null,null,null,null,null,null,null,"学年",null,null,"段位",null,null,"体重（kg）",null,null,null,null,"身長（cm）",null,null,null,null,"生年月日（西暦）",null,null,null,null,null,null,null,null,null,null,null,null,null,null,null,null,null,null,null,null,null,null,null,null,null,null,null,null,null,null,null,null,null,null,null,null,null,null,null,null,null,null,null,null,null,null,null,null,null,null,null,null,null,null,null,null,null,null,null,null,null,null,null,null,null,null,null,null,null,null,null,null,null,null,null,null,null,null,null,null,null,null,null,null,null,null,null,null,null,null,null,null,null,null,null,null,null,null,null,null,null,null,null,null,null,null,null,null,null,null,null,null,null,null,null,null,null,null,null,null,null,348,"泉尾","泉　　尾"]
[null,null,null,null,null,null,"ふりがな",null,null,null,null,null,null,null,null,null,null,null,null,null,null,null,null,null,null,null,null,null,null,null,null,null,null,null,null,null,null,null,null,null,null,null,null,null,null,null,null,null,null,null,null,null,null,null,null,null,null,null,"・",null,null,null,"・",null,null,null,null,null,null,null,null,null,null,null,null,null,null,null,null,null,null,null,null,null,null,null,null,null,null,null,null,null,null,null,null,null,null,null,null,null,null,null,null,null,null,null,null,null,null,null,null,null,null,null,null,null,null,null,null,null,null,null,null,null,null,null,null,null,null,null,null,null,null,null,null,null,null,null,null,null,null,null,null,null,null,null,null,null,null,null,null,null,null,null,null,null,null,null,null,null,null,null,null,null,null,null,null,null,null,null,null,null,null,null,null,null,349,"和泉","和　　泉"]
[null,null,null,null,null,null,"（姓）",null,null,null,null,null,null,null,null,null,null,null,null,null,null,null,"（名）",null,null,null,null,null,null,null,null,null,null,null,null,null,null,null,null,null,null,null,null,null,null,null,null,null,null,null,null,null,null,null,null,null,null,null,null,null,null,null,null,null,null,null,null,null,null,null,null,null,null,null,null,null,null,null,null,null,null,null,null,null,null,null,null,null,null,null,null,null,null,null,null,null,null,null,null,null,null,null,null,null,null,null,null,null,null,null,null,null,null,null,null,null,null,null,null,null,null,null,null,null,null,null,null,null,null,null,null,null,null,null,null,null,null,null,null,null,null,null,null,null,null,null,null,null,null,null,null,null,null,null,null,null,null,null,null,null,null,null,null,null,null,null,null,null,null,null,null,null,null,null,null,null,350,"泉大津","泉 大 津"]
[null,null,null,null,null,null,null,null,null,null,null,null,null,null,null,null,null,null,null,null,null,null,null,null,null,null,null,null,null,null,null,null,null,null,null,null,null,null,null,null,null,null,null,null,null,null,null,null,null,null,null,null,null,null,null,null,null,null,null,null,null,null,null,null,null,null,null,null,null,null,null,null,null,null,null,null,null,null,null,null,null,null,null,null,null,null,null,null,null,null,null,null,null,null,null,null,null,null,null,null,null,null,null,null,null,null,null,null,null,null,null,null,null,null,null,null,null,null,null,null,null,null,null,null,null,null,null,null,null,null,null,null,null,null,null,null,null,null,null,null,null,null,null,null,null,null,null,null,null,null,null,null,null,null,null,null,null,null,null,null,null,null,null,null,null,null,null,null,null,null,null,null,null,null,null,null,351,"泉鳥取","泉 鳥 取"]
[null,null,null,null,null,null,null,null,null,null,null,null,null,null,null,null,null,null,null,null,null,null,null,null,null,null,null,null,null,null,null,null,null,null,null,null,null,null,null,null,null,null,null,null,null,null,null,null,null,null,null,null,null,null,null,null,null,null,null,null,null,null,null,null,null,null,null,null,null,null,null,null,null,null,null,null,null,null,null,null,null,null,null,null,null,null,null,null,null,null,null,null,null,null,null,null,null,null,null,null,null,null,null,null,null,null,null,null,null,null,null,null,null,null,null,null,null,null,null,null,null,null,null,null,null,null,null,null,null,null,null,null,null,null,null,null,null,null,null,null,null,null,null,null,null,null,null,null,null,null,null,null,null,null,null,null,null,null,null,null,null,null,null,null,null,null,null,null,null,null,null,null,null,null,null,null,352,"市岡","市　　岡"]
[null,null,null,null,null,null,"ふりがな",null,null,null,null,null,null,null,null,null,null,null,null,null,null,null,null,null,null,null,null,null,null,null,null,null,null,null,null,null,null,null,null,null,null,null,null,null,null,null,null,null,null,null,null,null,null,null,null,null,null,null,"・",null,null,null,"・",null,null,null,null,null,null,null,null,null,null,null,null,null,null,null,null,null,null,null,null,null,null,null,null,null,null,null,null,null,null,null,null,null,null,null,null,null,null,null,null,null,null,null,null,null,null,null,null,null,null,null,null,null,null,null,null,null,null,null,null,null,null,null,null,null,null,null,null,null,null,null,null,null,null,null,null,null,null,null,null,null,null,null,null,null,null,null,null,null,null,null,null,null,null,null,null,null,null,null,null,null,null,null,null,null,null,null,null,null,null,null,null,null,353,"今宮","今　　宮"]
[null,null,null,null,null,null,"（姓）",null,null,null,null,null,null,null,null,null,null,null,null,null,null,null,"（名）",null,null,null,null,null,null,null,null,null,null,null,null,null,null,null,null,null,null,null,null,null,null,null,null,null,null,null,null,null,null,null,null,null,null,null,null,null,null,null,null,null,null,null,null,null,null,null,null,null,null,null,null,null,null,null,null,null,null,null,null,null,null,null,null,null,null,null,null,null,null,null,null,null,null,null,null,null,null,null,null,null,null,null,null,null,null,null,null,null,null,null,null,null,null,null,null,null,null,null,null,null,null,null,null,null,null,null,null,null,null,null,null,null,null,null,null,null,null,null,null,null,null,null,null,null,null,null,null,null,null,null,null,null,null,null,null,null,null,null,null,null,null,null,null,null,null,null,null,null,null,null,null,null,354,"鳳","　 鳳　 "]
[null,null,null,null,null,null,null,null,null,null,null,null,null,null,null,null,null,null,null,null,null,null,null,null,null,null,null,null,null,null,null,null,null,null,null,null,null,null,null,null,null,null,null,null,null,null,null,null,null,null,null,null,null,null,null,null,null,null,null,null,null,null,null,null,null,null,null,null,null,null,null,null,null,null,null,null,null,null,null,null,null,null,null,null,null,null,null,null,null,null,null,null,null,null,null,null,null,null,null,null,null,null,null,null,null,null,null,null,null,null,null,null,null,null,null,null,null,null,null,null,null,null,null,null,null,null,null,null,null,null,null,null,null,null,null,null,null,null,null,null,null,null,null,null,null,null,null,null,null,null,null,null,null,null,null,null,null,null,null,null,null,null,null,null,null,null,null,null,null,null,null,null,null,null,null,null,355,"貝塚","貝　　塚"]
[null,null,null,null,null,null,null,null,null,null,null,null,null,null,null,null,null,null,null,null,null,null,null,null,null,null,null,null,null,null,null,null,null,null,null,null,null,null,null,null,null,null,null,null,null,null,null,null,null,null,null,null,null,null,null,null,null,null,null,null,null,null,null,null,null,null,null,null,null,null,null,null,null,null,null,null,null,null,null,null,null,null,null,null,null,null,null,null,null,null,null,null,null,null,null,null,null,null,null,null,null,null,null,null,null,null,null,null,null,null,null,null,null,null,null,null,null,null,null,null,null,null,null,null,null,null,null,null,null,null,null,null,null,null,null,null,null,null,null,null,null,null,null,null,null,null,null,null,null,null,null,null,null,null,null,null,null,null,null,null,null,null,null,null,null,null,null,null,null,null,null,null,null,null,null,null,356,"貝塚南","貝 塚 南"]
[null,null,null,null,null,null,"ふりがな",null,null,null,null,null,null,null,null,null,null,null,null,null,null,null,null,null,null,null,null,null,null,null,null,null,null,null,null,null,null,null,null,null,null,null,null,null,null,null,null,null,null,null,null,null,null,null,null,null,null,null,"・",null,null,null,"・",null,null,null,null,null,null,null,null,null,null,null,null,null,null,null,null,null,null,null,null,null,null,null,null,null,null,null,null,null,null,null,null,null,null,null,null,null,null,null,null,null,null,null,null,null,null,null,null,null,null,null,null,null,null,null,null,null,null,null,null,null,null,null,null,null,null,null,null,null,null,null,null,null,null,null,null,null,null,null,null,null,null,null,null,null,null,null,null,null,null,null,null,null,null,null,null,null,null,null,null,null,null,null,null,null,null,null,null,null,null,null,null,null,357,"金岡","金　　岡"]
[null,null,null,null,null,null,"（姓）",null,null,null,null,null,null,null,null,null,null,null,null,null,null,null,"（名）",null,null,null,null,null,null,null,null,null,null,null,null,null,null,null,null,null,null,null,null,null,null,null,null,null,null,null,null,null,null,null,null,null,null,null,null,null,null,null,null,null,null,null,null,null,null,null,null,null,null,null,null,null,null,null,null,null,null,null,null,null,null,null,null,null,null,null,null,null,null,null,null,null,null,null,null,null,null,null,null,null,null,null,null,null,null,null,null,null,null,null,null,null,null,null,null,null,null,null,null,null,null,null,null,null,null,null,null,null,null,null,null,null,null,null,null,null,null,null,null,null,null,null,null,null,null,null,null,null,null,null,null,null,null,null,null,null,null,null,null,null,null,null,null,null,null,null,null,null,null,null,null,null,358,"岸和田","岸 和 田"]
[null,null,null,null,null,null,null,null,null,null,null,null,null,null,null,null,null,null,null,null,null,null,null,null,null,null,null,null,null,null,null,null,null,null,null,null,null,null,null,null,null,null,null,null,null,null,null,null,null,null,null,null,null,null,null,null,null,null,null,null,null,null,null,null,null,null,null,null,null,null,null,null,null,null,null,null,null,null,null,null,null,null,null,null,null,null,null,null,null,null,null,null,null,null,null,null,null,null,null,null,null,null,null,null,null,null,null,null,null,null,null,null,null,null,null,null,null,null,null,null,null,null,null,null,null,null,null,null,null,null,null,null,null,null,null,null,null,null,null,null,null,null,null,null,null,null,null,null,null,null,null,null,null,null,null,null,null,null,null,null,null,null,null,null,null,null,null,null,null,null,null,null,null,null,null,null,359,"港南造形","港南造形"]
[null,null,null,null,null,null,null,null,null,null,null,null,null,null,null,null,null,null,null,null,null,null,null,null,null,null,null,null,null,null,null,null,null,null,null,null,null,null,null,null,null,null,null,null,null,null,null,null,null,null,null,null,null,null,null,null,null,null,null,null,null,null,null,null,null,null,null,null,null,null,null,null,null,null,null,null,null,null,null,null,null,null,null,null,null,null,null,null,null,null,null,null,null,null,null,null,null,null,null,null,null,null,null,null,null,null,null,null,null,null,null,null,null,null,null,null,null,null,null,null,null,null,null,null,null,null,null,null,null,null,null,null,null,null,null,null,null,null,null,null,null,null,null,null,null,null,null,null,null,null,null,null,null,null,null,null,null,null,null,null,null,null,null,null,null,null,null,null,null,null,null,null,null,null,null,null,360,"久米田","久 米 田"]
[null,null,null,null,null,null,"ふりがな",null,null,null,null,null,null,null,null,null,null,null,null,null,null,null,null,null,null,null,null,null,null,null,null,null,null,null,null,null,null,null,null,null,null,null,null,null,null,null,null,null,null,null,null,null,null,null,null,null,null,null,"・",null,null,null,"・",null,null,null,null,null,null,null,null,null,null,null,null,null,null,null,null,null,null,null,null,null,null,null,null,null,null,null,null,null,null,null,null,null,null,null,null,null,null,null,null,null,null,null,null,null,null,null,null,null,null,null,null,null,null,null,null,null,null,null,null,null,null,null,null,null,null,null,null,null,null,null,null,null,null,null,null,null,null,null,null,null,null,null,null,null,null,null,null,null,null,null,null,null,null,null,null,null,null,null,null,null,null,null,null,null,null,null,null,null,null,null,null,null,361,"堺上","堺　　上"]
[null,null,null,null,null,null,"（姓）",null,null,null,null,null,null,null,null,null,null,null,null,null,null,null,"（名）",null,null,null,null,null,null,null,null,null,null,null,null,null,null,null,null,null,null,null,null,null,null,null,null,null,null,null,null,null,null,null,null,null,null,null,null,null,null,null,null,null,null,null,null,null,null,null,null,null,null,null,null,null,null,null,null,null,null,null,null,null,null,null,null,null,null,null,null,null,null,null,null,null,null,null,null,null,null,null,null,null,null,null,null,null,null,null,null,null,null,null,null,null,null,null,null,null,null,null,null,null,null,null,null,null,null,null,null,null,null,null,null,null,null,null,null,null,null,null,null,null,null,null,null,null,null,null,null,null,null,null,null,null,null,null,null,null,null,null,null,null,null,null,null,null,null,null,null,null,null,null,null,null,362,"堺西","堺　　西"]
[null,null,null,null,null,null,null,null,null,null,null,null,null,null,null,null,null,null,null,null,null,null,null,null,null,null,null,null,null,null,null,null,null,null,null,null,null,null,null,null,null,null,null,null,null,null,null,null,null,null,null,null,null,null,null,null,null,null,null,null,null,null,null,null,null,null,null,null,null,null,null,null,null,null,null,null,null,null,null,null,null,null,null,null,null,null,null,null,null,null,null,null,null,null,null,null,null,null,null,null,null,null,null,null,null,null,null,null,null,null,null,null,null,null,null,null,null,null,null,null,null,null,null,null,null,null,null,null,null,null,null,null,null,null,null,null,null,null,null,null,null,null,null,null,null,null,null,null,null,null,null,null,null,null,null,null,null,null,null,null,null,null,null,null,null,null,null,null,null,null,null,null,null,null,null,null,363,"堺東","堺　　東"]
[null,null,null,null,null,null,null,null,null,null,null,null,null,null,null,null,null,null,null,null,null,null,null,null,null,null,null,null,null,null,null,null,null,null,null,null,null,null,null,null,null,null,null,null,null,null,null,null,null,null,null,null,null,null,null,null,null,null,null,null,null,null,null,null,null,null,null,null,null,null,null,null,null,null,null,null,null,null,null,null,null,null,null,null,null,null,null,null,null,null,null,null,null,null,null,null,null,null,null,null,null,null,null,null,null,null,null,null,null,null,null,null,null,null,null,null,null,null,null,null,null,null,null,null,null,null,null,null,null,null,null,null,null,null,null,null,null,null,null,null,null,null,null,null,null,null,null,null,null,null,null,null,null,null,null,null,null,null,null,null,null,null,null,null,null,null,null,null,null,null,null,null,null,null,null,null,364,"佐野","佐　　野"]
[null,null,null,null,null,null,"ふりがな",null,null,null,null,null,null,null,null,null,null,null,null,null,null,null,null,null,null,null,null,null,null,null,null,null,null,null,null,null,null,null,null,null,null,null,null,null,null,null,null,null,null,null,null,null,null,null,null,null,null,null,"・",null,null,null,"・",null,null,null,null,null,null,null,null,null,null,null,null,null,null,null,null,null,null,null,null,null,null,null,null,null,null,null,null,null,null,null,null,null,null,null,null,null,null,null,null,null,null,null,null,null,null,null,null,null,null,null,null,null,null,null,null,null,null,null,null,null,null,null,null,null,null,null,null,null,null,null,null,null,null,null,null,null,null,null,null,null,null,null,null,null,null,null,null,null,null,null,null,null,null,null,null,null,null,null,null,null,null,null,null,null,null,null,null,null,null,null,null,null,365,"狭山","狭　　山"]
[null,null,null,null,null,null,"（姓）",null,null,null,null,null,null,null,null,null,null,null,null,null,null,null,"（名）",null,null,null,null,null,null,null,null,null,null,null,null,null,null,null,null,null,null,null,null,null,null,null,null,null,null,null,null,null,null,null,null,null,null,null,null,null,null,null,null,null,null,null,null,null,null,null,null,null,null,null,null,null,null,null,null,null,null,null,null,null,null,null,null,null,null,null,null,null,null,null,null,null,null,null,null,null,null,null,null,null,null,null,null,null,null,null,null,null,null,null,null,null,null,null,null,null,null,null,null,null,null,null,null,null,null,null,null,null,null,null,null,null,null,null,null,null,null,null,null,null,null,null,null,null,null,null,null,null,null,null,null,null,null,null,null,null,null,null,null,null,null,null,null,null,null,null,null,null,null,null,null,null,366,"信太","信　　太"]
[null,null,null,null,null,null,null,null,null,null,null,null,null,null,null,null,null,null,null,null,null,null,null,null,null,null,null,null,null,null,null,null,null,null,null,null,null,null,null,null,null,null,null,null,null,null,null,null,null,null,null,null,null,null,null,null,null,null,null,null,null,null,null,null,null,null,null,null,null,null,null,null,null,null,null,null,null,null,null,null,null,null,null,null,null,null,null,null,null,null,null,null,null,null,null,null,null,null,null,null,null,null,null,null,null,null,null,null,null,null,null,null,null,null,null,null,null,null,null,null,null,null,null,null,null,null,null,null,null,null,null,null,null,null,null,null,null,null,null,null,null,null,null,null,null,null,null,null,null,null,null,null,null,null,null,null,null,null,null,null,null,null,null,null,null,null,null,null,null,null,null,null,null,null,null,null,367,"咲洲","咲　　洲"]
[null,null,null,null,null,null,null,null,null,null,null,null,null,null,null,null,null,null,null,null,null,null,null,null,null,null,null,null,null,null,null,null,null,null,null,null,null,null,null,null,null,null,null,null,null,null,null,null,null,null,null,null,null,null,null,null,null,null,null,null,null,null,null,null,null,null,null,null,null,null,null,null,null,null,null,null,null,null,null,null,null,null,null,null,null,null,null,null,null,null,null,null,null,null,null,null,null,null,null,null,null,null,null,null,null,null,null,null,null,null,null,null,null,null,null,null,null,null,null,null,null,null,null,null,null,null,null,null,null,null,null,null,null,null,null,null,null,null,null,null,null,null,null,null,null,null,null,null,null,null,null,null,null,null,null,null,null,null,null,null,null,null,null,null,null,null,null,null,null,null,null,null,null,null,null,null,368,"りんくう翔南","りんくう"]
[null,null,null,null,null,null,"ふりがな",null,null,null,null,null,null,null,null,null,null,null,null,null,null,null,null,null,null,null,null,null,null,null,null,null,null,null,null,null,null,null,null,null,null,null,null,null,null,null,null,null,null,null,null,null,null,null,null,null,null,null,"・",null,null,null,"・",5,null,null,null,null,null,null,null,null,null,null,null,null,null,null,null,null,null,null,null,null,null,null,null,null,null,null,null,null,null,null,null,null,null,null,null,null,null,null,null,null,null,null,null,null,null,null,null,null,null,null,null,null,null,null,null,null,null,null,null,null,null,null,null,null,null,null,null,null,null,null,null,null,null,null,null,null,null,null,null,null,null,null,null,null,null,null,null,null,null,null,null,null,null,null,null,null,null,null,null,null,null,null,null,null,null,null,null,null,null,null,null,null,369,"泉北","泉　　北"]
[null,null,null,null,null,null,"（姓）",null,null,null,null,null,null,null,null,null,null,null,null,null,null,null,"（名）",null,null,null,null,null,null,null,null,null,null,null,null,null,null,null,null,null,null,null,null,null,null,null,null,null,null,null,null,null,null,null,null,null,null,null,null,null,null,null,null,null,null,null,null,null,null,null,null,null,null,null,null,null,null,null,null,null,null,null,null,null,null,null,null,null,null,null,null,null,null,null,null,null,null,null,null,null,null,null,null,null,null,null,null,null,null,null,null,null,null,null,null,null,null,null,null,null,null,null,null,null,null,null,null,null,null,null,null,null,null,null,null,null,null,null,null,null,null,null,null,null,null,null,null,null,null,null,null,null,null,null,null,null,null,null,null,null,null,null,null,null,null,null,null,null,null,null,null,null,null,null,null,null,370,"泉陽","泉　　陽"]
[null,null,null,null,null,null,null,null,null,null,null,null,null,null,null,null,null,null,null,null,null,null,null,null,null,null,null,null,null,null,null,null,null,null,null,null,null,null,null,null,null,null,null,null,null,null,null,null,null,null,null,null,null,null,null,null,null,null,null,null,null,null,null,null,null,null,null,null,null,null,null,null,null,null,null,null,null,null,null,null,null,null,null,null,null,null,null,null,null,null,null,null,null,null,null,null,null,null,null,null,null,null,null,null,null,null,null,null,null,null,null,null,null,null,null,null,null,null,null,null,null,null,null,null,null,null,null,null,null,null,null,null,null,null,null,null,null,null,null,null,null,null,null,null,null,null,null,null,null,null,null,null,null,null,null,null,null,null,null,null,null,null,null,null,null,null,null,null,null,null,null,null,null,null,null,null,371,"大正","大　　正"]
[null,null,null,null,null,null,null,null,null,null,null,null,null,null,null,null,null,null,null,null,null,null,null,null,null,null,null,null,null,null,null,null,null,null,null,null,null,null,null,null,null,null,null,null,null,null,null,null,null,null,null,null,null,null,null,null,null,null,null,null,null,null,null,null,null,null,null,null,null,null,null,null,null,null,null,null,null,null,null,null,null,null,null,null,null,null,null,null,null,null,null,null,null,null,null,null,null,null,null,null,null,null,null,null,null,null,null,null,null,null,null,null,null,null,null,null,null,null,null,null,null,null,null,null,null,null,null,null,null,null,null,null,null,null,null,null,null,null,null,null,null,null,null,null,null,null,null,null,null,null,null,null,null,null,null,null,null,null,null,null,null,null,null,null,null,null,null,null,null,null,null,null,null,null,null,null,372,"高石","高　　石"]
[null,null,null,null,null,null,"ふりがな",null,null,null,null,null,null,null,null,null,null,null,null,null,null,null,null,null,null,null,null,null,null,null,null,null,null,null,null,null,null,null,null,null,null,null,null,null,null,null,null,null,null,null,null,null,null,null,null,null,null,null,"・",null,null,null,"・",null,null,null,null,null,null,null,null,null,null,null,null,null,null,null,null,null,null,null,null,null,null,null,null,null,null,null,null,null,null,null,null,null,null,null,null,null,null,null,null,null,null,null,null,null,null,null,null,null,null,null,null,null,null,null,null,null,null,null,null,null,null,null,null,null,null,null,null,null,null,null,null,null,null,null,null,null,null,null,null,null,null,null,null,null,null,null,null,null,null,null,null,null,null,null,null,null,null,null,null,null,null,null,null,null,null,null,null,null,null,null,null,null,373,"登美丘","登 美 丘"]
[null,null,null,null,null,null,"（姓）",null,null,null,null,null,null,null,null,null,null,null,null,null,null,null,"（名）",null,null,null,null,null,null,null,null,null,null,null,null,null,null,null,null,null,null,null,null,null,null,null,null,null,null,null,null,null,null,null,null,null,null,null,null,null,null,null,null,null,null,null,null,null,null,null,null,null,null,null,null,null,null,null,null,null,null,null,null,null,null,null,null,null,null,null,null,null,null,null,null,null,null,null,null,null,null,null,null,null,null,null,null,null,null,null,null,null,null,null,null,null,null,null,null,null,null,null,null,null,null,null,null,null,null,null,null,null,null,null,null,null,null,null,null,null,null,null,null,null,null,null,null,null,null,null,null,null,null,null,null,null,null,null,null,null,null,null,null,null,null,null,null,null,null,null,null,null,null,null,null,null,374,"西成","西　　成"]
[null,null,null,null,null,null,null,null,null,null,null,null,null,null,null,null,null,null,null,null,null,null,null,null,null,null,null,null,null,null,null,null,null,null,null,null,null,null,null,null,null,null,null,null,null,null,null,null,null,null,null,null,null,null,null,null,null,null,null,null,null,null,null,null,null,null,null,null,null,null,null,null,null,null,null,null,null,null,null,null,null,null,null,null,null,null,null,null,null,null,null,null,null,null,null,null,null,null,null,null,null,null,null,null,null,null,null,null,null,null,null,null,null,null,null,null,null,null,null,null,null,null,null,null,null,null,null,null,null,null,null,null,null,null,null,null,null,null,null,null,null,null,null,null,null,null,null,null,null,null,null,null,null,null,null,null,null,null,null,null,null,null,null,null,null,null,null,null,null,null,null,null,null,null,null,null,376,"伯太","伯　　太"]
[null,null,null,null,null,null,null,null,null,null,null,null,null,null,null,null,null,null,null,null,null,null,null,null,null,null,null,null,null,null,null,null,null,null,null,null,null,null,null,null,null,null,null,null,null,null,null,null,null,null,null,null,null,null,null,null,null,null,null,null,null,null,null,null,null,null,null,null,null,null,null,null,null,null,null,null,null,null,null,null,null,null,null,null,null,null,null,null,null,null,null,null,null,null,null,null,null,null,null,null,null,null,null,null,null,null,null,null,null,null,null,null,null,null,null,null,null,null,null,null,null,null,null,null,null,null,null,null,null,null,null,null,null,null,null,null,null,null,null,null,null,null,null,null,null,null,null,null,null,null,null,null,null,null,null,null,null,null,null,null,null,null,null,null,null,null,null,null,null,null,null,null,null,null,null,null,377,"阪南大学","阪南大学"]
[null,null,null,null,null,null,"ふりがな",null,null,null,null,null,null,null,null,null,null,null,null,null,null,null,null,null,null,null,null,null,null,null,null,null,null,null,null,null,null,null,null,null,null,null,null,null,null,null,null,null,null,null,null,null,null,null,null,null,null,null,"・",null,null,null,"・",null,null,null,null,null,null,null,null,null,null,null,null,null,null,null,null,null,null,null,null,null,null,null,null,null,null,null,null,null,null,null,null,null,null,null,null,null,null,null,null,null,null,null,null,null,null,null,null,null,null,null,null,null,null,null,null,null,null,null,null,null,null,null,null,null,null,null,null,null,null,null,null,null,null,null,null,null,null,null,null,null,null,null,null,null,null,null,null,null,null,null,null,null,null,null,null,null,null,null,null,null,null,null,null,null,null,null,null,null,null,null,null,null,378,"東百舌鳥","東百舌鳥"]
[null,null,null,null,null,null,"（姓）",null,null,null,null,null,null,null,null,null,null,null,null,null,null,null,"（名）",null,null,null,null,null,null,null,null,null,null,null,null,null,null,null,null,null,null,null,null,null,null,null,null,null,null,null,null,null,null,null,null,null,null,null,null,null,null,null,null,null,null,null,null,null,null,null,null,null,null,null,null,null,null,null,null,null,null,null,null,null,null,null,null,null,null,null,null,null,null,null,null,null,null,null,null,null,null,null,null,null,null,null,null,null,null,null,null,null,null,null,null,null,null,null,null,null,null,null,null,null,null,null,null,null,null,null,null,null,null,null,null,null,null,null,null,null,null,null,null,null,null,null,null,null,null,null,null,null,null,null,null,null,null,null,null,null,null,null,null,null,null,null,null,null,null,null,null,null,null,null,null,null,379,"福泉","福　　泉"]
[null,null,null,null,null,null,null,null,null,null,null,null,null,null,null,null,null,null,null,null,null,null,null,null,null,null,null,null,null,null,null,null,null,null,null,null,null,null,null,null,null,null,null,null,null,null,null,null,null,null,null,null,null,null,null,null,null,null,null,null,null,null,null,null,null,null,null,null,null,null,null,null,null,null,null,null,null,null,null,null,null,null,null,null,null,null,null,null,null,null,null,null,null,null,null,null,null,null,null,null,null,null,null,null,null,null,null,null,null,null,null,null,null,null,null,null,null,null,null,null,null,null,null,null,null,null,null,null,null,null,null,null,null,null,null,null,null,null,null,null,null,null,null,null,null,null,null,null,null,null,null,null,null,null,null,null,null,null,null,null,null,null,null,null,null,null,null,null,null,null,null,null,null,null,null,null,380,"成美","成　　美"]
[null,null,null,null,null,null,null,null,null,null,null,null,null,null,null,null,null,null,null,null,null,null,null,null,null,null,null,null,null,null,null,null,null,null,null,null,null,null,null,null,null,null,null,null,null,null,null,null,null,null,null,null,null,null,null,null,null,null,null,null,null,null,null,null,null,null,null,null,null,null,null,null,null,null,null,null,null,null,null,null,null,null,null,null,null,null,null,null,null,null,null,null,null,null,null,null,null,null,null,null,null,null,null,null,null,null,null,null,null,null,null,null,null,null,null,null,null,null,null,null,null,null,null,null,null,null,null,null,null,null,null,null,null,null,null,null,null,null,null,null,null,null,null,null,null,null,null,null,null,null,null,null,null,null,null,null,null,null,null,null,null,null,null,null,null,null,null,null,null,null,null,null,null,null,null,null,381,"三国丘","三 国 丘"]
[null,null,null,null,null,null,"ふりがな",null,null,null,null,null,null,null,null,null,null,null,null,null,null,null,null,null,null,null,null,null,null,null,null,null,null,null,null,null,null,null,null,null,null,null,null,null,null,null,null,null,null,null,null,null,null,null,null,null,null,null,"・",null,null,null,"・",null,null,null,null,null,null,null,null,null,null,null,null,null,null,null,null,null,null,null,null,null,null,null,null,null,null,null,null,null,null,null,null,null,null,null,null,null,null,null,null,null,null,null,null,null,null,null,null,null,null,null,null,null,null,null,null,null,null,null,null,null,null,null,null,null,null,null,null,null,null,null,null,null,null,null,null,null,null,null,null,null,null,null,null,null,null,null,null,null,null,null,null,null,null,null,null,null,null,null,null,null,null,null,null,null,null,null,null,null,null,null,null,null,382,"岬","　 岬　 "]
[null,null,null,null,null,null,"（姓）",null,null,null,null,null,null,null,null,null,null,null,null,null,null,null,"（名）",null,null,null,null,null,null,null,null,null,null,null,null,null,null,null,null,null,null,null,null,null,null,null,null,null,null,null,null,null,null,null,null,null,null,null,null,null,null,null,null,null,null,null,null,null,null,null,null,null,null,null,null,null,null,null,null,null,null,null,null,null,null,null,null,null,null,null,null,null,null,null,null,null,null,null,null,null,null,null,null,null,null,null,null,null,null,null,null,null,null,null,null,null,null,null,null,null,null,null,null,null,null,null,null,null,null,null,null,null,null,null,null,null,null,null,null,null,null,null,null,null,null,null,null,null,null,null,null,null,null,null,null,null,null,null,null,null,null,null,null,null,null,null,null,null,null,null,null,null,null,null,null,null,383,"港","   港　 "]
[null,null,null,null,null,null,null,null,null,null,null,null,null,null,null,null,null,null,null,null,null,null,null,null,null,null,null,null,null,null,null,null,null,null,null,null,null,null,null,null,null,null,null,null,null,null,null,null,null,null,null,null,null,null,null,null,null,null,null,null,null,null,null,null,null,null,null,null,null,null,null,null,null,null,null,null,null,null,null,null,null,null,null,null,null,null,null,null,null,null,null,null,null,null,null,null,null,null,null,null,null,null,null,null,null,null,null,null,null,null,null,null,null,null,null,null,null,null,null,null,null,null,null,null,null,null,null,null,null,null,null,null,null,null,null,null,null,null,null,null,null,null,null,null,null,null,null,null,null,null,null,null,null,null,null,null,null,null,null,null,null,null,null,null,null,null,null,null,null,null,null,null,null,null,null,null,384,"センター附属","センター"]
[null,null,null,null,null,null,null,null,null,null,null,null,null,null,null,null,null,null,null,null,null,null,null,null,null,null,null,null,null,null,null,null,null,null,null,null,null,null,null,null,null,null,null,null,null,null,null,null,null,null,null,null,null,null,null,null,null,null,null,null,null,null,null,null,null,null,null,null,null,null,null,null,null,null,null,null,null,null,null,null,null,null,null,null,null,null,null,null,null,null,null,null,null,null,null,null,null,null,null,null,null,null,null,null,null,null,null,null,null,null,null,null,null,null,null,null,null,null,null,null,null,null,null,null,null,null,null,null,null,null,null,null,null,null,null,null,null,null,null,null,null,null,null,null,null,null,null,null,null,null,null,null,null,null,null,null,null,null,null,null,null,null,null,null,null,null,null,null,null,null,null,null,null,null,null,null,386,"和泉総合","和泉総合"]
[null,null,null,null,null,null,"ふりがな",null,null,null,null,null,null,null,null,null,null,null,null,null,null,null,null,null,null,null,null,null,null,null,null,null,null,null,null,null,null,null,null,null,null,null,null,null,null,null,null,null,null,null,null,null,null,null,null,null,null,null,"・",null,null,null,"・",null,null,null,null,null,null,null,null,null,null,null,null,null,null,null,null,null,null,null,null,null,null,null,null,null,null,null,null,null,null,null,null,null,null,null,null,null,null,null,null,null,null,null,null,null,null,null,null,null,null,null,null,null,null,null,null,null,null,null,null,null,null,null,null,null,null,null,null,null,null,null,null,null,null,null,null,null,null,null,null,null,null,null,null,null,null,null,null,null,null,null,null,null,null,null,null,null,null,null,null,null,null,null,null,null,null,null,null,null,null,null,null,null,387,"今宮工科","今宮工科"]
[null,null,null,null,null,null,"（姓）",null,null,null,null,null,null,null,null,null,null,null,null,null,null,null,"（名）",null,null,null,null,null,null,null,null,null,null,null,null,null,null,null,null,null,null,null,null,null,null,null,null,null,null,null,null,null,null,null,null,null,null,null,null,null,null,null,null,null,null,null,null,null,null,null,null,null,null,null,null,null,null,null,null,null,null,null,null,null,null,null,null,null,null,null,null,null,null,null,null,null,null,null,null,null,null,null,null,null,null,null,null,null,null,null,null,null,null,null,null,null,null,null,null,null,null,null,null,null,null,null,null,null,null,null,null,null,null,null,null,null,null,null,null,null,null,null,null,null,null,null,null,null,null,null,null,null,null,null,null,null,null,null,null,null,null,null,null,null,null,null,null,null,null,null,null,null,null,null,null,null,388,"堺工科","堺 工 科"]
[null,null,null,null,null,null,null,null,null,null,null,null,null,null,null,null,null,null,null,null,null,null,null,null,null,null,null,null,null,null,null,null,null,null,null,null,null,null,null,null,null,null,null,null,null,null,null,null,null,null,null,null,null,null,null,null,null,null,null,null,null,null,null,null,null,null,null,null,null,null,null,null,null,null,null,null,null,null,null,null,null,null,null,null,null,null,null,null,null,null,null,null,null,null,null,null,null,null,null,null,null,null,null,null,null,null,null,null,null,null,null,null,null,null,null,null,null,null,null,null,null,null,null,null,null,null,null,null,null,null,null,null,null,null,null,null,null,null,null,null,null,null,null,null,null,null,null,null,null,null,null,null,null,null,null,null,null,null,null,null,null,null,null,null,null,null,null,null,null,null,null,null,null,null,null,null,389,"佐野工科","佐野工科"]
[null,null,null,null,null,null,null,null,null,null,null,null,null,null,null,null,null,null,null,null,null,null,null,null,null,null,null,null,null,null,null,null,null,null,null,null,null,null,null,null,null,null,null,null,null,null,null,null,null,null,null,null,null,null,null,null,null,null,null,null,null,null,null,null,null,null,null,null,null,null,null,null,null,null,null,null,null,null,null,null,null,null,null,null,null,null,null,null,null,null,null,null,null,null,null,null,null,null,null,null,null,null,null,null,null,null,null,null,null,null,null,null,null,null,null,null,null,null,null,null,null,null,null,null,null,null,null,null,null,null,null,null,null,null,null,null,null,null,null,null,null,null,null,null,null,null,null,null,null,null,null,null,null,null,null,null,null,null,null,null,null,null,null,null,null,null,null,null,null,null,null,null,null,null,null,null,390,"西野田工科","西野田工"]
[null,null,null,null,null,null,"ふりがな",null,null,null,null,null,null,null,null,null,null,null,null,null,null,null,null,null,null,null,null,null,null,null,null,null,null,null,null,null,null,null,null,null,null,null,null,null,null,null,null,null,null,null,null,null,null,null,null,null,null,null,"・",null,null,null,"・",null,null,null,null,null,null,null,null,null,null,null,null,null,null,null,null,null,null,null,null,null,null,null,null,null,null,null,null,null,null,null,null,null,null,null,null,null,null,null,null,null,null,null,null,null,null,null,null,null,null,null,null,null,null,null,null,null,null,null,null,null,null,null,null,null,null,null,null,null,null,null,null,null,null,null,null,null,null,null,null,null,null,null,null,null,null,null,null,null,null,null,null,null,null,null,null,null,null,null,null,null,null,null,null,null,null,null,null,null,null,null,null,null,391,"日根野","日 根 野"]
[null,null,null,null,null,null,"（姓）",null,null,null,null,null,null,null,null,null,null,null,null,null,null,null,"（名）",null,null,null,null,null,null,null,null,null,null,null,null,null,null,null,null,null,null,null,null,null,null,null,null,null,null,null,null,null,null,null,null,null,null,null,null,null,null,null,null,null,null,null,null,null,null,null,null,null,null,null,null,null,null,null,null,null,null,null,null,null,null,null,null,null,null,null,null,null,null,null,null,null,null,null,null,null,null,null,null,null,null,null,null,null,null,null,null,null,null,null,null,null,null,null,null,null,null,null,null,null,null,null,null,null,null,null,null,null,null,null,null,null,null,null,null,null,null,null,null,null,null,null,null,null,null,null,null,null,null,null,null,null,null,null,null,null,null,null,null,null,null,null,null,null,null,null,null,null,null,null,null,null,394,"泉尾工業","泉尾工業"]
[null,null,null,null,null,null,null,null,null,null,null,null,null,null,null,null,null,null,null,null,null,null,null,null,null,null,null,null,null,null,null,null,null,null,null,null,null,null,null,null,null,null,null,null,null,null,null,null,null,null,null,null,null,null,null,null,null,null,null,null,null,null,null,null,null,null,null,null,null,null,null,null,null,null,null,null,null,null,null,null,null,null,null,null,null,null,null,null,null,null,null,null,null,null,null,null,null,null,null,null,null,null,null,null,null,null,null,null,null,null,null,null,null,null,null,null,null,null,null,null,null,null,null,null,null,null,null,null,null,null,null,null,null,null,null,null,null,null,null,null,null,null,null,null,null,null,null,null,null,null,null,null,null,null,null,null,null,null,null,null,null,null,null,null,null,null,null,null,null,null,null,null,null,null,null,null,395,"岸和田市立産業","岸和田産"]
[null,null,null,null,null,null,null,null,null,null,null,null,null,null,null,null,null,null,null,null,null,null,null,null,null,null,null,null,null,null,null,null,null,null,null,null,null,null,null,null,null,null,null,null,null,null,null,null,null,null,null,null,null,null,null,null,null,null,null,null,null,null,null,null,null,null,null,null,null,null,null,null,null,null,null,null,null,null,null,null,null,null,null,null,null,null,null,null,null,null,null,null,null,null,null,null,null,null,null,null,null,null,null,null,null,null,null,null,null,null,null,null,null,null,null,null,null,null,null,null,null,null,null,null,null,null,null,null,null,null,null,null,null,null,null,null,null,null,null,null,null,null,null,null,null,null,null,null,null,null,null,null,null,null,null,null,null,null,null,null,null,null,null,null,null,null,null,null,null,null,null,null,null,null,null,null,396,"咲くやこの花","咲　　花"]
[null,null,null,null,null,null,"ふりがな",null,null,null,null,null,null,null,null,null,null,null,null,null,null,null,null,null,null,null,null,null,null,null,null,null,null,null,null,null,null,null,null,null,null,null,null,null,null,null,null,null,null,null,null,null,null,null,null,null,null,null,"・",null,null,null,"・",null,null,null,null,null,null,null,null,null,null,null,null,null,null,null,null,null,null,null,null,null,null,null,null,null,null,null,null,null,null,null,null,null,null,null,null,null,null,null,null,null,null,null,null,null,null,null,null,null,null,null,null,null,null,null,null,null,null,null,null,null,null,null,null,null,null,null,null,null,null,null,null,null,null,null,null,null,null,null,null,null,null,null,null,null,null,null,null,null,null,null,null,null,null,null,null,null,null,null,null,null,null,null,null,null,null,null,null,null,null,null,null,null,397,"堺市立堺","堺市立堺"]
[null,null,null,null,null,null,"（姓）",null,null,null,null,null,null,null,null,null,null,null,null,null,null,null,"（名）",null,null,null,null,null,null,null,null,null,null,null,null,null,null,null,null,null,null,null,null,null,null,null,null,null,null,null,null,null,null,null,null,null,null,null,null,null,null,null,null,null,null,null,null,null,null,null,null,null,null,null,null,null,null,null,null,null,null,null,null,null,null,null,null,null,null,null,null,null,null,null,null,null,null,null,null,null,null,null,null,null,null,null,null,null,null,null,null,null,null,null,null,null,null,null,null,null,null,null,null,null,null,null,null,null,null,null,null,null,null,null,null,null,null,null,null,null,null,null,null,null,null,null,null,null,null,null,null,null,null,null,null,null,null,null,null,null,null,null,null,null,null,null,null,null,null,null,null,null,null,null,null,null,398,"大阪商業大学堺","商 大 堺　"]
[null,null,null,null,null,null,null,null,null,null,null,null,null,null,null,null,null,null,null,null,null,null,null,null,null,null,null,null,null,null,null,null,null,null,null,null,null,null,null,null,null,null,null,null,null,null,null,null,null,null,null,null,null,null,null,null,null,null,null,null,null,null,null,null,null,null,null,null,null,null,null,null,null,null,null,null,null,null,null,null,null,null,null,null,null,null,null,null,null,null,null,null,null,null,null,null,null,null,null,null,null,null,null,null,null,null,null,null,null,null,null,null,null,null,null,null,null,null,null,null,null,null,null,null,null,null,null,null,null,null,null,null,null,null,null,null,null,null,null,null,null,null,null,null,null,null,null,null,null,null,null,null,null,null,null,null,null,null,null,null,null,null,null,null,null,null,null,null,null,null,null,null,null,null,null,null,399,"大阪学芸","大阪学芸"]
[null,null,null,null,null,null,null,null,null,null,null,null,null,null,null,null,null,null,null,null,null,null,null,null,null,null,null,null,null,null,null,null,null,null,null,null,null,null,null,null,null,null,null,null,null,null,null,null,null,null,null,null,null,null,null,null,null,null,null,null,null,null,null,null,null,null,null,null,null,null,null,null,null,null,null,null,null,null,null,null,null,null,null,null,null,null,null,null,null,null,null,null,null,null,null,null,null,null,null,null,null,null,null,null,null,null,null,null,null,null,null,null,null,null,null,null,null,null,null,null,null,null,null,null,null,null,null,null,null,null,null,null,null,null,null,null,null,null,null,null,null,null,null,null,null,null,null,null,null,null,null,null,null,null,null,null,null,null,null,null,null,null,null,null,null,null,null,null,null,null,null,null,null,null,null,null,400,"清教学園","清教学園"]
[null,null,null,null,null,null,"ふりがな",null,null,null,null,null,null,null,null,null,null,null,null,null,null,null,null,null,null,null,null,null,null,null,null,null,null,null,null,null,null,null,null,null,null,null,null,null,null,null,null,null,null,null,null,null,null,null,null,null,null,null,"・",null,null,null,"・",null,null,null,null,null,null,null,null,null,null,null,null,null,null,null,null,null,null,null,null,null,null,null,null,null,null,null,null,null,null,null,null,null,null,null,null,null,null,null,null,null,null,null,null,null,null,null,null,null,null,null,null,null,null,null,null,null,null,null,null,null,null,null,null,null,null,null,null,null,null,null,null,null,null,null,null,null,null,null,null,null,null,null,null,null,null,null,null,null,null,null,null,null,null,null,null,null,null,null,null,null,null,null,null,null,null,null,null,null,null,null,null,null,401,"浪速","浪　　速"]
[null,null,null,null,null,null,"（姓）",null,null,null,null,null,null,null,null,null,null,null,null,null,null,null,"（名）",null,null,null,null,null,null,null,null,null,null,null,null,null,null,null,null,null,null,null,null,null,null,null,null,null,null,null,null,null,null,null,null,null,null,null,null,null,null,null,null,null,null,null,null,null,null,null,null,null,null,null,null,null,null,null,null,null,null,null,null,null,null,null,null,null,null,null,null,null,null,null,null,null,null,null,null,null,null,null,null,null,null,null,null,null,null,null,null,null,null,null,null,null,null,null,null,null,null,null,null,null,null,null,null,null,null,null,null,null,null,null,null,null,null,null,null,null,null,null,null,null,null,null,null,null,null,null,null,null,null,null,null,null,null,null,null,null,null,null,null,null,null,null,null,null,null,null,null,null,null,null,null,null,402,"初芝立命館","初芝立命"]
[null,null,null,null,null,null,null,null,null,null,null,null,null,null,null,null,null,null,null,null,null,null,null,null,null,null,null,null,null,null,null,null,null,null,null,null,null,null,null,null,null,null,null,null,null,null,null,null,null,null,null,null,null,null,null,null,null,null,null,null,null,null,null,null,null,null,null,null,null,null,null,null,null,null,null,null,null,null,null,null,null,null,null,null,null,null,null,null,null,null,null,null,null,null,null,null,null,null,null,null,null,null,null,null,null,null,null,null,null,null,null,null,null,null,null,null,null,null,null,null,null,null,null,null,null,null,null,null,null,null,null,null,null,null,null,null,null,null,null,null,null,null,null,null,null,null,null,null,null,null,null,null,null,null,null,null,null,null,null,null,null,null,null,null,null,null,null,null,null,null,null,null,null,null,null,null,403,"清風南海","清風南海"]
[null,null,null,null,null,null,null,null,null,null,null,null,null,null,null,null,null,null,null,null,null,null,null,null,null,null,null,null,null,null,null,null,null,null,null,null,null,null,null,null,null,null,null,null,null,null,null,null,null,null,null,null,null,null,null,null,null,null,null,null,null,null,null,null,null,null,null,null,null,null,null,null,null,null,null,null,null,null,null,null,null,null,null,null,null,null,null,null,null,null,null,null,null,null,null,null,null,null,null,null,null,null,null,null,null,null,null,null,null,null,null,null,null,null,null,null,null,null,null,null,null,null,null,null,null,null,null,null,null,null,null,null,null,null,null,null,null,null,null,null,null,null,null,null,null,null,null,null,null,null,null,null,null,null,null,null,null,null,null,null,null,null,null,null,null,null,null,null,null,null,null,null,null,null,null,null,404,"帝塚山泉ヶ丘","帝塚山泉"]
[null,null,null,null,null,null,"ふりがな",null,null,null,null,null,null,null,null,null,null,null,null,null,null,null,null,null,null,null,null,null,null,null,null,null,null,null,null,null,null,null,null,null,null,null,null,null,null,null,null,null,null,null,null,null,null,null,null,null,null,null,"・",null,null,null,"・",null,null,null,null,null,null,null,null,null,null,null,null,null,null,null,null,null,null,null,null,null,null,null,null,null,null,null,null,null,null,null,null,null,null,null,null,null,null,null,null,null,null,null,null,null,null,null,null,null,null,null,null,null,null,null,null,null,null,null,null,null,null,null,null,null,null,null,null,null,null,null,null,null,null,null,null,null,null,null,null,null,null,null,null,null,null,null,null,null,null,null,null,null,null,null,null,null,null,null,null,null,null,null,null,null,null,null,null,null,null,null,null,null,405,"金剛学園","金剛学園"]
[null,null,null,null,null,null,"（姓）",null,null,null,null,null,null,null,null,null,null,null,null,null,null,null,"（名）",null,null,null,null,null,null,null,null,null,null,null,null,null,null,null,null,null,null,null,null,null,null,null,null,null,null,null,null,null,null,null,null,null,null,null,null,null,null,null,null,null,null,null,null,null,null,null,null,null,null,null,null,null,null,null,null,null,null,null,null,null,null,null,null,null,null,null,null,null,null,null,null,null,null,null,null,null,null,null,null,null,null,null,null,null,null,null,null,null,null,null,null,null,null,null,null,null,null,null,null,null,null,null,null,null,null,null,null,null,null,null,null,null,null,null,null,null,null,null,null,null,null,null,null,null,null,null,null,null,null,null,null,null,null,null,null,null,null,null,null,null,null,null,null,null,null,null,null,null,null,null,null,null,406,"大体大浪商","体大浪商"]
[null,null,null,null,null,null,null,null,null,null,null,null,null,null,null,null,null,null,null,null,null,null,null,null,null,null,null,null,null,null,null,null,null,null,null,null,null,null,null,null,null,null,null,null,null,null,null,null,null,null,null,null,null,null,null,null,null,null,null,null,null,null,null,null,null,null,null,null,null,null,null,null,null,null,null,null,null,null,null,null,null,null,null,null,null,null,null,null,null,null,null,null,null,null,null,null,null,null,null,null,null,null,null,null,null,null,null,null,null,null,null,null,null,null,null,null,null,null,null,null,null,null,null,null,null,null,null,null,null,null,null,null,null,null,null,null,null,null,null,null,null,null,null,null,null,null,null,null,null,null,null,null,null,null,null,null,null,null,null,null,null,null,null,null,null,null,null,null,null,null,null,null,null,null,null,null,407,"教育大天王寺","教大天王"]
[null,null,null,null,null,null,null,null,null,null,null,null,null,null,null,null,null,null,null,null,null,null,null,null,null,null,null,null,null,null,null,null,null,null,null,null,null,null,null,null,null,null,null,null,null,null,null,null,null,null,null,null,null,null,null,null,null,null,null,null,null,null,null,null,null,null,null,null,null,null,null,null,null,null,null,null,null,null,null,null,null,null,null,null,null,null,null,null,null,null,null,null,null,null,null,null,null,null,null,null,null,null,null,null,null,null,null,null,null,null,null,null,null,null,null,null,null,null,null,null,null,null,null,null,null,null,null,null,null,null,null,null,null,null,null,null,null,null,null,null,null,null,null,null,null,null,null,null,null,null,null,null,null,null,null,null,null,null,null,null,null,null,null,null,null,null,null,null,null,null,null,null,null,null,null,null,408,"教育大附平野","教大平野"]
[null,null,null,null,null,null,"ふりがな",null,null,null,null,null,null,null,null,null,null,null,null,null,null,null,null,null,null,null,null,null,null,null,null,null,null,null,null,null,null,null,null,null,null,null,null,null,null,null,null,null,null,null,null,null,null,null,null,null,null,null,"・",null,null,null,"・",null,null,null,null,null,null,null,null,null,null,null,null,null,null,null,null,null,null,null,null,null,null,null,null,null,null,null,null,null,null,null,null,null,null,null,null,null,null,null,null,null,null,null,null,null,null,null,null,null,null,null,null,null,null,null,null,null,null,null,null,null,null,null,null,null,null,null,null,null,null,null,null,null,null,null,null,null,null,null,null,null,null,null,null,null,null,null,null,null,null,null,null,null,null,null,null,null,null,null,null,null,null,null,null,null,null,null,null,null,null,null,null,null,409,"阿倍野","阿 倍 野"]
[null,null,null,null,null,null,"（姓）",null,null,null,null,null,null,null,null,null,null,null,null,null,null,null,"（名）",null,null,null,null,null,null,null,null,null,null,null,null,null,null,null,null,null,null,null,null,null,null,null,null,null,null,null,null,null,null,null,null,null,null,null,null,null,null,null,null,null,null,null,null,null,null,null,null,null,null,null,null,null,null,null,null,null,null,null,null,null,null,null,null,null,null,null,null,null,null,null,null,null,null,null,null,null,null,null,null,null,null,null,null,null,null,null,null,null,null,null,null,null,null,null,null,null,null,null,null,null,null,null,null,null,null,null,null,null,null,null,null,null,null,null,null,null,null,null,null,null,null,null,null,null,null,null,null,null,null,null,null,null,null,null,null,null,null,null,null,null,null,null,null,null,null,null,null,null,null,null,null,null,410,"生野","生　　野"]
[null,null,null,null,null,null,null,null,null,null,null,null,null,null,null,null,null,null,null,null,null,null,null,null,null,null,null,null,null,null,null,null,null,null,null,null,null,null,null,null,null,null,null,null,null,null,null,null,null,null,null,null,null,null,null,null,null,null,null,null,null,null,null,null,null,null,null,null,null,null,null,null,null,null,null,null,null,null,null,null,null,null,null,null,null,null,null,null,null,null,null,null,null,null,null,null,null,null,null,null,null,null,null,null,null,null,null,null,null,null,null,null,null,null,null,null,null,null,null,null,null,null,null,null,null,null,null,null,null,null,null,null,null,null,null,null,null,null,null,null,null,null,null,null,null,null,null,null,null,null,null,null,null,null,null,null,null,null,null,null,null,null,null,null,null,null,null,null,null,null,null,null,null,null,null,null,411,"みどり清朋","み ど り"]
[null,null,null,null,null,null,null,null,null,null,null,null,null,null,null,null,null,null,null,null,null,null,null,null,null,null,null,null,null,null,null,null,null,null,null,null,null,null,null,null,null,null,null,null,null,null,null,null,null,null,null,null,null,null,null,null,null,null,null,null,null,null,null,null,null,null,null,null,null,null,null,null,null,null,null,null,null,null,null,null,null,null,null,null,null,null,null,null,null,null,null,null,null,null,null,null,null,null,null,null,null,null,null,null,null,null,null,null,null,null,null,null,null,null,null,null,null,null,null,null,null,null,null,null,null,null,null,null,null,null,null,null,null,null,null,null,null,null,null,null,null,null,null,null,null,null,null,null,null,null,null,null,null,null,null,null,null,null,null,null,null,null,null,null,null,null,null,null,null,null,null,null,null,null,null,null,412,"大塚","大　　塚"]
[null,null,null,null,null,null,"ふりがな",null,null,null,null,null,null,null,null,null,null,null,null,null,null,null,null,null,null,null,null,null,null,null,null,null,null,null,null,null,null,null,null,null,null,null,null,null,null,null,null,null,null,null,null,null,null,null,null,null,null,null,"・",null,null,null,"・",null,null,null,null,null,null,null,null,null,null,null,null,null,null,null,null,null,null,null,null,null,null,null,null,null,null,null,null,null,null,null,null,null,null,null,null,null,null,null,null,null,null,null,null,null,null,null,null,null,null,null,null,null,null,null,null,null,null,null,null,null,null,null,null,null,null,null,null,null,null,null,null,null,null,null,null,null,null,null,null,null,null,null,null,null,null,null,null,null,null,null,null,null,null,null,null,null,null,null,null,null,null,null,null,null,null,null,null,null,null,null,null,null,413,"柏原東","柏 原 東"]
[null,null,null,null,null,null,"（姓）",null,null,null,null,null,null,null,null,null,null,null,null,null,null,null,"（名）",null,null,null,null,null,null,null,null,null,null,null,null,null,null,null,null,null,null,null,null,null,null,null,null,null,null,null,null,null,null,null,null,null,null,null,null,null,null,null,null,null,null,null,null,null,null,null,null,null,null,null,null,null,null,null,null,null,null,null,null,null,null,null,null,null,null,null,null,null,null,null,null,null,null,null,null,null,null,null,null,null,null,null,null,null,null,null,null,null,null,null,null,null,null,null,null,null,null,null,null,null,null,null,null,null,null,null,null,null,null,null,null,null,null,null,null,null,null,null,null,null,null,null,null,null,null,null,null,null,null,null,null,null,null,null,null,null,null,null,null,null,null,null,null,null,null,null,null,null,null,null,null,null,414,"河南","河　　南"]
[null,null,null,null,null,null,null,null,null,null,null,null,null,null,null,null,null,null,null,null,null,null,null,null,null,null,null,null,null,null,null,null,null,null,null,null,null,null,null,null,null,null,null,null,null,null,null,null,null,null,null,null,null,null,null,null,null,null,null,null,null,null,null,null,null,null,null,null,null,null,null,null,null,null,null,null,null,null,null,null,null,null,null,null,null,null,null,null,null,null,null,null,null,null,null,null,null,null,null,null,null,null,null,null,null,null,null,null,null,null,null,null,null,null,null,null,null,null,null,null,null,null,null,null,null,null,null,null,null,null,null,null,null,null,null,null,null,null,null,null,null,null,null,null,null,null,null,null,null,null,null,null,null,null,null,null,null,null,null,null,null,null,null,null,null,null,null,null,null,null,null,null,null,null,null,null,416,"金剛","金　　剛"]
[null,null,null,null,null,null,null,null,null,null,null,null,null,null,null,null,null,null,null,null,null,null,null,null,null,null,null,null,null,null,null,null,null,null,null,null,null,null,null,null,null,null,null,null,null,null,null,null,null,null,null,null,null,null,null,null,null,null,null,null,null,null,null,null,null,null,null,null,null,null,null,null,null,null,null,null,null,null,null,null,null,null,null,null,null,null,null,null,null,null,null,null,null,null,null,null,null,null,null,null,null,null,null,null,null,null,null,null,null,null,null,null,null,null,null,null,null,null,null,null,null,null,null,null,null,null,null,null,null,null,null,null,null,null,null,null,null,null,null,null,null,null,null,null,null,null,null,null,null,null,null,null,null,null,null,null,null,null,null,null,null,null,null,null,null,null,null,null,null,null,null,null,null,null,null,null,417,"住吉","住　　吉"]
[null,null,null,null,null,null,"ふりがな",null,null,null,null,null,null,null,null,null,null,null,null,null,null,null,null,null,null,null,null,null,null,null,null,null,null,null,null,null,null,null,null,null,null,null,null,null,null,null,null,null,null,null,null,null,null,null,null,null,null,null,"・",null,null,null,"・",null,null,null,null,null,null,null,null,null,null,null,null,null,null,null,null,null,null,null,null,null,null,null,null,null,null,null,null,null,null,null,null,null,null,null,null,null,null,null,null,null,null,null,null,null,null,null,null,null,null,null,null,null,null,null,null,null,null,null,null,null,null,null,null,null,null,null,null,null,null,null,null,null,null,null,null,null,null,null,null,null,null,null,null,null,null,null,null,null,null,null,null,null,null,null,null,null,null,null,null,null,null,null,null,null,null,null,null,null,null,null,null,null,419,"天王寺","天 王 寺"]
[null,null,null,null,null,null,"（姓）",null,null,null,null,null,null,null,null,null,null,null,null,null,null,null,"（名）",null,null,null,null,null,null,null,null,null,null,null,null,null,null,null,null,null,null,null,null,null,null,null,null,null,null,null,null,null,null,null,null,null,null,null,null,null,null,null,null,null,null,null,null,null,null,null,null,null,null,null,null,null,null,null,null,null,null,null,null,null,null,null,null,null,null,null,null,null,null,null,null,null,null,null,null,null,null,null,null,null,null,null,null,null,null,null,null,null,null,null,null,null,null,null,null,null,null,null,null,null,null,null,null,null,null,null,null,null,null,null,null,null,null,null,null,null,null,null,null,null,null,null,null,null,null,null,null,null,null,null,null,null,null,null,null,null,null,null,null,null,null,null,null,null,null,null,null,null,null,null,null,null,420,"富田林","富 田 林"]
[null,null,null,null,null,null,null,null,null,null,null,null,null,null,null,null,null,null,null,null,null,null,null,null,null,null,null,null,null,null,null,null,null,null,null,null,null,null,null,null,null,null,null,null,null,null,null,null,null,null,null,null,null,null,null,null,null,null,null,null,null,null,null,null,null,null,null,null,null,null,null,null,null,null,null,null,null,null,null,null,null,null,null,null,null,null,null,null,null,null,null,null,null,null,null,null,null,null,null,null,null,null,null,null,null,null,null,null,null,null,null,null,null,null,null,null,null,null,null,null,null,null,null,null,null,null,null,null,null,null,null,null,null,null,null,null,null,null,null,null,null,null,null,null,null,null,null,null,null,null,null,null,null,null,null,null,null,null,null,null,null,null,null,null,null,null,null,null,null,null,null,null,null,null,null,null,421,"長野","長　　野"]
[null,null,null,null,null,null,null,null,null,null,null,null,null,null,null,null,null,null,null,null,null,null,null,null,null,null,null,null,null,null,null,null,null,null,null,null,null,null,null,null,null,null,null,null,null,null,null,null,null,null,null,null,null,null,null,null,null,null,null,null,null,null,null,null,null,null,null,null,null,null,null,null,null,null,null,null,null,null,null,null,null,null,null,null,null,null,null,null,null,null,null,null,null,null,null,null,null,null,null,null,null,null,null,null,null,null,null,null,null,null,null,null,null,null,null,null,null,null,null,null,null,null,null,null,null,null,null,null,null,null,null,null,null,null,null,null,null,null,null,null,null,null,null,null,null,null,null,null,null,null,null,null,null,null,null,null,null,null,null,null,null,null,null,null,null,null,null,null,null,null,null,null,null,null,null,null,422,"長野北","長 野 北"]
[null,null,null,null,null,null,"ふりがな",null,null,null,null,null,null,null,null,null,null,null,null,null,null,null,null,null,null,null,null,null,null,null,null,null,null,null,null,null,null,null,null,null,null,null,null,null,null,null,null,null,null,null,null,null,null,null,null,null,null,null,"・",null,null,null,"・",null,null,null,null,null,null,null,null,null,null,null,null,null,null,null,null,null,null,null,null,null,null,null,null,null,null,null,null,null,null,null,null,null,null,null,null,null,null,null,null,null,null,null,null,null,null,null,null,null,null,null,null,null,null,null,null,null,null,null,null,null,null,null,null,null,null,null,null,null,null,null,null,null,null,null,null,null,null,null,null,null,null,null,null,null,null,null,null,null,null,null,null,null,null,null,null,null,null,null,null,null,null,null,null,null,null,null,null,null,null,null,null,null,423,"長吉","長　　吉"]
[null,null,null,null,null,null,"（姓）",null,null,null,null,null,null,null,null,null,null,null,null,null,null,null,"（名）",null,null,null,null,null,null,null,null,null,null,null,null,null,null,null,null,null,null,null,null,null,null,null,null,null,null,null,null,null,null,null,null,null,null,null,null,null,null,null,null,null,null,null,null,null,null,null,null,null,null,null,null,null,null,null,null,null,null,null,null,null,null,null,null,null,null,null,null,null,null,null,null,null,null,null,null,null,null,null,null,null,null,null,null,null,null,null,null,null,null,null,null,null,null,null,null,null,null,null,null,null,null,null,null,null,null,null,null,null,null,null,null,null,null,null,null,null,null,null,null,null,null,null,null,null,null,null,null,null,null,null,null,null,null,null,null,null,null,null,null,null,null,null,null,null,null,null,null,null,null,null,null,null,425,"花園","花　　園"]
[null,null,null,null,null,null,null,null,null,null,null,null,null,null,null,null,null,null,null,null,null,null,null,null,null,null,null,null,null,null,null,null,null,null,null,null,null,null,null,null,null,null,null,null,null,null,null,null,null,null,null,null,null,null,null,null,null,null,null,null,null,null,null,null,null,null,null,null,null,null,null,null,null,null,null,null,null,null,null,null,null,null,null,null,null,null,null,null,null,null,null,null,null,null,null,null,null,null,null,null,null,null,null,null,null,null,null,null,null,null,null,null,null,null,null,null,null,null,null,null,null,null,null,null,null,null,null,null,null,null,null,null,null,null,null,null,null,null,null,null,null,null,null,null,null,null,null,null,null,null,null,null,null,null,null,null,null,null,null,null,null,null,null,null,null,null,null,null,null,null,null,null,null,null,null,null,426,"懐風館","懐 風 館"]
[null,null,null,null,null,null,null,null,null,null,null,null,null,null,null,null,null,null,null,null,null,null,null,null,null,null,null,null,null,null,null,null,null,null,null,null,null,null,null,null,null,null,null,null,null,null,null,null,null,null,null,null,null,null,null,null,null,null,null,null,null,null,null,null,null,null,null,null,null,null,null,null,null,null,null,null,null,null,null,null,null,null,null,null,null,null,null,null,null,null,null,null,null,null,null,null,null,null,null,null,null,null,null,null,null,null,null,null,null,null,null,null,null,null,null,null,null,null,null,null,null,null,null,null,null,null,null,null,null,null,null,null,null,null,null,null,null,null,null,null,null,null,null,null,null,null,null,null,null,null,null,null,null,null,null,null,null,null,null,null,null,null,null,null,null,null,null,null,null,null,null,null,null,null,null,null,427,"東住吉","東 住 吉"]
[null,null,null,null,null,null,"ふりがな",null,null,null,null,null,null,null,null,null,null,null,null,null,null,null,null,null,null,null,null,null,null,null,null,null,null,null,null,null,null,null,null,null,null,null,null,null,null,null,null,null,null,null,null,null,null,null,null,null,null,null,"・",null,null,null,"・",null,null,null,null,null,null,null,null,null,null,null,null,null,null,null,null,null,null,null,null,null,null,null,null,null,null,null,null,null,null,null,null,null,null,null,null,null,null,null,null,null,null,null,null,null,null,null,null,null,null,null,null,null,null,null,null,null,null,null,null,null,null,null,null,null,null,null,null,null,null,null,null,null,null,null,null,null,null,null,null,null,null,null,null,null,null,null,null,null,null,null,null,null,null,null,null,null,null,null,null,null,null,null,null,null,null,null,null,null,null,null,null,null,428,"平野","平　　野"]
[null,null,null,null,null,null,"（姓）",null,null,null,null,null,null,null,null,null,null,null,null,null,null,null,"（名）",null,null,null,null,null,null,null,null,null,null,null,null,null,null,null,null,null,null,null,null,null,null,null,null,null,null,null,null,null,null,null,null,null,null,null,null,null,null,null,null,null,null,null,null,null,null,null,null,null,null,null,null,null,null,null,null,null,null,null,null,null,null,null,null,null,null,null,null,null,null,null,null,null,null,null,null,null,null,null,null,null,null,null,null,null,null,null,null,null,null,null,null,null,null,null,null,null,null,null,null,null,null,null,null,null,null,null,null,null,null,null,null,null,null,null,null,null,null,null,null,null,null,null,null,null,null,null,null,null,null,null,null,null,null,null,null,null,null,null,null,null,null,null,null,null,null,null,null,null,null,null,null,null,429,"藤井寺","藤 井 寺"]
[null,null,null,null,null,null,null,null,null,null,null,null,null,null,null,null,null,null,null,null,null,null,null,null,null,null,null,null,null,null,null,null,null,null,null,null,null,null,null,null,null,null,null,null,null,null,null,null,null,null,null,null,null,null,null,null,null,null,null,null,null,null,null,null,null,null,null,null,null,null,null,null,null,null,null,null,null,null,null,null,null,null,null,null,null,null,null,null,null,null,null,null,null,null,null,null,null,null,null,null,null,null,null,null,null,null,null,null,null,null,null,null,null,null,null,null,null,null,null,null,null,null,null,null,null,null,null,null,null,null,null,null,null,null,null,null,null,null,null,null,null,null,null,null,null,null,null,null,null,null,null,null,null,null,null,null,null,null,null,null,null,null,null,null,null,null,null,null,null,null,null,null,null,null,null,null,430,"布施","布　　施"]
[null,null,null,null,null,null,null,null,null,null,null,null,null,null,null,null,null,null,null,null,null,null,null,null,null,null,null,null,null,null,null,null,null,null,null,null,null,null,null,null,null,null,null,null,null,null,null,null,null,null,null,null,null,null,null,null,null,null,null,null,null,null,null,null,null,null,null,null,null,null,null,null,null,null,null,null,null,null,null,null,null,null,null,null,null,null,null,null,null,null,null,null,null,null,null,null,null,null,null,null,null,null,null,null,null,null,null,null,null,null,null,null,null,null,null,null,null,null,null,null,null,null,null,null,null,null,null,null,null,null,null,null,null,null,null,null,null,null,null,null,null,null,null,null,null,null,null,null,null,null,null,null,null,null,null,null,null,null,null,null,null,null,null,null,null,null,null,null,null,null,null,null,null,null,null,null,431,"布施北","布 施 北"]
[null,null,null,null,null,null,"ふりがな",null,null,null,null,null,null,null,null,null,null,null,null,null,null,null,null,null,null,null,null,null,null,null,null,null,null,null,null,null,null,null,null,null,null,null,null,null,null,null,null,null,null,null,null,null,null,null,null,null,null,null,"・",null,null,null,"・",null,null,null,null,null,null,null,null,null,null,null,null,null,null,null,null,null,null,null,null,null,null,null,null,null,null,null,null,null,null,null,null,null,null,null,null,null,null,null,null,null,null,null,null,null,null,null,null,null,null,null,null,null,null,null,null,null,null,null,null,null,null,null,null,null,null,null,null,null,null,null,null,null,null,null,null,null,null,null,null,null,null,null,null,null,null,null,null,null,null,null,null,null,null,null,null,null,null,null,null,null,null,null,null,null,null,null,null,null,null,null,null,null,432,"松原","松　　原"]
[null,null,null,null,null,null,"（姓）",null,null,null,null,null,null,null,null,null,null,null,null,null,null,null,"（名）",null,null,null,null,null,null,null,null,null,null,null,null,null,null,null,null,null,null,null,null,null,null,null,null,null,null,null,null,null,null,null,null,null,null,null,null,null,null,null,null,null,null,null,null,null,null,null,null,null,null,null,null,null,null,null,null,null,null,null,null,null,null,null,null,null,null,null,null,null,null,null,null,null,null,null,null,null,null,null,null,null,null,null,null,null,null,null,null,null,null,null,null,null,null,null,null,null,null,null,null,null,null,null,null,null,null,null,null,null,null,null,null,null,null,null,null,null,null,null,null,null,null,null,null,null,null,null,null,null,null,null,null,null,null,null,null,null,null,null,null,null,null,null,null,null,null,null,null,null,null,null,null,null,433,"美原","美　　原"]
[null,null,null,null,null,null,null,null,null,null,null,null,null,null,null,null,null,null,null,null,null,null,null,null,null,null,null,null,null,null,null,null,null,null,null,null,null,null,null,null,null,null,null,null,null,null,null,null,null,null,null,null,null,null,null,null,null,null,null,null,null,null,null,null,null,null,null,null,null,null,null,null,null,null,null,null,null,null,null,null,null,null,null,null,null,null,null,null,null,null,null,null,null,null,null,null,null,null,null,null,null,null,null,null,null,null,null,null,null,null,null,null,null,null,null,null,null,null,null,null,null,null,null,null,null,null,null,null,null,null,null,null,null,null,null,null,null,null,null,null,null,null,null,null,null,null,null,null,null,null,null,null,null,null,null,null,null,null,null,null,null,null,null,null,null,null,null,null,null,null,null,null,null,null,null,null,434,"八尾","八　　尾"]
[null,null,null,null,null,null,null,null,null,null,null,null,null,null,null,null,null,null,null,null,null,null,null,null,null,null,null,null,null,null,null,null,null,null,null,null,null,null,null,null,null,null,null,null,null,null,null,null,null,null,null,null,null,null,null,null,null,null,null,null,null,null,null,null,null,null,null,null,null,null,null,null,null,null,null,null,null,null,null,null,null,null,null,null,null,null,null,null,null,null,null,null,null,null,null,null,null,null,null,null,null,null,null,null,null,null,null,null,null,null,null,null,null,null,null,null,null,null,null,null,null,null,null,null,null,null,null,null,null,null,null,null,null,null,null,null,null,null,null,null,null,null,null,null,null,null,null,null,null,null,null,null,null,null,null,null,null,null,null,null,null,null,null,null,null,null,null,null,null,null,null,null,null,null,null,null,435,"八尾北","八 尾 北"]
[null,null,null,null,null,null,"ふりがな",null,null,null,null,null,null,null,null,null,null,null,null,null,null,null,null,null,null,null,null,null,null,null,null,null,null,null,null,null,null,null,null,null,null,null,null,null,null,null,null,null,null,null,null,null,null,null,null,null,null,null,"・",null,null,null,"・",null,null,null,null,null,null,null,null,null,null,null,null,null,null,null,null,null,null,null,null,null,null,null,null,null,null,null,null,null,null,null,null,null,null,null,null,null,null,null,null,null,null,null,null,null,null,null,null,null,null,null,null,null,null,null,null,null,null,null,null,null,null,null,null,null,null,null,null,null,null,null,null,null,null,null,null,null,null,null,null,null,null,null,null,null,null,null,null,null,null,null,null,null,null,null,null,null,null,null,null,null,null,null,null,null,null,null,null,null,null,null,null,null,436,"八尾翠翔","八尾翠翔"]
[null,null,null,null,null,null,"（姓）",null,null,null,null,null,null,null,null,null,null,null,null,null,null,null,"（名）",null,null,null,null,null,null,null,null,null,null,null,null,null,null,null,null,null,null,null,null,null,null,null,null,null,null,null,null,null,null,null,null,null,null,null,null,null,null,null,null,null,null,null,null,null,null,null,null,null,null,null,null,null,null,null,null,null,null,null,null,null,null,null,null,null,null,null,null,null,null,null,null,null,null,null,null,null,null,null,null,null,null,null,null,null,null,null,null,null,null,null,null,null,null,null,null,null,null,null,null,null,null,null,null,null,null,null,null,null,null,null,null,null,null,null,null,null,null,null,null,null,null,null,null,null,null,null,null,null,null,null,null,null,null,null,null,null,null,null,null,null,null,null,null,null,null,null,null,null,null,null,null,null,438,"山本","山　　本"]
[null,null,null,null,null,null,null,null,null,null,null,null,null,null,null,null,null,null,null,null,null,null,null,null,null,null,null,null,null,null,null,null,null,null,null,null,null,null,null,null,null,null,null,null,null,null,null,null,null,null,null,null,null,null,null,null,null,null,null,null,null,null,null,null,null,null,null,null,null,null,null,null,null,null,null,null,null,null,null,null,null,null,null,null,null,null,null,null,null,null,null,null,null,null,null,null,null,null,null,null,null,null,null,null,null,null,null,null,null,null,null,null,null,null,null,null,null,null,null,null,null,null,null,null,null,null,null,null,null,null,null,null,null,null,null,null,null,null,null,null,null,null,null,null,null,null,null,null,null,null,null,null,null,null,null,null,null,null,null,null,null,null,null,null,null,null,null,null,null,null,null,null,null,null,null,null,439,"枚岡樟風","牧岡樟風"]
[null,null,null,null,null,null,null,null,null,null,null,null,null,null,null,null,null,null,null,null,null,null,null,null,null,null,null,null,null,null,null,null,null,null,null,null,null,null,null,null,null,null,null,null,null,null,null,null,null,null,null,null,null,null,null,null,null,null,null,null,null,null,null,null,null,null,null,null,null,null,null,null,null,null,null,null,null,null,null,null,null,null,null,null,null,null,null,null,null,null,null,null,null,null,null,null,null,null,null,null,null,null,null,null,null,null,null,null,null,null,null,null,null,null,null,null,null,null,null,null,null,null,null,null,null,null,null,null,null,null,null,null,null,null,null,null,null,null,null,null,null,null,null,null,null,null,null,null,null,null,null,null,null,null,null,null,null,null,null,null,null,null,null,null,null,null,null,null,null,null,null,null,null,null,null,null,440,"農芸","農　　芸"]
[null,null,null,null,null,null,"ふりがな",null,null,null,null,null,null,null,null,null,null,null,null,null,null,null,null,null,null,null,null,null,null,null,null,null,null,null,null,null,null,null,null,null,null,null,null,null,null,null,null,null,null,null,null,null,null,null,null,null,null,null,"・",null,null,null,"・",null,null,null,null,null,null,null,null,null,null,null,null,null,null,null,null,null,null,null,null,null,null,null,null,null,null,null,null,null,null,null,null,null,null,null,null,null,null,null,null,null,null,null,null,null,null,null,null,null,null,null,null,null,null,null,null,null,null,null,null,null,null,null,null,null,null,null,null,null,null,null,null,null,null,null,null,null,null,null,null,null,null,null,null,null,null,null,null,null,null,null,null,null,null,null,null,null,null,null,null,null,null,null,null,null,null,null,null,null,null,null,null,null,441,"東住吉総合","東住吉総"]
[null,null,null,null,null,null,"（姓）",null,null,null,null,null,null,null,null,null,null,null,null,null,null,null,"（名）",null,null,null,null,null,null,null,null,null,null,null,null,null,null,null,null,null,null,null,null,null,null,null,null,null,null,null,null,null,null,null,null,null,null,null,null,null,null,null,null,null,null,null,null,null,null,null,null,null,null,null,null,null,null,null,null,null,null,null,null,null,null,null,null,null,null,null,null,null,null,null,null,null,null,null,null,null,null,null,null,null,null,null,null,null,null,null,null,null,null,null,null,null,null,null,null,null,null,null,null,null,null,null,null,null,null,null,null,null,null,null,null,null,null,null,null,null,null,null,null,null,null,null,null,null,null,null,null,null,null,null,null,null,null,null,null,null,null,null,null,null,null,null,null,null,null,null,null,null,null,null,null,null,442,"藤井寺工科","藤井寺工"]
[null,null,null,null,null,null,null,null,null,null,null,null,null,null,null,null,null,null,null,null,null,null,null,null,null,null,null,null,null,null,null,null,null,null,null,null,null,null,null,null,null,null,null,null,null,null,null,null,null,null,null,null,null,null,null,null,null,null,null,null,null,null,null,null,null,null,null,null,null,null,null,null,null,null,null,null,null,null,null,null,null,null,null,null,null,null,null,null,null,null,null,null,null,null,null,null,null,null,null,null,null,null,null,null,null,null,null,null,null,null,null,null,null,null,null,null,null,null,null,null,null,null,null,null,null,null,null,null,null,null,null,null,null,null,null,null,null,null,null,null,null,null,null,null,null,null,null,null,null,null,null,null,null,null,null,null,null,null,null,null,null,null,null,null,null,null,null,null,null,null,null,null,null,null,null,null,443,"布施工科","布施工科"]
[null,null,null,null,null,null,null,null,null,null,null,null,null,null,null,null,null,null,null,null,null,null,null,null,null,null,null,null,null,null,null,null,null,null,null,null,null,null,null,null,null,null,null,null,null,null,null,null,null,null,null,null,null,null,null,null,null,null,null,null,null,null,null,null,null,null,null,null,null,null,null,null,null,null,null,null,null,null,null,null,null,null,null,null,null,null,null,null,null,null,null,null,null,null,null,null,null,null,null,null,null,null,null,null,null,null,null,null,null,null,null,null,null,null,null,null,null,null,null,null,null,null,null,null,null,null,null,null,null,null,null,null,null,null,null,null,null,null,null,null,null,null,null,null,null,null,null,null,null,null,null,null,null,null,null,null,null,null,null,null,null,null,null,null,null,null,null,null,null,null,null,null,null,null,null,null,445,"日新","日　　新"]
[null,null,null,null,null,null,"ふりがな",null,null,null,null,null,null,null,null,null,null,null,null,null,null,null,null,null,null,null,null,null,null,null,null,null,null,null,null,null,null,null,null,null,null,null,null,null,null,null,null,null,null,null,null,null,null,null,null,null,null,null,"・",null,null,null,"・",null,null,null,null,null,null,null,null,null,null,null,null,null,null,null,null,null,null,null,null,null,null,null,null,null,null,null,null,null,null,null,null,null,null,null,null,null,null,null,null,null,null,null,null,null,null,null,null,null,null,null,null,null,null,null,null,null,null,null,null,null,null,null,null,null,null,null,null,null,null,null,null,null,null,null,null,null,null,null,null,null,null,null,null,null,null,null,null,null,null,null,null,null,null,null,null,null,null,null,null,null,null,null,null,null,null,null,null,null,null,null,null,null,446,"上宮","上　　宮"]
[null,null,null,null,null,null,"（姓）",null,null,null,null,null,null,null,null,null,null,null,null,null,null,null,"（名）",null,null,null,null,null,null,null,null,null,null,null,null,null,null,null,null,null,null,null,null,null,null,null,null,null,null,null,null,null,null,null,null,null,null,null,null,null,null,null,null,null,null,null,null,null,null,null,null,null,null,null,null,null,null,null,null,null,null,null,null,null,null,null,null,null,null,null,null,null,null,null,null,null,null,null,null,null,null,null,null,null,null,null,null,null,null,null,null,null,null,null,null,null,null,null,null,null,null,null,null,null,null,null,null,null,null,null,null,null,null,null,null,null,null,null,null,null,null,null,null,null,null,null,null,null,null,null,null,null,null,null,null,null,null,null,null,null,null,null,null,null,null,null,null,null,null,null,null,null,null,null,null,null,447,"金光八尾","金光八尾"]
[null,null,null,null,null,null,null,null,null,null,null,null,null,null,null,null,null,null,null,null,null,null,null,null,null,null,null,null,null,null,null,null,null,null,null,null,null,null,null,null,null,null,null,null,null,null,null,null,null,null,null,null,null,null,null,null,null,null,null,null,null,null,null,null,null,null,null,null,null,null,null,null,null,null,null,null,null,null,null,null,null,null,null,null,null,null,null,null,null,null,null,null,null,null,null,null,null,null,null,null,null,null,null,null,null,null,null,null,null,null,null,null,null,null,null,null,null,null,null,null,null,null,null,null,null,null,null,null,null,null,null,null,null,null,null,null,null,null,null,null,null,null,null,null,null,null,null,null,null,null,null,null,null,null,null,null,null,null,null,null,null,null,null,null,null,null,null,null,null,null,null,null,null,null,null,null,448,"阪南大学","阪南大学"]
[null,null,null,null,null,null,null,null,null,null,null,null,null,null,null,null,null,null,null,null,null,null,null,null,null,null,null,null,null,null,null,null,null,null,null,null,null,null,null,null,null,null,null,null,null,null,null,null,null,null,null,null,null,null,null,null,null,null,null,null,null,null,null,null,null,null,null,null,null,null,null,null,null,null,null,null,null,null,null,null,null,null,null,null,null,null,null,null,null,null,null,null,null,null,null,null,null,null,null,null,null,null,null,null,null,null,null,null,null,null,null,null,null,null,null,null,null,null,null,null,null,null,null,null,null,null,null,null,null,null,null,null,null,null,null,null,null,null,null,null,null,null,null,null,null,null,null,null,null,null,null,null,null,null,null,null,null,null,null,null,null,null,null,null,null,null,null,null,null,null,null,null,null,null,null,null,449,"大阪商業大学","大 商 大"]
[null,null,null,null,null,null,"ふりがな",null,null,null,null,null,null,null,null,null,null,null,null,null,null,null,null,null,null,null,null,null,null,null,null,null,null,null,null,null,null,null,null,null,null,null,null,null,null,null,null,null,null,null,null,null,null,null,null,null,null,null,"・",null,null,null,"・",null,null,null,null,null,null,null,null,null,null,null,null,null,null,null,null,null,null,null,null,null,null,null,null,null,null,null,null,null,null,null,null,null,null,null,null,null,null,null,null,null,null,null,null,null,null,null,null,null,null,null,null,null,null,null,null,null,null,null,null,null,null,null,null,null,null,null,null,null,null,null,null,null,null,null,null,null,null,null,null,null,null,null,null,null,null,null,null,null,null,null,null,null,null,null,null,null,null,null,null,null,null,null,null,null,null,null,null,null,null,null,null,null,450,"東大阪大学柏原","東大柏原"]
[null,null,null,null,null,null,"（姓）",null,null,null,null,null,null,null,null,null,null,null,null,null,null,null,"（名）",null,null,null,null,null,null,null,null,null,null,null,null,null,null,null,null,null,null,null,null,null,null,null,null,null,null,null,null,null,null,null,null,null,null,null,null,null,null,null,null,null,null,null,null,null,null,null,null,null,null,null,null,null,null,null,null,null,null,null,null,null,null,null,null,null,null,null,null,null,null,null,null,null,null,null,null,null,null,null,null,null,null,null,null,null,null,null,null,null,null,null,null,null,null,null,null,null,null,null,null,null,null,null,null,null,null,null,null,null,null,null,null,null,null,null,null,null,null,null,null,null,null,null,null,null,null,null,null,null,null,null,null,null,null,null,null,null,null,null,null,null,null,null,null,null,null,null,null,null,null,null,null,null,451,"近畿大学附属","近大附属"]
[null,null,null,null,null,null,null,null,null,null,null,null,null,null,null,null,null,null,null,null,null,null,null,null,null,null,null,null,null,null,null,null,null,null,null,null,null,null,null,null,null,null,null,null,null,null,null,null,null,null,null,null,null,null,null,null,null,null,null,null,null,null,null,null,null,null,null,null,null,null,null,null,null,null,null,null,null,null,null,null,null,null,null,null,null,null,null,null,null,null,null,null,null,null,null,null,null,null,null,null,null,null,null,null,null,null,null,null,null,null,null,null,null,null,null,null,null,null,null,null,null,null,null,null,null,null,null,null,null,null,null,null,null,null,null,null,null,null,null,null,null,null,null,null,null,null,null,null,null,null,null,null,null,null,null,null,null,null,null,null,null,null,null,null,null,null,null,null,null,null,null,null,null,null,null,null,452,"興國","興　　國"]
[null,null,null,null,null,null,null,null,null,null,null,null,null,null,null,null,null,null,null,null,null,null,null,null,null,null,null,null,null,null,null,null,null,null,null,null,null,null,null,null,null,null,null,null,null,null,null,null,null,null,null,null,null,null,null,null,null,null,null,null,null,null,null,null,null,null,null,null,null,null,null,null,null,null,null,null,null,null,null,null,null,null,null,null,null,null,null,null,null,null,null,null,null,null,null,null,null,null,null,null,null,null,null,null,null,null,null,null,null,null,null,null,null,null,null,null,null,null,null,null,null,null,null,null,null,null,null,null,null,null,null,null,null,null,null,null,null,null,null,null,null,null,null,null,null,null,null,null,null,null,null,null,null,null,null,null,null,null,null,null,null,null,null,null,null,null,null,null,null,null,null,null,null,null,null,null,453,"四天王寺羽曳丘","四天羽曳"]
[null,null,null,null,null,null,"ふりがな",null,null,null,null,null,null,null,null,null,null,null,null,null,null,null,null,null,null,null,null,null,null,null,null,null,null,null,null,null,null,null,null,null,null,null,null,null,null,null,null,null,null,null,null,null,null,null,null,null,null,null,"・",null,null,null,"・",null,null,null,null,null,null,null,null,null,null,null,null,null,null,null,null,null,null,null,null,null,null,null,null,null,null,null,null,null,null,null,null,null,null,null,null,null,null,null,null,null,null,null,null,null,null,null,null,null,null,null,null,null,null,null,null,null,null,null,null,null,null,null,null,null,null,null,null,null,null,null,null,null,null,null,null,null,null,null,null,null,null,null,null,null,null,null,null,null,null,null,null,null,null,null,null,null,null,null,null,null,null,null,null,null,null,null,null,null,null,null,null,null,454,"大阪星光学院","星光学院"]
[null,null,null,null,null,null,"（姓）",null,null,null,null,null,null,null,null,null,null,null,null,null,null,null,"（名）",null,null,null,null,null,null,null,null,null,null,null,null,null,null,null,null,null,null,null,null,null,null,null,null,null,null,null,null,null,null,null,null,null,null,null,null,null,null,null,null,null,null,null,null,null,null,null,null,null,null,null,null,null,null,null,null,null,null,null,null,null,null,null,null,null,null,null,null,null,null,null,null,null,null,null,null,null,null,null,null,null,null,null,null,null,null,null,null,null,null,null,null,null,null,null,null,null,null,null,null,null,null,null,null,null,null,null,null,null,null,null,null,null,null,null,null,null,null,null,null,null,null,null,null,null,null,null,null,null,null,null,null,null,null,null,null,null,null,null,null,null,null,null,null,null,null,null,null,null,null,null,null,null,455,"清風","清　　風"]
[null,null,null,null,null,null,null,null,null,null,null,null,null,null,null,null,null,null,null,null,null,null,null,null,null,null,null,null,null,null,null,null,null,null,null,null,null,null,null,null,null,null,null,null,null,null,null,null,null,null,null,null,null,null,null,null,null,null,null,null,null,null,null,null,null,null,null,null,null,null,null,null,null,null,null,null,null,null,null,null,null,null,null,null,null,null,null,null,null,null,null,null,null,null,null,null,null,null,null,null,null,null,null,null,null,null,null,null,null,null,null,null,null,null,null,null,null,null,null,null,null,null,null,null,null,null,null,null,null,null,null,null,null,null,null,null,null,null,null,null,null,null,null,null,null,null,null,null,null,null,null,null,null,null,null,null,null,null,null,null,null,null,null,null,null,null,null,null,null,null,null,null,null,null,null,null,456,"ＰＬ学園","ＰＬ学園"]
[null,null,null,null,null,null,null,null,null,null,null,null,null,null,null,null,null,null,null,null,null,null,null,null,null,null,null,null,null,null,null,null,null,null,null,null,null,null,null,null,null,null,null,null,null,null,null,null,null,null,null,null,null,null,null,null,null,null,null,null,null,null,null,null,null,null,null,null,null,null,null,null,null,null,null,null,null,null,null,null,null,null,null,null,null,null,null,null,null,null,null,null,null,null,null,null,null,null,null,null,null,null,null,null,null,null,null,null,null,null,null,null,null,null,null,null,null,null,null,null,null,null,null,null,null,null,null,null,null,null,null,null,null,null,null,null,null,null,null,null,null,null,null,null,null,null,null,null,null,null,null,null,null,null,null,null,null,null,null,null,null,null,null,null,null,null,null,null,null,null,null,null,null,null,null,null,457,"桃山学院","桃山学院"]
[null,null,null,null,null,null,"ふりがな",null,null,null,null,null,null,null,null,null,null,null,null,null,null,null,null,null,null,null,null,null,null,null,null,null,null,null,null,null,null,null,null,null,null,null,null,null,null,null,null,null,null,null,null,null,null,null,null,null,null,null,"・",null,null,null,"・",null,null,null,null,null,null,null,null,null,null,null,null,null,null,null,null,null,null,null,null,null,null,null,null,null,null,null,null,null,null,null,null,null,null,null,null,null,null,null,null,null,null,null,null,null,null,null,null,null,null,null,null,null,null,null,null,null,null,null,null,null,null,null,null,null,null,null,null,null,null,null,null,null,null,null,null,null,null,null,null,null,null,null,null,null,null,null,null,null,null,null,null,null,null,null,null,null,null,null,null,null,null,null,null,null,null,null,null,null,null,null,null,null,458,"芥川","芥　　川"]
[null,null,null,null,null,null,"（姓）",null,null,null,null,null,null,null,null,null,null,null,null,null,null,null,"（名）",null,null,null,null,null,null,null,null,null,null,null,null,null,null,null,null,null,null,null,null,null,null,null,null,null,null,null,null,null,null,null,null,null,null,null,null,null,null,null,null,null,null,null,null,null,null,null,null,null,null,null,null,null,null,null,null,null,null,null,null,null,null,null,null,null,null,null,null,null,null,null,null,null,null,null,null,null,null,null,null,null,null,null,null,null,null,null,null,null,null,null,null,null,null,null,null,null,null,null,null,null,null,null,null,null,null,null,null,null,null,null,null,null,null,null,null,null,null,null,null,null,null,null,null,null,null,null,null,null,null,null,null,null,null,null,null,null,null,null,null,null,null,null,null,null,null,null,null,null,null,null,null,null,459,"阿武野","阿 武 野"]
[null,null,null,null,null,null,null,null,null,null,null,null,null,null,null,null,null,null,null,null,null,null,null,null,null,null,null,null,null,null,null,null,null,null,null,null,null,null,null,null,null,null,null,null,null,null,null,null,null,null,null,null,null,null,null,null,null,null,null,null,null,null,null,null,null,null,null,null,null,null,null,null,null,null,null,null,null,null,null,null,null,null,null,null,null,null,null,null,null,null,null,null,null,null,null,null,null,null,null,null,null,null,null,null,null,null,null,null,null,null,null,null,null,null,null,null,null,null,null,null,null,null,null,null,null,null,null,null,null,null,null,null,null,null,null,null,null,null,null,null,null,null,null,null,null,null,null,null,null,null,null,null,null,null,null,null,null,null,null,null,null,null,null,null,null,null,null,null,null,null,null,null,null,null,null,null,460,"池田","池　　田"]
[null,null,null,null,null,null,null,null,null,null,null,null,null,null,null,null,null,null,null,null,null,null,null,null,null,null,null,null,null,null,null,null,null,null,null,null,null,null,null,null,null,null,null,null,null,null,null,null,null,null,null,null,null,null,null,null,null,null,null,null,null,null,null,null,null,null,null,null,null,null,null,null,null,null,null,null,null,null,null,null,null,null,null,null,null,null,null,null,null,null,null,null,null,null,null,null,null,null,null,null,null,null,null,null,null,null,null,null,null,null,null,null,null,null,null,null,null,null,null,null,null,null,null,null,null,null,null,null,null,null,null,null,null,null,null,null,null,null,null,null,null,null,null,null,null,null,null,null,null,null,null,null,null,null,null,null,null,null,null,null,null,null,null,null,null,null,null,null,null,null,null,null,null,null,null,null,461,"池田北","池 田 北"]
[null,null,null,null,null,null,"ふりがな",null,null,null,null,null,null,null,null,null,null,null,null,null,null,null,null,null,null,null,null,null,null,null,null,null,null,null,null,null,null,null,null,null,null,null,null,null,null,null,null,null,null,null,null,null,null,null,null,null,null,null,"・",null,null,null,"・",null,null,null,null,null,null,null,null,null,null,null,null,null,null,null,null,null,null,null,null,null,null,null,null,null,null,null,null,null,null,null,null,null,null,null,null,null,null,null,null,null,null,null,null,null,null,null,null,null,null,null,null,null,null,null,null,null,null,null,null,null,null,null,null,null,null,null,null,null,null,null,null,null,null,null,null,null,null,null,null,null,null,null,null,null,null,null,null,null,null,null,null,null,null,null,null,null,null,null,null,null,null,null,null,null,null,null,null,null,null,null,null,null,462,"茨木","茨　　木"]
[null,null,null,null,null,null,"（姓）",null,null,null,null,null,null,null,null,null,null,null,null,null,null,null,"（名）",null,null,null,null,null,null,null,null,null,null,null,null,null,null,null,null,null,null,null,null,null,null,null,null,null,null,null,null,null,null,null,null,null,null,null,null,null,null,null,null,null,null,null,null,null,null,null,null,null,null,null,null,null,null,null,null,null,null,null,null,null,null,null,null,null,null,null,null,null,null,null,null,null,null,null,null,null,null,null,null,null,null,null,null,null,null,null,null,null,null,null,null,null,null,null,null,null,null,null,null,null,null,null,null,null,null,null,null,null,null,null,null,null,null,null,null,null,null,null,null,null,null,null,null,null,null,null,null,null,null,null,null,null,null,null,null,null,null,null,null,null,null,null,null,null,null,null,null,null,null,null,null,null,463,"茨木西","茨 木 西"]
[null,null,null,null,null,null,null,null,null,null,null,null,null,null,null,null,null,null,null,null,null,null,null,null,null,null,null,null,null,null,null,null,null,null,null,null,null,null,null,null,null,null,null,null,null,null,null,null,null,null,null,null,null,null,null,null,null,null,null,null,null,null,null,null,null,null,null,null,null,null,null,null,null,null,null,null,null,null,null,null,null,null,null,null,null,null,null,null,null,null,null,null,null,null,null,null,null,null,null,null,null,null,null,null,null,null,null,null,null,null,null,null,null,null,null,null,null,null,null,null,null,null,null,null,null,null,null,null,null,null,null,null,null,null,null,null,null,null,null,null,null,null,null,null,null,null,null,null,null,null,null,null,null,null,null,null,null,null,null,null,null,null,null,null,null,null,null,null,null,null,null,null,null,null,null,null,464,"北摂つばさ","北摂つば"]
[null,null,null,null,null,null,null,null,null,null,null,null,null,null,null,null,null,null,null,null,null,null,null,null,null,null,null,null,null,null,null,null,null,null,null,null,null,null,null,null,null,null,null,null,null,null,null,null,null,null,null,null,null,null,null,null,null,null,null,null,null,null,null,null,null,null,null,null,null,null,null,null,null,null,null,null,null,null,null,null,null,null,null,null,null,null,null,null,null,null,null,null,null,null,null,null,null,null,null,null,null,null,null,null,null,null,null,null,null,null,null,null,null,null,null,null,null,null,null,null,null,null,null,null,null,null,null,null,null,null,null,null,null,null,null,null,null,null,null,null,null,null,null,null,null,null,null,null,null,null,null,null,null,null,null,null,null,null,null,null,null,null,null,null,null,null,null,null,null,null,null,null,null,null,null,null,465,"園芸","園　　芸"]
[null,null,null,null,null,null,"ふりがな",null,null,null,null,null,null,null,null,null,null,null,null,null,null,null,null,null,null,null,null,null,null,null,null,null,null,null,null,null,null,null,null,null,null,null,null,null,null,null,null,null,null,null,null,null,null,null,null,null,null,null,"・",null,null,null,"・",null,null,null,null,null,null,null,null,null,null,null,null,null,null,null,null,null,null,null,null,null,null,null,null,null,null,null,null,null,null,null,null,null,null,null,null,null,null,null,null,null,null,null,null,null,null,null,null,null,null,null,null,null,null,null,null,null,null,null,null,null,null,null,null,null,null,null,null,null,null,null,null,null,null,null,null,null,null,null,null,null,null,null,null,null,null,null,null,null,null,null,null,null,null,null,null,null,null,null,null,null,null,null,null,null,null,null,null,null,null,null,null,null,466,"春日丘","春 日 丘"]
[null,null,null,null,null,null,"（姓）",null,null,null,null,null,null,null,null,null,null,null,null,null,null,null,"（名）",null,null,null,null,null,null,null,null,null,null,null,null,null,null,null,null,null,null,null,null,null,null,null,null,null,null,null,null,null,null,null,null,null,null,null,null,null,null,null,null,null,null,null,null,null,null,null,null,null,null,null,null,null,null,null,null,null,null,null,null,null,null,null,null,null,null,null,null,null,null,null,null,null,null,null,null,null,null,null,null,null,null,null,null,null,null,null,null,null,null,null,null,null,null,null,null,null,null,null,null,null,null,null,null,null,null,null,null,null,null,null,null,null,null,null,null,null,null,null,null,null,null,null,null,null,null,null,null,null,null,null,null,null,null,null,null,null,null,null,null,null,null,null,null,null,null,null,null,null,null,null,null,null,467,"北千里","北 千 里"]
[null,null,null,null,null,null,null,null,null,null,null,null,null,null,null,null,null,null,null,null,null,null,null,null,null,null,null,null,null,null,null,null,null,null,null,null,null,null,null,null,null,null,null,null,null,null,null,null,null,null,null,null,null,null,null,null,null,null,null,null,null,null,null,null,null,null,null,null,null,null,null,null,null,null,null,null,null,null,null,null,null,null,null,null,null,null,null,null,null,null,null,null,null,null,null,null,null,null,null,null,null,null,null,null,null,null,null,null,null,null,null,null,null,null,null,null,null,null,null,null,null,null,null,null,null,null,null,null,null,null,null,null,null,null,null,null,null,null,null,null,null,null,null,null,null,null,null,null,null,null,null,null,null,null,null,null,null,null,null,null,null,null,null,null,null,null,null,null,null,null,null,null,null,null,null,null,468,"北野","北　　野"]
[null,null,null,null,null,null,null,null,null,null,null,null,null,null,null,null,null,null,null,null,null,null,null,null,null,null,null,null,null,null,null,null,null,null,null,null,null,null,null,null,null,null,null,null,null,null,null,null,null,null,null,null,null,null,null,null,null,null,null,null,null,null,null,null,null,null,null,null,null,null,null,null,null,null,null,null,null,null,null,null,null,null,null,null,null,null,null,null,null,null,null,null,null,null,null,null,null,null,null,null,null,null,null,null,null,null,null,null,null,null,null,null,null,null,null,null,null,null,null,null,null,null,null,null,null,null,null,null,null,null,null,null,null,null,null,null,null,null,null,null,null,null,null,null,null,null,null,null,null,null,null,null,null,null,null,null,null,null,null,null,null,null,null,null,null,null,null,null,null,null,null,null,null,null,null,null,469,"柴島","柴　　島"]
[null,null,null,null,null,null,"ふりがな",null,null,null,null,null,null,null,null,null,null,null,null,null,null,null,null,null,null,null,null,null,null,null,null,null,null,null,null,null,null,null,null,null,null,null,null,null,null,null,null,null,null,null,null,null,null,null,null,null,null,null,"・",null,null,null,"・",null,null,null,null,null,null,null,null,null,null,null,null,null,null,null,null,null,null,null,null,null,null,null,null,null,null,null,null,null,null,null,null,null,null,null,null,null,null,null,null,null,null,null,null,null,null,null,null,null,null,null,null,null,null,null,null,null,null,null,null,null,null,null,null,null,null,null,null,null,null,null,null,null,null,null,null,null,null,null,null,null,null,null,null,null,null,null,null,null,null,null,null,null,null,null,null,null,null,null,null,null,null,null,null,null,null,null,null,null,null,null,null,null,470,"桜塚","桜　　塚"]
[null,null,null,null,null,null,"（姓）",null,null,null,null,null,null,null,null,null,null,null,null,null,null,null,"（名）",null,null,null,null,null,null,null,null,null,null,null,null,null,null,null,null,null,null,null,null,null,null,null,null,null,null,null,null,null,null,null,null,null,null,null,null,null,null,null,null,null,null,null,null,null,null,null,null,null,null,null,null,null,null,null,null,null,null,null,null,null,null,null,null,null,null,null,null,null,null,null,null,null,null,null,null,null,null,null,null,null,null,null,null,null,null,null,null,null,null,null,null,null,null,null,null,null,null,null,null,null,null,null,null,null,null,null,null,null,null,null,null,null,null,null,null,null,null,null,null,null,null,null,null,null,null,null,null,null,null,null,null,null,null,null,null,null,null,null,null,null,null,null,null,null,null,null,null,null,null,null,null,null,471,"渋谷","渋　　谷"]
[null,null,null,null,null,null,null,null,null,null,null,null,null,null,null,null,null,null,null,null,null,null,null,null,null,null,null,null,null,null,null,null,null,null,null,null,null,null,null,null,null,null,null,null,null,null,null,null,null,null,null,null,null,null,null,null,null,null,null,null,null,null,null,null,null,null,null,null,null,null,null,null,null,null,null,null,null,null,null,null,null,null,null,null,null,null,null,null,null,null,null,null,null,null,null,null,null,null,null,null,null,null,null,null,null,null,null,null,null,null,null,null,null,null,null,null,null,null,null,null,null,null,null,null,null,null,null,null,null,null,null,null,null,null,null,null,null,null,null,null,null,null,null,null,null,null,null,null,null,null,null,null,null,null,null,null,null,null,null,null,null,null,null,null,null,null,null,null,null,null,null,null,null,null,null,null,472,"金蘭千里","金蘭千里"]
[null,null,null,null,null,null,null,null,null,null,null,null,null,null,null,null,null,null,null,null,null,null,null,null,null,null,null,null,null,null,null,null,null,null,null,null,null,null,null,null,null,null,null,null,null,null,null,null,null,null,null,null,null,null,null,null,null,null,null,null,null,null,null,null,null,null,null,null,null,null,null,null,null,null,null,null,null,null,null,null,null,null,null,null,null,null,null,null,null,null,null,null,null,null,null,null,null,null,null,null,null,null,null,null,null,null,null,null,null,null,null,null,null,null,null,null,null,null,null,null,null,null,null,null,null,null,null,null,null,null,null,null,null,null,null,null,null,null,null,null,null,null,null,null,null,null,null,null,null,null,null,null,null,null,null,null,null,null,null,null,null,null,null,null,null,null,null,null,null,null,null,null,null,null,null,null,473,"槻の木","規 の 木"]
[null,null,null,null,null,null,"ふりがな",null,null,null,null,null,null,null,null,null,null,null,null,null,null,null,null,null,null,null,null,null,null,null,null,null,null,null,null,null,null,null,null,null,null,null,null,null,null,null,null,null,null,null,null,null,null,null,null,null,null,null,"・",null,null,null,"・",null,null,null,null,null,null,null,null,null,null,null,null,null,null,null,null,null,null,null,null,null,null,null,null,null,null,null,null,null,null,null,null,null,null,null,null,null,null,null,null,null,null,null,null,null,null,null,null,null,null,null,null,null,null,null,null,null,null,null,null,null,null,null,null,null,null,null,null,null,null,null,null,null,null,null,null,null,null,null,null,null,null,null,null,null,null,null,null,null,null,null,null,null,null,null,null,null,null,null,null,null,null,null,null,null,null,null,null,null,null,null,null,null,474,"島本","島　　本"]
[null,null,null,null,null,null,"（姓）",null,null,null,null,null,null,null,null,null,null,null,null,null,null,null,"（名）",null,null,null,null,null,null,null,null,null,null,null,null,null,null,null,null,null,null,null,null,null,null,null,null,null,null,null,null,null,null,null,null,null,null,null,null,null,null,null,null,null,null,null,null,null,null,null,null,null,null,null,null,null,null,null,null,null,null,null,null,null,null,null,null,null,null,null,null,null,null,null,null,null,null,null,null,null,null,null,null,null,null,null,null,null,null,null,null,null,null,null,null,null,null,null,null,null,null,null,null,null,null,null,null,null,null,null,null,null,null,null,null,null,null,null,null,null,null,null,null,null,null,null,null,null,null,null,null,null,null,null,null,null,null,null,null,null,null,null,null,null,null,null,null,null,null,null,null,null,null,null,null,null,476,"吹田","吹　　田"]
[null,null,null,null,null,null,null,null,null,null,null,null,null,null,null,null,null,null,null,null,null,null,null,null,null,null,null,null,null,null,null,null,null,null,null,null,null,null,null,null,null,null,null,null,null,null,null,null,null,null,null,null,null,null,null,null,null,null,null,null,null,null,null,null,null,null,null,null,null,null,null,null,null,null,null,null,null,null,null,null,null,null,null,null,null,null,null,null,null,null,null,null,null,null,null,null,null,null,null,null,null,null,null,null,null,null,null,null,null,null,null,null,null,null,null,null,null,null,null,null,null,null,null,null,null,null,null,null,null,null,null,null,null,null,null,null,null,null,null,null,null,null,null,null,null,null,null,null,null,null,null,null,null,null,null,null,null,null,null,null,null,null,null,null,null,null,null,null,null,null,null,null,null,null,null,null,477,"吹田東","吹 田 東"]
[null,null,null,null,null,null,null,null,null,null,null,null,null,null,null,null,null,null,null,null,null,null,null,null,null,null,null,null,null,null,null,null,null,null,null,null,null,null,null,null,null,null,null,null,null,null,null,null,null,null,null,null,null,null,null,null,null,null,null,null,null,null,null,null,null,null,null,null,null,null,null,null,null,null,null,null,null,null,null,null,null,null,null,null,null,null,null,null,null,null,null,null,null,null,null,null,null,null,null,null,null,null,null,null,null,null,null,null,null,null,null,null,null,null,null,null,null,null,null,null,null,null,null,null,null,null,null,null,null,null,null,null,null,null,null,null,null,null,null,null,null,null,null,null,null,null,null,null,null,null,null,null,null,null,null,null,null,null,null,null,null,null,null,null,null,null,null,null,null,null,null,null,null,null,null,null,478,"摂津","摂　　津"]
[null,null,null,null,null,null,"ふりがな",null,null,null,null,null,null,null,null,null,null,null,null,null,null,null,null,null,null,null,null,null,null,null,null,null,null,null,null,null,null,null,null,null,null,null,null,null,null,null,null,null,null,null,null,null,null,null,null,null,null,null,"・",null,null,null,"・",null,null,null,null,null,null,null,null,null,null,null,null,null,null,null,null,null,null,null,null,null,null,null,null,null,null,null,null,null,null,null,null,null,null,null,null,null,null,null,null,null,null,null,null,null,null,null,null,null,null,null,null,null,null,null,null,null,null,null,null,null,null,null,null,null,null,null,null,null,null,null,null,null,null,null,null,null,null,null,null,null,null,null,null,null,null,null,null,null,null,null,null,null,null,null,null,null,null,null,null,null,null,null,null,null,null,null,null,null,null,null,null,null,479,"千里","千　　里"]
[null,null,null,null,null,null,"（姓）",null,null,null,null,null,null,null,null,null,null,null,null,null,null,null,"（名）",null,null,null,null,null,null,null,null,null,null,null,null,null,null,null,null,null,null,null,null,null,null,null,null,null,null,null,null,null,null,null,null,null,null,null,null,null,null,null,null,null,null,null,null,null,null,null,null,null,null,null,null,null,null,null,null,null,null,null,null,null,null,null,null,null,null,null,null,null,null,null,null,null,null,null,null,null,null,null,null,null,null,null,null,null,null,null,null,null,null,null,null,null,null,null,null,null,null,null,null,null,null,null,null,null,null,null,null,null,null,null,null,null,null,null,null,null,null,null,null,null,null,null,null,null,null,null,null,null,null,null,null,null,null,null,null,null,null,null,null,null,null,null,null,null,null,null,null,null,null,null,null,null,481,"高槻北","高 槻 北"]
[null,null,null,null,null,null,null,null,null,null,null,null,null,null,null,null,null,null,null,null,null,null,null,null,null,null,null,null,null,null,null,null,null,null,null,null,null,null,null,null,null,null,null,null,null,null,null,null,null,null,null,null,null,null,null,null,null,null,null,null,null,null,null,null,null,null,null,null,null,null,null,null,null,null,null,null,null,null,null,null,null,null,null,null,null,null,null,null,null,null,null,null,null,null,null,null,null,null,null,null,null,null,null,null,null,null,null,null,null,null,null,null,null,null,null,null,null,null,null,null,null,null,null,null,null,null,null,null,null,null,null,null,null,null,null,null,null,null,null,null,null,null,null,null,null,null,null,null,null,null,null,null,null,null,null,null,null,null,null,null,null,null,null,null,null,null,null,null,null,null,null,null,null,null,null,null,482,"豊島","豊　　島"]
[null,null,null,null,null,null,null,null,null,null,null,null,null,null,null,null,null,null,null,null,null,null,null,null,null,null,null,null,null,null,null,null,null,null,null,null,null,null,null,null,null,null,null,null,null,null,null,null,null,null,null,null,null,null,null,null,null,null,null,null,null,null,null,null,null,null,null,null,null,null,null,null,null,null,null,null,null,null,null,null,null,null,null,null,null,null,null,null,null,null,null,null,null,null,null,null,null,null,null,null,null,null,null,null,null,null,null,null,null,null,null,null,null,null,null,null,null,null,null,null,null,null,null,null,null,null,null,null,null,null,null,null,null,null,null,null,null,null,null,null,null,null,null,null,null,null,null,null,null,null,null,null,null,null,null,null,null,null,null,null,null,null,null,null,null,null,null,null,null,null,null,null,null,null,null,null,483,"豊中","豊　　中"]
[null,null,null,null,null,null,"ふりがな",null,null,null,null,null,null,null,null,null,null,null,null,null,null,null,null,null,null,null,null,null,null,null,null,null,null,null,null,null,null,null,null,null,null,null,null,null,null,null,null,null,null,null,null,null,null,null,null,null,null,null,"・",null,null,null,"・",null,null,null,null,null,null,null,null,null,null,null,null,null,null,null,null,null,null,null,null,null,null,null,null,null,null,null,null,null,null,null,null,null,null,null,null,null,null,null,null,null,null,null,null,null,null,null,null,null,null,null,null,null,null,null,null,null,null,null,null,null,null,null,null,null,null,null,null,null,null,null,null,null,null,null,null,null,null,null,null,null,null,null,null,null,null,null,null,null,null,null,null,null,null,null,null,null,null,null,null,null,null,null,null,null,null,null,null,null,null,null,null,null,485,"西淀川","西 淀 川"]
[null,null,null,null,null,null,"（姓）",null,null,null,null,null,null,null,null,null,null,null,null,null,null,null,"（名）",null,null,null,null,null,null,null,null,null,null,null,null,null,null,null,null,null,null,null,null,null,null,null,null,null,null,null,null,null,null,null,null,null,null,null,null,null,null,null,null,null,null,null,null,null,null,null,null,null,null,null,null,null,null,null,null,null,null,null,null,null,null,null,null,null,null,null,null,null,null,null,null,null,null,null,null,null,null,null,null,null,null,null,null,null,null,null,null,null,null,null,null,null,null,null,null,null,null,null,null,null,null,null,null,null,null,null,null,null,null,null,null,null,null,null,null,null,null,null,null,null,null,null,null,null,null,null,null,null,null,null,null,null,null,null,null,null,null,null,null,null,null,null,null,null,null,null,null,null,null,null,null,null,486,"千里青雲","千里青雲"]
[null,null,null,null,null,null,null,null,null,null,null,null,null,null,null,null,null,null,null,null,null,null,null,null,null,null,null,null,null,null,null,null,null,null,null,null,null,null,null,null,null,null,null,null,null,null,null,null,null,null,null,null,null,null,null,null,null,null,null,null,null,null,null,null,null,null,null,null,null,null,null,null,null,null,null,null,null,null,null,null,null,null,null,null,null,null,null,null,null,null,null,null,null,null,null,null,null,null,null,null,null,null,null,null,null,null,null,null,null,null,null,null,null,null,null,null,null,null,null,null,null,null,null,null,null,null,null,null,null,null,null,null,null,null,null,null,null,null,null,null,null,null,null,null,null,null,null,null,null,null,null,null,null,null,null,null,null,null,null,null,null,null,null,null,null,null,null,null,null,null,null,null,null,null,null,null,487,"東淀川","東 淀 川"]
[null,null,null,null,null,null,null,null,null,null,null,null,null,null,null,null,null,null,null,null,null,null,null,null,null,null,null,null,null,null,null,null,null,null,null,null,null,null,null,null,null,null,null,null,null,null,null,null,null,null,null,null,null,null,null,null,null,null,null,null,null,null,null,null,null,null,null,null,null,null,null,null,null,null,null,null,null,null,null,null,null,null,null,null,null,null,null,null,null,null,null,null,null,null,null,null,null,null,null,null,null,null,null,null,null,null,null,null,null,null,null,null,null,null,null,null,null,null,null,null,null,null,null,null,null,null,null,null,null,null,null,null,null,null,null,null,null,null,null,null,null,null,null,null,null,null,null,null,null,null,null,null,null,null,null,null,null,null,null,null,null,null,null,null,null,null,null,null,null,null,null,null,null,null,null,null,488,"福井","福　　井"]
[null,null,null,null,null,null,"ふりがな",null,null,null,null,null,null,null,null,null,null,null,null,null,null,null,null,null,null,null,null,null,null,null,null,null,null,null,null,null,null,null,null,null,null,null,null,null,null,null,null,null,null,null,null,null,null,null,null,null,null,null,"・",null,null,null,"・",null,null,null,null,null,null,null,null,null,null,null,null,null,null,null,null,null,null,null,null,null,null,null,null,null,null,null,null,null,null,null,null,null,null,null,null,null,null,null,null,null,null,null,null,null,null,null,null,null,null,null,null,null,null,null,null,null,null,null,null,null,null,null,null,null,null,null,null,null,null,null,null,null,null,null,null,null,null,null,null,null,null,null,null,null,null,null,null,null,null,null,null,null,null,null,null,null,null,null,null,null,null,null,null,null,null,null,null,null,null,null,null,null,489,"三島","三　　島"]
[null,null,null,null,null,null,"（姓）",null,null,null,null,null,null,null,null,null,null,null,null,null,null,null,"（名）",null,null,null,null,null,null,null,null,null,null,null,null,null,null,null,null,null,null,null,null,null,null,null,null,null,null,null,null,null,null,null,null,null,null,null,null,null,null,null,null,null,null,null,null,null,null,null,null,null,null,null,null,null,null,null,null,null,null,null,null,null,null,null,null,null,null,null,null,null,null,null,null,null,null,null,null,null,null,null,null,null,null,null,null,null,null,null,null,null,null,null,null,null,null,null,null,null,null,null,null,null,null,null,null,null,null,null,null,null,null,null,null,null,null,null,null,null,null,null,null,null,null,null,null,null,null,null,null,null,null,null,null,null,null,null,null,null,null,null,null,null,null,null,null,null,null,null,null,null,null,null,null,null,490,"箕面","箕　　面"]
[null,null,null,null,null,null,null,null,null,null,null,null,null,null,null,null,null,null,null,null,null,null,null,null,null,null,null,null,null,null,null,null,null,null,null,null,null,null,null,null,null,null,null,null,null,null,null,null,null,null,null,null,null,null,null,null,null,null,null,null,null,null,null,null,null,null,null,null,null,null,null,null,null,null,null,null,null,null,null,null,null,null,null,null,null,null,null,null,null,null,null,null,null,null,null,null,null,null,null,null,null,null,null,null,null,null,null,null,null,null,null,null,null,null,null,null,null,null,null,null,null,null,null,null,null,null,null,null,null,null,null,null,null,null,null,null,null,null,null,null,null,null,null,null,null,null,null,null,null,null,null,null,null,null,null,null,null,null,null,null,null,null,null,null,null,null,null,null,null,null,null,null,null,null,null,null,491,"箕面東","箕 面 東"]
[null,null,null,null,null,null,null,null,null,null,null,null,null,null,null,null,null,null,null,null,null,null,null,null,null,null,null,null,null,null,null,null,null,null,null,null,null,null,null,null,null,null,null,null,null,null,null,null,null,null,null,null,null,null,null,null,null,null,null,null,null,null,null,null,null,null,null,null,null,null,null,null,null,null,null,null,null,null,null,null,null,null,null,null,null,null,null,null,null,null,null,null,null,null,null,null,null,null,null,null,null,null,null,null,null,null,null,null,null,null,null,null,null,null,null,null,null,null,null,null,null,null,null,null,null,null,null,null,null,null,null,null,null,null,null,null,null,null,null,null,null,null,null,null,null,null,null,null,null,null,null,null,null,null,null,null,null,null,null,null,null,null,null,null,null,null,null,null,null,null,null,null,null,null,null,null,492,"茨木工科","茨木工科"]
[null,null,null,null,null,null,"ふりがな",null,null,null,null,null,null,null,null,null,null,null,null,null,null,null,null,null,null,null,null,null,null,null,null,null,null,null,null,null,null,null,null,null,null,null,null,null,null,null,null,null,null,null,null,null,null,null,null,null,null,null,"・",null,null,null,"・",null,null,null,null,null,null,null,null,null,null,null,null,null,null,null,null,null,null,null,null,null,null,null,null,null,null,null,null,null,null,null,null,null,null,null,null,null,null,null,null,null,null,null,null,null,null,null,null,null,null,null,null,null,null,null,null,null,null,null,null,null,null,null,null,null,null,null,null,null,null,null,null,null,null,null,null,null,null,null,null,null,null,null,null,null,null,null,null,null,null,null,null,null,null,null,null,null,null,null,null,null,null,null,null,null,null,null,null,null,null,null,null,null,493,"大冠","大　　冠"]
[null,null,null,null,null,null,"（姓）",null,null,null,null,null,null,null,null,null,null,null,null,null,null,null,"（名）",null,null,null,null,null,null,null,null,null,null,null,null,null,null,null,null,null,null,null,null,null,null,null,null,null,null,null,null,null,null,null,null,null,null,null,null,null,null,null,null,null,null,null,null,null,null,null,null,null,null,null,null,null,null,null,null,null,null,null,null,null,null,null,null,null,null,null,null,null,null,null,null,null,null,null,null,null,null,null,null,null,null,null,null,null,null,null,null,null,null,null,null,null,null,null,null,null,null,null,null,null,null,null,null,null,null,null,null,null,null,null,null,null,null,null,null,null,null,null,null,null,null,null,null,null,null,null,null,null,null,null,null,null,null,null,null,null,null,null,null,null,null,null,null,null,null,null,null,null,null,null,null,null,494,"北淀","北　　淀"]
[null,null,null,null,null,null,null,null,null,null,null,null,null,null,null,null,null,null,null,null,null,null,null,null,null,null,null,null,null,null,null,null,null,null,null,null,null,null,null,null,null,null,null,null,null,null,null,null,null,null,null,null,null,null,null,null,null,null,null,null,null,null,null,null,null,null,null,null,null,null,null,null,null,null,null,null,null,null,null,null,null,null,null,null,null,null,null,null,null,null,null,null,null,null,null,null,null,null,null,null,null,null,null,null,null,null,null,null,null,null,null,null,null,null,null,null,null,null,null,null,null,null,null,null,null,null,null,null,null,null,null,null,null,null,null,null,null,null,null,null,null,null,null,null,null,null,null,null,null,null,null,null,null,null,null,null,null,null,null,null,null,null,null,null,null,null,null,null,null,null,null,null,null,null,null,null,495,"淀商業","淀　　商"]
[null,null,null,null,null,null,null,null,null,null,null,null,null,null,null,null,null,null,null,null,null,null,null,null,null,null,null,null,null,null,null,null,null,null,null,null,null,null,null,null,null,null,null,null,null,null,null,null,null,null,null,null,null,null,null,null,null,null,null,null,null,null,null,null,null,null,null,null,null,null,null,null,null,null,null,null,null,null,null,null,null,null,null,null,null,null,null,null,null,null,null,null,null,null,null,null,null,null,null,null,null,null,null,null,null,null,null,null,null,null,null,null,null,null,null,null,null,null,null,null,null,null,null,null,null,null,null,null,null,null,null,null,null,null,null,null,null,null,null,null,null,null,null,null,null,null,null,null,null,null,null,null,null,null,null,null,null,null,null,null,null,null,null,null,null,null,null,null,null,null,null,null,null,null,null,null,496,"東淀工業","東淀工業"]
[null,null,null,null,null,null,"ふりがな",null,null,null,null,null,null,null,null,null,null,null,null,null,null,null,null,null,null,null,null,null,null,null,null,null,null,null,null,null,null,null,null,null,null,null,null,null,null,null,null,null,null,null,null,null,null,null,null,null,null,null,"・",null,null,null,"・",null,null,null,null,null,null,null,null,null,null,null,null,null,null,null,null,null,null,null,null,null,null,null,null,null,null,null,null,null,null,null,null,null,null,null,null,null,null,null,null,null,null,null,null,null,null,null,null,null,null,null,null,null,null,null,null,null,null,null,null,null,null,null,null,null,null,null,null,null,null,null,null,null,null,null,null,null,null,null,null,null,null,null,null,null,null,null,null,null,null,null,null,null,null,null,null,null,null,null,null,null,null,null,null,null,null,null,null,null,null,null,null,null,497,"大阪学院","大阪学院"]
[null,null,null,null,null,null,"（姓）",null,null,null,null,null,null,null,null,null,null,null,null,null,null,null,"（名）",null,null,null,null,null,null,null,null,null,null,null,null,null,null,null,null,null,null,null,null,null,null,null,null,null,null,null,null,null,null,null,null,null,null,null,null,null,null,null,null,null,null,null,null,null,null,null,null,null,null,null,null,null,null,null,null,null,null,null,null,null,null,null,null,null,null,null,null,null,null,null,null,null,null,null,null,null,null,null,null,null,null,null,null,null,null,null,null,null,null,null,null,null,null,null,null,null,null,null,null,null,null,null,null,null,null,null,null,null,null,null,null,null,null,null,null,null,null,null,null,null,null,null,null,null,null,null,null,null,null,null,null,null,null,null,null,null,null,null,null,null,null,null,null,null,null,null,null,null,null,null,null,null,498,"大阪","大　　阪"]
[null,null,null,null,null,null,null,null,null,null,null,null,null,null,null,null,null,null,null,null,null,null,null,null,null,null,null,null,null,null,null,null,null,null,null,null,null,null,null,null,null,null,null,null,null,null,null,null,null,null,null,null,null,null,null,null,null,null,null,null,null,null,null,null,null,null,null,null,null,null,null,null,null,null,null,null,null,null,null,null,null,null,null,null,null,null,null,null,null,null,null,null,null,null,null,null,null,null,null,null,null,null,null,null,null,null,null,null,null,null,null,null,null,null,null,null,null,null,null,null,null,null,null,null,null,null,null,null,null,null,null,null,null,null,null,null,null,null,null,null,null,null,null,null,null,null,null,null,null,null,null,null,null,null,null,null,null,null,null,null,null,null,null,null,null,null,null,null,null,null,null,null,null,null,null,null,499,"大商学園","大商学園"]
[null,null,null,null,null,null,null,null,null,null,null,null,null,null,null,null,null,null,null,null,null,null,null,null,null,null,null,null,null,null,null,null,null,null,null,null,null,null,null,null,null,null,null,null,null,null,null,null,null,null,null,null,null,null,null,null,null,null,null,null,null,null,null,null,null,null,null,null,null,null,null,null,null,null,null,null,null,null,null,null,null,null,null,null,null,null,null,null,null,null,null,null,null,null,null,null,null,null,null,null,null,null,null,null,null,null,null,null,null,null,null,null,null,null,null,null,null,null,null,null,null,null,null,null,null,null,null,null,null,null,null,null,null,null,null,null,null,null,null,null,null,null,null,null,null,null,null,null,null,null,null,null,null,null,null,null,null,null,null,null,null,null,null,null,null,null,null,null,null,null,null,null,null,null,null,null,500,"追手門学院","追手門学"]
[null,null,null,null,null,null,"ふりがな",null,null,null,null,null,null,null,null,null,null,null,null,null,null,null,null,null,null,null,null,null,null,null,null,null,null,null,null,null,null,null,null,null,null,null,null,null,null,null,null,null,null,null,null,null,null,null,null,null,null,null,"・",null,null,null,"・",null,null,null,null,null,null,null,null,null,null,null,null,null,null,null,null,null,null,null,null,null,null,null,null,null,null,null,null,null,null,null,null,null,null,null,null,null,null,null,null,null,null,null,null,null,null,null,null,null,null,null,null,null,null,null,null,null,null,null,null,null,null,null,null,null,null,null,null,null,null,null,null,null,null,null,null,null,null,null,null,null,null,null,null,null,null,null,null,null,null,null,null,null,null,null,null,null,null,null,null,null,null,null,null,null,null,null,null,null,null,null,null,null,501,"関西大倉","関西大倉"]
[null,null,null,null,null,null,"（姓）",null,null,null,null,null,null,null,null,null,null,null,null,null,null,null,"（名）",null,null,null,null,null,null,null,null,null,null,null,null,null,null,null,null,null,null,null,null,null,null,null,null,null,null,null,null,null,null,null,null,null,null,null,null,null,null,null,null,null,null,null,null,null,null,null,null,null,null,null,null,null,null,null,null,null,null,null,null,null,null,null,null,null,null,null,null,null,null,null,null,null,null,null,null,null,null,null,null,null,null,null,null,null,null,null,null,null,null,null,null,null,null,null,null,null,null,null,null,null,null,null,null,null,null,null,null,null,null,null,null,null,null,null,null,null,null,null,null,null,null,null,null,null,null,null,null,null,null,null,null,null,null,null,null,null,null,null,null,null,null,null,null,null,null,null,null,null,null,null,null,null,502,"関大一","関 大 一"]
[null,null,null,null,null,null,null,null,null,null,null,null,null,null,null,null,null,null,null,null,null,null,null,null,null,null,null,null,null,null,null,null,null,null,null,null,null,null,null,null,null,null,null,null,null,null,null,null,null,null,null,null,null,null,null,null,null,null,null,null,null,null,null,null,null,null,null,null,null,null,null,null,null,null,null,null,null,null,null,null,null,null,null,null,null,null,null,null,null,null,null,null,null,null,null,null,null,null,null,null,null,null,null,null,null,null,null,null,null,null,null,null,null,null,null,null,null,null,null,null,null,null,null,null,null,null,null,null,null,null,null,null,null,null,null,null,null,null,null,null,null,null,null,null,null,null,null,null,null,null,null,null,null,null,null,null,null,null,null,null,null,null,null,null,null,null,null,null,null,null,null,null,null,null,null,null,503,"金光大阪","金光大阪"]
[null,null,null,null,null,null,null,null,null,null,null,null,null,null,null,null,null,null,null,null,null,null,null,null,null,null,null,null,null,null,null,null,null,null,null,null,null,null,null,null,null,null,null,null,null,null,null,null,null,null,null,null,null,null,null,null,null,null,null,null,null,null,null,null,null,null,null,null,null,null,null,null,null,null,null,null,null,null,null,null,null,null,null,null,null,null,null,null,null,null,null,null,null,null,null,null,null,null,null,null,null,null,null,null,null,null,null,null,null,null,null,null,null,null,null,null,null,null,null,null,null,null,null,null,null,null,null,null,null,null,null,null,null,null,null,null,null,null,null,null,null,null,null,null,null,null,null,null,null,null,null,null,null,null,null,null,null,null,null,null,null,null,null,null,null,null,null,null,null,null,null,null,null,null,null,null,504,"高槻","高　　槻"]
[null,null,null,null,null,null,null,null,null,null,null,null,null,null,null,null,null,null,null,null,null,null,null,null,null,null,null,null,null,null,null,null,null,null,null,null,null,null,null,null,null,null,null,null,null,null,null,null,null,null,null,null,null,null,null,null,null,null,null,null,null,null,null,null,null,null,null,null,null,null,null,null,null,null,null,null,null,null,null,null,null,null,null,null,null,null,null,null,null,null,null,null,null,null,null,null,null,null,null,null,null,null,null,null,null,null,null,null,null,null,null,null,null,null,null,null,null,null,null,null,null,null,null,null,null,null,null,null,null,null,null,null,null,null,null,null,null,null,null,null,null,null,null,null,null,null,null,null,null,null,null,null,null,null,null,null,null,null,null,null,null,null,null,null,null,null,null,null,null,null,null,null,null,null,null,null,505,"星翔","星　　翔"]
[null,null,null,null,null,null,null,null,null,null,null,null,null,null,null,null,null,null,null,null,null,null,null,null,null,null,null,null,null,null,null,null,null,null,null,null,null,null,null,null,null,null,null,null,null,null,null,null,null,null,null,null,null,null,null,null,null,null,null,null,null,null,null,null,null,null,null,null,null,null,null,null,null,null,null,null,null,null,null,null,null,null,null,null,null,null,null,null,null,null,null,null,null,null,null,null,null,null,null,null,null,null,null,null,null,null,null,null,null,null,null,null,null,null,null,null,null,null,null,null,null,null,null,null,null,null,null,null,null,null,null,null,null,null,null,null,null,null,null,null,null,null,null,null,null,null,null,null,null,null,null,null,null,null,null,null,null,null,null,null,null,null,null,null,null,null,null,null,null,null,null,null,null,null,null,null,506,"履正社","履 正 社"]
[null,null,null,null,null,null,null,null,null,null,null,null,null,null,null,null,null,null,null,null,null,null,null,null,null,null,null,null,null,null,null,null,null,null,null,null,null,null,null,null,null,null,null,null,null,null,null,null,null,null,null,null,null,null,null,null,null,null,null,null,null,null,null,null,null,null,null,null,null,null,null,null,null,null,null,null,null,null,null,null,null,null,null,null,null,null,null,null,null,null,null,null,null,null,null,null,null,null,null,null,null,null,null,null,null,null,null,null,null,null,null,null,null,null,null,null,null,null,null,null,null,null,null,null,null,null,null,null,null,null,null,null,null,null,null,null,null,null,null,null,null,null,null,null,null,null,null,null,null,null,null,null,null,null,null,null,null,null,null,null,null,null,null,null,null,null,null,null,null,null,null,null,null,null,null,null,507,"関大北陽","関大北陽"]
[null,null,null,null,null,null,null,null,null,null,null,null,null,null,null,null,null,null,null,null,null,null,null,null,null,null,null,null,null,null,null,null,null,null,null,null,null,null,null,null,null,null,null,null,null,null,null,null,null,null,null,null,null,null,null,null,null,null,null,null,null,null,null,null,null,null,null,null,null,null,null,null,null,null,null,null,null,null,null,null,null,null,null,null,null,null,null,null,null,null,null,null,null,null,null,null,null,null,null,null,null,null,null,null,null,null,null,null,null,null,null,null,null,null,null,null,null,null,null,null,null,null,null,null,null,null,null,null,null,null,null,null,null,null,null,null,null,null,null,null,null,null,null,null,null,null,null,null,null,null,null,null,null,null,null,null,null,null,null,null,null,null,null,null,null,null,null,null,null,null,null,null,null,null,null,null,508,"箕面学園","箕面学園"]
[null,null,null,null,null,null,null,null,null,null,null,null,null,null,null,null,null,null,null,null,null,null,null,null,null,null,null,null,null,null,null,null,null,null,null,null,null,null,null,null,null,null,null,null,null,null,null,null,null,null,null,null,null,null,null,null,null,null,null,null,null,null,null,null,null,null,null,null,null,null,null,null,null,null,null,null,null,null,null,null,null,null,null,null,null,null,null,null,null,null,null,null,null,null,null,null,null,null,null,null,null,null,null,null,null,null,null,null,null,null,null,null,null,null,null,null,null,null,null,null,null,null,null,null,null,null,null,null,null,null,null,null,null,null,null,null,null,null,null,null,null,null,null,null,null,null,null,null,null,null,null,null,null,null,null,null,null,null,null,null,null,null,null,null,null,null,null,null,null,null,null,null,null,null,null,null,509,"箕面自由学園","箕面自由"]
[null,null,null,null,null,null,null,null,null,null,null,null,null,null,null,null,null,null,null,null,null,null,null,null,null,null,null,null,null,null,null,null,null,null,null,null,null,null,null,null,null,null,null,null,null,null,null,null,null,null,null,null,null,null,null,null,null,null,null,null,null,null,null,null,null,null,null,null,null,null,null,null,null,null,null,null,null,null,null,null,null,null,null,null,null,null,null,null,null,null,null,null,null,null,null,null,null,null,null,null,null,null,null,null,null,null,null,null,null,null,null,null,null,null,null,null,null,null,null,null,null,null,null,null,null,null,null,null,null,null,null,null,null,null,null,null,null,null,null,null,null,null,null,null,null,null,null,null,null,null,null,null,null,null,null,null,null,null,null,null,null,null,null,null,null,null,null,null,null,null,null,null,null,null,null,null,519,"三国丘(定","三 国 丘"]
[null,null,null,null,null,null,null,null,null,null,null,null,null,null,null,null,null,null,null,null,null,null,null,null,null,null,null,null,null,null,null,null,null,null,null,null,null,null,null,null,null,null,null,null,null,null,null,null,null,null,null,null,null,null,null,null,null,null,null,null,null,null,null,null,null,null,null,null,null,null,null,null,null,null,null,null,null,null,null,null,null,null,null,null,null,null,null,null,null,null,null,null,null,null,null,null,null,null,null,null,null,null,null,null,null,null,null,null,null,null,null,null,null,null,null,null,null,null,null,null,null,null,null,null,null,null,null,null,null,null,null,null,null,null,null,null,null,null,null,null,null,null,null,null,null,null,null,null,null,null,null,null,null,null,null,null,null,null,null,null,null,null,null,null,null,null,null,null,null,null,null,null,null,null,null,null,521,"大手前(定","大 手 前"]
[null,null,null,null,null,null,null,null,null,null,null,null,null,null,null,null,null,null,null,null,null,null,null,null,null,null,null,null,null,null,null,null,null,null,null,null,null,null,null,null,null,null,null,null,null,null,null,null,null,null,null,null,null,null,null,null,null,null,null,null,null,null,null,null,null,null,null,null,null,null,null,null,null,null,null,null,null,null,null,null,null,null,null,null,null,null,null,null,null,null,null,null,null,null,null,null,null,null,null,null,null,null,null,null,null,null,null,null,null,null,null,null,null,null,null,null,null,null,null,null,null,null,null,null,null,null,null,null,null,null,null,null,null,null,null,null,null,null,null,null,null,null,null,null,null,null,null,null,null,null,null,null,null,null,null,null,null,null,null,null,null,null,null,null,null,null,null,null,null,null,null,null,null,null,null,null,523,"都島第二工","都島第二"]
[null,null,null,null,null,null,null,null,null,null,null,null,null,null,null,null,null,null,null,null,null,null,null,null,null,null,null,null,null,null,null,null,null,null,null,null,null,null,null,null,null,null,null,null,null,null,null,null,null,null,null,null,null,null,null,null,null,null,null,null,null,null,null,null,null,null,null,null,null,null,null,null,null,null,null,null,null,null,null,null,null,null,null,null,null,null,null,null,null,null,null,null,null,null,null,null,null,null,null,null,null,null,null,null,null,null,null,null,null,null,null,null,null,null,null,null,null,null,null,null,null,null,null,null,null,null,null,null,null,null,null,null,null,null,null,null,null,null,null,null,null,null,null,null,null,null,null,null,null,null,null,null,null,null,null,null,null,null,null,null,null,null,null,null,null,null,null,null,null,null,null,null,null,null,null,null,"525","成城","成　　城"]
[null,null,null,null,null,null,null,null,null,null,null,null,null,null,null,null,null,null,null,null,null,null,null,null,null,null,null,null,null,null,null,null,null,null,null,null,null,null,null,null,null,null,null,null,null,null,null,null,null,null,null,null,null,null,null,null,null,null,null,null,null,null,null,null,null,null,null,null,null,null,null,null,null,null,null,null,null,null,null,null,null,null,null,null,null,null,null,null,null,null,null,null,null,null,null,null,null,null,null,null,null,null,null,null,null,null,null,null,null,null,null,null,null,null,null,null,null,null,null,null,null,null,null,null,null,null,null,null,null,null,null,null,null,null,null,null,null,null,null,null,null,null,null,null,null,null,null,null,null,null,null,null,null,null,null,null,null,null,null,null,null,null,null,null,null,null,null,null,null,null,null,null,null,null,null,null,528,"今宮工科(定","今宮工科"]
[null,null,null,null,null,null,null,null,null,null,null,null,null,null,null,null,null,null,null,null,null,null,null,null,null,null,null,null,null,null,null,null,null,null,null,null,null,null,null,null,null,null,null,null,null,null,null,null,null,null,null,null,null,null,null,null,null,null,null,null,null,null,null,null,null,null,null,null,null,null,null,null,null,null,null,null,null,null,null,null,null,null,null,null,null,null,null,null,null,null,null,null,null,null,null,null,null,null,null,null,null,null,null,null,null,null,null,null,null,null,null,null,null,null,null,null,null,null,null,null,null,null,null,null,null,null,null,null,null,null,null,null,null,null,null,null,null,null,null,null,null,null,null,null,null,null,null,null,null,null,null,null,null,null,null,null,null,null,null,null,null,null,null,null,null,null,null,null,null,null,null,null,null,null,null,null,530,"西野田工科(定","西野田工"]
[null,null,null,null,null,null,null,null,null,null,null,null,null,null,null,null,null,null,null,null,null,null,null,null,null,null,null,null,null,null,null,null,null,null,null,null,null,null,null,null,null,null,null,null,null,null,null,null,null,null,null,null,null,null,null,null,null,null,null,null,null,null,null,null,null,null,null,null,null,null,null,null,null,null,null,null,null,null,null,null,null,null,null,null,null,null,null,null,null,null,null,null,null,null,null,null,null,null,null,null,null,null,null,null,null,null,null,null,null,null,null,null,null,null,null,null,null,null,null,null,null,null,null,null,null,null,null,null,null,null,null,null,null,null,null,null,null,null,null,null,null,null,null,null,null,null,null,null,null,null,null,null,null,null,null,null,null,null,null,null,null,null,null,null,null,null,null,null,null,null,null,null,null,null,null,null,531,"岸和田産業(定","岸和田産"]
[null,null,null,null,null,null,null,null,null,null,null,null,null,null,null,null,null,null,null,null,null,null,null,null,null,null,null,null,null,null,null,null,null,null,null,null,null,null,null,null,null,null,null,null,null,null,null,null,null,null,null,null,null,null,null,null,null,null,null,null,null,null,null,null,null,null,null,null,null,null,null,null,null,null,null,null,null,null,null,null,null,null,null,null,null,null,null,null,null,null,null,null,null,null,null,null,null,null,null,null,null,null,null,null,null,null,null,null,null,null,null,null,null,null,null,null,null,null,null,null,null,null,null,null,null,null,null,null,null,null,null,null,null,null,null,null,null,null,null,null,null,null,null,null,null,null,null,null,null,null,null,null,null,null,null,null,null,null,null,null,null,null,null,null,null,null,null,null,null,null,null,null,null,null,null,null,532,"堺市立堺(定","堺市立堺"]
[null,null,null,null,null,null,null,null,null,null,null,null,null,null,null,null,null,null,null,null,null,null,null,null,null,null,null,null,null,null,null,null,null,null,null,null,null,null,null,null,null,null,null,null,null,null,null,null,null,null,null,null,null,null,null,null,null,null,null,null,null,null,null,null,null,null,null,null,null,null,null,null,null,null,null,null,null,null,null,null,null,null,null,null,null,null,null,null,null,null,null,null,null,null,null,null,null,null,null,null,null,null,null,null,null,null,null,null,null,null,null,null,null,null,null,null,null,null,null,null,null,null,null,null,null,null,null,null,null,null,null,null,null,null,null,null,null,null,null,null,null,null,null,null,null,null,null,null,null,null,null,null,null,null,null,null,null,null,null,null,null,null,null,null,null,null,null,null,null,null,null,null,null,null,null,null,"534","和泉総合","和泉総合"]
[null,null,null,null,null,null,null,null,null,null,null,null,null,null,null,null,null,null,null,null,null,null,null,null,null,null,null,null,null,null,null,null,null,null,null,null,null,null,null,null,null,null,null,null,null,null,null,null,null,null,null,null,null,null,null,null,null,null,null,null,null,null,null,null,null,null,null,null,null,null,null,null,null,null,null,null,null,null,null,null,null,null,null,null,null,null,null,null,null,null,null,null,null,null,null,null,null,null,null,null,null,null,null,null,null,null,null,null,null,null,null,null,null,null,null,null,null,null,null,null,null,null,null,null,null,null,null,null,null,null,null,null,null,null,null,null,null,null,null,null,null,null,null,null,null,null,null,null,null,null,null,null,null,null,null,null,null,null,null,null,null,null,null,null,null,null,null,null,null,null,null,null,null,null,null,null,535,"佐野工科(定","佐野工科"]
[null,null,null,null,null,null,null,null,null,null,null,null,null,null,null,null,null,null,null,null,null,null,null,null,null,null,null,null,null,null,null,null,null,null,null,null,null,null,null,null,null,null,null,null,null,null,null,null,null,null,null,null,null,null,null,null,null,null,null,null,null,null,null,null,null,null,null,null,null,null,null,null,null,null,null,null,null,null,null,null,null,null,null,null,null,null,null,null,null,null,null,null,null,null,null,null,null,null,null,null,null,null,null,null,null,null,null,null,null,null,null,null,null,null,null,null,null,null,null,null,null,null,null,null,null,null,null,null,null,null,null,null,null,null,null,null,null,null,null,null,null,null,null,null,null,null,null,null,null,null,null,null,null,null,null,null,null,null,null,null,null,null,null,null,null,null,null,null,null,null,null,null,null,null,null,null,542,"日新(定","日　　新"]
[null,null,null,null,null,null,null,null,null,null,null,null,null,null,null,null,null,null,null,null,null,null,null,null,null,null,null,null,null,null,null,null,null,null,null,null,null,null,null,null,null,null,null,null,null,null,null,null,null,null,null,null,null,null,null,null,null,null,null,null,null,null,null,null,null,null,null,null,null,null,null,null,null,null,null,null,null,null,null,null,null,null,null,null,null,null,null,null,null,null,null,null,null,null,null,null,null,null,null,null,null,null,null,null,null,null,null,null,null,null,null,null,null,null,null,null,null,null,null,null,null,null,null,null,null,null,null,null,null,null,null,null,null,null,null,null,null,null,null,null,null,null,null,null,null,null,null,null,null,null,null,null,null,null,null,null,null,null,null,null,null,null,null,null,null,null,null,null,null,null,null,null,null,null,null,null,"544","桜塚(定","桜　　塚"]
[null,null,null,null,null,null,null,null,null,null,null,null,null,null,null,null,null,null,null,null,null,null,null,null,null,null,null,null,null,null,null,null,null,null,null,null,null,null,null,null,null,null,null,null,null,null,null,null,null,null,null,null,null,null,null,null,null,null,null,null,null,null,null,null,null,null,null,null,null,null,null,null,null,null,null,null,null,null,null,null,null,null,null,null,null,null,null,null,null,null,null,null,null,null,null,null,null,null,null,null,null,null,null,null,null,null,null,null,null,null,null,null,null,null,null,null,null,null,null,null,null,null,null,null,null,null,null,null,null,null,null,null,null,null,null,null,null,null,null,null,null,null,null,null,null,null,null,null,null,null,null,null,null,null,null,null,null,null,null,null,null,null,null,null,null,null,null,null,null,null,null,null,null,null,null,null,"545","春日丘(定","春 日 丘"]
[null,null,null,null,null,null,null,null,null,null,null,null,null,null,null,null,null,null,null,null,null,null,null,null,null,null,null,null,null,null,null,null,null,null,null,null,null,null,null,null,null,null,null,null,null,null,null,null,null,null,null,null,null,null,null,null,null,null,null,null,null,null,null,null,null,null,null,null,null,null,null,null,null,null,null,null,null,null,null,null,null,null,null,null,null,null,null,null,null,null,null,null,null,null,null,null,null,null,null,null,null,null,null,null,null,null,null,null,null,null,null,null,null,null,null,null,null,null,null,null,null,null,null,null,null,null,null,null,null,null,null,null,null,null,null,null,null,null,null,null,null,null,null,null,null,null,null,null,null,null,null,null,null,null,null,null,null,null,null,null,null,null,null,null,null,null,null,null,null,null,null,null,null,null,null,null,546,"科学技術学園","科学技術"]
[null,null,null,null,null,null,null,null,null,null,null,null,null,null,null,null,null,null,null,null,null,null,null,null,null,null,null,null,null,null,null,null,null,null,null,null,null,null,null,null,null,null,null,null,null,null,null,null,null,null,null,null,null,null,null,null,null,null,null,null,null,null,null,null,null,null,null,null,null,null,null,null,null,null,null,null,null,null,null,null,null,null,null,null,null,null,null,null,null,null,null,null,null,null,null,null,null,null,null,null,null,null,null,null,null,null,null,null,null,null,null,null,null,null,null,null,null,null,null,null,null,null,null,null,null,null,null,null,null,null,null,null,null,null,null,null,null,null,null,null,null,null,null,null,null,null,null,null,null,null,null,null,null,null,null,null,null,null,null,null,null,null,null,null,null,null,null,null,null,null,null,null,null,null,null,null,550,"建国","建　　国"]
[null,null,null,null,null,null,null,null,null,null,null,null,null,null,null,null,null,null,null,null,null,null,null,null,null,null,null,null,null,null,null,null,null,null,null,null,null,null,null,null,null,null,null,null,null,null,null,null,null,null,null,null,null,null,null,null,null,null,null,null,null,null,null,null,null,null,null,null,null,null,null,null,null,null,null,null,null,null,null,null,null,null,null,null,null,null,null,null,null,null,null,null,null,null,null,null,null,null,null,null,null,null,null,null,null,null,null,null,null,null,null,null,null,null,null,null,null,null,null,null,null,null,null,null,null,null,null,null,null,null,null,null,null,null,null,null,null,null,null,null,null,null,null,null,null,null,null,null,null,null,null,null,null,null,null,null,null,null,null,null,null,null,null,null,null,null,null,null,null,null,null,null,null,null,null,null,551,"能勢","能　　勢"]
[null,null,null,null,null,null,null,null,null,null,null,null,null,null,null,null,null,null,null,null,null,null,null,null,null,null,null,null,null,null,null,null,null,null,null,null,null,null,null,null,null,null,null,null,null,null,null,null,null,null,null,null,null,null,null,null,null,null,null,null,null,null,null,null,null,null,null,null,null,null,null,null,null,null,null,null,null,null,null,null,null,null,null,null,null,null,null,null,null,null,null,null,null,null,null,null,null,null,null,null,null,null,null,null,null,null,null,null,null,null,null,null,null,null,null,null,null,null,null,null,null,null,null,null,null,null,null,null,null,null,null,null,null,null,null,null,null,null,null,null,null,null,null,null,null,null,null,null,null,null,null,null,null,null,null,null,null,null,null,null,null,null,null,null,null,null,null,null,null,null,null,null,null,null,null,null,553,"藤井寺工科","藤井寺工"]
[null,null,null,null,null,null,null,null,null,null,null,null,null,null,null,null,null,null,null,null,null,null,null,null,null,null,null,null,null,null,null,null,null,null,null,null,null,null,null,null,null,null,null,null,null,null,null,null,null,null,null,null,null,null,null,null,null,null,null,null,null,null,null,null,null,null,null,null,null,null,null,null,null,null,null,null,null,null,null,null,null,null,null,null,null,null,null,null,null,null,null,null,null,null,null,null,null,null,null,null,null,null,null,null,null,null,null,null,null,null,null,null,null,null,null,null,null,null,null,null,null,null,null,null,null,null,null,null,null,null,null,null,null,null,null,null,null,null,null,null,null,null,null,null,null,null,null,null,null,null,null,null,null,null,null,null,null,null,null,null,null,null,null,null,null,null,null,null,null,null,null,null,null,null,null,null,554,"四條畷北","四條畷北"]
[null,null,null,null,null,null,null,null,null,null,null,null,null,null,null,null,null,null,null,null,null,null,null,null,null,null,null,null,null,null,null,null,null,null,null,null,null,null,null,null,null,null,null,null,null,null,null,null,null,null,null,null,null,null,null,null,null,null,null,null,null,null,null,null,null,null,null,null,null,null,null,null,null,null,null,null,null,null,null,null,null,null,null,null,null,null,null,null,null,null,null,null,null,null,null,null,null,null,null,null,null,null,null,null,null,null,null,null,null,null,null,null,null,null,null,null,null,null,null,null,null,null,null,null,null,null,null,null,null,null,null,null,null,null,null,null,null,null,null,null,null,null,null,null,null,null,null,null,null,null,null,null,null,null,null,null,null,null,null,null,null,null,null,null,null,null,null,null,null,null,null,null,null,null,null,null,555,"野崎","野　　崎"]
[null,null,null,null,null,null,null,null,null,null,null,null,null,null,null,null,null,null,null,null,null,null,null,null,null,null,null,null,null,null,null,null,null,null,null,null,null,null,null,null,null,null,null,null,null,null,null,null,null,null,null,null,null,null,null,null,null,null,null,null,null,null,null,null,null,null,null,null,null,null,null,null,null,null,null,null,null,null,null,null,null,null,null,null,null,null,null,null,null,null,null,null,null,null,null,null,null,null,null,null,null,null,null,null,null,null,null,null,null,null,null,null,null,null,null,null,null,null,null,null,null,null,null,null,null,null,null,null,null,null,null,null,null,null,null,null,null,null,null,null,null,null,null,null,null,null,null,null,null,null,null,null,null,null,null,null,null,null,null,null,null,null,null,null,null,null,null,null,null,null,null,null,null,null,null,null,556,"関西創価","関西創価"]
[null,null,null,null,null,null,null,null,null,null,null,null,null,null,null,null,null,null,null,null,null,null,null,null,null,null,null,null,null,null,null,null,null,null,null,null,null,null,null,null,null,null,null,null,null,null,null,null,null,null,null,null,null,null,null,null,null,null,null,null,null,null,null,null,null,null,null,null,null,null,null,null,null,null,null,null,null,null,null,null,null,null,null,null,null,null,null,null,null,null,null,null,null,null,null,null,null,null,null,null,null,null,null,null,null,null,null,null,null,null,null,null,null,null,null,null,null,null,null,null,null,null,null,null,null,null,null,null,null,null,null,null,null,null,null,null,null,null,null,null,null,null,null,null,null,null,null,null,null,null,null,null,null,null,null,null,null,null,null,null,null,null,null,null,null,null,null,null,null,null,null,null,null,null,null,null,557,"プール学院","プール学"]
[null,null,null,null,null,null,null,null,null,null,null,null,null,null,null,null,null,null,null,null,null,null,null,null,null,null,null,null,null,null,null,null,null,null,null,null,null,null,null,null,null,null,null,null,null,null,null,null,null,null,null,null,null,null,null,null,null,null,null,null,null,null,null,null,null,null,null,null,null,null,null,null,null,null,null,null,null,null,null,null,null,null,null,null,null,null,null,null,null,null,null,null,null,null,null,null,null,null,null,null,null,null,null,null,null,null,null,null,null,null,null,null,null,null,null,null,null,null,null,null,null,null,null,null,null,null,null,null,null,null,null,null,null,null,null,null,null,null,null,null,null,null,null,null,null,null,null,null,null,null,null,null,null,null,null,null,null,null,null,null,null,null,null,null,null,null,null,null,null,null,null,null,null,null,null,null,558,"清明学院","清明学院"]
[null,null,null,null,null,null,null,null,null,null,null,null,null,null,null,null,null,null,null,null,null,null,null,null,null,null,null,null,null,null,null,null,null,null,null,null,null,null,null,null,null,null,null,null,null,null,null,null,null,null,null,null,null,null,null,null,null,null,null,null,null,null,null,null,null,null,null,null,null,null,null,null,null,null,null,null,null,null,null,null,null,null,null,null,null,null,null,null,null,null,null,null,null,null,null,null,null,null,null,null,null,null,null,null,null,null,null,null,null,null,null,null,null,null,null,null,null,null,null,null,null,null,null,null,null,null,null,null,null,null,null,null,null,null,null,null,null,null,null,null,null,null,null,null,null,null,null,null,null,null,null,null,null,null,null,null,null,null,null,null,null,null,null,null,null,null,null,null,null,null,null,null,null,null,null,null,560,"大阪ビジネス","Ｏ Ｂ Ｆ"]
[null,null,null,null,null,null,null,null,null,null,null,null,null,null,null,null,null,null,null,null,null,null,null,null,null,null,null,null,null,null,null,null,null,null,null,null,null,null,null,null,null,null,null,null,null,null,null,null,null,null,null,null,null,null,null,null,null,null,null,null,null,null,null,null,null,null,null,null,null,null,null,null,null,null,null,null,null,null,null,null,null,null,null,null,null,null,null,null,null,null,null,null,null,null,null,null,null,null,null,null,null,null,null,null,null,null,null,null,null,null,null,null,null,null,null,null,null,null,null,null,null,null,null,null,null,null,null,null,null,null,null,null,null,null,null,null,null,null,null,null,null,null,null,null,null,null,null,null,null,null,null,null,null,null,null,null,null,null,null,null,null,null,null,null,null,null,null,null,null,null,null,null,null,null,null,null,562,"上宮太子","上宮太子"]
[null,null,null,null,null,null,null,null,null,null,null,null,null,null,null,null,null,null,null,null,null,null,null,null,null,null,null,null,null,null,null,null,null,null,null,null,null,null,null,null,null,null,null,null,null,null,null,null,null,null,null,null,null,null,null,null,null,null,null,null,null,null,null,null,null,null,null,null,null,null,null,null,null,null,null,null,null,null,null,null,null,null,null,null,null,null,null,null,null,null,null,null,null,null,null,null,null,null,null,null,null,null,null,null,null,null,null,null,null,null,null,null,null,null,null,null,null,null,null,null,null,null,null,null,null,null,null,null,null,null,null,null,null,null,null,null,null,null,null,null,null,null,null,null,null,null,null,null,null,null,null,null,null,null,null,null,null,null,null,null,null,null,null,null,null,null,null,null,null,null,null,null,null,null,null,null,563,"中央","中　　央"]
[null,null,null,null,null,null,null,null,null,null,null,null,null,null,null,null,null,null,null,null,null,null,null,null,null,null,null,null,null,null,null,null,null,null,null,null,null,null,null,null,null,null,null,null,null,null,null,null,null,null,null,null,null,null,null,null,null,null,null,null,null,null,null,null,null,null,null,null,null,null,null,null,null,null,null,null,null,null,null,null,null,null,null,null,null,null,null,null,null,null,null,null,null,null,null,null,null,null,null,null,null,null,null,null,null,null,null,null,null,null,null,null,null,null,null,null,null,null,null,null,null,null,null,null,null,null,null,null,null,null,null,null,null,null,null,null,null,null,null,null,null,null,null,null,null,null,null,null,null,null,null,null,null,null,null,null,null,null,null,null,null,null,null,null,null,null,null,null,null,null,null,null,null,null,null,null,564,"大阪学芸中等教育","学芸中等"]
[null,null,null,null,null,null,null,null,null,null,null,null,null,null,null,null,null,null,null,null,null,null,null,null,null,null,null,null,null,null,null,null,null,null,null,null,null,null,null,null,null,null,null,null,null,null,null,null,null,null,null,null,null,null,null,null,null,null,null,null,null,null,null,null,null,null,null,null,null,null,null,null,null,null,null,null,null,null,null,null,null,null,null,null,null,null,null,null,null,null,null,null,null,null,null,null,null,null,null,null,null,null,null,null,null,null,null,null,null,null,null,null,null,null,null,null,null,null,null,null,null,null,null,null,null,null,null,null,null,null,null,null,null,null,null,null,null,null,null,null,null,null,null,null,null,null,null,null,null,null,null,null,null,null,null,null,null,null,null,null,null,null,null,null,null,null,null,null,null,null,null,null,null,null,null,null,565,"鶴見商業","鶴見商業"]
[null,null,null,null,null,null,null,null,null,null,null,null,null,null,null,null,null,null,null,null,null,null,null,null,null,null,null,null,null,null,null,null,null,null,null,null,null,null,null,null,null,null,null,null,null,null,null,null,null,null,null,null,null,null,null,null,null,null,null,null,null,null,null,null,null,null,null,null,null,null,null,null,null,null,null,null,null,null,null,null,null,null,null,null,null,null,null,null,null,null,null,null,null,null,null,null,null,null,null,null,null,null,null,null,null,null,null,null,null,null,null,null,null,null,null,null,null,null,null,null,null,null,null,null,null,null,null,null,null,null,null,null,null,null,null,null,null,null,null,null,null,null,null,null,null,null,null,null,null,null,null,null,null,null,null,null,null,null,null,null,null,null,null,null,null,null,null,null,null,null,null,null,null,null,null,null,569,"東大阪大学敬愛","東大敬愛"]
[null,null,null,null,null,null,null,null,null,null,null,null,null,null,null,null,null,null,null,null,null,null,null,null,null,null,null,null,null,null,null,null,null,null,null,null,null,null,null,null,null,null,null,null,null,null,null,null,null,null,null,null,null,null,null,null,null,null,null,null,null,null,null,null,null,null,null,null,null,null,null,null,null,null,null,null,null,null,null,null,null,null,null,null,null,null,null,null,null,null,null,null,null,null,null,null,null,null,null,null,null,null,null,null,null,null,null,null,null,null,null,null,null,null,null,null,null,null,null,null,null,null,null,null,null,null,null,null,null,null,null,null,null,null,null,null,null,null,null,null,null,null,null,null,null,null,null,null,null,null,null,null,null,null,null,null,null,null,null,null,null,null,null,null,null,null,null,null,null,null,null,null,null,null,null,null,570,"科技東朋","科技東朋"]
[null,null,null,null,null,null,null,null,null,null,null,null,null,null,null,null,null,null,null,null,null,null,null,null,null,null,null,null,null,null,null,null,null,null,null,null,null,null,null,null,null,null,null,null,null,null,null,null,null,null,null,null,null,null,null,null,null,null,null,null,null,null,null,null,null,null,null,null,null,null,null,null,null,null,null,null,null,null,null,null,null,null,null,null,null,null,null,null,null,null,null,null,null,null,null,null,null,null,null,null,null,null,null,null,null,null,null,null,null,null,null,null,null,null,null,null,null,null,null,null,null,null,null,null,null,null,null,null,null,null,null,null,null,null,null,null,null,null,null,null,null,null,null,null,null,null,null,null,null,null,null,null,null,null,null,null,null,null,null,null,null,null,null,null,null,null,null,null,null,null,null,null,null,null,null,null,571,"英真学園","英真学園"]
[null,null,null,null,null,null,null,null,null,null,null,null,null,null,null,null,null,null,null,null,null,null,null,null,null,null,null,null,null,null,null,null,null,null,null,null,null,null,null,null,null,null,null,null,null,null,null,null,null,null,null,null,null,null,null,null,null,null,null,null,null,null,null,null,null,null,null,null,null,null,null,null,null,null,null,null,null,null,null,null,null,null,null,null,null,null,null,null,null,null,null,null,null,null,null,null,null,null,null,null,null,null,null,null,null,null,null,null,null,null,null,null,null,null,null,null,null,null,null,null,null,null,null,null,null,null,null,null,null,null,null,null,null,null,null,null,null,null,null,null,null,null,null,null,null,null,null,null,null,null,null,null,null,null,null,null,null,null,null,null,null,null,null,null,null,null,null,null,null,null,null,null,null,null,null,null,572,"山田","山　　田"]
[null,null,null,null,null,null,null,null,null,null,null,null,null,null,null,null,null,null,null,null,null,null,null,null,null,null,null,null,null,null,null,null,null,null,null,null,null,null,null,null,null,null,null,null,null,null,null,null,null,null,null,null,null,null,null,null,null,null,null,null,null,null,null,null,null,null,null,null,null,null,null,null,null,null,null,null,null,null,null,null,null,null,null,null,null,null,null,null,null,null,null,null,null,null,null,null,null,null,null,null,null,null,null,null,null,null,null,null,null,null,null,null,null,null,null,null,null,null,null,null,null,null,null,null,null,null,null,null,null,null,null,null,null,null,null,null,null,null,null,null,null,null,null,null,null,null,null,null,null,null,null,null,null,null,null,null,null,null,null,null,null,null,null,null,null,null,null,null,null,null,null,null,null,null,null,null,573,"向陽台天王寺","光陽台天"]
[null,null,null,null,null,null,null,null,null,null,null,null,null,null,null,null,null,null,null,null,null,null,null,null,null,null,null,null,null,null,null,null,null,null,null,null,null,null,null,null,null,null,null,null,null,null,null,null,null,null,null,null,null,null,null,null,null,null,null,null,null,null,null,null,null,null,null,null,null,null,null,null,null,null,null,null,null,null,null,null,null,null,null,null,null,null,null,null,null,null,null,null,null,null,null,null,null,null,null,null,null,null,null,null,null,null,null,null,null,null,null,null,null,null,null,null,null,null,null,null,null,null,null,null,null,null,null,null,null,null,null,null,null,null,null,null,null,null,null,null,null,null,null,null,null,null,null,null,null,null,null,null,null,null,null,null,null,null,null,null,null,null,null,null,null,null,null,null,null,null,null,null,null,null,null,null,574,"向陽台","光 陽 台"]
[null,null,null,null,null,null,null,null,null,null,null,null,null,null,null,null,null,null,null,null,null,null,null,null,null,null,null,null,null,null,null,null,null,null,null,null,null,null,null,null,null,null,null,null,null,null,null,null,null,null,null,null,null,null,null,null,null,null,null,null,null,null,null,null,null,null,null,null,null,null,null,null,null,null,null,null,null,null,null,null,null,null,null,null,null,null,null,null,null,null,null,null,null,null,null,null,null,null,null,null,null,null,null,null,null,null,null,null,null,null,null,null,null,null,null,null,null,null,null,null,null,null,null,null,null,null,null,null,null,null,null,null,null,null,null,null,null,null,null,null,null,null,null,null,null,null,null,null,null,null,null,null,null,null,null,null,null,null,null,null,null,null,null,null,null,null,null,null,null,null,null,null,null,null,null,null,575,"交野","交　　野"]
[null,null,null,null,null,null,null,null,null,null,null,null,null,null,null,null,null,null,null,null,null,null,null,null,null,null,null,null,null,null,null,null,null,null,null,null,null,null,null,null,null,null,null,null,null,null,null,null,null,null,null,null,null,null,null,null,null,null,null,null,null,null,null,null,null,null,null,null,null,null,null,null,null,null,null,null,null,null,null,null,null,null,null,null,null,null,null,null,null,null,null,null,null,null,null,null,null,null,null,null,null,null,null,null,null,null,null,null,null,null,null,null,null,null,null,null,null,null,null,null,null,null,null,null,null,null,null,null,null,null,null,null,null,null,null,null,null,null,null,null,null,null,null,null,null,null,null,null,null,null,null,null,null,null,null,null,null,null,null,null,null,null,null,null,null,null,null,null,null,null,null,null,null,null,null,null,576,"中央学園","中央学園"]
[null,null,null,null,null,null,null,null,null,null,null,null,null,null,null,null,null,null,null,null,null,null,null,null,null,null,null,null,null,null,null,null,null,null,null,null,null,null,null,null,null,null,null,null,null,null,null,null,null,null,null,null,null,null,null,null,null,null,null,null,null,null,null,null,null,null,null,null,null,null,null,null,null,null,null,null,null,null,null,null,null,null,null,null,null,null,null,null,null,null,null,null,null,null,null,null,null,null,null,null,null,null,null,null,null,null,null,null,null,null,null,null,null,null,null,null,null,null,null,null,null,null,null,null,null,null,null,null,null,null,null,null,null,null,null,null,null,null,null,null,null,null,null,null,null,null,null,null,null,null,null,null,null,null,null,null,null,null,null,null,null,null,null,null,null,null,null,null,null,null,null,null,null,null,null,null,577,"西","　 西　 "]
[null,null,null,null,null,null,null,null,null,null,null,null,null,null,null,null,null,null,null,null,null,null,null,null,null,null,null,null,null,null,null,null,null,null,null,null,null,null,null,null,null,null,null,null,null,null,null,null,null,null,null,null,null,null,null,null,null,null,null,null,null,null,null,null,null,null,null,null,null,null,null,null,null,null,null,null,null,null,null,null,null,null,null,null,null,null,null,null,null,null,null,null,null,null,null,null,null,null,null,null,null,null,null,null,null,null,null,null,null,null,null,null,null,null,null,null,null,null,null,null,null,null,null,null,null,null,null,null,null,null,null,null,null,null,null,null,null,null,null,null,null,null,null,null,null,null,null,null,null,null,null,null,null,null,null,null,null,null,null,null,null,null,null,null,null,null,null,null,null,null,null,null,null,null,null,null,578,"布施","布　　施"]
[null,null,null,null,null,null,null,null,null,null,null,null,null,null,null,null,null,null,null,null,null,null,null,null,null,null,null,null,null,null,null,null,null,null,null,null,null,null,null,null,null,null,null,null,null,null,null,null,null,null,null,null,null,null,null,null,null,null,null,null,null,null,null,null,null,null,null,null,null,null,null,null,null,null,null,null,null,null,null,null,null,null,null,null,null,null,null,null,null,null,null,null,null,null,null,null,null,null,null,null,null,null,null,null,null,null,null,null,null,null,null,null,null,null,null,null,null,null,null,null,null,null,null,null,null,null,null,null,null,null,null,null,null,null,null,null,null,null,null,null,null,null,null,null,null,null,null,null,null,null,null,null,null,null,null,null,null,null,null,null,null,null,null,null,null,null,null,null,null,null,null,null,null,null,null,null,579,"昇陽","昇　　陽"]
[null,null,null,null,null,null,null,null,null,null,null,null,null,null,null,null,null,null,null,null,null,null,null,null,null,null,null,null,null,null,null,null,null,null,null,null,null,null,null,null,null,null,null,null,null,null,null,null,null,null,null,null,null,null,null,null,null,null,null,null,null,null,null,null,null,null,null,null,null,null,null,null,null,null,null,null,null,null,null,null,null,null,null,null,null,null,null,null,null,null,null,null,null,null,null,null,null,null,null,null,null,null,null,null,null,null,null,null,null,null,null,null,null,null,null,null,null,null,null,null,null,null,null,null,null,null,null,null,null,null,null,null,null,null,null,null,null,null,null,null,null,null,null,null,null,null,null,null,null,null,null,null,null,null,null,null,null,null,null,null,null,null,null,null,null,null,null,null,null,null,null,null,null,null,null,null,580,"金光藤蔭","金光藤蔭"]
[null,null,null,null,null,null,null,null,null,null,null,null,null,null,null,null,null,null,null,null,null,null,null,null,null,null,null,null,null,null,null,null,null,null,null,null,null,null,null,null,null,null,null,null,null,null,null,null,null,null,null,null,null,null,null,null,null,null,null,null,null,null,null,null,null,null,null,null,null,null,null,null,null,null,null,null,null,null,null,null,null,null,null,null,null,null,null,null,null,null,null,null,null,null,null,null,null,null,null,null,null,null,null,null,null,null,null,null,null,null,null,null,null,null,null,null,null,null,null,null,null,null,null,null,null,null,null,null,null,null,null,null,null,null,null,null,null,null,null,null,null,null,null,null,null,null,null,null,null,null,null,null,null,null,null,null,null,null,null,null,null,null,null,null,null,null,null,null,null,null,null,null,null,null,null,null,581,"八洲学園","八洲学園"]
[null,null,null,null,null,null,null,null,null,null,null,null,null,null,null,null,null,null,null,null,null,null,null,null,null,null,null,null,null,null,null,null,null,null,null,null,null,null,null,null,null,null,null,null,null,null,null,null,null,null,null,null,null,null,null,null,null,null,null,null,null,null,null,null,null,null,null,null,null,null,null,null,null,null,null,null,null,null,null,null,null,null,null,null,null,null,null,null,null,null,null,null,null,null,null,null,null,null,null,null,null,null,null,null,null,null,null,null,null,null,null,null,null,null,null,null,null,null,null,null,null,null,null,null,null,null,null,null,null,null,null,null,null,null,null,null,null,null,null,null,null,null,null,null,null,null,null,null,null,null,null,null,null,null,null,null,null,null,null,null,null,null,null,null,null,null,null,null,null,null,null,null,null,null,null,null,582,"長尾谷","長 尾 谷"]
[null,null,null,null,null,null,null,null,null,null,null,null,null,null,null,null,null,null,null,null,null,null,null,null,null,null,null,null,null,null,null,null,null,null,null,null,null,null,null,null,null,null,null,null,null,null,null,null,null,null,null,null,null,null,null,null,null,null,null,null,null,null,null,null,null,null,null,null,null,null,null,null,null,null,null,null,null,null,null,null,null,null,null,null,null,null,null,null,null,null,null,null,null,null,null,null,null,null,null,null,null,null,null,null,null,null,null,null,null,null,null,null,null,null,null,null,null,null,null,null,null,null,null,null,null,null,null,null,null,null,null,null,null,null,null,null,null,null,null,null,null,null,null,null,null,null,null,null,null,null,null,null,null,null,null,null,null,null,null,null,null,null,null,null,null,null,null,null,null,null,null,null,null,null,null,null,583,"好文学園女子","好文学園"]
[null,null,null,null,null,null,null,null,null,null,null,null,null,null,null,null,null,null,null,null,null,null,null,null,null,null,null,null,null,null,null,null,null,null,null,null,null,null,null,null,null,null,null,null,null,null,null,null,null,null,null,null,null,null,null,null,null,null,null,null,null,null,null,null,null,null,null,null,null,null,null,null,null,null,null,null,null,null,null,null,null,null,null,null,null,null,null,null,null,null,null,null,null,null,null,null,null,null,null,null,null,null,null,null,null,null,null,null,null,null,null,null,null,null,null,null,null,null,null,null,null,null,null,null,null,null,null,null,null,null,null,null,null,null,null,null,null,null,null,null,null,null,null,null,null,null,null,null,null,null,null,null,null,null,null,null,null,null,null,null,null,null,null,null,null,null,null,null,null,null,null,null,null,null,null,null,584,"羽衣学園","羽衣学園"]
[null,null,null,null,null,null,null,null,null,null,null,null,null,null,null,null,null,null,null,null,null,null,null,null,null,null,null,null,null,null,null,null,null,null,null,null,null,null,null,null,null,null,null,null,null,null,null,null,null,null,null,null,null,null,null,null,null,null,null,null,null,null,null,null,null,null,null,null,null,null,null,null,null,null,null,null,null,null,null,null,null,null,null,null,null,null,null,null,null,null,null,null,null,null,null,null,null,null,null,null,null,null,null,null,null,null,null,null,null,null,null,null,null,null,null,null,null,null,null,null,null,null,null,null,null,null,null,null,null,null,null,null,null,null,null,null,null,null,null,null,null,null,null,null,null,null,null,null,null,null,null,null,null,null,null,null,null,null,null,null,null,null,null,null,null,null,null,null,null,null,null,null,null,null,null,null,585,"国際滝井","国際滝井"]
[null,null,null,null,null,null,null,null,null,null,null,null,null,null,null,null,null,null,null,null,null,null,null,null,null,null,null,null,null,null,null,null,null,null,null,null,null,null,null,null,null,null,null,null,null,null,null,null,null,null,null,null,null,null,null,null,null,null,null,null,null,null,null,null,null,null,null,null,null,null,null,null,null,null,null,null,null,null,null,null,null,null,null,null,null,null,null,null,null,null,null,null,null,null,null,null,null,null,null,null,null,null,null,null,null,null,null,null,null,null,null,null,null,null,null,null,null,null,null,null,null,null,null,null,null,null,null,null,null,null,null,null,null,null,null,null,null,null,null,null,null,null,null,null,null,null,null,null,null,null,null,null,null,null,null,null,null,null,null,null,null,null,null,null,null,null,null,null,null,null,null,null,null,null,null,null,586,"天王寺学館","天王寺学"]
[null,null,null,null,null,null,null,null,null,null,null,null,null,null,null,null,null,null,null,null,null,null,null,null,null,null,null,null,null,null,null,null,null,null,null,null,null,null,null,null,null,null,null,null,null,null,null,null,null,null,null,null,null,null,null,null,null,null,null,null,null,null,null,null,null,null,null,null,null,null,null,null,null,null,null,null,null,null,null,null,null,null,null,null,null,null,null,null,null,null,null,null,null,null,null,null,null,null,null,null,null,null,null,null,null,null,null,null,null,null,null,null,null,null,null,null,null,null,null,null,null,null,null,null,null,null,null,null,null,null,null,null,null,null,null,null,null,null,null,null,null,null,null,null,null,null,null,null,null,null,null,null,null,null,null,null,null,null,null,null,null,null,null,null,null,null,null,null,null,null,null,null,null,null,null,null,587,"住吉商業","住吉商業"]
[null,null,null,null,null,null,null,null,null,null,null,null,null,null,null,null,null,null,null,null,null,null,null,null,null,null,null,null,null,null,null,null,null,null,null,null,null,null,null,null,null,null,null,null,null,null,null,null,null,null,null,null,null,null,null,null,null,null,null,null,null,null,null,null,null,null,null,null,null,null,null,null,null,null,null,null,null,null,null,null,null,null,null,null,null,null,null,null,null,null,null,null,null,null,null,null,null,null,null,null,null,null,null,null,null,null,null,null,null,null,null,null,null,null,null,null,null,null,null,null,null,null,null,null,null,null,null,null,null,null,null,null,null,null,null,null,null,null,null,null,null,null,null,null,null,null,null,null,null,null,null,null,null,null,null,null,null,null,null,null,null,null,null,null,null,null,null,null,null,null,null,null,null,null,null,null,588,"大阪信愛女学院","大阪信愛"]
[null,null,null,null,null,null,null,null,null,null,null,null,null,null,null,null,null,null,null,null,null,null,null,null,null,null,null,null,null,null,null,null,null,null,null,null,null,null,null,null,null,null,null,null,null,null,null,null,null,null,null,null,null,null,null,null,null,null,null,null,null,null,null,null,null,null,null,null,null,null,null,null,null,null,null,null,null,null,null,null,null,null,null,null,null,null,null,null,null,null,null,null,null,null,null,null,null,null,null,null,null,null,null,null,null,null,null,null,null,null,null,null,null,null,null,null,null,null,null,null,null,null,null,null,null,null,null,null,null,null,null,null,null,null,null,null,null,null,null,null,null,null,null,null,null,null,null,null,null,null,null,null,null,null,null,null,null,null,null,null,null,null,null,null,null,null,null,null,null,null,null,null,null,null,null,null,589,"クラーク国際","クラーク"]
[null,null,null,null,null,null,null,null,null,null,null,null,null,null,null,null,null,null,null,null,null,null,null,null,null,null,null,null,null,null,null,null,null,null,null,null,null,null,null,null,null,null,null,null,null,null,null,null,null,null,null,null,null,null,null,null,null,null,null,null,null,null,null,null,null,null,null,null,null,null,null,null,null,null,null,null,null,null,null,null,null,null,null,null,null,null,null,null,null,null,null,null,null,null,null,null,null,null,null,null,null,null,null,null,null,null,null,null,null,null,null,null,null,null,null,null,null,null,null,null,null,null,null,null,null,null,null,null,null,null,null,null,null,null,null,null,null,null,null,null,null,null,null,null,null,null,null,null,null,null,null,null,null,null,null,null,null,null,null,null,null,null,null,null,null,null,null,null,null,null,null,null,null,null,null,null,590,"ヒュ-マンアカデミー","ヒュ-マン"]
[null,null,null,null,null,null,null,null,null,null,null,null,null,null,null,null,null,null,null,null,null,null,null,null,null,null,null,null,null,null,null,null,null,null,null,null,null,null,null,null,null,null,null,null,null,null,null,null,null,null,null,null,null,null,null,null,null,null,null,null,null,null,null,null,null,null,null,null,null,null,null,null,null,null,null,null,null,null,null,null,null,null,null,null,null,null,null,null,null,null,null,null,null,null,null,null,null,null,null,null,null,null,null,null,null,null,null,null,null,null,null,null,null,null,null,null,null,null,null,null,null,null,null,null,null,null,null,null,null,null,null,null,null,null,null,null,null,null,null,null,null,null,null,null,null,null,null,null,null,null,null,null,null,null,null,null,null,null,null,null,null,null,null,null,null,null,null,null,null,null,null,null,null,null,null,null,591,"四條畷学園","四條畷学"]
[null,null,null,null,null,null,null,null,null,null,null,null,null,null,null,null,null,null,null,null,null,null,null,null,null,null,null,null,null,null,null,null,null,null,null,null,null,null,null,null,null,null,null,null,null,null,null,null,null,null,null,null,null,null,null,null,null,null,null,null,null,null,null,null,null,null,null,null,null,null,null,null,null,null,null,null,null,null,null,null,null,null,null,null,null,null,null,null,null,null,null,null,null,null,null,null,null,null,null,null,null,null,null,null,null,null,null,null,null,null,null,null,null,null,null,null,null,null,null,null,null,null,null,null,null,null,null,null,null,null,null,null,null,null,null,null,null,null,null,null,null,null,null,null,null,null,null,null,null,null,null,null,null,null,null,null,null,null,null,null,null,null,null,null,null,null,null,null,null,null,null,null,null,null,null,null,592,"YMCA学院","ＹＭＣＡ"]
[null,null,null,null,null,null,null,null,null,null,null,null,null,null,null,null,null,null,null,null,null,null,null,null,null,null,null,null,null,null,null,null,null,null,null,null,null,null,null,null,null,null,null,null,null,null,null,null,null,null,null,null,null,null,null,null,null,null,null,null,null,null,null,null,null,null,null,null,null,null,null,null,null,null,null,null,null,null,null,null,null,null,null,null,null,null,null,null,null,null,null,null,null,null,null,null,null,null,null,null,null,null,null,null,null,null,null,null,null,null,null,null,null,null,null,null,null,null,null,null,null,null,null,null,null,null,null,null,null,null,null,null,null,null,null,null,null,null,null,null,null,null,null,null,null,null,null,null,null,null,null,null,null,null,null,null,null,null,null,null,null,null,null,null,null,null,null,null,null,null,null,null,null,null,null,null,593,"香ケ丘リベルテ","リベルテ"]
[null,null,null,null,null,null,null,null,null,null,null,null,null,null,null,null,null,null,null,null,null,null,null,null,null,null,null,null,null,null,null,null,null,null,null,null,null,null,null,null,null,null,null,null,null,null,null,null,null,null,null,null,null,null,null,null,null,null,null,null,null,null,null,null,null,null,null,null,null,null,null,null,null,null,null,null,null,null,null,null,null,null,null,null,null,null,null,null,null,null,null,null,null,null,null,null,null,null,null,null,null,null,null,null,null,null,null,null,null,null,null,null,null,null,null,null,null,null,null,null,null,null,null,null,null,null,null,null,null,null,null,null,null,null,null,null,null,null,null,null,null,null,null,null,null,null,null,null,null,null,null,null,null,null,null,null,null,null,null,null,null,null,null,null,null,null,null,null,null,null,null,null,null,null,null,null,594,"鹿島学園","鹿島学園"]
[null,null,null,null,null,null,null,null,null,null,null,null,null,null,null,null,null,null,null,null,null,null,null,null,null,null,null,null,null,null,null,null,null,null,null,null,null,null,null,null,null,null,null,null,null,null,null,null,null,null,null,null,null,null,null,null,null,null,null,null,null,null,null,null,null,null,null,null,null,null,null,null,null,null,null,null,null,null,null,null,null,null,null,null,null,null,null,null,null,null,null,null,null,null,null,null,null,null,null,null,null,null,null,null,null,null,null,null,null,null,null,null,null,null,null,null,null,null,null,null,null,null,null,null,null,null,null,null,null,null,null,null,null,null,null,null,null,null,null,null,null,null,null,null,null,null,null,null,null,null,null,null,null,null,null,null,null,null,null,null,null,null,null,null,null,null,null,null,null,null,null,null,null,null,null,null,597,"大阪朝鮮高級","朝鮮高級"]
[null,null,null,null,null,null,null,null,null,null,null,null,null,null,null,null,null,null,null,null,null,null,null,null,null,null,null,null,null,null,null,null,null,null,null,null,null,null,null,null,null,null,null,null,null,null,null,null,null,null,null,null,null,null,null,null,null,null,null,null,null,null,null,null,null,null,null,null,null,null,null,null,null,null,null,null,null,null,null,null,null,null,null,null,null,null,null,null,null,null,null,null,null,null,null,null,null,null,null,null,null,null,null,null,null,null,null,null,null,null,null,null,null,null,null,null,null,null,null,null,null,null,null,null,null,null,null,null,null,null,null,null,null,null,null,null,null,null,null,null,null,null,null,null,null,null,null,null,null,null,null,null,null,null,null,null,null,null,null,null,null,null,null,null,null,null,null,null,null,null,null,null,null,null,null,null,598,"大阪府立大工業高専","府大工高"]
[]
[]
[]
[]
[]
[]
[]
[]
[]
[]
[]
[]
[]
[]
[]
[]
[]
[]
[]
[]
[]
[]
[]
[]
[]
[]
[]
[]
[]
[]
[]
[]
[]
[]
[]
[]
[]
[]
[]
[]
[]
[]
[]
[]
[]
[]
[]
[]
[]
[]
[]
[]
[]
[]
[]
[]
[]
[]
[]
[]
[]
[]
[]
[]
[]
[]
[]
[]
[]
[]
[]
[]
[]
[]
[]
[]
[]
[]
[]
[]
[]
[]
[]
[]
[]
[]
[]
[]
[]
[]
[]
[]
["個　人　試　合　申　込　書"]
[]
[null,null,"※抽選番号",null,null,null,null,null,null,null,null,null,null,null,null,null,null,null,null,null,null,"kg級",null,null,null,"第３６回全国高等学校柔道選手権大会大阪府予選会（一次予選）"]
[]
[null,null,"学校番号",null,null,null,"学　　　　校　　　　名",null,null,null,null,null,null,null,null,null,null,null,null,null,null,null,null,null,null,null,null,null,null,null,null,null,null,null,null,null,null,null,"監督名",null,null,null,null,null,null,null,null,null,null,null,null,"校長名"]
[null,null,null,null,null,null,{"$f":"#REF!","v":{"$error":"#REF!"}},null,null,null,null,null,null,null,null,null,null,null,null,null,null,null,null,null,null,null,null,"高等学校",null,null,null,null,null,null,null,null,null,null,{"$f":"#REF!","v":{"$error":"#REF!"}},null,null,null,null,null,null,null,null,null,null,"印",null,{"$f":"#REF!","v":{"$error":"#REF!"}},null,null,null,null,null,null,null,null,null,null,null,"印"]
[]
[]
[null,null,"ふりがな",null,null,null,null,null,null,null,null,null,null,null,null,null,null,null,null,null,null,null,null,null,null,null,null,null,null,null,null,null,null,null,null,null,null,null,"学年",null,null,"段位",null,null,"体重（kg）",null,null,null,null,"身長（cm）",null,null,null,null,"生年月日（西暦）"]
[null,null,"選手名",null,null,null,"（姓）",null,null,null,null,null,null,null,null,null,null,null,null,null,null,null,"（名）",null,null,null,null,null,null,null,null,null,null,null,null,null,null,null,null,null,null,null,null,null,null,null,null,null,null,null,null,null,null,null,null,null,null,null,"・",null,null,null,"・"]
[]
[]
[null,null,"出場選手が以下の項目に該当するときは入力してください"]
[null,null,"インターハイ予選特別枠",null,null,null,null,null,null,null,null,null,null,null,null,null,"（",null,null,null,null,null,"）kg級",null,null,null,null,null,"（",null,null,null,null,null,"）位",null,null,null,"強化選手選考会2次選考（9/5）選出者"]
[]
[null,null,"大阪総体特別枠",null,null,null,null,null,null,null,null,null,null,null,null,null,"（",null,null,null,null,null,"）kg級",null,null,null,null,null,"（",null,null,null,null,null,"）位",null,null,null,"（",null,null,null,null,null,null,null,null,null,null,null,null,"）ランク"]
[]
[]
[]
[null,null,null,null,null,null,null,null,null,null,null,null,null,null,null,null,null,null,null,null,null,null,null,null,null,null,null,null,"（","ｷ　ﾘ　ﾄ　ﾘ",null,null,null,null,null,null,null,"）"]
[]
[]
[]
["個　人　試　合　申　込　書"]
[]
[null,null,"※抽選番号",null,null,null,null,null,null,null,null,null,null,null,null,null,null,null,null,null,null,"kg級",null,null,null,"第３６回全国高等学校柔道選手権大会大阪府予選会（一次予選）"]
[]
[null,null,"学校番号",null,null,null,"学　　　　校　　　　名",null,null,null,null,null,null,null,null,null,null,null,null,null,null,null,null,null,null,null,null,null,null,null,null,null,null,null,null,null,null,null,"監督名",null,null,null,null,null,null,null,null,null,null,null,null,"校長名"]
[null,null,null,null,null,null,{"$f":"#REF!","v":{"$error":"#REF!"}},null,null,null,null,null,null,null,null,null,null,null,null,null,null,null,null,null,null,null,null,"高等学校",null,null,null,null,null,null,null,null,null,null,{"$f":"#REF!","v":{"$error":"#REF!"}},null,null,null,null,null,null,null,null,null,null,"印",null,{"$f":"#REF!","v":{"$error":"#REF!"}},null,null,null,null,null,null,null,null,null,null,null,"印"]
[]
[]
[null,null,"ふりがな",null,null,null,null,null,null,null,null,null,null,null,null,null,null,null,null,null,null,null,null,null,null,null,null,null,null,null,null,null,null,null,null,null,null,null,"学年",null,null,"段位",null,null,"体重（kg）",null,null,null,null,"身長（cm）",null,null,null,null,"生年月日（西暦）"]
[null,null,"選手名",null,null,null,"（姓）",null,null,null,null,null,null,null,null,null,null,null,null,null,null,null,"（名）",null,null,null,null,null,null,null,null,null,null,null,null,null,null,null,null,null,null,null,null,null,null,null,null,null,null,null,null,null,null,null,null,null,null,null,"・",null,null,null,"・"]
[]
[]
[null,null,"出場選手が以下の項目に該当するときは入力してください"]
[null,null,"インターハイ予選特別枠",null,null,null,null,null,null,null,null,null,null,null,null,null,"（",null,null,null,null,null,"）kg級",null,null,null,null,null,"（",null,null,null,null,null,"）位",null,null,null,"強化選手選考会2次選考（9/5）選出者"]
[]
[null,null,"大阪総体特別枠",null,null,null,null,null,null,null,null,null,null,null,null,null,"（",null,null,null,null,null,"）kg級",null,null,null,null,null,"（",null,null,null,null,null,"）位",null,null,null,"（",null,null,null,null,null,null,null,null,null,null,null,null,"）ランク"]
[]
[]
[]
[null,null,null,null,null,null,null,null,null,null,null,null,null,null,null,null,null,null,null,null,null,null,null,null,null,null,null,null,"（","ｷ　ﾘ　ﾄ　ﾘ",null,null,null,null,null,null,null,"）"]
[]
[]
[]
["個　人　試　合　申　込　書"]
[]
[null,null,"※抽選番号",null,null,null,null,null,null,null,null,null,null,null,null,null,null,null,null,null,null,"kg級",null,null,null,"第３６回全国高等学校柔道選手権大会大阪府予選会（一次予選）"]
[]
[null,null,"学校番号",null,null,null,"学　　　　校　　　　名",null,null,null,null,null,null,null,null,null,null,null,null,null,null,null,null,null,null,null,null,null,null,null,null,null,null,null,null,null,null,null,"監督名",null,null,null,null,null,null,null,null,null,null,null,null,"校長名"]
[null,null,null,null,null,null,{"$f":"#REF!","v":{"$error":"#REF!"}},null,null,null,null,null,null,null,null,null,null,null,null,null,null,null,null,null,null,null,null,"高等学校",null,null,null,null,null,null,null,null,null,null,{"$f":"#REF!","v":{"$error":"#REF!"}},null,null,null,null,null,null,null,null,null,null,"印",null,{"$f":"#REF!","v":{"$error":"#REF!"}},null,null,null,null,null,null,null,null,null,null,null,"印"]
[]
[]
[null,null,"ふりがな",null,null,null,null,null,null,null,null,null,null,null,null,null,null,null,null,null,null,null,null,null,null,null,null,null,null,null,null,null,null,null,null,null,null,null,"学年",null,null,"段位",null,null,"体重（kg）",null,null,null,null,"身長（cm）",null,null,null,null,"生年月日（西暦）"]
[null,null,"選手名",null,null,null,"（姓）",null,null,null,null,null,null,null,null,null,null,null,null,null,null,null,"（名）",null,null,null,null,null,null,null,null,null,null,null,null,null,null,null,null,null,null,null,null,null,null,null,null,null,null,null,null,null,null,null,null,null,null,null,"・",null,null,null,"・"]
[]
[]
[null,null,"出場選手が以下の項目に該当するときは入力してください"]
[null,null,"インターハイ予選特別枠",null,null,null,null,null,null,null,null,null,null,null,null,null,"（",null,null,null,null,null,"）kg級",null,null,null,null,null,"（",null,null,null,null,null,"）位",null,null,null,"強化選手選考会2次選考（9/5）選出者"]
[]
[null,null,"大阪総体特別枠",null,null,null,null,null,null,null,null,null,null,null,null,null,"（",null,null,null,null,null,"）kg級",null,null,null,null,null,"（",null,null,null,null,null,"）位",null,null,null,"（",null,null,null,null,null,null,null,null,null,null,null,null,"）ランク"]
[]
[]
[]
[null,null,null,null,null,null,null,null,null,null,null,null,null,null,null,null,null,null,null,null,null,null,null,null,null,null,null,null,"（","ｷ　ﾘ　ﾄ　ﾘ",null,null,null,null,null,null,null,"）"]
[]
[]
[]
["個　人　試　合　申　込　書"]
[]
[null,null,"※抽選番号",null,null,null,null,null,null,null,null,null,null,null,null,null,null,null,null,null,null,"kg級",null,null,null,"第３６回全国高等学校柔道選手権大会大阪府予選会（一次予選）"]
[]
[null,null,"学校番号",null,null,null,"学　　　　校　　　　名",null,null,null,null,null,null,null,null,null,null,null,null,null,null,null,null,null,null,null,null,null,null,null,null,null,null,null,null,null,null,null,"監督名",null,null,null,null,null,null,null,null,null,null,null,null,"校長名"]
[null,null,null,null,null,null,{"$f":"#REF!","v":{"$error":"#REF!"}},null,null,null,null,null,null,null,null,null,null,null,null,null,null,null,null,null,null,null,null,"高等学校",null,null,null,null,null,null,null,null,null,null,{"$f":"#REF!","v":{"$error":"#REF!"}},null,null,null,null,null,null,null,null,null,null,"印",null,{"$f":"#REF!","v":{"$error":"#REF!"}},null,null,null,null,null,null,null,null,null,null,null,"印"]
[]
[]
[null,null,"ふりがな",null,null,null,null,null,null,null,null,null,null,null,null,null,null,null,null,null,null,null,null,null,null,null,null,null,null,null,null,null,null,null,null,null,null,null,"学年",null,null,"段位",null,null,"体重（kg）",null,null,null,null,"身長（cm）",null,null,null,null,"生年月日（西暦）"]
[null,null,"選手名",null,null,null,"（姓）",null,null,null,null,null,null,null,null,null,null,null,null,null,null,null,"（名）",null,null,null,null,null,null,null,null,null,null,null,null,null,null,null,null,null,null,null,null,null,null,null,null,null,null,null,null,null,null,null,null,null,null,null,"・",null,null,null,"・"]
[]
[]
[null,null,"出場選手が以下の項目に該当するときは入力してください"]
[null,null,"インターハイ予選特別枠",null,null,null,null,null,null,null,null,null,null,null,null,null,"（",null,null,null,null,null,"）kg級",null,null,null,null,null,"（",null,null,null,null,null,"）位",null,null,null,"強化選手選考会2次選考（9/5）選出者"]
[]
[null,null,"大阪総体特別枠",null,null,null,null,null,null,null,null,null,null,null,null,null,"（",null,null,null,null,null,"）kg級",null,null,null,null,null,"（",null,null,null,null,null,"）位",null,null,null,"（",null,null,null,null,null,null,null,null,null,null,null,null,"）ランク"]
[]
[]
[]
[null,null,null,null,null,null,null,null,null,null,null,null,null,null,null,null,null,null,null,null,null,null,null,null,null,null,null,null,"（","ｷ　ﾘ　ﾄ　ﾘ",null,null,null,null,null,null,null,"）"]
[]
[]
[]
["個　人　試　合　申　込　書"]
[]
[null,null,"※抽選番号",null,null,null,null,null,null,null,null,null,null,null,null,null,null,null,null,null,null,"kg級",null,null,null,"第３６回全国高等学校柔道選手権大会大阪府予選会（一次予選）"]
[]
[null,null,"学校番号",null,null,null,"学　　　　校　　　　名",null,null,null,null,null,null,null,null,null,null,null,null,null,null,null,null,null,null,null,null,null,null,null,null,null,null,null,null,null,null,null,"監督名",null,null,null,null,null,null,null,null,null,null,null,null,"校長名"]
[null,null,null,null,null,null,{"$f":"#REF!","v":{"$error":"#REF!"}},null,null,null,null,null,null,null,null,null,null,null,null,null,null,null,null,null,null,null,null,"高等学校",null,null,null,null,null,null,null,null,null,null,{"$f":"#REF!","v":{"$error":"#REF!"}},null,null,null,null,null,null,null,null,null,null,"印",null,{"$f":"#REF!","v":{"$error":"#REF!"}},null,null,null,null,null,null,null,null,null,null,null,"印"]
[]
[]
[null,null,"ふりがな",null,null,null,null,null,null,null,null,null,null,null,null,null,null,null,null,null,null,null,null,null,null,null,null,null,null,null,null,null,null,null,null,null,null,null,"学年",null,null,"段位",null,null,"体重（kg）",null,null,null,null,"身長（cm）",null,null,null,null,"生年月日（西暦）"]
[null,null,"選手名",null,null,null,"（姓）",null,null,null,null,null,null,null,null,null,null,null,null,null,null,null,"（名）",null,null,null,null,null,null,null,null,null,null,null,null,null,null,null,null,null,null,null,null,null,null,null,null,null,null,null,null,null,null,null,null,null,null,null,"・",null,null,null,"・"]
[]
[]
[null,null,"出場選手が以下の項目に該当するときは入力してください"]
[null,null,"インターハイ予選特別枠",null,null,null,null,null,null,null,null,null,null,null,null,null,"（",null,null,null,null,null,"）kg級",null,null,null,null,null,"（",null,null,null,null,null,"）位",null,null,null,"強化選手選考会2次選考（9/5）選出者"]
[]
[null,null,"大阪総体特別枠",null,null,null,null,null,null,null,null,null,null,null,null,null,"（",null,null,null,null,null,"）kg級",null,null,null,null,null,"（",null,null,null,null,null,"）位",null,null,null,"（",null,null,null,null,null,null,null,null,null,null,null,null,"）ランク"]
[]
[]
[]
[null,null,null,null,null,null,null,null,null,null,null,null,null,null,null,null,null,null,null,null,null,null,null,null,null,null,null,null,"（","ｷ　ﾘ　ﾄ　ﾘ",null,null,null,null,null,null,null,"）"]
[]
[]
[]
["個　人　試　合　申　込　書"]
[]
[null,null,"※抽選番号",null,null,null,null,null,null,null,null,null,null,null,null,null,null,null,null,null,null,"kg級",null,null,null,"第３６回全国高等学校柔道選手権大会大阪府予選会（一次予選）"]
[]
[null,null,"学校番号",null,null,null,"学　　　　校　　　　名",null,null,null,null,null,null,null,null,null,null,null,null,null,null,null,null,null,null,null,null,null,null,null,null,null,null,null,null,null,null,null,"監督名",null,null,null,null,null,null,null,null,null,null,null,null,"校長名"]
[null,null,null,null,null,null,{"$f":"#REF!","v":{"$error":"#REF!"}},null,null,null,null,null,null,null,null,null,null,null,null,null,null,null,null,null,null,null,null,"高等学校",null,null,null,null,null,null,null,null,null,null,{"$f":"#REF!","v":{"$error":"#REF!"}},null,null,null,null,null,null,null,null,null,null,"印",null,{"$f":"#REF!","v":{"$error":"#REF!"}},null,null,null,null,null,null,null,null,null,null,null,"印"]
[]
[]
[null,null,"ふりがな",null,null,null,null,null,null,null,null,null,null,null,null,null,null,null,null,null,null,null,null,null,null,null,null,null,null,null,null,null,null,null,null,null,null,null,"学年",null,null,"段位",null,null,"体重（kg）",null,null,null,null,"身長（cm）",null,null,null,null,"生年月日（西暦）"]
[null,null,"選手名",null,null,null,"（姓）",null,null,null,null,null,null,null,null,null,null,null,null,null,null,null,"（名）",null,null,null,null,null,null,null,null,null,null,null,null,null,null,null,null,null,null,null,null,null,null,null,null,null,null,null,null,null,null,null,null,null,null,null,"・",null,null,null,"・"]
[]
[]
[null,null,"出場選手が以下の項目に該当するときは入力してください"]
[null,null,"インターハイ予選特別枠",null,null,null,null,null,null,null,null,null,null,null,null,null,"（",null,null,null,null,null,"）kg級",null,null,null,null,null,"（",null,null,null,null,null,"）位",null,null,null,"強化選手選考会2次選考（9/5）選出者"]
[]
[null,null,"大阪総体特別枠",null,null,null,null,null,null,null,null,null,null,null,null,null,"（",null,null,null,null,null,"）kg級",null,null,null,null,null,"（",null,null,null,null,null,"）位",null,null,null,"（",null,null,null,null,null,null,null,null,null,null,null,null,"）ランク"]
[]
[]
[]
[null,null,null,null,null,null,null,null,null,null,null,null,null,null,null,null,null,null,null,null,null,null,null,null,null,null,null,null,"（","ｷ　ﾘ　ﾄ　ﾘ",null,null,null,null,null,null,null,"）"]
[]
[]
[]
["個　人　試　合　申　込　書"]
[]
[null,null,"※抽選番号",null,null,null,null,null,null,null,null,null,null,null,null,null,null,null,null,null,null,"kg級",null,null,null,"第３６回全国高等学校柔道選手権大会大阪府予選会（一次予選）"]
[]
[null,null,"学校番号",null,null,null,"学　　　　校　　　　名",null,null,null,null,null,null,null,null,null,null,null,null,null,null,null,null,null,null,null,null,null,null,null,null,null,null,null,null,null,null,null,"監督名",null,null,null,null,null,null,null,null,null,null,null,null,"校長名"]
[null,null,null,null,null,null,{"$f":"#REF!","v":{"$error":"#REF!"}},null,null,null,null,null,null,null,null,null,null,null,null,null,null,null,null,null,null,null,null,"高等学校",null,null,null,null,null,null,null,null,null,null,{"$f":"#REF!","v":{"$error":"#REF!"}},null,null,null,null,null,null,null,null,null,null,"印",null,{"$f":"#REF!","v":{"$error":"#REF!"}},null,null,null,null,null,null,null,null,null,null,null,"印"]
[]
[]
[null,null,"ふりがな",null,null,null,null,null,null,null,null,null,null,null,null,null,null,null,null,null,null,null,null,null,null,null,null,null,null,null,null,null,null,null,null,null,null,null,"学年",null,null,"段位",null,null,"体重（kg）",null,null,null,null,"身長（cm）",null,null,null,null,"生年月日（西暦）"]
[null,null,"選手名",null,null,null,"（姓）",null,null,null,null,null,null,null,null,null,null,null,null,null,null,null,"（名）",null,null,null,null,null,null,null,null,null,null,null,null,null,null,null,null,null,null,null,null,null,null,null,null,null,null,null,null,null,null,null,null,null,null,null,"・",null,null,null,"・"]
[]
[]
[null,null,"出場選手が以下の項目に該当するときは入力してください"]
[null,null,"インターハイ予選特別枠",null,null,null,null,null,null,null,null,null,null,null,null,null,"（",null,null,null,null,null,"）kg級",null,null,null,null,null,"（",null,null,null,null,null,"）位",null,null,null,"強化選手選考会2次選考（9/5）選出者"]
[]
[null,null,"大阪総体特別枠",null,null,null,null,null,null,null,null,null,null,null,null,null,"（",null,null,null,null,null,"）kg級",null,null,null,null,null,"（",null,null,null,null,null,"）位",null,null,null,"（",null,null,null,null,null,null,null,null,null,null,null,null,"）ランク"]
[]
[]
[]
[null,null,null,null,null,null,null,null,null,null,null,null,null,null,null,null,null,null,null,null,null,null,null,null,null,null,null,null,"（","ｷ　ﾘ　ﾄ　ﾘ",null,null,null,null,null,null,null,"）"]
[]
[]
[]
["個　人　試　合　申　込　書"]
[]
[null,null,"※抽選番号",null,null,null,null,null,null,null,null,null,null,null,null,null,null,null,null,null,null,"kg級",null,null,null,"第３６回全国高等学校柔道選手権大会大阪府予選会（一次予選）"]
[]
[null,null,"学校番号",null,null,null,"学　　　　校　　　　名",null,null,null,null,null,null,null,null,null,null,null,null,null,null,null,null,null,null,null,null,null,null,null,null,null,null,null,null,null,null,null,"監督名",null,null,null,null,null,null,null,null,null,null,null,null,"校長名"]
[null,null,null,null,null,null,{"$f":"#REF!","v":{"$error":"#REF!"}},null,null,null,null,null,null,null,null,null,null,null,null,null,null,null,null,null,null,null,null,"高等学校",null,null,null,null,null,null,null,null,null,null,{"$f":"#REF!","v":{"$error":"#REF!"}},null,null,null,null,null,null,null,null,null,null,"印",null,{"$f":"#REF!","v":{"$error":"#REF!"}},null,null,null,null,null,null,null,null,null,null,null,"印"]
[]
[]
[null,null,"ふりがな",null,null,null,null,null,null,null,null,null,null,null,null,null,null,null,null,null,null,null,null,null,null,null,null,null,null,null,null,null,null,null,null,null,null,null,"学年",null,null,"段位",null,null,"体重（kg）",null,null,null,null,"身長（cm）",null,null,null,null,"生年月日（西暦）"]
[null,null,"選手名",null,null,null,"（姓）",null,null,null,null,null,null,null,null,null,null,null,null,null,null,null,"（名）",null,null,null,null,null,null,null,null,null,null,null,null,null,null,null,null,null,null,null,null,null,null,null,null,null,null,null,null,null,null,null,null,null,null,null,"・",null,null,null,"・"]
[]
[]
[null,null,"出場選手が以下の項目に該当するときは入力してください"]
[null,null,"インターハイ予選特別枠",null,null,null,null,null,null,null,null,null,null,null,null,null,"（",null,null,null,null,null,"）kg級",null,null,null,null,null,"（",null,null,null,null,null,"）位",null,null,null,"強化選手選考会2次選考（9/5）選出者"]
[]
[null,null,"大阪総体特別枠",null,null,null,null,null,null,null,null,null,null,null,null,null,"（",null,null,null,null,null,"）kg級",null,null,null,null,null,"（",null,null,null,null,null,"）位",null,null,null,"（",null,null,null,null,null,null,null,null,null,null,null,null,"）ランク"]
[]
[]
[]
[null,null,null,null,null,null,null,null,null,null,null,null,null,null,null,null,null,null,null,null,null,null,null,null,null,null,null,null,"（","ｷ　ﾘ　ﾄ　ﾘ",null,null,null,null,null,null,null,"）"]
[]
[]
[]
["個　人　試　合　申　込　書"]
[]
[null,null,"※抽選番号",null,null,null,null,null,null,null,null,null,null,null,null,null,null,null,null,null,null,"kg級",null,null,null,"第３６回全国高等学校柔道選手権大会大阪府予選会（一次予選）"]
[]
[null,null,"学校番号",null,null,null,"学　　　　校　　　　名",null,null,null,null,null,null,null,null,null,null,null,null,null,null,null,null,null,null,null,null,null,null,null,null,null,null,null,null,null,null,null,"監督名",null,null,null,null,null,null,null,null,null,null,null,null,"校長名"]
[null,null,null,null,null,null,{"$f":"#REF!","v":{"$error":"#REF!"}},null,null,null,null,null,null,null,null,null,null,null,null,null,null,null,null,null,null,null,null,"高等学校",null,null,null,null,null,null,null,null,null,null,{"$f":"#REF!","v":{"$error":"#REF!"}},null,null,null,null,null,null,null,null,null,null,"印",null,{"$f":"#REF!","v":{"$error":"#REF!"}},null,null,null,null,null,null,null,null,null,null,null,"印"]
[]
[]
[null,null,"ふりがな",null,null,null,null,null,null,null,null,null,null,null,null,null,null,null,null,null,null,null,null,null,null,null,null,null,null,null,null,null,null,null,null,null,null,null,"学年",null,null,"段位",null,null,"体重（kg）",null,null,null,null,"身長（cm）",null,null,null,null,"生年月日（西暦）"]
[null,null,"選手名",null,null,null,"（姓）",null,null,null,null,null,null,null,null,null,null,null,null,null,null,null,"（名）",null,null,null,null,null,null,null,null,null,null,null,null,null,null,null,null,null,null,null,null,null,null,null,null,null,null,null,null,null,null,null,null,null,null,null,"・",null,null,null,"・"]
[]
[]
[null,null,"出場選手が以下の項目に該当するときは入力してください"]
[null,null,"インターハイ予選特別枠",null,null,null,null,null,null,null,null,null,null,null,null,null,"（",null,null,null,null,null,"）kg級",null,null,null,null,null,"（",null,null,null,null,null,"）位",null,null,null,"強化選手選考会2次選考（9/5）選出者"]
[]
[null,null,"大阪総体特別枠",null,null,null,null,null,null,null,null,null,null,null,null,null,"（",null,null,null,null,null,"）kg級",null,null,null,null,null,"（",null,null,null,null,null,"）位",null,null,null,"（",null,null,null,null,null,null,null,null,null,null,null,null,"）ランク"]
[]
[]
[]
[null,null,null,null,null,null,null,null,null,null,null,null,null,null,null,null,null,null,null,null,null,null,null,null,null,null,null,null,"（","ｷ　ﾘ　ﾄ　ﾘ",null,null,null,null,null,null,null,"）"]
[]
[]
[]
["個　人　試　合　申　込　書"]
[]
[null,null,"※抽選番号",null,null,null,null,null,null,null,null,null,null,null,null,null,null,null,null,null,null,"kg級",null,null,null,"第３６回全国高等学校柔道選手権大会大阪府予選会（一次予選）"]
[]
[null,null,"学校番号",null,null,null,"学　　　　校　　　　名",null,null,null,null,null,null,null,null,null,null,null,null,null,null,null,null,null,null,null,null,null,null,null,null,null,null,null,null,null,null,null,"監督名",null,null,null,null,null,null,null,null,null,null,null,null,"校長名"]
[null,null,null,null,null,null,{"$f":"#REF!","v":{"$error":"#REF!"}},null,null,null,null,null,null,null,null,null,null,null,null,null,null,null,null,null,null,null,null,"高等学校",null,null,null,null,null,null,null,null,null,null,{"$f":"#REF!","v":{"$error":"#REF!"}},null,null,null,null,null,null,null,null,null,null,"印",null,{"$f":"#REF!","v":{"$error":"#REF!"}},null,null,null,null,null,null,null,null,null,null,null,"印"]
[]
[]
[null,null,"ふりがな",null,null,null,null,null,null,null,null,null,null,null,null,null,null,null,null,null,null,null,null,null,null,null,null,null,null,null,null,null,null,null,null,null,null,null,"学年",null,null,"段位",null,null,"体重（kg）",null,null,null,null,"身長（cm）",null,null,null,null,"生年月日（西暦）"]
[null,null,"選手名",null,null,null,"（姓）",null,null,null,null,null,null,null,null,null,null,null,null,null,null,null,"（名）",null,null,null,null,null,null,null,null,null,null,null,null,null,null,null,null,null,null,null,null,null,null,null,null,null,null,null,null,null,null,null,null,null,null,null,"・",null,null,null,"・"]
[]
[]
[null,null,"出場選手が以下の項目に該当するときは入力してください"]
[null,null,"インターハイ予選特別枠",null,null,null,null,null,null,null,null,null,null,null,null,null,"（",null,null,null,null,null,"）kg級",null,null,null,null,null,"（",null,null,null,null,null,"）位",null,null,null,"強化選手選考会2次選考（9/5）選出者"]
[]
[null,null,"大阪総体特別枠",null,null,null,null,null,null,null,null,null,null,null,null,null,"（",null,null,null,null,null,"）kg級",null,null,null,null,null,"（",null,null,null,null,null,"）位",null,null,null,"（",null,null,null,null,null,null,null,null,null,null,null,null,"）ランク"]
[]
[]
[]
[]
[null,null,null,null,null,null,null,null,null,null,null,null,null,null,null,null,null,null,null,null,null,null,null,null,null,null,null,null,"（","ｷ　ﾘ　ﾄ　ﾘ",null,null,null,null,null,null,null,"）"]
[]
[]
[]
["個　人　試　合　申　込　書"]
[]
[null,null,"※抽選番号",null,null,null,null,null,null,null,null,null,null,null,null,null,null,null,null,null,null,"kg級",null,null,null,"第３６回全国高等学校柔道選手権大会大阪府予選会（一次予選）"]
[]
[null,null,"学校番号",null,null,null,"学　　　　校　　　　名",null,null,null,null,null,null,null,null,null,null,null,null,null,null,null,null,null,null,null,null,null,null,null,null,null,null,null,null,null,null,null,"監督名",null,null,null,null,null,null,null,null,null,null,null,null,"校長名"]
[null,null,null,null,null,null,{"$f":"#REF!","v":{"$error":"#REF!"}},null,null,null,null,null,null,null,null,null,null,null,null,null,null,null,null,null,null,null,null,"高等学校",null,null,null,null,null,null,null,null,null,null,{"$f":"#REF!","v":{"$error":"#REF!"}},null,null,null,null,null,null,null,null,null,null,"印",null,{"$f":"#REF!","v":{"$error":"#REF!"}},null,null,null,null,null,null,null,null,null,null,null,"印"]
[]
[]
[null,null,"ふりがな",null,null,null,null,null,null,null,null,null,null,null,null,null,null,null,null,null,null,null,null,null,null,null,null,null,null,null,null,null,null,null,null,null,null,null,"学年",null,null,"段位",null,null,"体重（kg）",null,null,null,null,"身長（cm）",null,null,null,null,"生年月日（西暦）"]
[null,null,"選手名",null,null,null,"（姓）",null,null,null,null,null,null,null,null,null,null,null,null,null,null,null,"（名）",null,null,null,null,null,null,null,null,null,null,null,null,null,null,null,null,null,null,null,null,null,null,null,null,null,null,null,null,null,null,null,null,null,null,null,"・",null,null,null,"・"]
[]
[]
[null,null,"出場選手が以下の項目に該当するときは入力してください"]
[null,null,"インターハイ予選特別枠",null,null,null,null,null,null,null,null,null,null,null,null,null,"（",null,null,null,null,null,"）kg級",null,null,null,null,null,"（",null,null,null,null,null,"）位",null,null,null,"強化選手選考会2次選考（9/5）選出者"]
[]
[null,null,"大阪総体特別枠",null,null,null,null,null,null,null,null,null,null,null,null,null,"（",null,null,null,null,null,"）kg級",null,null,null,null,null,"（",null,null,null,null,null,"）位",null,null,null,"（",null,null,null,null,null,null,null,null,null,null,null,null,"）ランク"]
[]
[]
[]
[null,null,null,null,null,null,null,null,null,null,null,null,null,null,null,null,null,null,null,null,null,null,null,null,null,null,null,null,"（","ｷ　ﾘ　ﾄ　ﾘ",null,null,null,null,null,null,null,"）"]
[]
[]
[]
["個　人　試　合　申　込　書"]
[]
[null,null,"※抽選番号",null,null,null,null,null,null,null,null,null,null,null,null,null,null,null,null,null,null,"kg級",null,null,null,"第３６回全国高等学校柔道選手権大会大阪府予選会（一次予選）"]
[]
[null,null,"学校番号",null,null,null,"学　　　　校　　　　名",null,null,null,null,null,null,null,null,null,null,null,null,null,null,null,null,null,null,null,null,null,null,null,null,null,null,null,null,null,null,null,"監督名",null,null,null,null,null,null,null,null,null,null,null,null,"校長名"]
[null,null,null,null,null,null,{"$f":"#REF!","v":{"$error":"#REF!"}},null,null,null,null,null,null,null,null,null,null,null,null,null,null,null,null,null,null,null,null,"高等学校",null,null,null,null,null,null,null,null,null,null,{"$f":"#REF!","v":{"$error":"#REF!"}},null,null,null,null,null,null,null,null,null,null,"印",null,{"$f":"#REF!","v":{"$error":"#REF!"}},null,null,null,null,null,null,null,null,null,null,null,"印"]
[]
[]
[null,null,"ふりがな",null,null,null,null,null,null,null,null,null,null,null,null,null,null,null,null,null,null,null,null,null,null,null,null,null,null,null,null,null,null,null,null,null,null,null,"学年",null,null,"段位",null,null,"体重（kg）",null,null,null,null,"身長（cm）",null,null,null,null,"生年月日（西暦）"]
[null,null,"選手名",null,null,null,"（姓）",null,null,null,null,null,null,null,null,null,null,null,null,null,null,null,"（名）",null,null,null,null,null,null,null,null,null,null,null,null,null,null,null,null,null,null,null,null,null,null,null,null,null,null,null,null,null,null,null,null,null,null,null,"・",null,null,null,"・"]
[]
[]
[null,null,"出場選手が以下の項目に該当するときは入力してください"]
[null,null,"インターハイ予選特別枠",null,null,null,null,null,null,null,null,null,null,null,null,null,"（",null,null,null,null,null,"）kg級",null,null,null,null,null,"（",null,null,null,null,null,"）位",null,null,null,"強化選手選考会2次選考（9/5）選出者"]
[]
[null,null,"大阪総体特別枠",null,null,null,null,null,null,null,null,null,null,null,null,null,"（",null,null,null,null,null,"）kg級",null,null,null,null,null,"（",null,null,null,null,null,"）位",null,null,null,"（",null,null,null,null,null,null,null,null,null,null,null,null,"）ランク"]
[]
[]
[]
[null,null,null,null,null,null,null,null,null,null,null,null,null,null,null,null,null,null,null,null,null,null,null,null,null,null,null,null,"（","ｷ　ﾘ　ﾄ　ﾘ",null,null,null,null,null,null,null,"）"]
[]
[]
[]
["個　人　試　合　申　込　書"]
[]
[null,null,"※抽選番号",null,null,null,null,null,null,null,null,null,null,null,null,null,null,null,null,null,null,"kg級",null,null,null,"第３６回全国高等学校柔道選手権大会大阪府予選会（一次予選）"]
[]
[null,null,"学校番号",null,null,null,"学　　　　校　　　　名",null,null,null,null,null,null,null,null,null,null,null,null,null,null,null,null,null,null,null,null,null,null,null,null,null,null,null,null,null,null,null,"監督名",null,null,null,null,null,null,null,null,null,null,null,null,"校長名"]
[null,null,null,null,null,null,{"$f":"#REF!","v":{"$error":"#REF!"}},null,null,null,null,null,null,null,null,null,null,null,null,null,null,null,null,null,null,null,null,"高等学校",null,null,null,null,null,null,null,null,null,null,{"$f":"#REF!","v":{"$error":"#REF!"}},null,null,null,null,null,null,null,null,null,null,"印",null,{"$f":"#REF!","v":{"$error":"#REF!"}},null,null,null,null,null,null,null,null,null,null,null,"印"]
[]
[]
[null,null,"ふりがな",null,null,null,null,null,null,null,null,null,null,null,null,null,null,null,null,null,null,null,null,null,null,null,null,null,null,null,null,null,null,null,null,null,null,null,"学年",null,null,"段位",null,null,"体重（kg）",null,null,null,null,"身長（cm）",null,null,null,null,"生年月日（西暦）"]
[null,null,"選手名",null,null,null,"（姓）",null,null,null,null,null,null,null,null,null,null,null,null,null,null,null,"（名）",null,null,null,null,null,null,null,null,null,null,null,null,null,null,null,null,null,null,null,null,null,null,null,null,null,null,null,null,null,null,null,null,null,null,null,"・",null,null,null,"・"]
[]
[]
[null,null,"出場選手が以下の項目に該当するときは入力してください"]
[null,null,"インターハイ予選特別枠",null,null,null,null,null,null,null,null,null,null,null,null,null,"（",null,null,null,null,null,"）kg級",null,null,null,null,null,"（",null,null,null,null,null,"）位",null,null,null,"強化選手選考会2次選考（9/5）選出者"]
[]
[null,null,"大阪総体特別枠",null,null,null,null,null,null,null,null,null,null,null,null,null,"（",null,null,null,null,null,"）kg級",null,null,null,null,null,"（",null,null,null,null,null,"）位",null,null,null,"（",null,null,null,null,null,null,null,null,null,null,null,null,"）ランク"]
[]
[]
[]
[null,null,null,null,null,null,null,null,null,null,null,null,null,null,null,null,null,null,null,null,null,null,null,null,null,null,null,null,"（","ｷ　ﾘ　ﾄ　ﾘ",null,null,null,null,null,null,null,"）"]
[]
[]
[]
["個　人　試　合　申　込　書"]
[]
[null,null,"※抽選番号",null,null,null,null,null,null,null,null,null,null,null,null,null,null,null,null,null,null,"kg級",null,null,null,"第３６回全国高等学校柔道選手権大会大阪府予選会（一次予選）"]
[]
[null,null,"学校番号",null,null,null,"学　　　　校　　　　名",null,null,null,null,null,null,null,null,null,null,null,null,null,null,null,null,null,null,null,null,null,null,null,null,null,null,null,null,null,null,null,"監督名",null,null,null,null,null,null,null,null,null,null,null,null,"校長名"]
[null,null,null,null,null,null,{"$f":"#REF!","v":{"$error":"#REF!"}},null,null,null,null,null,null,null,null,null,null,null,null,null,null,null,null,null,null,null,null,"高等学校",null,null,null,null,null,null,null,null,null,null,{"$f":"#REF!","v":{"$error":"#REF!"}},null,null,null,null,null,null,null,null,null,null,"印",null,{"$f":"#REF!","v":{"$error":"#REF!"}},null,null,null,null,null,null,null,null,null,null,null,"印"]
[]
[]
[null,null,"ふりがな",null,null,null,null,null,null,null,null,null,null,null,null,null,null,null,null,null,null,null,null,null,null,null,null,null,null,null,null,null,null,null,null,null,null,null,"学年",null,null,"段位",null,null,"体重（kg）",null,null,null,null,"身長（cm）",null,null,null,null,"生年月日（西暦）"]
[null,null,"選手名",null,null,null,"（姓）",null,null,null,null,null,null,null,null,null,null,null,null,null,null,null,"（名）",null,null,null,null,null,null,null,null,null,null,null,null,null,null,null,null,null,null,null,null,null,null,null,null,null,null,null,null,null,null,null,null,null,null,null,"・",null,null,null,"・"]
[]
[]
[null,null,"出場選手が以下の項目に該当するときは入力してください"]
[null,null,"インターハイ予選特別枠",null,null,null,null,null,null,null,null,null,null,null,null,null,"（",null,null,null,null,null,"）kg級",null,null,null,null,null,"（",null,null,null,null,null,"）位",null,null,null,"強化選手選考会2次選考（9/5）選出者"]
[]
[null,null,"大阪総体特別枠",null,null,null,null,null,null,null,null,null,null,null,null,null,"（",null,null,null,null,null,"）kg級",null,null,null,null,null,"（",null,null,null,null,null,"）位",null,null,null,"（",null,null,null,null,null,null,null,null,null,null,null,null,"）ランク"]
[]
[]
[]
[null,null,null,null,null,null,null,null,null,null,null,null,null,null,null,null,null,null,null,null,null,null,null,null,null,null,null,null,"（","ｷ　ﾘ　ﾄ　ﾘ",null,null,null,null,null,null,null,"）"]
[]
[]
[]
["個　人　試　合　申　込　書"]
[]
[null,null,"※抽選番号",null,null,null,null,null,null,null,null,null,null,null,null,null,null,null,null,null,null,"kg級",null,null,null,"第３６回全国高等学校柔道選手権大会大阪府予選会（一次予選）"]
[]
[null,null,"学校番号",null,null,null,"学　　　　校　　　　名",null,null,null,null,null,null,null,null,null,null,null,null,null,null,null,null,null,null,null,null,null,null,null,null,null,null,null,null,null,null,null,"監督名",null,null,null,null,null,null,null,null,null,null,null,null,"校長名"]
[null,null,null,null,null,null,{"$f":"#REF!","v":{"$error":"#REF!"}},null,null,null,null,null,null,null,null,null,null,null,null,null,null,null,null,null,null,null,null,"高等学校",null,null,null,null,null,null,null,null,null,null,{"$f":"#REF!","v":{"$error":"#REF!"}},null,null,null,null,null,null,null,null,null,null,"印",null,{"$f":"#REF!","v":{"$error":"#REF!"}},null,null,null,null,null,null,null,null,null,null,null,"印"]
[]
[]
[null,null,"ふりがな",null,null,null,null,null,null,null,null,null,null,null,null,null,null,null,null,null,null,null,null,null,null,null,null,null,null,null,null,null,null,null,null,null,null,null,"学年",null,null,"段位",null,null,"体重（kg）",null,null,null,null,"身長（cm）",null,null,null,null,"生年月日（西暦）"]
[null,null,"選手名",null,null,null,"（姓）",null,null,null,null,null,null,null,null,null,null,null,null,null,null,null,"（名）",null,null,null,null,null,null,null,null,null,null,null,null,null,null,null,null,null,null,null,null,null,null,null,null,null,null,null,null,null,null,null,null,null,null,null,"・",null,null,null,"・"]
[]
[]
[null,null,"出場選手が以下の項目に該当するときは入力してください"]
[null,null,"インターハイ予選特別枠",null,null,null,null,null,null,null,null,null,null,null,null,null,"（",null,null,null,null,null,"）kg級",null,null,null,null,null,"（",null,null,null,null,null,"）位",null,null,null,"強化選手選考会2次選考（9/5）選出者"]
[]
[null,null,"大阪総体特別枠",null,null,null,null,null,null,null,null,null,null,null,null,null,"（",null,null,null,null,null,"）kg級",null,null,null,null,null,"（",null,null,null,null,null,"）位",null,null,null,"（",null,null,null,null,null,null,null,null,null,null,null,null,"）ランク"]
[]
[]
[]
[null,null,null,null,null,null,null,null,null,null,null,null,null,null,null,null,null,null,null,null,null,null,null,null,null,null,null,null,"（","ｷ　ﾘ　ﾄ　ﾘ",null,null,null,null,null,null,null,"）"]
[]
[]
[]
["個　人　試　合　申　込　書"]
[]
[null,null,"※抽選番号",null,null,null,null,null,null,null,null,null,null,null,null,null,null,null,null,null,null,"kg級",null,null,null,"第３６回全国高等学校柔道選手権大会大阪府予選会（一次予選）"]
[]
[null,null,"学校番号",null,null,null,"学　　　　校　　　　名",null,null,null,null,null,null,null,null,null,null,null,null,null,null,null,null,null,null,null,null,null,null,null,null,null,null,null,null,null,null,null,"監督名",null,null,null,null,null,null,null,null,null,null,null,null,"校長名"]
[null,null,null,null,null,null,{"$f":"#REF!","v":{"$error":"#REF!"}},null,null,null,null,null,null,null,null,null,null,null,null,null,null,null,null,null,null,null,null,"高等学校",null,null,null,null,null,null,null,null,null,null,{"$f":"#REF!","v":{"$error":"#REF!"}},null,null,null,null,null,null,null,null,null,null,"印",null,{"$f":"#REF!","v":{"$error":"#REF!"}},null,null,null,null,null,null,null,null,null,null,null,"印"]
[]
[]
[null,null,"ふりがな",null,null,null,null,null,null,null,null,null,null,null,null,null,null,null,null,null,null,null,null,null,null,null,null,null,null,null,null,null,null,null,null,null,null,null,"学年",null,null,"段位",null,null,"体重（kg）",null,null,null,null,"身長（cm）",null,null,null,null,"生年月日（西暦）"]
[null,null,"選手名",null,null,null,"（姓）",null,null,null,null,null,null,null,null,null,null,null,null,null,null,null,"（名）",null,null,null,null,null,null,null,null,null,null,null,null,null,null,null,null,null,null,null,null,null,null,null,null,null,null,null,null,null,null,null,null,null,null,null,"・",null,null,null,"・"]
[]
[]
[null,null,"出場選手が以下の項目に該当するときは入力してください"]
[null,null,"インターハイ予選特別枠",null,null,null,null,null,null,null,null,null,null,null,null,null,"（",null,null,null,null,null,"）kg級",null,null,null,null,null,"（",null,null,null,null,null,"）位",null,null,null,"強化選手選考会2次選考（9/5）選出者"]
[]
[null,null,"大阪総体特別枠",null,null,null,null,null,null,null,null,null,null,null,null,null,"（",null,null,null,null,null,"）kg級",null,null,null,null,null,"（",null,null,null,null,null,"）位",null,null,null,"（",null,null,null,null,null,null,null,null,null,null,null,null,"）ランク"]
[]
[]
[]
[null,null,null,null,null,null,null,null,null,null,null,null,null,null,null,null,null,null,null,null,null,null,null,null,null,null,null,null,"（","ｷ　ﾘ　ﾄ　ﾘ",null,null,null,null,null,null,null,"）"]
[]
[]
[]
["個　人　試　合　申　込　書"]
[]
[null,null,"※抽選番号",null,null,null,null,null,null,null,null,null,null,null,null,null,null,null,null,null,null,"kg級",null,null,null,"第３６回全国高等学校柔道選手権大会大阪府予選会（一次予選）"]
[]
[null,null,"学校番号",null,null,null,"学　　　　校　　　　名",null,null,null,null,null,null,null,null,null,null,null,null,null,null,null,null,null,null,null,null,null,null,null,null,null,null,null,null,null,null,null,"監督名",null,null,null,null,null,null,null,null,null,null,null,null,"校長名"]
[null,null,null,null,null,null,{"$f":"#REF!","v":{"$error":"#REF!"}},null,null,null,null,null,null,null,null,null,null,null,null,null,null,null,null,null,null,null,null,"高等学校",null,null,null,null,null,null,null,null,null,null,{"$f":"#REF!","v":{"$error":"#REF!"}},null,null,null,null,null,null,null,null,null,null,"印",null,{"$f":"#REF!","v":{"$error":"#REF!"}},null,null,null,null,null,null,null,null,null,null,null,"印"]
[]
[]
[null,null,"ふりがな",null,null,null,null,null,null,null,null,null,null,null,null,null,null,null,null,null,null,null,null,null,null,null,null,null,null,null,null,null,null,null,null,null,null,null,"学年",null,null,"段位",null,null,"体重（kg）",null,null,null,null,"身長（cm）",null,null,null,null,"生年月日（西暦）"]
[null,null,"選手名",null,null,null,"（姓）",null,null,null,null,null,null,null,null,null,null,null,null,null,null,null,"（名）",null,null,null,null,null,null,null,null,null,null,null,null,null,null,null,null,null,null,null,null,null,null,null,null,null,null,null,null,null,null,null,null,null,null,null,"・",null,null,null,"・"]
[]
[]
[null,null,"出場選手が以下の項目に該当するときは入力してください"]
[null,null,"インターハイ予選特別枠",null,null,null,null,null,null,null,null,null,null,null,null,null,"（",null,null,null,null,null,"）kg級",null,null,null,null,null,"（",null,null,null,null,null,"）位",null,null,null,"強化選手選考会2次選考（9/5）選出者"]
[]
[null,null,"大阪総体特別枠",null,null,null,null,null,null,null,null,null,null,null,null,null,"（",null,null,null,null,null,"）kg級",null,null,null,null,null,"（",null,null,null,null,null,"）位",null,null,null,"（",null,null,null,null,null,null,null,null,null,null,null,null,"）ランク"]
[]
[]
[]
[null,null,null,null,null,null,null,null,null,null,null,null,null,null,null,null,null,null,null,null,null,null,null,null,null,null,null,null,"（","ｷ　ﾘ　ﾄ　ﾘ",null,null,null,null,null,null,null,"）"]
[]
[]
[]
["個　人　試　合　申　込　書"]
[]
[null,null,"※抽選番号",null,null,null,null,null,null,null,null,null,null,null,null,null,null,null,null,null,null,"kg級",null,null,null,"第３６回全国高等学校柔道選手権大会大阪府予選会（一次予選）"]
[]
[null,null,"学校番号",null,null,null,"学　　　　校　　　　名",null,null,null,null,null,null,null,null,null,null,null,null,null,null,null,null,null,null,null,null,null,null,null,null,null,null,null,null,null,null,null,"監督名",null,null,null,null,null,null,null,null,null,null,null,null,"校長名"]
[null,null,null,null,null,null,{"$f":"#REF!","v":{"$error":"#REF!"}},null,null,null,null,null,null,null,null,null,null,null,null,null,null,null,null,null,null,null,null,"高等学校",null,null,null,null,null,null,null,null,null,null,{"$f":"#REF!","v":{"$error":"#REF!"}},null,null,null,null,null,null,null,null,null,null,"印",null,{"$f":"#REF!","v":{"$error":"#REF!"}},null,null,null,null,null,null,null,null,null,null,null,"印"]
[]
[]
[null,null,"ふりがな",null,null,null,null,null,null,null,null,null,null,null,null,null,null,null,null,null,null,null,null,null,null,null,null,null,null,null,null,null,null,null,null,null,null,null,"学年",null,null,"段位",null,null,"体重（kg）",null,null,null,null,"身長（cm）",null,null,null,null,"生年月日（西暦）"]
[null,null,"選手名",null,null,null,"（姓）",null,null,null,null,null,null,null,null,null,null,null,null,null,null,null,"（名）",null,null,null,null,null,null,null,null,null,null,null,null,null,null,null,null,null,null,null,null,null,null,null,null,null,null,null,null,null,null,null,null,null,null,null,"・",null,null,null,"・"]
[]
[]
[null,null,"出場選手が以下の項目に該当するときは入力してください"]
[null,null,"インターハイ予選特別枠",null,null,null,null,null,null,null,null,null,null,null,null,null,"（",null,null,null,null,null,"）kg級",null,null,null,null,null,"（",null,null,null,null,null,"）位",null,null,null,"強化選手選考会2次選考（9/5）選出者"]
[]
[null,null,"大阪総体特別枠",null,null,null,null,null,null,null,null,null,null,null,null,null,"（",null,null,null,null,null,"）kg級",null,null,null,null,null,"（",null,null,null,null,null,"）位",null,null,null,"（",null,null,null,null,null,null,null,null,null,null,null,null,"）ランク"]
[]
[]
[]
[null,null,null,null,null,null,null,null,null,null,null,null,null,null,null,null,null,null,null,null,null,null,null,null,null,null,null,null,"（","ｷ　ﾘ　ﾄ　ﾘ",null,null,null,null,null,null,null,"）"]
[]
[]
[]
["個　人　試　合　申　込　書"]
[]
[null,null,"※抽選番号",null,null,null,null,null,null,null,null,null,null,null,null,null,null,null,null,null,null,"kg級",null,null,null,"第３６回全国高等学校柔道選手権大会大阪府予選会（一次予選）"]
[]
[null,null,"学校番号",null,null,null,"学　　　　校　　　　名",null,null,null,null,null,null,null,null,null,null,null,null,null,null,null,null,null,null,null,null,null,null,null,null,null,null,null,null,null,null,null,"監督名",null,null,null,null,null,null,null,null,null,null,null,null,"校長名"]
[null,null,null,null,null,null,{"$f":"#REF!","v":{"$error":"#REF!"}},null,null,null,null,null,null,null,null,null,null,null,null,null,null,null,null,null,null,null,null,"高等学校",null,null,null,null,null,null,null,null,null,null,{"$f":"#REF!","v":{"$error":"#REF!"}},null,null,null,null,null,null,null,null,null,null,"印",null,{"$f":"#REF!","v":{"$error":"#REF!"}},null,null,null,null,null,null,null,null,null,null,null,"印"]
[]
[]
[null,null,"ふりがな",null,null,null,null,null,null,null,null,null,null,null,null,null,null,null,null,null,null,null,null,null,null,null,null,null,null,null,null,null,null,null,null,null,null,null,"学年",null,null,"段位",null,null,"体重（kg）",null,null,null,null,"身長（cm）",null,null,null,null,"生年月日（西暦）"]
[null,null,"選手名",null,null,null,"（姓）",null,null,null,null,null,null,null,null,null,null,null,null,null,null,null,"（名）",null,null,null,null,null,null,null,null,null,null,null,null,null,null,null,null,null,null,null,null,null,null,null,null,null,null,null,null,null,null,null,null,null,null,null,"・",null,null,null,"・"]
[]
[]
[null,null,"出場選手が以下の項目に該当するときは入力してください"]
[null,null,"インターハイ予選特別枠",null,null,null,null,null,null,null,null,null,null,null,null,null,"（",null,null,null,null,null,"）kg級",null,null,null,null,null,"（",null,null,null,null,null,"）位",null,null,null,"強化選手選考会2次選考（9/5）選出者"]
[]
[null,null,"大阪総体特別枠",null,null,null,null,null,null,null,null,null,null,null,null,null,"（",null,null,null,null,null,"）kg級",null,null,null,null,null,"（",null,null,null,null,null,"）位",null,null,null,"（",null,null,null,null,null,null,null,null,null,null,null,null,"）ランク"]
[]
[]
[]
[null,null,null,null,null,null,null,null,null,null,null,null,null,null,null,null,null,null,null,null,null,null,null,null,null,null,null,null,"（","ｷ　ﾘ　ﾄ　ﾘ",null,null,null,null,null,null,null,"）"]
[]
[]
[]
["個　人　試　合　申　込　書"]
[]
[null,null,"※抽選番号",null,null,null,null,null,null,null,null,null,null,null,null,null,null,null,null,null,null,"kg級",null,null,null,"第３６回全国高等学校柔道選手権大会大阪府予選会（一次予選）"]
[]
[null,null,"学校番号",null,null,null,"学　　　　校　　　　名",null,null,null,null,null,null,null,null,null,null,null,null,null,null,null,null,null,null,null,null,null,null,null,null,null,null,null,null,null,null,null,"監督名",null,null,null,null,null,null,null,null,null,null,null,null,"校長名"]
[null,null,null,null,null,null,{"$f":"#REF!","v":{"$error":"#REF!"}},null,null,null,null,null,null,null,null,null,null,null,null,null,null,null,null,null,null,null,null,"高等学校",null,null,null,null,null,null,null,null,null,null,{"$f":"#REF!","v":{"$error":"#REF!"}},null,null,null,null,null,null,null,null,null,null,"印",null,{"$f":"#REF!","v":{"$error":"#REF!"}},null,null,null,null,null,null,null,null,null,null,null,"印"]
[]
[]
[null,null,"ふりがな",null,null,null,null,null,null,null,null,null,null,null,null,null,null,null,null,null,null,null,null,null,null,null,null,null,null,null,null,null,null,null,null,null,null,null,"学年",null,null,"段位",null,null,"体重（kg）",null,null,null,null,"身長（cm）",null,null,null,null,"生年月日（西暦）"]
[null,null,"選手名",null,null,null,"（姓）",null,null,null,null,null,null,null,null,null,null,null,null,null,null,null,"（名）",null,null,null,null,null,null,null,null,null,null,null,null,null,null,null,null,null,null,null,null,null,null,null,null,null,null,null,null,null,null,null,null,null,null,null,"・",null,null,null,"・"]
[]
[]
[null,null,"出場選手が以下の項目に該当するときは入力してください"]
[null,null,"インターハイ予選特別枠",null,null,null,null,null,null,null,null,null,null,null,null,null,"（",null,null,null,null,null,"）kg級",null,null,null,null,null,"（",null,null,null,null,null,"）位",null,null,null,"強化選手選考会2次選考（9/5）選出者"]
[]
[null,null,"大阪総体特別枠",null,null,null,null,null,null,null,null,null,null,null,null,null,"（",null,null,null,null,null,"）kg級",null,null,null,null,null,"（",null,null,null,null,null,"）位",null,null,null,"（",null,null,null,null,null,null,null,null,null,null,null,null,"）ランク"]

{"sheet":"申込","index":2,"n_rows":847,"n_cols":64,"rows_kept":847,"cut":false,"hidden":false,"merged":[[800,63,802,65],[841,35,841,49],[845,49,845,53],[833,28,834,28],[845,24,845,37],[845,38,845,40],[839,25,840,65],[845,54,845,65],[839,21,840,24],[841,6,841,34],[814,54,815,65],[822,38,822,40],[819,50,821,61],[841,50,841,65],[842,50,844,61],[777,63,779,65],[822,49,822,53],[823,62,825,62],[819,62,821,65],[800,62,802,62],[842,35,844,46],[845,41,845,43],[842,47,844,49],[823,49,825,53],[837,14,838,49],[823,44,825,48],[839,13,840,20],[822,24,822,37],[823,24,825,37],[833,37,834,37],[777,49,779,53],[837,54,838,65],[846,63,848,65],[846,49,848,53],[777,44,779,48],[795,35,795,49],[799,44,799,48],[823,63,825,65],[823,59,825,61],[823,54,825,57],[823,58,825,58],[823,38,825,40],[810,28,811,28],[800,41,802,43],[810,29,811,36],[800,44,802,48],[822,41,822,43],[822,54,822,65],[814,14,815,49],[819,35,821,46],[818,35,818,49],[819,47,821,49],[846,62,848,62],[846,58,848,58],[846,44,848,48],[842,25,844,34],[845,44,845,48],[842,62,844,65],[846,38,848,40],[846,41,848,43],[846,59,848,61],[846,54,848,57],[822,44,822,48],[823,41,825,43],[818,2,818,5],[819,6,821,24],[818,6,818,34],[822,6,822,7],[819,25,821,34],[819,2,821,5],[822,8,822,21],[822,2,822,5],[822,22,822,23],[846,2,848,5],[846,6,846,7],[846,24,848,37],[847,6,848,7],[846,22,846,23],[845,8,845,21],[847,22,848,23],[846,8,848,21],[839,2,840,5],[841,2,841,5],[845,2,845,5],[842,2,844,5],[845,6,845,7],[842,6,844,24],[845,22,845,23],[839,6,840,12],[823,2,825,5],[833,29,834,36],[824,6,825,7],[823,6,823,7],[823,8,825,21],[823,22,823,23],[824,22,825,23],[799,2,799,5],[776,54,776,65],[793,2,794,5],[793,6,794,12],[796,2,798,5],[799,8,799,21],[796,62,798,65],[776,44,776,48],[777,58,779,58],[776,38,776,40],[816,2,817,5],[816,6,817,12],[801,22,802,23],[801,6,802,7],[800,2,802,5],[800,6,800,7],[800,22,800,23],[800,8,802,21],[816,13,817,20],[816,21,817,24],[800,49,802,53],[778,6,779,7],[778,22,779,23],[800,24,802,37],[799,49,799,53],[799,38,799,40],[799,6,799,7],[787,37,788,37],[796,35,798,46],[795,50,795,65],[800,54,802,57],[800,58,802,58],[818,50,818,65],[816,25,817,65],[791,54,792,65],[810,37,811,37],[800,38,802,40],[800,59,802,61],[777,62,779,62],[777,2,779,5],[795,2,795,5],[795,6,795,34],[793,13,794,20],[777,22,777,23],[754,59,756,61],[773,50,775,61],[768,54,769,65],[772,50,772,65],[770,25,771,65],[773,25,775,34],[773,35,775,46],[796,25,798,34],[796,50,798,61],[796,6,798,24],[796,47,798,49],[755,6,756,7],[776,49,776,53],[793,21,794,24],[754,8,756,21],[787,28,788,28],[754,58,756,58],[793,25,794,65],[777,41,779,43],[773,62,775,65],[773,47,775,49],[777,54,779,57],[754,62,756,62],[754,54,756,57],[754,49,756,53],[754,63,756,65],[777,59,779,61],[777,6,777,7],[777,24,779,37],[770,21,771,24],[755,22,756,23],[791,14,792,49],[787,29,788,36],[799,54,799,65],[799,41,799,43],[799,24,799,37],[799,22,799,23],[770,6,771,12],[770,13,771,20],[777,38,779,40],[776,8,776,21],[777,8,779,21],[776,6,776,7],[776,24,776,37],[776,2,776,5],[773,2,775,5],[776,22,776,23],[776,41,776,43],[753,8,753,21],[753,6,753,7],[753,2,753,5],[754,44,756,48],[753,41,753,43],[754,24,756,37],[753,38,753,40],[753,24,753,37],[753,49,753,53],[750,62,752,65],[753,54,753,65],[750,2,752,5],[754,2,756,5],[754,38,756,40],[753,22,753,23],[754,22,754,23],[750,6,752,24],[764,37,765,37],[764,28,765,28],[764,29,765,36],[772,6,772,34],[768,14,769,49],[754,41,756,43],[754,6,754,7],[770,2,771,5],[773,6,775,24],[772,2,772,5],[772,35,772,49],[753,44,753,48],[741,28,742,28],[750,47,752,49],[749,6,749,34],[750,25,752,34],[750,35,752,46],[731,49,733,53],[750,50,752,61],[730,38,730,40],[732,22,733,23],[731,54,733,57],[731,44,733,48],[731,24,733,37],[731,38,733,40],[731,62,733,62],[730,24,730,37],[747,21,748,24],[745,54,746,65],[749,50,749,65],[749,35,749,49],[745,14,746,49],[747,13,748,20],[747,25,748,65],[741,29,742,36],[741,37,742,37],[724,6,725,12],[722,54,723,65],[731,63,733,65],[731,22,731,23],[731,59,733,61],[730,49,730,53],[730,41,730,43],[730,54,730,65],[727,35,729,46],[722,14,723,49],[708,2,710,5],[718,28,719,28],[718,29,719,36],[727,2,729,5],[724,2,725,5],[724,21,725,24],[724,13,725,20],[718,37,719,37],[730,8,730,21],[731,2,733,5],[731,6,731,7],[730,2,730,5],[727,47,729,49],[730,44,730,48],[731,58,733,58],[731,8,733,21],[704,2,706,5],[726,6,726,34],[708,8,710,21],[708,38,710,40],[727,50,729,61],[727,6,729,24],[731,41,733,43],[730,22,730,23],[749,2,749,5],[747,2,748,5],[747,6,748,12],[730,6,730,7],[732,6,733,7],[727,25,729,34],[707,2,707,5],[707,6,707,7],[707,8,707,21],[707,22,707,23],[726,2,726,5],[724,25,725,65],[726,35,726,49],[726,50,726,65],[704,47,706,49],[708,54,710,57],[704,50,706,61],[708,58,710,58],[708,49,710,53],[727,62,729,65],[707,54,707,65],[708,62,710,62],[708,59,710,61],[709,22,710,23],[699,14,700,49],[685,54,687,57],[685,58,687,58],[685,49,687,53],[685,24,687,37],[699,54,700,65],[695,29,696,36],[695,37,696,37],[695,28,696,28],[703,6,703,34],[703,35,703,49],[703,50,703,65],[701,25,702,65],[701,13,702,20],[701,21,702,24],[708,22,708,23],[708,6,708,7],[707,24,707,37],[704,62,706,65],[708,63,710,65],[708,24,710,37],[707,38,707,40],[707,44,707,48],[704,25,706,34],[704,35,706,46],[685,62,687,62],[685,63,687,65],[639,63,641,65],[639,62,641,62],[639,58,641,58],[639,41,641,43],[639,49,641,53],[639,54,641,57],[676,54,677,65],[655,25,656,65],[676,14,677,49],[681,6,683,24],[678,25,679,65],[678,21,679,24],[684,24,684,37],[707,49,707,53],[707,41,707,43],[708,44,710,48],[704,6,706,24],[708,41,710,43],[709,6,710,7],[686,6,687,7],[685,6,685,7],[685,44,687,48],[684,22,684,23],[684,41,684,43],[685,22,685,23],[684,6,684,7],[686,22,687,23],[685,38,687,40],[685,41,687,43],[685,8,687,21],[684,38,684,40],[685,59,687,61],[662,41,664,43],[658,25,660,34],[658,47,660,49],[684,49,684,53],[681,50,683,61],[684,54,684,65],[680,35,680,49],[684,44,684,48],[662,44,664,48],[681,47,683,49],[662,58,664,58],[662,24,664,37],[672,28,673,28],[672,29,673,36],[672,37,673,37],[678,2,679,5],[655,13,656,20],[655,21,656,24],[681,25,683,34],[678,13,679,20],[680,6,680,34],[662,2,664,5],[680,50,680,65],[681,62,683,65],[657,6,657,34],[657,50,657,65],[658,50,660,61],[662,22,662,23],[658,2,660,5],[662,49,664,53],[661,41,661,43],[661,49,661,53],[662,38,664,40],[662,8,664,21],[638,44,638,48],[635,47,637,49],[649,37,650,37],[635,62,637,65],[662,59,664,61],[661,54,661,65],[662,54,664,57],[662,62,664,62],[662,63,664,65],[653,54,654,65],[658,62,660,65],[638,54,638,65],[639,59,641,61],[703,2,703,5],[678,6,679,12],[680,2,680,5],[681,2,683,5],[684,2,684,5],[701,2,702,5],[701,6,702,12],[685,2,687,5],[684,8,684,21],[681,35,683,46],[657,2,657,5],[663,6,664,7],[661,24,661,37],[661,44,661,48],[661,38,661,40],[663,22,664,23],[662,6,662,7],[661,2,661,5],[661,22,661,23],[661,6,661,7],[649,28,650,28],[649,29,650,36],[658,35,660,46],[657,35,657,49],[655,2,656,5],[655,6,656,12],[639,22,639,23],[634,2,634,5],[634,6,634,34],[640,22,641,23],[638,6,638,7],[638,8,638,21],[639,24,641,37],[635,35,637,46],[635,2,637,5],[635,6,637,24],[658,6,660,24],[661,8,661,21],[653,14,654,49],[639,38,641,40],[639,44,641,48],[632,2,633,5],[635,25,637,34],[639,2,641,5],[640,6,641,7],[638,2,638,5],[615,2,615,5],[616,6,616,7],[616,2,618,5],[615,24,615,37],[615,6,615,7],[632,6,633,12],[639,6,639,7],[639,8,641,21],[638,22,638,23],[632,21,633,24],[632,13,633,20],[634,35,634,49],[615,22,615,23],[607,54,608,65],[593,58,595,58],[593,62,595,62],[593,49,595,53],[593,54,595,57],[593,59,595,61],[593,63,595,65],[609,25,610,65],[607,14,608,49],[638,49,638,53],[638,24,638,37],[635,50,637,61],[638,38,638,40],[638,41,638,43],[630,54,631,65],[634,50,634,65],[632,25,633,65],[593,8,595,21],[593,24,595,37],[626,29,627,36],[630,14,631,49],[626,28,627,28],[609,13,610,20],[609,21,610,24],[615,8,615,21],[611,6,611,34],[603,28,604,28],[603,29,604,36],[603,37,604,37],[593,41,595,43],[609,2,610,5],[609,6,610,12],[612,25,614,34],[611,50,611,65],[612,47,614,49],[611,35,611,49],[611,2,611,5],[612,2,614,5],[612,6,614,24],[612,35,614,46],[616,8,618,21],[626,37,627,37],[616,24,618,37],[616,63,618,65],[616,62,618,62],[616,54,618,57],[617,22,618,23],[616,38,618,40],[616,22,616,23],[616,49,618,53],[615,54,615,65],[616,58,618,58],[616,41,618,43],[612,62,614,65],[615,44,615,48],[615,41,615,43],[612,50,614,61],[615,49,615,53],[616,44,618,48],[616,59,618,61],[615,38,615,40],[617,6,618,7],[569,22,569,23],[589,35,591,46],[589,47,591,49],[594,22,595,23],[593,22,593,23],[593,38,595,40],[593,44,595,48],[569,44,571,48],[586,21,587,24],[592,6,592,7],[592,8,592,21],[584,14,585,49],[501,22,502,23],[522,49,522,53],[568,49,568,53],[569,24,571,37],[500,38,502,40],[589,50,591,61],[592,54,592,65],[516,13,517,20],[516,21,517,24],[541,35,541,49],[533,28,534,28],[537,14,538,49],[522,38,522,40],[523,38,525,40],[522,41,522,43],[547,6,548,7],[546,41,548,43],[500,49,502,53],[589,62,591,65],[588,35,588,49],[592,49,592,53],[586,25,587,65],[588,6,588,34],[589,6,591,24],[592,44,592,48],[589,25,591,34],[75,63,77,65],[500,54,502,57],[584,54,585,65],[569,58,571,58],[93,62,95,65],[519,62,521,65],[569,63,571,65],[546,62,548,62],[500,62,502,62],[75,59,77,61],[500,22,500,23],[115,50,117,61],[110,54,111,65],[97,6,97,7],[98,6,99,7],[97,8,99,21],[592,38,592,40],[592,24,592,37],[588,50,588,65],[93,6,95,24],[93,25,95,34],[93,35,95,46],[592,41,592,43],[592,22,592,23],[115,35,117,46],[120,6,121,7],[119,6,119,7],[16,6,16,7],[68,25,69,65],[52,54,52,65],[46,21,47,24],[48,6,48,34],[52,8,52,21],[53,24,55,37],[46,13,47,20],[17,6,17,7],[18,6,19,7],[97,44,99,48],[70,50,70,65],[53,6,53,7],[16,22,16,23],[16,24,16,37],[17,24,19,37],[17,22,17,23],[53,54,55,57],[53,49,55,53],[41,37,42,37],[41,29,42,36],[41,28,42,28],[115,62,117,65],[71,62,73,65],[62,29,63,36],[62,37,63,37],[88,14,89,49],[75,8,77,21],[114,35,114,49],[74,49,74,53],[20,63,23,65],[120,22,121,23],[93,50,95,61],[93,47,95,49],[97,24,99,37],[132,14,133,49],[74,2,74,5],[70,2,70,5],[71,2,73,5],[71,35,73,46],[71,50,73,61],[71,25,73,34],[74,6,74,7],[98,22,99,23],[96,41,96,43],[70,6,70,34],[68,13,69,20],[115,47,117,49],[71,47,73,49],[71,6,73,24],[96,49,96,53],[96,44,96,48],[96,38,96,40],[114,6,114,34],[115,2,117,5],[74,22,74,23],[90,13,91,20],[90,25,91,65],[75,2,77,5],[90,2,91,5],[75,62,77,62],[84,29,85,36],[106,29,107,36],[1,2,2,5],[3,2,3,5],[4,2,6,5],[16,58,19,58],[18,22,19,23],[21,8,23,21],[20,8,20,21],[16,54,19,57],[118,2,118,5],[119,2,121,5],[136,2,136,5],[96,2,96,5],[97,2,99,5],[1,6,2,10],[3,6,3,34],[112,2,113,5],[114,2,114,5],[112,13,113,20],[7,2,7,5],[8,2,11,5],[16,2,19,5],[17,8,19,21],[13,6,13,7],[12,2,15,5],[14,6,15,7],[12,6,12,7],[16,8,16,21],[12,8,12,21],[48,35,48,49],[21,24,23,37],[20,24,20,37],[9,24,11,37],[20,59,23,61],[52,41,52,43],[66,14,67,49],[75,58,77,58],[52,22,52,23],[74,54,74,65],[53,62,55,62],[66,54,67,65],[52,49,52,53],[92,50,92,65],[53,38,55,40],[53,44,55,48],[53,8,55,21],[53,59,55,61],[75,41,77,43],[84,28,85,28],[75,44,77,48],[53,63,55,65],[74,8,74,21],[49,6,51,24],[52,6,52,7],[74,38,74,40],[74,44,74,48],[52,24,52,37],[49,50,51,61],[48,50,48,65],[75,49,77,53],[75,38,77,40],[53,41,55,43],[74,41,74,43],[75,54,77,57],[68,21,69,24],[112,6,113,12],[97,22,97,23],[20,2,23,5],[22,22,23,23],[20,6,20,7],[21,6,21,7],[20,44,23,48],[20,58,23,58],[7,38,7,40],[12,22,12,23],[12,59,15,61],[16,59,19,61],[16,49,19,53],[12,49,15,53],[8,49,11,53],[49,62,51,65],[52,44,52,48],[75,24,77,37],[76,22,77,23],[74,24,74,37],[70,35,70,49],[92,2,92,5],[90,21,91,24],[92,35,92,49],[20,22,20,23],[20,62,23,62],[21,22,21,23],[20,54,23,57],[20,49,23,53],[106,37,107,37],[62,28,63,28],[75,22,75,23],[1,54,2,65],[12,41,15,43],[1,15,2,50],[12,63,15,65],[13,22,13,23],[13,24,15,37],[10,22,11,23],[8,6,8,7],[8,59,11,61],[3,35,3,49],[7,44,7,48],[4,35,6,46],[4,47,6,49],[8,41,11,43],[3,50,3,65],[4,62,6,65],[4,50,6,61],[12,62,15,62],[8,62,11,62],[7,54,7,65],[8,63,11,65],[8,54,11,57],[12,58,15,58],[12,54,15,57],[7,49,7,53],[8,38,11,40],[7,6,7,37],[8,58,11,58],[7,41,7,43],[9,6,9,7],[9,22,9,23],[8,44,11,48],[119,54,121,57],[97,38,99,40],[97,41,99,43],[97,49,99,53],[110,14,111,49],[97,58,99,58],[97,62,99,62],[96,8,96,21],[4,6,6,24],[4,25,6,34],[20,38,23,40],[20,41,23,43],[13,8,15,21],[14,22,15,23],[9,8,11,21],[8,8,8,21],[10,6,11,7],[8,22,8,23],[16,44,19,48],[16,41,19,43],[16,38,19,40],[12,24,12,37],[12,38,15,40],[12,44,15,48],[8,24,8,37],[22,6,23,7],[96,22,96,23],[16,62,19,62],[96,24,96,37],[44,54,45,65],[44,14,45,49],[16,63,19,65],[52,2,52,5],[53,2,55,5],[54,6,55,7],[53,22,53,23],[54,22,55,23],[93,2,95,5],[68,6,69,12],[75,6,75,7],[76,6,77,7],[92,6,92,34],[68,2,69,5],[90,6,91,12],[84,37,85,37],[46,2,47,5],[49,25,51,34],[46,6,47,12],[49,47,51,49],[49,2,51,5],[46,25,47,65],[48,2,48,5],[53,58,55,58],[49,35,51,46],[52,38,52,40],[137,6,139,24],[137,25,139,34],[134,6,135,12],[134,2,135,5],[132,54,133,65],[134,21,135,24],[137,50,139,61],[134,13,135,20],[136,50,136,65],[136,35,136,49],[134,25,135,65],[96,6,96,7],[88,54,89,65],[118,8,118,21],[118,38,118,40],[96,54,96,65],[118,54,118,65],[119,58,121,58],[119,49,121,53],[112,25,113,65],[97,59,99,61],[97,63,99,65],[97,54,99,57],[119,63,121,65],[119,59,121,61],[118,49,118,53],[112,21,113,24],[106,28,107,28],[115,6,117,24],[118,41,118,43],[118,22,118,23],[118,6,118,7],[137,47,139,49],[140,8,140,21],[140,22,140,23],[140,24,140,37],[140,38,140,40],[140,41,140,43],[141,2,143,5],[150,37,151,37],[141,58,143,58],[141,63,143,65],[154,54,155,65],[137,62,139,65],[128,37,129,37],[141,8,143,21],[142,22,143,23],[141,59,143,61],[114,50,114,65],[119,62,121,62],[118,44,118,48],[118,24,118,37],[115,25,117,34],[119,8,121,21],[119,22,119,23],[119,24,121,37],[119,38,121,40],[119,41,121,43],[119,44,121,48],[137,2,139,5],[137,35,139,46],[128,28,129,28],[128,29,129,36],[136,6,136,34],[162,8,162,21],[158,6,158,34],[159,25,161,34],[158,2,158,5],[140,6,140,7],[141,44,143,48],[162,24,162,37],[162,38,162,40],[162,44,162,48],[162,41,162,43],[140,44,140,48],[140,49,140,53],[154,14,155,49],[141,41,143,43],[159,47,161,49],[159,50,161,61],[159,6,161,24],[141,54,143,57],[158,50,158,65],[159,35,161,46],[156,6,157,12],[156,13,157,20],[150,29,151,36],[141,24,143,37],[142,6,143,7],[141,6,141,7],[156,21,157,24],[140,54,140,65],[163,6,163,7],[163,8,165,21],[163,22,163,23],[162,22,162,23],[162,6,162,7],[140,2,140,5],[162,2,162,5],[141,22,141,23],[159,2,161,5],[156,2,157,5],[163,2,165,5],[178,6,179,12],[176,14,177,49],[163,49,165,53],[163,41,165,43],[178,21,179,24],[172,28,173,28],[164,22,165,23],[178,25,179,65],[164,6,165,7],[141,49,143,53],[159,62,161,65],[163,63,165,65],[156,25,157,65],[150,28,151,28],[141,62,143,62],[162,54,162,65],[158,35,158,49],[162,49,162,53],[141,38,143,40],[176,54,177,65],[172,29,173,36],[163,62,165,62],[163,44,165,48],[172,37,173,37],[163,58,165,58],[163,24,165,37],[163,54,165,57],[163,38,165,40],[163,59,165,61],[178,2,179,5],[178,13,179,20],[200,21,201,24],[185,41,187,43],[185,22,185,23],[180,6,180,34],[184,22,184,23],[184,38,184,40],[184,6,184,7],[184,8,184,21],[180,2,180,5],[181,6,183,24],[180,35,180,49],[181,35,183,46],[181,47,183,49],[181,2,183,5],[181,25,183,34],[180,50,180,65],[184,54,184,65],[184,41,184,43],[184,49,184,53],[181,62,183,65],[181,50,183,61],[184,44,184,48],[185,2,187,5],[185,6,185,7],[185,38,187,40],[194,29,195,36],[185,44,187,48],[184,24,184,37],[200,13,201,20]],"merged_total":1794,"flags":["merged_cut"]}
[]
[null,null,"※抽選番号",null,null,null,{"$f":"IF(入力シート!G6=\"\",\"\",入力シート!G6)","v":""},null,null,null,null,null,null,null,null,{"$f":"入力シート!P6","v":"第６８回　全国大会予選会申込書（女子）"},null,null,null,null,null,null,null,null,null,null,null,null,null,null,null,null,null,null,null,null,null,null,null,null,null,null,null,null,null,null,null,null,null,null,null,null,null,null,{"$f":"NOW()","v":"2019-04-23T14:59:10.980"}]
[]
[null,null,"学校番号",null,null,null,"学　　　　校　　　　名",null,null,null,null,null,null,null,null,null,null,null,null,null,null,null,null,null,null,null,null,null,null,null,null,null,null,null,null,"監督名",null,null,null,null,null,null,null,null,null,null,null,null,null,null,"校長名"]
[null,null,{"$f":"入力シート!$C$9","v":0},null,null,null,{"$f":"入力シート!$G$9","v":""},null,null,null,null,null,null,null,null,null,null,null,null,null,null,null,null,null,null,"高等学校",null,null,null,null,null,null,null,null,null,{"$f":"入力シート!$AJ$9","v":0},null,null,null,null,null,null,null,null,null,null,null,"印",null,null,{"$f":"入力シート!$AY$9","v":0},null,null,null,null,null,null,null,null,null,null,null,"印"]
[]
[]
[null,null,null,null,null,null,"選手名",null,null,null,null,null,null,null,null,null,null,null,null,null,null,null,null,null,null,null,null,null,null,null,null,null,null,null,null,null,null,null,"学年",null,null,"段位",null,null,"体重（kg）",null,null,null,null,"身長（cm）",null,null,null,null,"生年月日（西暦）"]
[null,null,"先鋒",null,null,null,"ふりがな",null,{"$f":"IF(入力シート!I13=\"\",\"\",入力シート!I13)","v":""},null,null,null,null,null,null,null,null,null,null,null,null,null,null,null,{"$f":"IF(入力シート!Y13=\"\",\"\",入力シート!Y13)","v":""},null,null,null,null,null,null,null,null,null,null,null,null,null,{"$f":"IF(入力シート!AM13=\"\",\"\",入力シート!AM13)","v":""},null,null,{"$f":"IF(入力シート!AP13=\"\",\"\",入力シート!AP13)","v":""},null,null,{"$f":"IF(入力シート!AS13=\"\",\"\",入力シート!AS13)","v":""},null,null,null,null,{"$f":"IF(入力シート!AX13=\"\",\"\",入力シート!AX13)","v":""},null,null,null,null,{"$f":"IF(入力シート!BC13=\"\",\"\",入力シート!BC13)","v":""},null,null,null,"・",{"$f":"IF(入力シート!BH13=\"\",\"\",入力シート!BH13)","v":""},null,null,"・",{"$f":"IF(入力シート!BL13=\"\",\"\",入力シート!BL13)","v":""}]
[null,null,null,null,null,null,"（姓）",null,{"$f":"IF(入力シート!I14=\"\",\"\",入力シート!I14)","v":""},null,null,null,null,null,null,null,null,null,null,null,null,null,"（名）",null,{"$f":"IF(入力シート!Y14=\"\",\"\",入力シート!Y14)","v":""}]
[]
[]
[null,null,"中堅",null,null,null,"ふりがな",null,{"$f":"IF(入力シート!I17=\"\",\"\",入力シート!I17)","v":""},null,null,null,null,null,null,null,null,null,null,null,null,null,null,null,{"$f":"IF(入力シート!Y17=\"\",\"\",入力シート!Y17)","v":""},null,null,null,null,null,null,null,null,null,null,null,null,null,{"$f":"IF(入力シート!AM17=\"\",\"\",入力シート!AM17)","v":""},null,null,{"$f":"IF(入力シート!AP17=\"\",\"\",入力シート!AP17)","v":""},null,null,{"$f":"IF(入力シート!AS17=\"\",\"\",入力シート!AS17)","v":""},null,null,null,null,{"$f":"IF(入力シート!AX17=\"\",\"\",入力シート!AX17)","v":""},null,null,null,null,{"$f":"IF(入力シート!BC17=\"\",\"\",入力シート!BC17)","v":""},null,null,null,"・",{"$f":"IF(入力シート!BH17=\"\",\"\",入力シート!BH17)","v":""},null,null,"・",{"$f":"IF(入力シート!BL17=\"\",\"\",入力シート!BL17)","v":""}]
[null,null,null,null,null,null,"（姓）",null,{"$f":"IF(入力シート!I18=\"\",\"\",入力シート!I18)","v":""},null,null,null,null,null,null,null,null,null,null,null,null,null,"（名）",null,{"$f":"IF(入力シート!Y18=\"\",\"\",入力シート!Y18)","v":""}]
[]
[]
[null,null,"大将",null,null,null,"ふりがな",null,{"$f":"IF(入力シート!I21=\"\",\"\",入力シート!I21)","v":""},null,null,null,null,null,null,null,null,null,null,null,null,null,null,null,{"$f":"IF(入力シート!Y21=\"\",\"\",入力シート!Y21)","v":""},null,null,null,null,null,null,null,null,null,null,null,null,null,{"$f":"IF(入力シート!AM21=\"\",\"\",入力シート!AM21)","v":""},null,null,{"$f":"IF(入力シート!AP21=\"\",\"\",入力シート!AP21)","v":""},null,null,{"$f":"IF(入力シート!AS21=\"\",\"\",入力シート!AS21)","v":""},null,null,null,null,{"$f":"IF(入力シート!AX21=\"\",\"\",入力シート!AX21)","v":""},null,null,null,null,{"$f":"IF(入力シート!BC21=\"\",\"\",入力シート!BC21)","v":""},null,null,null,"・",{"$f":"IF(入力シート!BH21=\"\",\"\",入力シート!BH21)","v":""},null,null,"・",{"$f":"IF(入力シート!BL21=\"\",\"\",入力シート!BL21)","v":""}]
[null,null,null,null,null,null,"（姓）",null,{"$f":"IF(入力シート!I22=\"\",\"\",入力シート!I22)","v":""},null,null,null,null,null,null,null,null,null,null,null,null,null,"（名）",null,{"$f":"IF(入力シート!Y22=\"\",\"\",入力シート!Y22)","v":""}]
[]
[]
[null,null,"補欠",null,null,null,"ふりがな",null,{"$f":"IF(入力シート!I25=\"\",\"\",入力シート!I25)","v":""},null,null,null,null,null,null,null,null,null,null,null,null,null,null,null,{"$f":"IF(入力シート!Y25=\"\",\"\",入力シート!Y25)","v":""},null,null,null,null,null,null,null,null,null,null,null,null,null,{"$f":"IF(入力シート!AM25=\"\",\"\",入力シート!AM25)","v":""},null,null,{"$f":"IF(入力シート!AP25=\"\",\"\",入力シート!AP25)","v":""},null,null,{"$f":"IF(入力シート!AS25=\"\",\"\",入力シート!AS25)","v":""},null,null,null,null,{"$f":"IF(入力シート!AX25=\"\",\"\",入力シート!AX25)","v":""},null,null,null,null,{"$f":"IF(入力シート!BC25=\"\",\"\",入力シート!BC25)","v":""},null,null,null,"・",{"$f":"IF(入力シート!BH25=\"\",\"\",入力シート!BH25)","v":""},null,null,"・",{"$f":"IF(入力シート!BL25=\"\",\"\",入力シート!BL25)","v":""}]
[null,null,null,null,null,null,"（姓）",null,{"$f":"IF(入力シート!I26=\"\",\"\",入力シート!I26)","v":""},null,null,null,null,null,null,null,null,null,null,null,null,null,"（名）",null,{"$f":"IF(入力シート!Y26=\"\",\"\",入力シート!Y26)","v":""}]
[]
[]
[]
[]
[]
[]
[]
[]
[]
[]
[]
[]
[]
[]
[]
[]
[]
[]
[]
[]
[]
[]
[null,null,null,null,null,null,null,null,null,null,null,null,null,null,"個　人　試　合　申　込　書",null,null,null,null,null,null,null,null,null,null,null,null,null,null,null,null,null,null,null,null,null,null,null,null,null,null,null,null,null,null,null,null,null,null,null,null,null,null,null,{"$f":"NOW()","v":"2019-04-23T14:59:10.980"}]
[]
[null,null,"※抽選番号",null,null,null,null,null,null,null,null,null,null,{"$f":"IF(入力シート!C47=\"\",\"\",入力シート!C47)","v":""},null,null,null,null,null,null,null,"kg級",null,null,null,{"$f":"入力シート!O43","v":"第６８回　全国大会大阪府予選会"}]
[]
[null,null,"学校番号",null,null,null,"学　　　　校　　　　名",null,null,null,null,null,null,null,null,null,null,null,null,null,null,null,null,null,null,null,null,null,null,null,null,null,null,null,null,"監督名",null,null,null,null,null,null,null,null,null,null,null,null,null,null,"校長名"]
[null,null,{"$f":"入力シート!$C$9","v":0},null,null,null,{"$f":"入力シート!$G$9","v":""},null,null,null,null,null,null,null,null,null,null,null,null,null,null,null,null,null,null,"高等学校",null,null,null,null,null,null,null,null,null,{"$f":"入力シート!$AJ$9","v":0},null,null,null,null,null,null,null,null,null,null,null,"印",null,null,{"$f":"入力シート!$AY$9","v":0},null,null,null,null,null,null,null,null,null,null,null,"印"]
[]
[]
[null,null,"ふりがな",null,null,null,null,null,{"$f":"IF(入力シート!I47=\"\",\"\",入力シート!I47)","v":""},null,null,null,null,null,null,null,null,null,null,null,null,null,null,null,{"$f":"IF(入力シート!Y47=\"\",\"\",入力シート!Y47)","v":""},null,null,null,null,null,null,null,null,null,null,null,null,null,"学年",null,null,"段位",null,null,"体重（kg）",null,null,null,null,"身長（cm）",null,null,null,null,"生年月日（西暦）"]
[null,null,"選手名",null,null,null,"（姓）",null,{"$f":"IF(入力シート!I48=\"\",\"\",入力シート!I48)","v":""},null,null,null,null,null,null,null,null,null,null,null,null,null,"（名）",null,{"$f":"IF(入力シート!Y48=\"\",\"\",入力シート!Y48)","v":""},null,null,null,null,null,null,null,null,null,null,null,null,null,{"$f":"IF(入力シート!AM47=\"\",\"\",入力シート!AM47)","v":""},null,null,{"$f":"IF(入力シート!AP47=\"\",\"\",入力シート!AP47)","v":""},null,null,{"$f":"IF(入力シート!AS47=\"\",\"\",入力シート!AS47)","v":""},null,null,null,null,{"$f":"IF(入力シート!AX47=\"\",\"\",入力シート!AX47)","v":""},null,null,null,null,{"$f":"IF(入力シート!BC47=\"\",\"\",入力シート!BC47)","v":""},null,null,null,"・",{"$f":"IF(入力シート!BH47=\"\",\"\",入力シート!BH47)","v":""},null,null,"・",{"$f":"IF(入力シート!BL47=\"\",\"\",入力シート!BL47)","v":""}]
[]
[]
[]
[]
[]
[]
[]
[]
[null,null,null,null,null,null,null,null,null,null,null,null,null,null,null,null,null,null,null,null,null,null,null,null,null,null,null,null,"（","ｷ　ﾘ　ﾄ　ﾘ",null,null,null,null,null,null,null,"）"]
[]
[]
[]
[null,null,null,null,null,null,null,null,null,null,null,null,null,null,"個　人　試　合　申　込　書",null,null,null,null,null,null,null,null,null,null,null,null,null,null,null,null,null,null,null,null,null,null,null,null,null,null,null,null,null,null,null,null,null,null,null,null,null,null,null,{"$f":"NOW()","v":"2019-04-23T14:59:10.980"}]
[]
[null,null,"※抽選番号",null,null,null,null,null,null,null,null,null,null,{"$f":"IF(入力シート!C51=\"\",\"\",入力シート!C51)","v":""},null,null,null,null,null,null,null,"kg級",null,null,null,{"$f":"入力シート!O43","v":"第６８回　全国大会大阪府予選会"}]
[]
[null,null,"学校番号",null,null,null,"学　　　　校　　　　名",null,null,null,null,null,null,null,null,null,null,null,null,null,null,null,null,null,null,null,null,null,null,null,null,null,null,null,null,"監督名",null,null,null,null,null,null,null,null,null,null,null,null,null,null,"校長名"]
[null,null,{"$f":"入力シート!$C$9","v":0},null,null,null,{"$f":"入力シート!$G$9","v":""},null,null,null,null,null,null,null,null,null,null,null,null,null,null,null,null,null,null,"高等学校",null,null,null,null,null,null,null,null,null,{"$f":"入力シート!$AJ$9","v":0},null,null,null,null,null,null,null,null,null,null,null,"印",null,null,{"$f":"入力シート!$AY$9","v":0},null,null,null,null,null,null,null,null,null,null,null,"印"]
[]
[]
[null,null,"ふりがな",null,null,null,null,null,{"$f":"IF(入力シート!I51=\"\",\"\",入力シート!I51)","v":""},null,null,null,null,null,null,null,null,null,null,null,null,null,null,null,{"$f":"IF(入力シート!Y51=\"\",\"\",入力シート!Y51)","v":""},null,null,null,null,null,null,null,null,null,null,null,null,null,"学年",null,null,"段位",null,null,"体重（kg）",null,null,null,null,"身長（cm）",null,null,null,null,"生年月日（西暦）"]
[null,null,"選手名",null,null,null,"（姓）",null,{"$f":"IF(入力シート!I52=\"\",\"\",入力シート!I52)","v":""},null,null,null,null,null,null,null,null,null,null,null,null,null,"（名）",null,{"$f":"IF(入力シート!Y52=\"\",\"\",入力シート!Y52)","v":""},null,null,null,null,null,null,null,null,null,null,null,null,null,{"$f":"IF(入力シート!AM51=\"\",\"\",入力シート!AM51)","v":""},null,null,{"$f":"IF(入力シート!AP51=\"\",\"\",入力シート!AP51)","v":""},null,null,{"$f":"IF(入力シート!AS51=\"\",\"\",入力シート!AS51)","v":""},null,null,null,null,{"$f":"IF(入力シート!AX51=\"\",\"\",入力シート!AX51)","v":""},null,null,null,null,{"$f":"IF(入力シート!BC51=\"\",\"\",入力シート!BC51)","v":""},null,null,null,"・",{"$f":"IF(入力シート!BH51=\"\",\"\",入力シート!BH51)","v":""},null,null,"・",{"$f":"IF(入力シート!BL51=\"\",\"\",入力シート!BL51)","v":""}]
[]
[]
[]
[]
[]
[]
[]
[]
[]
[]
[]
[]
[null,null,null,null,null,null,null,null,null,null,null,null,null,null,"個　人　試　合　申　込　書",null,null,null,null,null,null,null,null,null,null,null,null,null,null,null,null,null,null,null,null,null,null,null,null,null,null,null,null,null,null,null,null,null,null,null,null,null,null,null,{"$f":"NOW()","v":"2019-04-23T14:59:10.980"}]
[]
[null,null,"※抽選番号",null,null,null,null,null,null,null,null,null,null,{"$f":"IF(入力シート!C55=\"\",\"\",入力シート!C55)","v":""},null,null,null,null,null,null,null,"kg級",null,null,null,{"$f":"入力シート!O43","v":"第６８回　全国大会大阪府予選会"}]
[]
[null,null,"学校番号",null,null,null,"学　　　　校　　　　名",null,null,null,null,null,null,null,null,null,null,null,null,null,null,null,null,null,null,null,null,null,null,null,null,null,null,null,null,"監督名",null,null,null,null,null,null,null,null,null,null,null,null,null,null,"校長名"]
[null,null,{"$f":"入力シート!$C$9","v":0},null,null,null,{"$f":"入力シート!$G$9","v":""},null,null,null,null,null,null,null,null,null,null,null,null,null,null,null,null,null,null,"高等学校",null,null,null,null,null,null,null,null,null,{"$f":"入力シート!$AJ$9","v":0},null,null,null,null,null,null,null,null,null,null,null,"印",null,null,{"$f":"入力シート!$AY$9","v":0},null,null,null,null,null,null,null,null,null,null,null,"印"]
[]
[]
[null,null,"ふりがな",null,null,null,null,null,{"$f":"IF(入力シート!I55=\"\",\"\",入力シート!I55)","v":""},null,null,null,null,null,null,null,null,null,null,null,null,null,null,null,{"$f":"IF(入力シート!Y55=\"\",\"\",入力シート!Y55)","v":""},null,null,null,null,null,null,null,null,null,null,null,null,null,"学年",null,null,"段位",null,null,"体重（kg）",null,null,null,null,"身長（cm）",null,null,null,null,"生年月日（西暦）"]
[null,null,"選手名",null,null,null,"（姓）",null,{"$f":"IF(入力シート!I56=\"\",\"\",入力シート!I56)","v":""},null,null,null,null,null,null,null,null,null,null,null,null,null,"（名）",null,{"$f":"IF(入力シート!Y56=\"\",\"\",入力シート!Y56)","v":""},null,null,null,null,null,null,null,null,null,null,null,null,null,{"$f":"IF(入力シート!AM55=\"\",\"\",入力シート!AM55)","v":""},null,null,{"$f":"IF(入力シート!AP55=\"\",\"\",入力シート!AP55)","v":""},null,null,{"$f":"IF(入力シート!AS55=\"\",\"\",入力シート!AS55)","v":""},null,null,null,null,{"$f":"IF(入力シート!AX55=\"\",\"\",入力シート!AX55)","v":""},null,null,null,null,{"$f":"IF(入力シート!BC55=\"\",\"\",入力シート!BC55)","v":""},null,null,null,"・",{"$f":"IF(入力シート!BH55=\"\",\"\",入力シート!BH55)","v":""},null,null,"・",{"$f":"IF(入力シート!BL55=\"\",\"\",入力シート!BL55)","v":""}]
[]
[]
[]
[]
[]
[]
[]
[]
[null,null,null,null,null,null,null,null,null,null,null,null,null,null,null,null,null,null,null,null,null,null,null,null,null,null,null,null,"（","ｷ　ﾘ　ﾄ　ﾘ",null,null,null,null,null,null,null,"）"]
[]
[]
[]
[null,null,null,null,null,null,null,null,null,null,null,null,null,null,"個　人　試　合　申　込　書",null,null,null,null,null,null,null,null,null,null,null,null,null,null,null,null,null,null,null,null,null,null,null,null,null,null,null,null,null,null,null,null,null,null,null,null,null,null,null,{"$f":"NOW()","v":"2019-04-23T14:59:10.980"}]
[]
[null,null,"※抽選番号",null,null,null,null,null,null,null,null,null,null,{"$f":"IF(入力シート!C59=\"\",\"\",入力シート!C59)","v":""},null,null,null,null,null,null,null,"kg級",null,null,null,{"$f":"入力シート!O43","v":"第６８回　全国大会大阪府予選会"}]
[]
[null,null,"学校番号",null,null,null,"学　　　　校　　　　名",null,null,null,null,null,null,null,null,null,null,null,null,null,null,null,null,null,null,null,null,null,null,null,null,null,null,null,null,"監督名",null,null,null,null,null,null,null,null,null,null,null,null,null,null,"校長名"]
[null,null,{"$f":"入力シート!$C$9","v":0},null,null,null,{"$f":"入力シート!$G$9","v":""},null,null,null,null,null,null,null,null,null,null,null,null,null,null,null,null,null,null,"高等学校",null,null,null,null,null,null,null,null,null,{"$f":"入力シート!$AJ$9","v":0},null,null,null,null,null,null,null,null,null,null,null,"印",null,null,{"$f":"入力シート!$AY$9","v":0},null,null,null,null,null,null,null,null,null,null,null,"印"]
[]
[]
[null,null,"ふりがな",null,null,null,null,null,{"$f":"IF(入力シート!I59=\"\",\"\",入力シート!I59)","v":""},null,null,null,null,null,null,null,null,null,null,null,null,null,null,null,{"$f":"IF(入力シート!Y59=\"\",\"\",入力シート!Y59)","v":""},null,null,null,null,null,null,null,null,null,null,null,null,null,"学年",null,null,"段位",null,null,"体重（kg）",null,null,null,null,"身長（cm）",null,null,null,null,"生年月日（西暦）"]
[null,null,"選手名",null,null,null,"（姓）",null,{"$f":"IF(入力シート!I60=\"\",\"\",入力シート!I60)","v":""},null,null,null,null,null,null,null,null,null,null,null,null,null,"（名）",null,{"$f":"IF(入力シート!Y60=\"\",\"\",入力シート!Y60)","v":""},null,null,null,null,null,null,null,null,null,null,null,null,null,{"$f":"IF(入力シート!AM59=\"\",\"\",入力シート!AM59)","v":""},null,null,{"$f":"IF(入力シート!AP59=\"\",\"\",入力シート!AP59)","v":""},null,null,{"$f":"IF(入力シート!AS59=\"\",\"\",入力シート!AS59)","v":""},null,null,null,null,{"$f":"IF(入力シート!AX59=\"\",\"\",入力シート!AX59)","v":""},null,null,null,null,{"$f":"IF(入力シート!BC59=\"\",\"\",入力シート!BC59)","v":""},null,null,null,"・",{"$f":"IF(入力シート!BH59=\"\",\"\",入力シート!BH59)","v":""},null,null,"・",{"$f":"IF(入力シート!BL59=\"\",\"\",入力シート!BL59)","v":""}]
[]
[]
[]
[]
[]
[]
[]
[]
[]
[]
[]
[]
[null,null,null,null,null,null,null,null,null,null,null,null,null,null,"個　人　試　合　申　込　書",null,null,null,null,null,null,null,null,null,null,null,null,null,null,null,null,null,null,null,null,null,null,null,null,null,null,null,null,null,null,null,null,null,null,null,null,null,null,null,{"$f":"NOW()","v":"2019-04-23T14:59:10.980"}]
[]
[null,null,"※抽選番号",null,null,null,null,null,null,null,null,null,null,{"$f":"IF(入力シート!C63=\"\",\"\",入力シート!C63)","v":""},null,null,null,null,null,null,null,"kg級",null,null,null,{"$f":"入力シート!O43","v":"第６８回　全国大会大阪府予選会"}]
[]
[null,null,"学校番号",null,null,null,"学　　　　校　　　　名",null,null,null,null,null,null,null,null,null,null,null,null,null,null,null,null,null,null,null,null,null,null,null,null,null,null,null,null,"監督名",null,null,null,null,null,null,null,null,null,null,null,null,null,null,"校長名"]
[null,null,{"$f":"入力シート!$C$9","v":0},null,null,null,{"$f":"入力シート!$G$9","v":""},null,null,null,null,null,null,null,null,null,null,null,null,null,null,null,null,null,null,"高等学校",null,null,null,null,null,null,null,null,null,{"$f":"入力シート!$AJ$9","v":0},null,null,null,null,null,null,null,null,null,null,null,"印",null,null,{"$f":"入力シート!$AY$9","v":0},null,null,null,null,null,null,null,null,null,null,null,"印"]
[]
[]
[null,null,"ふりがな",null,null,null,null,null,{"$f":"IF(入力シート!I63=\"\",\"\",入力シート!I63)","v":""},null,null,null,null,null,null,null,null,null,null,null,null,null,null,null,{"$f":"IF(入力シート!Y63=\"\",\"\",入力シート!Y63)","v":""},null,null,null,null,null,null,null,null,null,null,null,null,null,"学年",null,null,"段位",null,null,"体重（kg）",null,null,null,null,"身長（cm）",null,null,null,null,"生年月日（西暦）"]
[null,null,"選手名",null,null,null,"（姓）",null,{"$f":"IF(入力シート!I64=\"\",\"\",入力シート!I64)","v":""},null,null,null,null,null,null,null,null,null,null,null,null,null,"（名）",null,{"$f":"IF(入力シート!Y64=\"\",\"\",入力シート!Y64)","v":""},null,null,null,null,null,null,null,null,null,null,null,null,null,{"$f":"IF(入力シート!AM63=\"\",\"\",入力シート!AM63)","v":""},null,null,{"$f":"IF(入力シート!AP63=\"\",\"\",入力シート!AP63)","v":""},null,null,{"$f":"IF(入力シート!AS63=\"\",\"\",入力シート!AS63)","v":""},null,null,null,null,{"$f":"IF(入力シート!AX63=\"\",\"\",入力シート!AX63)","v":""},null,null,null,null,{"$f":"IF(入力シート!BC63=\"\",\"\",入力シート!BC63)","v":""},null,null,null,"・",{"$f":"IF(入力シート!BH63=\"\",\"\",入力シート!BH63)","v":""},null,null,"・",{"$f":"IF(入力シート!BL63=\"\",\"\",入力シート!BL63)","v":""}]
[]
[]
[]
[]
[]
[]
[]
[]
[null,null,null,null,null,null,null,null,null,null,null,null,null,null,null,null,null,null,null,null,null,null,null,null,null,null,null,null,"（","ｷ　ﾘ　ﾄ　ﾘ",null,null,null,null,null,null,null,"）"]
[]
[]
[]
[null,null,null,null,null,null,null,null,null,null,null,null,null,null,"個　人　試　合　申　込　書",null,null,null,null,null,null,null,null,null,null,null,null,null,null,null,null,null,null,null,null,null,null,null,null,null,null,null,null,null,null,null,null,null,null,null,null,null,null,null,{"$f":"NOW()","v":"2019-04-23T14:59:10.980"}]
[]
[null,null,"※抽選番号",null,null,null,null,null,null,null,null,null,null,{"$f":"IF(入力シート!C67=\"\",\"\",入力シート!C67)","v":""},null,null,null,null,null,null,null,"kg級",null,null,null,{"$f":"入力シート!O43","v":"第６８回　全国大会大阪府予選会"}]
[]
[null,null,"学校番号",null,null,null,"学　　　　校　　　　名",null,null,null,null,null,null,null,null,null,null,null,null,null,null,null,null,null,null,null,null,null,null,null,null,null,null,null,null,"監督名",null,null,null,null,null,null,null,null,null,null,null,null,null,null,"校長名"]
[null,null,{"$f":"入力シート!$C$9","v":0},null,null,null,{"$f":"入力シート!$G$9","v":""},null,null,null,null,null,null,null,null,null,null,null,null,null,null,null,null,null,null,"高等学校",null,null,null,null,null,null,null,null,null,{"$f":"入力シート!$AJ$9","v":0},null,null,null,null,null,null,null,null,null,null,null,"印",null,null,{"$f":"入力シート!$AY$9","v":0},null,null,null,null,null,null,null,null,null,null,null,"印"]
[]
[]
[null,null,"ふりがな",null,null,null,null,null,{"$f":"IF(入力シート!I67=\"\",\"\",入力シート!I67)","v":""},null,null,null,null,null,null,null,null,null,null,null,null,null,null,null,{"$f":"IF(入力シート!Y67=\"\",\"\",入力シート!Y67)","v":""},null,null,null,null,null,null,null,null,null,null,null,null,null,"学年",null,null,"段位",null,null,"体重（kg）",null,null,null,null,"身長（cm）",null,null,null,null,"生年月日（西暦）"]
[null,null,"選手名",null,null,null,"（姓）",null,{"$f":"IF(入力シート!I68=\"\",\"\",入力シート!I68)","v":""},null,null,null,null,null,null,null,null,null,null,null,null,null,"（名）",null,{"$f":"IF(入力シート!Y68=\"\",\"\",入力シート!Y68)","v":""},null,null,null,null,null,null,null,null,null,null,null,null,null,{"$f":"IF(入力シート!AM67=\"\",\"\",入力シート!AM67)","v":""},null,null,{"$f":"IF(入力シート!AP67=\"\",\"\",入力シート!AP67)","v":""},null,null,{"$f":"IF(入力シート!AS67=\"\",\"\",入力シート!AS67)","v":""},null,null,null,null,{"$f":"IF(入力シート!AX67=\"\",\"\",入力シート!AX67)","v":""},null,null,null,null,{"$f":"IF(入力シート!BC67=\"\",\"\",入力シート!BC67)","v":""},null,null,null,"・",{"$f":"IF(入力シート!BH67=\"\",\"\",入力シート!BH67)","v":""},null,null,"・",{"$f":"IF(入力シート!BL67=\"\",\"\",入力シート!BL67)","v":5}]
[]
[]
[]
[]
[]
[]
[]
[]
[]
[]
[]
[]
[null,null,null,null,null,null,null,null,null,null,null,null,null,null,"個　人　試　合　申　込　書",null,null,null,null,null,null,null,null,null,null,null,null,null,null,null,null,null,null,null,null,null,null,null,null,null,null,null,null,null,null,null,null,null,null,null,null,null,null,null,{"$f":"NOW()","v":"2019-04-23T14:59:10.980"}]
[]
[null,null,"※抽選番号",null,null,null,null,null,null,null,null,null,null,{"$f":"IF(入力シート!C71=\"\",\"\",入力シート!C71)","v":""},null,null,null,null,null,null,null,"kg級",null,null,null,{"$f":"入力シート!O43","v":"第６８回　全国大会大阪府予選会"}]
[]
[null,null,"学校番号",null,null,null,"学　　　　校　　　　名",null,null,null,null,null,null,null,null,null,null,null,null,null,null,null,null,null,null,null,null,null,null,null,null,null,null,null,null,"監督名",null,null,null,null,null,null,null,null,null,null,null,null,null,null,"校長名"]
[null,null,{"$f":"入力シート!$C$9","v":0},null,null,null,{"$f":"入力シート!$G$9","v":""},null,null,null,null,null,null,null,null,null,null,null,null,null,null,null,null,null,null,"高等学校",null,null,null,null,null,null,null,null,null,{"$f":"入力シート!$AJ$9","v":0},null,null,null,null,null,null,null,null,null,null,null,"印",null,null,{"$f":"入力シート!$AY$9","v":0},null,null,null,null,null,null,null,null,null,null,null,"印"]
[]
[]
[null,null,"ふりがな",null,null,null,null,null,{"$f":"IF(入力シート!I71=\"\",\"\",入力シート!I71)","v":""},null,null,null,null,null,null,null,null,null,null,null,null,null,null,null,{"$f":"IF(入力シート!Y71=\"\",\"\",入力シート!Y71)","v":""},null,null,null,null,null,null,null,null,null,null,null,null,null,"学年",null,null,"段位",null,null,"体重（kg）",null,null,null,null,"身長（cm）",null,null,null,null,"生年月日（西暦）"]
[null,null,"選手名",null,null,null,"（姓）",null,{"$f":"IF(入力シート!I72=\"\",\"\",入力シート!I72)","v":""},null,null,null,null,null,null,null,null,null,null,null,null,null,"（名）",null,{"$f":"IF(入力シート!Y72=\"\",\"\",入力シート!Y72)","v":""},null,null,null,null,null,null,null,null,null,null,null,null,null,{"$f":"IF(入力シート!AM71=\"\",\"\",入力シート!AM71)","v":""},null,null,{"$f":"IF(入力シート!AP71=\"\",\"\",入力シート!AP71)","v":""},null,null,{"$f":"IF(入力シート!AS71=\"\",\"\",入力シート!AS71)","v":""},null,null,null,null,{"$f":"IF(入力シート!AX71=\"\",\"\",入力シート!AX71)","v":""},null,null,null,null,{"$f":"IF(入力シート!BC71=\"\",\"\",入力シート!BC71)","v":""},null,null,null,"・",{"$f":"IF(入力シート!BH71=\"\",\"\",入力シート!BH71)","v":""},null,null,"・",{"$f":"IF(入力シート!BL71=\"\",\"\",入力シート!BL71)","v":""}]
[]
[]
[]
[]
[]
[]
[]
[]
[null,null,null,null,null,null,null,null,null,null,null,null,null,null,null,null,null,null,null,null,null,null,null,null,null,null,null,null,"（","ｷ　ﾘ　ﾄ　ﾘ",null,null,null,null,null,null,null,"）"]
[]
[]
[]
[null,null,null,null,null,null,null,null,null,null,null,null,null,null,"個　人　試　合　申　込　書",null,null,null,null,null,null,null,null,null,null,null,null,null,null,null,null,null,null,null,null,null,null,null,null,null,null,null,null,null,null,null,null,null,null,null,null,null,null,null,{"$f":"NOW()","v":"2019-04-23T14:59:10.980"}]
[]
[null,null,"※抽選番号",null,null,null,null,null,null,null,null,null,null,{"$f":"IF(入力シート!C75=\"\",\"\",入力シート!C75)","v":""},null,null,null,null,null,null,null,"kg級",null,null,null,{"$f":"入力シート!O43","v":"第６８回　全国大会大阪府予選会"}]
[]
[null,null,"学校番号",null,null,null,"学　　　　校　　　　名",null,null,null,null,null,null,null,null,null,null,null,null,null,null,null,null,null,null,null,null,null,null,null,null,null,null,null,null,"監督名",null,null,null,null,null,null,null,null,null,null,null,null,null,null,"校長名"]
[null,null,{"$f":"入力シート!$C$9","v":0},null,null,null,{"$f":"入力シート!$G$9","v":""},null,null,null,null,null,null,null,null,null,null,null,null,null,null,null,null,null,null,"高等学校",null,null,null,null,null,null,null,null,null,{"$f":"入力シート!$AJ$9","v":0},null,null,null,null,null,null,null,null,null,null,null,"印",null,null,{"$f":"入力シート!$AY$9","v":0},null,null,null,null,null,null,null,null,null,null,null,"印"]
[]
[]
[null,null,"ふりがな",null,null,null,null,null,{"$f":"IF(入力シート!I75=\"\",\"\",入力シート!I75)","v":""},null,null,null,null,null,null,null,null,null,null,null,null,null,null,null,{"$f":"IF(入力シート!Y75=\"\",\"\",入力シート!Y75)","v":""},null,null,null,null,null,null,null,null,null,null,null,null,null,"学年",null,null,"段位",null,null,"体重（kg）",null,null,null,null,"身長（cm）",null,null,null,null,"生年月日（西暦）"]
[null,null,"選手名",null,null,null,"（姓）",null,{"$f":"IF(入力シート!I76=\"\",\"\",入力シート!I76)","v":""},null,null,null,null,null,null,null,null,null,null,null,null,null,"（名）",null,{"$f":"IF(入力シート!Y76=\"\",\"\",入力シート!Y76)","v":""},null,null,null,null,null,null,null,null,null,null,null,null,null,{"$f":"IF(入力シート!AM75=\"\",\"\",入力シート!AM75)","v":""},null,null,{"$f":"IF(入力シート!AP75=\"\",\"\",入力シート!AP75)","v":""},null,null,{"$f":"IF(入力シート!AS75=\"\",\"\",入力シート!AS75)","v":""},null,null,null,null,{"$f":"IF(入力シート!AX75=\"\",\"\",入力シート!AX75)","v":""},null,null,null,null,{"$f":"IF(入力シート!BC75=\"\",\"\",入力シート!BC75)","v":""},null,null,null,"・",{"$f":"IF(入力シート!BH75=\"\",\"\",入力シート!BH75)","v":""},null,null,"・",{"$f":"IF(入力シート!BL75=\"\",\"\",入力シート!BL75)","v":""}]
[]
[]
[]
[]
[]
[]
[]
[]
[]
[]
[]
[]
[]
[null,null,null,null,null,null,null,null,null,null,null,null,null,null,"個　人　試　合　申　込　書",null,null,null,null,null,null,null,null,null,null,null,null,null,null,null,null,null,null,null,null,null,null,null,null,null,null,null,null,null,null,null,null,null,null,null,null,null,null,null,{"$f":"NOW()","v":"2019-04-23T14:59:10.980"}]
[]
[null,null,"※抽選番号",null,null,null,null,null,null,null,null,null,null,{"$f":"IF(入力シート!C79=\"\",\"\",入力シート!C79)","v":""},null,null,null,null,null,null,null,"kg級",null,null,null,{"$f":"入力シート!O43","v":"第６８回　全国大会大阪府予選会"}]
[]
[null,null,"学校番号",null,null,null,"学　　　　校　　　　名",null,null,null,null,null,null,null,null,null,null,null,null,null,null,null,null,null,null,null,null,null,null,null,null,null,null,null,null,"監督名",null,null,null,null,null,null,null,null,null,null,null,null,null,null,"校長名"]
[null,null,{"$f":"入力シート!$C$9","v":0},null,null,null,{"$f":"入力シート!$G$9","v":""},null,null,null,null,null,null,null,null,null,null,null,null,null,null,null,null,null,null,"高等学校",null,null,null,null,null,null,null,null,null,{"$f":"入力シート!$AJ$9","v":0},null,null,null,null,null,null,null,null,null,null,null,"印",null,null,{"$f":"入力シート!$AY$9","v":0},null,null,null,null,null,null,null,null,null,null,null,"印"]
[]
[]
[null,null,"ふりがな",null,null,null,null,null,{"$f":"IF(入力シート!I79=\"\",\"\",入力シート!I79)","v":""},null,null,null,null,null,null,null,null,null,null,null,null,null,null,null,{"$f":"IF(入力シート!Y79=\"\",\"\",入力シート!Y79)","v":""},null,null,null,null,null,null,null,null,null,null,null,null,null,"学年",null,null,"段位",null,null,"体重（kg）",null,null,null,null,"身長（cm）",null,null,null,null,"生年月日（西暦）"]
[null,null,"選手名",null,null,null,"（姓）",null,{"$f":"IF(入力シート!I80=\"\",\"\",入力シート!I80)","v":""},null,null,null,null,null,null,null,null,null,null,null,null,null,"（名）",null,{"$f":"IF(入力シート!Y80=\"\",\"\",入力シート!Y80)","v":""},null,null,null,null,null,null,null,null,null,null,null,null,null,{"$f":"IF(入力シート!AM79=\"\",\"\",入力シート!AM79)","v":""},null,null,{"$f":"IF(入力シート!AP79=\"\",\"\",入力シート!AP79)","v":""},null,null,{"$f":"IF(入力シート!AS79=\"\",\"\",入力シート!AS79)","v":""},null,null,null,null,{"$f":"IF(入力シート!AX79=\"\",\"\",入力シート!AX79)","v":""},null,null,null,null,{"$f":"IF(入力シート!BC79=\"\",\"\",入力シート!BC79)","v":""},null,null,null,"・",{"$f":"IF(入力シート!BH79=\"\",\"\",入力シート!BH79)","v":""},null,null,"・",{"$f":"IF(入力シート!BL79=\"\",\"\",入力シート!BL79)","v":""}]
[]
[]
[]
[]
[]
[]
[]
[]
[null,null,null,null,null,null,null,null,null,null,null,null,null,null,null,null,null,null,null,null,null,null,null,null,null,null,null,null,"（","ｷ　ﾘ　ﾄ　ﾘ",null,null,null,null,null,null,null,"）"]
[]
[]
[]
[null,null,null,null,null,null,null,null,null,null,null,null,null,null,"個　人　試　合　申　込　書",null,null,null,null,null,null,null,null,null,null,null,null,null,null,null,null,null,null,null,null,null,null,null,null,null,null,null,null,null,null,null,null,null,null,null,null,null,null,null,{"$f":"NOW()","v":"2019-04-23T14:59:10.980"}]
[]
[null,null,"※抽選番号",null,null,null,null,null,null,null,null,null,null,{"$f":"IF(入力シート!C83=\"\",\"\",入力シート!C83)","v":""},null,null,null,null,null,null,null,"kg級",null,null,null,{"$f":"入力シート!O43","v":"第６８回　全国大会大阪府予選会"}]
[]
[null,null,"学校番号",null,null,null,"学　　　　校　　　　名",null,null,null,null,null,null,null,null,null,null,null,null,null,null,null,null,null,null,null,null,null,null,null,null,null,null,null,null,"監督名",null,null,null,null,null,null,null,null,null,null,null,null,null,null,"校長名"]
[null,null,{"$f":"入力シート!$C$9","v":0},null,null,null,{"$f":"入力シート!$G$9","v":""},null,null,null,null,null,null,null,null,null,null,null,null,null,null,null,null,null,null,"高等学校",null,null,null,null,null,null,null,null,null,{"$f":"入力シート!$AJ$9","v":0},null,null,null,null,null,null,null,null,null,null,null,"印",null,null,{"$f":"入力シート!$AY$9","v":0},null,null,null,null,null,null,null,null,null,null,null,"印"]
[]
[]
[null,null,"ふりがな",null,null,null,null,null,{"$f":"IF(入力シート!I83=\"\",\"\",入力シート!I83)","v":""},null,null,null,null,null,null,null,null,null,null,null,null,null,null,null,{"$f":"IF(入力シート!Y83=\"\",\"\",入力シート!Y83)","v":""},null,null,null,null,null,null,null,null,null,null,null,null,null,"学年",null,null,"段位",null,null,"体重（kg）",null,null,null,null,"身長（cm）",null,null,null,null,"生年月日（西暦）"]
[null,null,"選手名",null,null,null,"（姓）",null,{"$f":"IF(入力シート!I84=\"\",\"\",入力シート!I84)","v":""},null,null,null,null,null,null,null,null,null,null,null,null,null,"（名）",null,{"$f":"IF(入力シート!Y84=\"\",\"\",入力シート!Y84)","v":""},null,null,null,null,null,null,null,null,null,null,null,null,null,{"$f":"IF(入力シート!AM83=\"\",\"\",入力シート!AM83)","v":""},null,null,{"$f":"IF(入力シート!AP83=\"\",\"\",入力シート!AP83)","v":""},null,null,{"$f":"IF(入力シート!AS83=\"\",\"\",入力シート!AS83)","v":""},null,null,null,null,{"$f":"IF(入力シート!AX83=\"\",\"\",入力シート!AX83)","v":""},null,null,null,null,{"$f":"IF(入力シート!BC83=\"\",\"\",入力シート!BC83)","v":""},null,null,null,"・",{"$f":"IF(入力シート!BH83=\"\",\"\",入力シート!BH83)","v":""},null,null,"・",{"$f":"IF(入力シート!BL83=\"\",\"\",入力シート!BL83)","v":""}]
[]
[]
[]
[]
[]
[]
[]
[]
[]
[]
[]
[]
[null,null,null,null,null,null,null,null,null,null,null,null,null,null,"個　人　試　合　申　込　書",null,null,null,null,null,null,null,null,null,null,null,null,null,null,null,null,null,null,null,null,null,null,null,null,null,null,null,null,null,null,null,null,null,null,null,null,null,null,null,{"$f":"NOW()","v":"2019-04-23T14:59:10.980"}]
[]
[null,null,"※抽選番号",null,null,null,null,null,null,null,null,null,null,{"$f":"IF(入力シート!C87=\"\",\"\",入力シート!C87)","v":""},null,null,null,null,null,null,null,"kg級",null,null,null,{"$f":"入力シート!O43","v":"第６８回　全国大会大阪府予選会"}]
[]
[null,null,"学校番号",null,null,null,"学　　　　校　　　　名",null,null,null,null,null,null,null,null,null,null,null,null,null,null,null,null,null,null,null,null,null,null,null,null,null,null,null,null,"監督名",null,null,null,null,null,null,null,null,null,null,null,null,null,null,"校長名"]
[null,null,{"$f":"入力シート!$C$9","v":0},null,null,null,{"$f":"入力シート!$G$9","v":""},null,null,null,null,null,null,null,null,null,null,null,null,null,null,null,null,null,null,"高等学校",null,null,null,null,null,null,null,null,null,{"$f":"入力シート!$AJ$9","v":0},null,null,null,null,null,null,null,null,null,null,null,"印",null,null,{"$f":"入力シート!$AY$9","v":0},null,null,null,null,null,null,null,null,null,null,null,"印"]
[]
[]
[null,null,"ふりがな",null,null,null,null,null,{"$f":"IF(入力シート!I87=\"\",\"\",入力シート!I87)","v":""},null,null,null,null,null,null,null,null,null,null,null,null,null,null,null,{"$f":"IF(入力シート!Y87=\"\",\"\",入力シート!Y87)","v":""},null,null,null,null,null,null,null,null,null,null,null,null,null,"学年",null,null,"段位",null,null,"体重（kg）",null,null,null,null,"身長（cm）",null,null,null,null,"生年月日（西暦）"]
[null,null,"選手名",null,null,null,"（姓）",null,{"$f":"IF(入力シート!I88=\"\",\"\",入力シート!I88)","v":""},null,null,null,null,null,null,null,null,null,null,null,null,null,"（名）",null,{"$f":"IF(入力シート!Y88=\"\",\"\",入力シート!Y88)","v":""},null,null,null,null,null,null,null,null,null,null,null,null,null,{"$f":"IF(入力シート!AM87=\"\",\"\",入力シート!AM87)","v":""},null,null,{"$f":"IF(入力シート!AP87=\"\",\"\",入力シート!AP87)","v":""},null,null,{"$f":"IF(入力シート!AS87=\"\",\"\",入力シート!AS87)","v":""},null,null,null,null,{"$f":"IF(入力シート!AX87=\"\",\"\",入力シート!AX87)","v":""},null,null,null,null,{"$f":"IF(入力シート!BC87=\"\",\"\",入力シート!BC87)","v":""},null,null,null,"・",{"$f":"IF(入力シート!BH87=\"\",\"\",入力シート!BH87)","v":""},null,null,"・",{"$f":"IF(入力シート!BL87=\"\",\"\",入力シート!BL87)","v":""}]
[]
[]
[]
[]
[]
[]
[]
[]
[null,null,null,null,null,null,null,null,null,null,null,null,null,null,null,null,null,null,null,null,null,null,null,null,null,null,null,null,"（","ｷ　ﾘ　ﾄ　ﾘ",null,null,null,null,null,null,null,"）"]
[]
[]
[]
[null,null,null,null,null,null,null,null,null,null,null,null,null,null,"個　人　試　合　申　込　書",null,null,null,null,null,null,null,null,null,null,null,null,null,null,null,null,null,null,null,null,null,null,null,null,null,null,null,null,null,null,null,null,null,null,null,null,null,null,null,{"$f":"NOW()","v":"2019-04-23T14:59:10.980"}]
[]
[null,null,"※抽選番号",null,null,null,null,null,null,null,null,null,null,{"$f":"IF(入力シート!C91=\"\",\"\",入力シート!C91)","v":""},null,null,null,null,null,null,null,"kg級",null,null,null,{"$f":"入力シート!O43","v":"第６８回　全国大会大阪府予選会"}]
[]
[null,null,"学校番号",null,null,null,"学　　　　校　　　　名",null,null,null,null,null,null,null,null,null,null,null,null,null,null,null,null,null,null,null,null,null,null,null,null,null,null,null,null,"監督名",null,null,null,null,null,null,null,null,null,null,null,null,null,null,"校長名"]
[null,null,{"$f":"入力シート!$C$9","v":0},null,null,null,{"$f":"入力シート!$G$9","v":""},null,null,null,null,null,null,null,null,null,null,null,null,null,null,null,null,null,null,"高等学校",null,null,null,null,null,null,null,null,null,{"$f":"入力シート!$AJ$9","v":0},null,null,null,null,null,null,null,null,null,null,null,"印",null,null,{"$f":"入力シート!$AY$9","v":0},null,null,null,null,null,null,null,null,null,null,null,"印"]
[]
[]
[null,null,"ふりがな",null,null,null,null,null,{"$f":"IF(入力シート!I91=\"\",\"\",入力シート!I91)","v":""},null,null,null,null,null,null,null,null,null,null,null,null,null,null,null,{"$f":"IF(入力シート!Y91=\"\",\"\",入力シート!Y91)","v":""},null,null,null,null,null,null,null,null,null,null,null,null,null,"学年",null,null,"段位",null,null,"体重（kg）",null,null,null,null,"身長（cm）",null,null,null,null,"生年月日（西暦）"]
[null,null,"選手名",null,null,null,"（姓）",null,{"$f":"IF(入力シート!I92=\"\",\"\",入力シート!I92)","v":""},null,null,null,null,null,null,null,null,null,null,null,null,null,"（名）",null,{"$f":"IF(入力シート!Y92=\"\",\"\",入力シート!Y92)","v":""},null,null,null,null,null,null,null,null,null,null,null,null,null,{"$f":"IF(入力シート!AM91=\"\",\"\",入力シート!AM91)","v":""},null,null,{"$f":"IF(入力シート!AP91=\"\",\"\",入力シート!AP91)","v":""},null,null,{"$f":"IF(入力シート!AS91=\"\",\"\",入力シート!AS91)","v":""},null,null,null,null,{"$f":"IF(入力シート!AX91=\"\",\"\",入力シート!AX91)","v":""},null,null,null,null,{"$f":"IF(入力シート!BC91=\"\",\"\",入力シート!BC91)","v":""},null,null,null,"・",{"$f":"IF(入力シート!BH91=\"\",\"\",入力シート!BH91)","v":""},null,null,"・",{"$f":"IF(入力シート!BL91=\"\",\"\",入力シート!BL91)","v":""}]
[]
[]
[]
[]
[]
[]
[]
[]
[]
[]
[]
[]
[null,null,null,null,null,null,null,null,null,null,null,null,null,null,"個　人　試　合　申　込　書",null,null,null,null,null,null,null,null,null,null,null,null,null,null,null,null,null,null,null,null,null,null,null,null,null,null,null,null,null,null,null,null,null,null,null,null,null,null,null,{"$f":"NOW()","v":"2019-04-23T14:59:10.980"}]
[]
[null,null,"※抽選番号",null,null,null,null,null,null,null,null,null,null,{"$f":"IF(入力シート!C95=\"\",\"\",入力シート!C95)","v":""},null,null,null,null,null,null,null,"kg級",null,null,null,{"$f":"入力シート!O43","v":"第６８回　全国大会大阪府予選会"}]
[]
[null,null,"学校番号",null,null,null,"学　　　　校　　　　名",null,null,null,null,null,null,null,null,null,null,null,null,null,null,null,null,null,null,null,null,null,null,null,null,null,null,null,null,"監督名",null,null,null,null,null,null,null,null,null,null,null,null,null,null,"校長名"]
[null,null,{"$f":"入力シート!$C$9","v":0},null,null,null,{"$f":"入力シート!$G$9","v":""},null,null,null,null,null,null,null,null,null,null,null,null,null,null,null,null,null,null,"高等学校",null,null,null,null,null,null,null,null,null,{"$f":"入力シート!$AJ$9","v":0},null,null,null,null,null,null,null,null,null,null,null,"印",null,null,{"$f":"入力シート!$AY$9","v":0},null,null,null,null,null,null,null,null,null,null,null,"印"]
[]
[]
[null,null,"ふりがな",null,null,null,null,null,{"$f":"IF(入力シート!I95=\"\",\"\",入力シート!I95)","v":""},null,null,null,null,null,null,null,null,null,null,null,null,null,null,null,{"$f":"IF(入力シート!Y95=\"\",\"\",入力シート!Y95)","v":""},null,null,null,null,null,null,null,null,null,null,null,null,null,"学年",null,null,"段位",null,null,"体重（kg）",null,null,null,null,"身長（cm）",null,null,null,null,"生年月日（西暦）"]
[null,null,"選手名",null,null,null,"（姓）",null,{"$f":"IF(入力シート!I96=\"\",\"\",入力シート!I96)","v":""},null,null,null,null,null,null,null,null,null,null,null,null,null,"（名）",null,{"$f":"IF(入力シート!Y96=\"\",\"\",入力シート!Y96)","v":""},null,null,null,null,null,null,null,null,null,null,null,null,null,{"$f":"IF(入力シート!AM95=\"\",\"\",入力シート!AM95)","v":""},null,null,{"$f":"IF(入力シート!AP95=\"\",\"\",入力シート!AP95)","v":""},null,null,{"$f":"IF(入力シート!AS95=\"\",\"\",入力シート!AS95)","v":""},null,null,null,null,{"$f":"IF(入力シート!AX95=\"\",\"\",入力シート!AX95)","v":""},null,null,null,null,{"$f":"IF(入力シート!BC95=\"\",\"\",入力シート!BC95)","v":""},null,null,null,"・",{"$f":"IF(入力シート!BH95=\"\",\"\",入力シート!BH95)","v":""},null,null,"・",{"$f":"IF(入力シート!BL95=\"\",\"\",入力シート!BL95)","v":""}]
[]
[]
[]
[]
[]
[]
[]
[]
[null,null,null,null,null,null,null,null,null,null,null,null,null,null,null,null,null,null,null,null,null,null,null,null,null,null,null,null,"（","ｷ　ﾘ　ﾄ　ﾘ",null,null,null,null,null,null,null,"）"]
[]
[]
[]
[null,null,null,null,null,null,null,null,null,null,null,null,null,null,"個　人　試　合　申　込　書",null,null,null,null,null,null,null,null,null,null,null,null,null,null,null,null,null,null,null,null,null,null,null,null,null,null,null,null,null,null,null,null,null,null,null,null,null,null,null,{"$f":"NOW()","v":"2019-04-23T14:59:10.980"}]
[]
[null,null,"※抽選番号",null,null,null,null,null,null,null,null,null,null,{"$f":"IF(入力シート!C99=\"\",\"\",入力シート!C99)","v":""},null,null,null,null,null,null,null,"kg級",null,null,null,{"$f":"入力シート!O43","v":"第６８回　全国大会大阪府予選会"}]
[]
[null,null,"学校番号",null,null,null,"学　　　　校　　　　名",null,null,null,null,null,null,null,null,null,null,null,null,null,null,null,null,null,null,null,null,null,null,null,null,null,null,null,null,"監督名",null,null,null,null,null,null,null,null,null,null,null,null,null,null,"校長名"]
[null,null,{"$f":"入力シート!$C$9","v":0},null,null,null,{"$f":"入力シート!$G$9","v":""},null,null,null,null,null,null,null,null,null,null,null,null,null,null,null,null,null,null,"高等学校",null,null,null,null,null,null,null,null,null,{"$f":"入力シート!$AJ$9","v":0},null,null,null,null,null,null,null,null,null,null,null,"印",null,null,{"$f":"入力シート!$AY$9","v":0},null,null,null,null,null,null,null,null,null,null,null,"印"]
[]
[]
[null,null,"ふりがな",null,null,null,null,null,{"$f":"IF(入力シート!I99=\"\",\"\",入力シート!I99)","v":""},null,null,null,null,null,null,null,null,null,null,null,null,null,null,null,{"$f":"IF(入力シート!Y99=\"\",\"\",入力シート!Y99)","v":""},null,null,null,null,null,null,null,null,null,null,null,null,null,"学年",null,null,"段位",null,null,"体重（kg）",null,null,null,null,"身長（cm）",null,null,null,null,"生年月日（西暦）"]
[null,null,"選手名",null,null,null,"（姓）",null,{"$f":"IF(入力シート!I100=\"\",\"\",入力シート!I100)","v":""},null,null,null,null,null,null,null,null,null,null,null,null,null,"（名）",null,{"$f":"IF(入力シート!Y100=\"\",\"\",入力シート!Y100)","v":""},null,null,null,null,null,null,null,null,null,null,null,null,null,{"$f":"IF(入力シート!AM99=\"\",\"\",入力シート!AM99)","v":""},null,null,{"$f":"IF(入力シート!AP99=\"\",\"\",入力シート!AP99)","v":""},null,null,{"$f":"IF(入力シート!AS99=\"\",\"\",入力シート!AS99)","v":""},null,null,null,null,{"$f":"IF(入力シート!AX99=\"\",\"\",入力シート!AX99)","v":""},null,null,null,null,{"$f":"IF(入力シート!BC99=\"\",\"\",入力シート!BC99)","v":""},null,null,null,"・",{"$f":"IF(入力シート!BH99=\"\",\"\",入力シート!BH99)","v":""},null,null,"・",{"$f":"IF(入力シート!BL99=\"\",\"\",入力シート!BL99)","v":""}]
[]
[]
[]
[]
[]
[]
[]
[]
[]
[]
[]
[]
[null,null,null,null,null,null,null,null,null,null,null,null,null,null,"個　人　試　合　申　込　書",null,null,null,null,null,null,null,null,null,null,null,null,null,null,null,null,null,null,null,null,null,null,null,null,null,null,null,null,null,null,null,null,null,null,null,null,null,null,null,{"$f":"NOW()","v":"2019-04-23T14:59:10.980"}]
[]
[null,null,"※抽選番号",null,null,null,null,null,null,null,null,null,null,{"$f":"IF(入力シート!C103=\"\",\"\",入力シート!C103)","v":""},null,null,null,null,null,null,null,"kg級",null,null,null,{"$f":"入力シート!$O$43","v":"第６８回　全国大会大阪府予選会"}]
[]
[null,null,"学校番号",null,null,null,"学　　　　校　　　　名",null,null,null,null,null,null,null,null,null,null,null,null,null,null,null,null,null,null,null,null,null,null,null,null,null,null,null,null,"監督名",null,null,null,null,null,null,null,null,null,null,null,null,null,null,"校長名"]
[null,null,{"$f":"入力シート!$C$9","v":0},null,null,null,{"$f":"入力シート!$G$9","v":""},null,null,null,null,null,null,null,null,null,null,null,null,null,null,null,null,null,null,"高等学校",null,null,null,null,null,null,null,null,null,{"$f":"入力シート!$AJ$9","v":0},null,null,null,null,null,null,null,null,null,null,null,"印",null,null,{"$f":"入力シート!$AY$9","v":0},null,null,null,null,null,null,null,null,null,null,null,"印"]
[]
[]
[null,null,"ふりがな",null,null,null,null,null,{"$f":"IF(入力シート!I103=\"\",\"\",入力シート!I103)","v":""},null,null,null,null,null,null,null,null,null,null,null,null,null,null,null,{"$f":"IF(入力シート!Y103=\"\",\"\",入力シート!Y103)","v":""},null,null,null,null,null,null,null,null,null,null,null,null,null,"学年",null,null,"段位",null,null,"体重（kg）",null,null,null,null,"身長（cm）",null,null,null,null,"生年月日（西暦）"]
[null,null,"選手名",null,null,null,"（姓）",null,{"$f":"IF(入力シート!I104=\"\",\"\",入力シート!I104)","v":""},null,null,null,null,null,null,null,null,null,null,null,null,null,"（名）",null,{"$f":"IF(入力シート!Y104=\"\",\"\",入力シート!Y104)","v":""},null,null,null,null,null,null,null,null,null,null,null,null,null,{"$f":"IF(入力シート!AM103=\"\",\"\",入力シート!AM103)","v":""},null,null,{"$f":"IF(入力シート!AP103=\"\",\"\",入力シート!AP103)","v":""},null,null,{"$f":"IF(入力シート!AS103=\"\",\"\",入力シート!AS103)","v":""},null,null,null,null,{"$f":"IF(入力シート!AX103=\"\",\"\",入力シート!AX103)","v":""},null,null,null,null,{"$f":"IF(入力シート!BC103=\"\",\"\",入力シート!BC103)","v":""},null,null,null,"・",{"$f":"IF(入力シート!BH103=\"\",\"\",入力シート!BH103)","v":""},null,null,"・",{"$f":"IF(入力シート!BL103=\"\",\"\",入力シート!BL103)","v":""}]
[]
[]
[]
[]
[]
[]
[]
[]
[]
[null,null,null,null,null,null,null,null,null,null,null,null,null,null,null,null,null,null,null,null,null,null,null,null,null,null,null,null,"（","ｷ　ﾘ　ﾄ　ﾘ",null,null,null,null,null,null,null,"）"]
[]
[]
[]
[null,null,null,null,null,null,null,null,null,null,null,null,null,null,"個　人　試　合　申　込　書",null,null,null,null,null,null,null,null,null,null,null,null,null,null,null,null,null,null,null,null,null,null,null,null,null,null,null,null,null,null,null,null,null,null,null,null,null,null,null,{"$f":"NOW()","v":"2019-04-23T14:59:10.980"}]
[]
[null,null,"※抽選番号",null,null,null,null,null,null,null,null,null,null,{"$f":"IF(入力シート!C107=\"\",\"\",入力シート!C107)","v":""},null,null,null,null,null,null,null,"kg級",null,null,null,{"$f":"入力シート!$O$43","v":"第６８回　全国大会大阪府予選会"}]
[]
[null,null,"学校番号",null,null,null,"学　　　　校　　　　名",null,null,null,null,null,null,null,null,null,null,null,null,null,null,null,null,null,null,null,null,null,null,null,null,null,null,null,null,"監督名",null,null,null,null,null,null,null,null,null,null,null,null,null,null,"校長名"]
[null,null,{"$f":"入力シート!$C$9","v":0},null,null,null,{"$f":"入力シート!$G$9","v":""},null,null,null,null,null,null,null,null,null,null,null,null,null,null,null,null,null,null,"高等学校",null,null,null,null,null,null,null,null,null,{"$f":"入力シート!$AJ$9","v":0},null,null,null,null,null,null,null,null,null,null,null,"印",null,null,{"$f":"入力シート!$AY$9","v":0},null,null,null,null,null,null,null,null,null,null,null,"印"]
[]
[]
[null,null,"ふりがな",null,null,null,null,null,{"$f":"IF(入力シート!I107=\"\",\"\",入力シート!I107)","v":""},null,null,null,null,null,null,null,null,null,null,null,null,null,null,null,{"$f":"IF(入力シート!Y107=\"\",\"\",入力シート!Y107)","v":""},null,null,null,null,null,null,null,null,null,null,null,null,null,"学年",null,null,"段位",null,null,"体重（kg）",null,null,null,null,"身長（cm）",null,null,null,null,"生年月日（西暦）"]
[null,null,"選手名",null,null,null,"（姓）",null,{"$f":"IF(入力シート!I108=\"\",\"\",入力シート!I108)","v":""},null,null,null,null,null,null,null,null,null,null,null,null,null,"（名）",null,{"$f":"IF(入力シート!Y108=\"\",\"\",入力シート!Y108)","v":""},null,null,null,null,null,null,null,null,null,null,null,null,null,{"$f":"IF(入力シート!AM107=\"\",\"\",入力シート!AM107)","v":""},null,null,{"$f":"IF(入力シート!AP107=\"\",\"\",入力シート!AP107)","v":""},null,null,{"$f":"IF(入力シート!AS107=\"\",\"\",入力シート!AS107)","v":""},null,null,null,null,{"$f":"IF(入力シート!AX107=\"\",\"\",入力シート!AX107)","v":""},null,null,null,null,{"$f":"IF(入力シート!BC107=\"\",\"\",入力シート!BC107)","v":""},null,null,null,"・",{"$f":"IF(入力シート!BH107=\"\",\"\",入力シート!BH107)","v":""},null,null,"・",{"$f":"IF(入力シート!BL107=\"\",\"\",入力シート!BL107)","v":""}]
[]
[]
[]
[]
[]
[]
[]
[]
[]
[]
[]
[]
[]
[null,null,null,null,null,null,null,null,null,null,null,null,null,null,"個　人　試　合　申　込　書",null,null,null,null,null,null,null,null,null,null,null,null,null,null,null,null,null,null,null,null,null,null,null,null,null,null,null,null,null,null,null,null,null,null,null,null,null,null,null,{"$f":"NOW()","v":"2019-04-23T14:59:10.980"}]
[]
[null,null,"※抽選番号",null,null,null,null,null,null,null,null,null,null,{"$f":"IF(入力シート!C111=\"\",\"\",入力シート!C111)","v":""},null,null,null,null,null,null,null,"kg級",null,null,null,{"$f":"入力シート!$O$43","v":"第６８回　全国大会大阪府予選会"}]
[]
[null,null,"学校番号",null,null,null,"学　　　　校　　　　名",null,null,null,null,null,null,null,null,null,null,null,null,null,null,null,null,null,null,null,null,null,null,null,null,null,null,null,null,"監督名",null,null,null,null,null,null,null,null,null,null,null,null,null,null,"校長名"]
[null,null,{"$f":"入力シート!$C$9","v":0},null,null,null,{"$f":"入力シート!$G$9","v":""},null,null,null,null,null,null,null,null,null,null,null,null,null,null,null,null,null,null,"高等学校",null,null,null,null,null,null,null,null,null,{"$f":"入力シート!$AJ$9","v":0},null,null,null,null,null,null,null,null,null,null,null,"印",null,null,{"$f":"入力シート!$AY$9","v":0},null,null,null,null,null,null,null,null,null,null,null,"印"]
[]
[]
[null,null,"ふりがな",null,null,null,null,null,{"$f":"IF(入力シート!I111=\"\",\"\",入力シート!I111)","v":""},null,null,null,null,null,null,null,null,null,null,null,null,null,null,null,{"$f":"IF(入力シート!Y111=\"\",\"\",入力シート!Y111)","v":""},null,null,null,null,null,null,null,null,null,null,null,null,null,"学年",null,null,"段位",null,null,"体重（kg）",null,null,null,null,"身長（cm）",null,null,null,null,"生年月日（西暦）"]
[null,null,"選手名",null,null,null,"（姓）",null,{"$f":"IF(入力シート!I112=\"\",\"\",入力シート!I112)","v":""},null,null,null,null,null,null,null,null,null,null,null,null,null,"（名）",null,{"$f":"IF(入力シート!Y112=\"\",\"\",入力シート!Y112)","v":""},null,null,null,null,null,null,null,null,null,null,null,null,null,{"$f":"IF(入力シート!AM111=\"\",\"\",入力シート!AM111)","v":""},null,null,{"$f":"IF(入力シート!AP111=\"\",\"\",入力シート!AP111)","v":""},null,null,{"$f":"IF(入力シート!AS111=\"\",\"\",入力シート!AS111)","v":""},null,null,null,null,{"$f":"IF(入力シート!AX111=\"\",\"\",入力シート!AX111)","v":""},null,null,null,null,{"$f":"IF(入力シート!BC111=\"\",\"\",入力シート!BC111)","v":""},null,null,null,"・",{"$f":"IF(入力シート!BH111=\"\",\"\",入力シート!BH111)","v":""},null,null,"・",{"$f":"IF(入力シート!BL111=\"\",\"\",入力シート!BL111)","v":""}]
[]
[]
[]
[]
[]
[]
[]
[]
[]
[null,null,null,null,null,null,null,null,null,null,null,null,null,null,null,null,null,null,null,null,null,null,null,null,null,null,null,null,"（","ｷ　ﾘ　ﾄ　ﾘ",null,null,null,null,null,null,null,"）"]
[]
[]
[]
[null,null,null,null,null,null,null,null,null,null,null,null,null,null,"個　人　試　合　申　込　書",null,null,null,null,null,null,null,null,null,null,null,null,null,null,null,null,null,null,null,null,null,null,null,null,null,null,null,null,null,null,null,null,null,null,null,null,null,null,null,{"$f":"NOW()","v":"2019-04-23T14:59:10.980"}]
[]
[null,null,"※抽選番号",null,null,null,null,null,null,null,null,null,null,{"$f":"IF(入力シート!C115=\"\",\"\",入力シート!C115)","v":""},null,null,null,null,null,null,null,"kg級",null,null,null,{"$f":"入力シート!$O$43","v":"第６８回　全国大会大阪府予選会"}]
[]
[null,null,"学校番号",null,null,null,"学　　　　校　　　　名",null,null,null,null,null,null,null,null,null,null,null,null,null,null,null,null,null,null,null,null,null,null,null,null,null,null,null,null,"監督名",null,null,null,null,null,null,null,null,null,null,null,null,null,null,"校長名"]
[null,null,{"$f":"入力シート!$C$9","v":0},null,null,null,{"$f":"入力シート!$G$9","v":""},null,null,null,null,null,null,null,null,null,null,null,null,null,null,null,null,null,null,"高等学校",null,null,null,null,null,null,null,null,null,{"$f":"入力シート!$AJ$9","v":0},null,null,null,null,null,null,null,null,null,null,null,"印",null,null,{"$f":"入力シート!$AY$9","v":0},null,null,null,null,null,null,null,null,null,null,null,"印"]
[]
[]
[null,null,"ふりがな",null,null,null,null,null,{"$f":"IF(入力シート!I115=\"\",\"\",入力シート!I115)","v":""},null,null,null,null,null,null,null,null,null,null,null,null,null,null,null,{"$f":"IF(入力シート!Y115=\"\",\"\",入力シート!Y115)","v":""},null,null,null,null,null,null,null,null,null,null,null,null,null,"学年",null,null,"段位",null,null,"体重（kg）",null,null,null,null,"身長（cm）",null,null,null,null,"生年月日（西暦）"]
[null,null,"選手名",null,null,null,"（姓）",null,{"$f":"IF(入力シート!I116=\"\",\"\",入力シート!I116)","v":""},null,null,null,null,null,null,null,null,null,null,null,null,null,"（名）",null,{"$f":"IF(入力シート!Y116=\"\",\"\",入力シート!Y116)","v":""},null,null,null,null,null,null,null,null,null,null,null,null,null,{"$f":"IF(入力シート!AM115=\"\",\"\",入力シート!AM115)","v":""},null,null,{"$f":"IF(入力シート!AP115=\"\",\"\",入力シート!AP115)","v":""},null,null,{"$f":"IF(入力シート!AS115=\"\",\"\",入力シート!AS115)","v":""},null,null,null,null,{"$f":"IF(入力シート!AX115=\"\",\"\",入力シート!AX115)","v":""},null,null,null,null,{"$f":"IF(入力シート!BC115=\"\",\"\",入力シート!BC115)","v":""},null,null,null,"・",{"$f":"IF(入力シート!BH115=\"\",\"\",入力シート!BH115)","v":""},null,null,"・",{"$f":"IF(入力シート!BL115=\"\",\"\",入力シート!BL115)","v":""}]
[]
[]
[]
[]
[]
[]
[]
[]
[]
[]
[]
[]
[]
[null,null,null,null,null,null,null,null,null,null,null,null,null,null,"個　人　試　合　申　込　書",null,null,null,null,null,null,null,null,null,null,null,null,null,null,null,null,null,null,null,null,null,null,null,null,null,null,null,null,null,null,null,null,null,null,null,null,null,null,null,{"$f":"NOW()","v":"2019-04-23T14:59:10.980"}]
[]
[null,null,"※抽選番号",null,null,null,null,null,null,null,null,null,null,{"$f":"IF(入力シート!C119=\"\",\"\",入力シート!C119)","v":""},null,null,null,null,null,null,null,"kg級",null,null,null,{"$f":"入力シート!$O$43","v":"第６８回　全国大会大阪府予選会"}]
[]
[null,null,"学校番号",null,null,null,"学　　　　校　　　　名",null,null,null,null,null,null,null,null,null,null,null,null,null,null,null,null,null,null,null,null,null,null,null,null,null,null,null,null,"監督名",null,null,null,null,null,null,null,null,null,null,null,null,null,null,"校長名"]
[null,null,{"$f":"入力シート!$C$9","v":0},null,null,null,{"$f":"入力シート!$G$9","v":""},null,null,null,null,null,null,null,null,null,null,null,null,null,null,null,null,null,null,"高等学校",null,null,null,null,null,null,null,null,null,{"$f":"入力シート!$AJ$9","v":0},null,null,null,null,null,null,null,null,null,null,null,"印",null,null,{"$f":"入力シート!$AY$9","v":0},null,null,null,null,null,null,null,null,null,null,null,"印"]
[]
[]
[null,null,"ふりがな",null,null,null,null,null,{"$f":"IF(入力シート!I119=\"\",\"\",入力シート!I119)","v":""},null,null,null,null,null,null,null,null,null,null,null,null,null,null,null,{"$f":"IF(入力シート!Y119=\"\",\"\",入力シート!Y119)","v":""},null,null,null,null,null,null,null,null,null,null,null,null,null,"学年",null,null,"段位",null,null,"体重（kg）",null,null,null,null,"身長（cm）",null,null,null,null,"生年月日（西暦）"]
[null,null,"選手名",null,null,null,"（姓）",null,{"$f":"IF(入力シート!I120=\"\",\"\",入力シート!I120)","v":""},null,null,null,null,null,null,null,null,null,null,null,null,null,"（名）",null,{"$f":"IF(入力シート!Y120=\"\",\"\",入力シート!Y120)","v":""},null,null,null,null,null,null,null,null,null,null,null,null,null,{"$f":"IF(入力シート!AM119=\"\",\"\",入力シート!AM119)","v":""},null,null,{"$f":"IF(入力シート!AP119=\"\",\"\",入力シート!AP119)","v":""},null,null,{"$f":"IF(入力シート!AS119=\"\",\"\",入力シート!AS119)","v":""},null,null,null,null,{"$f":"IF(入力シート!AX119=\"\",\"\",入力シート!AX119)","v":""},null,null,null,null,{"$f":"IF(入力シート!BC119=\"\",\"\",入力シート!BC119)","v":""},null,null,null,"・",{"$f":"IF(入力シート!BH119=\"\",\"\",入力シート!BH119)","v":""},null,null,"・",{"$f":"IF(入力シート!BL119=\"\",\"\",入力シート!BL119)","v":""}]
[]
[]
[]
[]
[]
[]
[]
[]
[]
[null,null,null,null,null,null,null,null,null,null,null,null,null,null,null,null,null,null,null,null,null,null,null,null,null,null,null,null,"（","ｷ　ﾘ　ﾄ　ﾘ",null,null,null,null,null,null,null,"）"]
[]
[]
[]
[null,null,null,null,null,null,null,null,null,null,null,null,null,null,"個　人　試　合　申　込　書",null,null,null,null,null,null,null,null,null,null,null,null,null,null,null,null,null,null,null,null,null,null,null,null,null,null,null,null,null,null,null,null,null,null,null,null,null,null,null,{"$f":"NOW()","v":"2019-04-23T14:59:10.980"}]
[]
[null,null,"※抽選番号",null,null,null,null,null,null,null,null,null,null,{"$f":"IF(入力シート!C123=\"\",\"\",入力シート!C123)","v":""},null,null,null,null,null,null,null,"kg級",null,null,null,{"$f":"入力シート!$O$43","v":"第６８回　全国大会大阪府予選会"}]
[]
[null,null,"学校番号",null,null,null,"学　　　　校　　　　名",null,null,null,null,null,null,null,null,null,null,null,null,null,null,null,null,null,null,null,null,null,null,null,null,null,null,null,null,"監督名",null,null,null,null,null,null,null,null,null,null,null,null,null,null,"校長名"]
[null,null,{"$f":"入力シート!$C$9","v":0},null,null,null,{"$f":"入力シート!$G$9","v":""},null,null,null,null,null,null,null,null,null,null,null,null,null,null,null,null,null,null,"高等学校",null,null,null,null,null,null,null,null,null,{"$f":"入力シート!$AJ$9","v":0},null,null,null,null,null,null,null,null,null,null,null,"印",null,null,{"$f":"入力シート!$AY$9","v":0},null,null,null,null,null,null,null,null,null,null,null,"印"]
[]
[]
[null,null,"ふりがな",null,null,null,null,null,{"$f":"IF(入力シート!I123=\"\",\"\",入力シート!I123)","v":""},null,null,null,null,null,null,null,null,null,null,null,null,null,null,null,{"$f":"IF(入力シート!Y123=\"\",\"\",入力シート!Y123)","v":""},null,null,null,null,null,null,null,null,null,null,null,null,null,"学年",null,null,"段位",null,null,"体重（kg）",null,null,null,null,"身長（cm）",null,null,null,null,"生年月日（西暦）"]
[null,null,"選手名",null,null,null,"（姓）",null,{"$f":"IF(入力シート!I124=\"\",\"\",入力シート!I124)","v":""},null,null,null,null,null,null,null,null,null,null,null,null,null,"（名）",null,{"$f":"IF(入力シート!Y124=\"\",\"\",入力シート!Y124)","v":""},null,null,null,null,null,null,null,null,null,null,null,null,null,{"$f":"IF(入力シート!AM123=\"\",\"\",入力シート!AM123)","v":""},null,null,{"$f":"IF(入力シート!AP123=\"\",\"\",入力シート!AP123)","v":""},null,null,{"$f":"IF(入力シート!AS123=\"\",\"\",入力シート!AS123)","v":""},null,null,null,null,{"$f":"IF(入力シート!AX123=\"\",\"\",入力シート!AX123)","v":""},null,null,null,null,{"$f":"IF(入力シート!BC123=\"\",\"\",入力シート!BC123)","v":""},null,null,null,"・",{"$f":"IF(入力シート!BH123=\"\",\"\",入力シート!BH123)","v":""},null,null,"・",{"$f":"IF(入力シート!BL123=\"\",\"\",入力シート!BL123)","v":""}]
[]
[]
[]
[]
[]
[]
[]
[]
[]
[]
[]
[]
[]
[null,null,null,null,null,null,null,null,null,null,null,null,null,null,"個　人　試　合　申　込　書",null,null,null,null,null,null,null,null,null,null,null,null,null,null,null,null,null,null,null,null,null,null,null,null,null,null,null,null,null,null,null,null,null,null,null,null,null,null,null,{"$f":"NOW()","v":"2019-04-23T14:59:10.980"}]
[]
[null,null,"※抽選番号",null,null,null,null,null,null,null,null,null,null,{"$f":"IF(入力シート!C127=\"\",\"\",入力シート!C127)","v":""},null,null,null,null,null,null,null,"kg級",null,null,null,{"$f":"入力シート!$O$43","v":"第６８回　全国大会大阪府予選会"}]
[]
[null,null,"学校番号",null,null,null,"学　　　　校　　　　名",null,null,null,null,null,null,null,null,null,null,null,null,null,null,null,null,null,null,null,null,null,null,null,null,null,null,null,null,"監督名",null,null,null,null,null,null,null,null,null,null,null,null,null,null,"校長名"]
[null,null,{"$f":"入力シート!$C$9","v":0},null,null,null,{"$f":"入力シート!$G$9","v":""},null,null,null,null,null,null,null,null,null,null,null,null,null,null,null,null,null,null,"高等学校",null,null,null,null,null,null,null,null,null,{"$f":"入力シート!$AJ$9","v":0},null,null,null,null,null,null,null,null,null,null,null,"印",null,null,{"$f":"入力シート!$AY$9","v":0},null,null,null,null,null,null,null,null,null,null,null,"印"]
[]
[]
[null,null,"ふりがな",null,null,null,null,null,{"$f":"IF(入力シート!I127=\"\",\"\",入力シート!I127)","v":""},null,null,null,null,null,null,null,null,null,null,null,null,null,null,null,{"$f":"IF(入力シート!Y127=\"\",\"\",入力シート!Y127)","v":""},null,null,null,null,null,null,null,null,null,null,null,null,null,"学年",null,null,"段位",null,null,"体重（kg）",null,null,null,null,"身長（cm）",null,null,null,null,"生年月日（西暦）"]
[null,null,"選手名",null,null,null,"（姓）",null,{"$f":"IF(入力シート!I128=\"\",\"\",入力シート!I128)","v":""},null,null,null,null,null,null,null,null,null,null,null,null,null,"（名）",null,{"$f":"IF(入力シート!Y128=\"\",\"\",入力シート!Y128)","v":""},null,null,null,null,null,null,null,null,null,null,null,null,null,{"$f":"IF(入力シート!AM127=\"\",\"\",入力シート!AM127)","v":""},null,null,{"$f":"IF(入力シート!AP127=\"\",\"\",入力シート!AP127)","v":""},null,null,{"$f":"IF(入力シート!AS127=\"\",\"\",入力シート!AS127)","v":""},null,null,null,null,{"$f":"IF(入力シート!AX127=\"\",\"\",入力シート!AX127)","v":""},null,null,null,null,{"$f":"IF(入力シート!BC127=\"\",\"\",入力シート!BC127)","v":""},null,null,null,"・",{"$f":"IF(入力シート!BH127=\"\",\"\",入力シート!BH127)","v":""},null,null,"・",{"$f":"IF(入力シート!BL127=\"\",\"\",入力シート!BL127)","v":""}]
[]
[]
[]
[]
[]
[]
[]
[]
[]
[null,null,null,null,null,null,null,null,null,null,null,null,null,null,null,null,null,null,null,null,null,null,null,null,null,null,null,null,"（","ｷ　ﾘ　ﾄ　ﾘ",null,null,null,null,null,null,null,"）"]
[]
[]
[]
[null,null,null,null,null,null,null,null,null,null,null,null,null,null,"個　人　試　合　申　込　書",null,null,null,null,null,null,null,null,null,null,null,null,null,null,null,null,null,null,null,null,null,null,null,null,null,null,null,null,null,null,null,null,null,null,null,null,null,null,null,{"$f":"NOW()","v":"2019-04-23T14:59:10.980"}]
[]
[null,null,"※抽選番号",null,null,null,null,null,null,null,null,null,null,{"$f":"IF(入力シート!C131=\"\",\"\",入力シート!C131)","v":""},null,null,null,null,null,null,null,"kg級",null,null,null,{"$f":"入力シート!$O$43","v":"第６８回　全国大会大阪府予選会"}]
[]
[null,null,"学校番号",null,null,null,"学　　　　校　　　　名",null,null,null,null,null,null,null,null,null,null,null,null,null,null,null,null,null,null,null,null,null,null,null,null,null,null,null,null,"監督名",null,null,null,null,null,null,null,null,null,null,null,null,null,null,"校長名"]
[null,null,{"$f":"入力シート!$C$9","v":0},null,null,null,{"$f":"入力シート!$G$9","v":""},null,null,null,null,null,null,null,null,null,null,null,null,null,null,null,null,null,null,"高等学校",null,null,null,null,null,null,null,null,null,{"$f":"入力シート!$AJ$9","v":0},null,null,null,null,null,null,null,null,null,null,null,"印",null,null,{"$f":"入力シート!$AY$9","v":0},null,null,null,null,null,null,null,null,null,null,null,"印"]
[]
[]
[null,null,"ふりがな",null,null,null,null,null,{"$f":"IF(入力シート!I131=\"\",\"\",入力シート!I131)","v":""},null,null,null,null,null,null,null,null,null,null,null,null,null,null,null,{"$f":"IF(入力シート!Y131=\"\",\"\",入力シート!Y131)","v":""},null,null,null,null,null,null,null,null,null,null,null,null,null,"学年",null,null,"段位",null,null,"体重（kg）",null,null,null,null,"身長（cm）",null,null,null,null,"生年月日（西暦）"]
[null,null,"選手名",null,null,null,"（姓）",null,{"$f":"IF(入力シート!I132=\"\",\"\",入力シート!I132)","v":""},null,null,null,null,null,null,null,null,null,null,null,null,null,"（名）",null,{"$f":"IF(入力シート!Y132=\"\",\"\",入力シート!Y132)","v":""},null,null,null,null,null,null,null,null,null,null,null,null,null,{"$f":"IF(入力シート!AM131=\"\",\"\",入力シート!AM131)","v":""},null,null,{"$f":"IF(入力シート!AP131=\"\",\"\",入力シート!AP131)","v":""},null,null,{"$f":"IF(入力シート!AS131=\"\",\"\",入力シート!AS131)","v":""},null,null,null,null,{"$f":"IF(入力シート!AX131=\"\",\"\",入力シート!AX131)","v":""},null,null,null,null,{"$f":"IF(入力シート!BC131=\"\",\"\",入力シート!BC131)","v":""},null,null,null,"・",{"$f":"IF(入力シート!BH131=\"\",\"\",入力シート!BH131)","v":""},null,null,"・",{"$f":"IF(入力シート!BL131=\"\",\"\",入力シート!BL131)","v":""}]
[]
[]
[]
[]
[]
[]
[]
[]
[]
[]
[]
[]
[]
[null,null,null,null,null,null,null,null,null,null,null,null,null,null,"個　人　試　合　申　込　書",null,null,null,null,null,null,null,null,null,null,null,null,null,null,null,null,null,null,null,null,null,null,null,null,null,null,null,null,null,null,null,null,null,null,null,null,null,null,null,{"$f":"NOW()","v":"2019-04-23T14:59:10.980"}]
[]
[null,null,"※抽選番号",null,null,null,null,null,null,null,null,null,null,{"$f":"IF(入力シート!C135=\"\",\"\",入力シート!C135)","v":""},null,null,null,null,null,null,null,"kg級",null,null,null,{"$f":"入力シート!$O$43","v":"第６８回　全国大会大阪府予選会"}]
[]
[null,null,"学校番号",null,null,null,"学　　　　校　　　　名",null,null,null,null,null,null,null,null,null,null,null,null,null,null,null,null,null,null,null,null,null,null,null,null,null,null,null,null,"監督名",null,null,null,null,null,null,null,null,null,null,null,null,null,null,"校長名"]
[null,null,{"$f":"入力シート!$C$9","v":0},null,null,null,{"$f":"入力シート!$G$9","v":""},null,null,null,null,null,null,null,null,null,null,null,null,null,null,null,null,null,null,"高等学校",null,null,null,null,null,null,null,null,null,{"$f":"入力シート!$AJ$9","v":0},null,null,null,null,null,null,null,null,null,null,null,"印",null,null,{"$f":"入力シート!$AY$9","v":0},null,null,null,null,null,null,null,null,null,null,null,"印"]
[]
[]
[null,null,"ふりがな",null,null,null,null,null,{"$f":"IF(入力シート!I135=\"\",\"\",入力シート!I135)","v":""},null,null,null,null,null,null,null,null,null,null,null,null,null,null,null,{"$f":"IF(入力シート!Y135=\"\",\"\",入力シート!Y135)","v":""},null,null,null,null,null,null,null,null,null,null,null,null,null,"学年",null,null,"段位",null,null,"体重（kg）",null,null,null,null,"身長（cm）",null,null,null,null,"生年月日（西暦）"]
[null,null,"選手名",null,null,null,"（姓）",null,{"$f":"IF(入力シート!I136=\"\",\"\",入力シート!I136)","v":""},null,null,null,null,null,null,null,null,null,null,null,null,null,"（名）",null,{"$f":"IF(入力シート!Y136=\"\",\"\",入力シート!Y136)","v":""},null,null,null,null,null,null,null,null,null,null,null,null,null,{"$f":"IF(入力シート!AM135=\"\",\"\",入力シート!AM135)","v":""},null,null,{"$f":"IF(入力シート!AP135=\"\",\"\",入力シート!AP135)","v":""},null,null,{"$f":"IF(入力シート!AS135=\"\",\"\",入力シート!AS135)","v":""},null,null,null,null,{"$f":"IF(入力シート!AX135=\"\",\"\",入力シート!AX135)","v":""},null,null,null,null,{"$f":"IF(入力シート!BC135=\"\",\"\",入力シート!BC135)","v":""},null,null,null,"・",{"$f":"IF(入力シート!BH135=\"\",\"\",入力シート!BH135)","v":""},null,null,"・",{"$f":"IF(入力シート!BL135=\"\",\"\",入力シート!BL135)","v":""}]
[]
[]
[]
[]
[]
[]
[]
[]
[]
[null,null,null,null,null,null,null,null,null,null,null,null,null,null,null,null,null,null,null,null,null,null,null,null,null,null,null,null,"（","ｷ　ﾘ　ﾄ　ﾘ",null,null,null,null,null,null,null,"）"]
[]
[]
[]
[null,null,null,null,null,null,null,null,null,null,null,null,null,null,"個　人　試　合　申　込　書",null,null,null,null,null,null,null,null,null,null,null,null,null,null,null,null,null,null,null,null,null,null,null,null,null,null,null,null,null,null,null,null,null,null,null,null,null,null,null,{"$f":"NOW()","v":"2019-04-23T14:59:10.980"}]
[]
[null,null,"※抽選番号",null,null,null,null,null,null,null,null,null,null,{"$f":"IF(入力シート!C139=\"\",\"\",入力シート!C139)","v":""},null,null,null,null,null,null,null,"kg級",null,null,null,{"$f":"入力シート!$O$43","v":"第６８回　全国大会大阪府予選会"}]
[]
[null,null,"学校番号",null,null,null,"学　　　　校　　　　名",null,null,null,null,null,null,null,null,null,null,null,null,null,null,null,null,null,null,null,null,null,null,null,null,null,null,null,null,"監督名",null,null,null,null,null,null,null,null,null,null,null,null,null,null,"校長名"]
[null,null,{"$f":"入力シート!$C$9","v":0},null,null,null,{"$f":"入力シート!$G$9","v":""},null,null,null,null,null,null,null,null,null,null,null,null,null,null,null,null,null,null,"高等学校",null,null,null,null,null,null,null,null,null,{"$f":"入力シート!$AJ$9","v":0},null,null,null,null,null,null,null,null,null,null,null,"印",null,null,{"$f":"入力シート!$AY$9","v":0},null,null,null,null,null,null,null,null,null,null,null,"印"]
[]
[]
[null,null,"ふりがな",null,null,null,null,null,{"$f":"IF(入力シート!I139=\"\",\"\",入力シート!I139)","v":""},null,null,null,null,null,null,null,null,null,null,null,null,null,null,null,{"$f":"IF(入力シート!Y139=\"\",\"\",入力シート!Y139)","v":""},null,null,null,null,null,null,null,null,null,null,null,null,null,"学年",null,null,"段位",null,null,"体重（kg）",null,null,null,null,"身長（cm）",null,null,null,null,"生年月日（西暦）"]
[null,null,"選手名",null,null,null,"（姓）",null,{"$f":"IF(入力シート!I140=\"\",\"\",入力シート!I140)","v":""},null,null,null,null,null,null,null,null,null,null,null,null,null,"（名）",null,{"$f":"IF(入力シート!Y140=\"\",\"\",入力シート!Y140)","v":""},null,null,null,null,null,null,null,null,null,null,null,null,null,{"$f":"IF(入力シート!AM139=\"\",\"\",入力シート!AM139)","v":""},null,null,{"$f":"IF(入力シート!AP139=\"\",\"\",入力シート!AP139)","v":""},null,null,{"$f":"IF(入力シート!AS139=\"\",\"\",入力シート!AS139)","v":""},null,null,null,null,{"$f":"IF(入力シート!AX139=\"\",\"\",入力シート!AX139)","v":""},null,null,null,null,{"$f":"IF(入力シート!BC139=\"\",\"\",入力シート!BC139)","v":""},null,null,null,"・",{"$f":"IF(入力シート!BH139=\"\",\"\",入力シート!BH139)","v":""},null,null,"・",{"$f":"IF(入力シート!BL139=\"\",\"\",入力シート!BL139)","v":""}]
[]
[]
[]
[]
[]
[]
[]
[]
[]
[]
[]
[]
[]
[]
[null,null,null,null,null,null,null,null,null,null,null,null,null,null,"個　人　試　合　申　込　書",null,null,null,null,null,null,null,null,null,null,null,null,null,null,null,null,null,null,null,null,null,null,null,null,null,null,null,null,null,null,null,null,null,null,null,null,null,null,null,{"$f":"NOW()","v":"2019-04-23T14:59:10.980"}]
[]
[null,null,"※抽選番号",null,null,null,null,null,null,null,null,null,null,{"$f":"IF(入力シート!C143=\"\",\"\",入力シート!C143)","v":""},null,null,null,null,null,null,null,"kg級",null,null,null,{"$f":"入力シート!$O$43","v":"第６８回　全国大会大阪府予選会"}]
[]
[null,null,"学校番号",null,null,null,"学　　　　校　　　　名",null,null,null,null,null,null,null,null,null,null,null,null,null,null,null,null,null,null,null,null,null,null,null,null,null,null,null,null,"監督名",null,null,null,null,null,null,null,null,null,null,null,null,null,null,"校長名"]
[null,null,{"$f":"入力シート!$C$9","v":0},null,null,null,{"$f":"入力シート!$G$9","v":""},null,null,null,null,null,null,null,null,null,null,null,null,null,null,null,null,null,null,"高等学校",null,null,null,null,null,null,null,null,null,{"$f":"入力シート!$AJ$9","v":0},null,null,null,null,null,null,null,null,null,null,null,"印",null,null,{"$f":"入力シート!$AY$9","v":0},null,null,null,null,null,null,null,null,null,null,null,"印"]
[]
[]
[null,null,"ふりがな",null,null,null,null,null,{"$f":"IF(入力シート!I143=\"\",\"\",入力シート!I143)","v":""},null,null,null,null,null,null,null,null,null,null,null,null,null,null,null,{"$f":"IF(入力シート!Y143=\"\",\"\",入力シート!Y143)","v":""},null,null,null,null,null,null,null,null,null,null,null,null,null,"学年",null,null,"段位",null,null,"体重（kg）",null,null,null,null,"身長（cm）",null,null,null,null,"生年月日（西暦）"]
[null,null,"選手名",null,null,null,"（姓）",null,{"$f":"IF(入力シート!I144=\"\",\"\",入力シート!I144)","v":""},null,null,null,null,null,null,null,null,null,null,null,null,null,"（名）",null,{"$f":"IF(入力シート!Y144=\"\",\"\",入力シート!Y144)","v":""},null,null,null,null,null,null,null,null,null,null,null,null,null,{"$f":"IF(入力シート!AM143=\"\",\"\",入力シート!AM143)","v":""},null,null,{"$f":"IF(入力シート!AP143=\"\",\"\",入力シート!AP143)","v":""},null,null,{"$f":"IF(入力シート!AS143=\"\",\"\",入力シート!AS143)","v":""},null,null,null,null,{"$f":"IF(入力シート!AX143=\"\",\"\",入力シート!AX143)","v":""},null,null,null,null,{"$f":"IF(入力シート!BC143=\"\",\"\",入力シート!BC143)","v":""},null,null,null,"・",{"$f":"IF(入力シート!BH143=\"\",\"\",入力シート!BH143)","v":""},null,null,"・",{"$f":"IF(入力シート!BL143=\"\",\"\",入力シート!BL143)","v":""}]
[]
[]
[]
[]
[]
[]
[]
[]
[]
[null,null,null,null,null,null,null,null,null,null,null,null,null,null,null,null,null,null,null,null,null,null,null,null,null,null,null,null,"（","ｷ　ﾘ　ﾄ　ﾘ",null,null,null,null,null,null,null,"）"]
[]
[]
[]
[null,null,null,null,null,null,null,null,null,null,null,null,null,null,"個　人　試　合　申　込　書",null,null,null,null,null,null,null,null,null,null,null,null,null,null,null,null,null,null,null,null,null,null,null,null,null,null,null,null,null,null,null,null,null,null,null,null,null,null,null,{"$f":"NOW()","v":"2019-04-23T14:59:10.980"}]
[]
[null,null,"※抽選番号",null,null,null,null,null,null,null,null,null,null,{"$f":"IF(入力シート!C147=\"\",\"\",入力シート!C147)","v":""},null,null,null,null,null,null,null,"kg級",null,null,null,{"$f":"入力シート!$O$43","v":"第６８回　全国大会大阪府予選会"}]
[]
[null,null,"学校番号",null,null,null,"学　　　　校　　　　名",null,null,null,null,null,null,null,null,null,null,null,null,null,null,null,null,null,null,null,null,null,null,null,null,null,null,null,null,"監督名",null,null,null,null,null,null,null,null,null,null,null,null,null,null,"校長名"]
[null,null,{"$f":"入力シート!$C$9","v":0},null,null,null,{"$f":"入力シート!$G$9","v":""},null,null,null,null,null,null,null,null,null,null,null,null,null,null,null,null,null,null,"高等学校",null,null,null,null,null,null,null,null,null,{"$f":"入力シート!$AJ$9","v":0},null,null,null,null,null,null,null,null,null,null,null,"印",null,null,{"$f":"入力シート!$AY$9","v":0},null,null,null,null,null,null,null,null,null,null,null,"印"]
[]
[]
[null,null,"ふりがな",null,null,null,null,null,{"$f":"IF(入力シート!I147=\"\",\"\",入力シート!I147)","v":""},null,null,null,null,null,null,null,null,null,null,null,null,null,null,null,{"$f":"IF(入力シート!Y147=\"\",\"\",入力シート!Y147)","v":""},null,null,null,null,null,null,null,null,null,null,null,null,null,"学年",null,null,"段位",null,null,"体重（kg）",null,null,null,null,"身長（cm）",null,null,null,null,"生年月日（西暦）"]
[null,null,"選手名",null,null,null,"（姓）",null,{"$f":"IF(入力シート!I148=\"\",\"\",入力シート!I148)","v":""},null,null,null,null,null,null,null,null,null,null,null,null,null,"（名）",null,{"$f":"IF(入力シート!Y148=\"\",\"\",入力シート!Y148)","v":""},null,null,null,null,null,null,null,null,null,null,null,null,null,{"$f":"IF(入力シート!AM147=\"\",\"\",入力シート!AM147)","v":""},null,null,{"$f":"IF(入力シート!AP147=\"\",\"\",入力シート!AP147)","v":""},null,null,{"$f":"IF(入力シート!AS147=\"\",\"\",入力シート!AS147)","v":""},null,null,null,null,{"$f":"IF(入力シート!AX147=\"\",\"\",入力シート!AX147)","v":""},null,null,null,null,{"$f":"IF(入力シート!BC147=\"\",\"\",入力シート!BC147)","v":""},null,null,null,"・",{"$f":"IF(入力シート!BH147=\"\",\"\",入力シート!BH147)","v":""},null,null,"・",{"$f":"IF(入力シート!BL147=\"\",\"\",入力シート!BL147)","v":""}]
[]
[]
[]
[]
[]
[]
[]
[]
[]
[]
[]
[]
[]
[null,null,null,null,null,null,null,null,null,null,null,null,null,null,"個　人　試　合　申　込　書",null,null,null,null,null,null,null,null,null,null,null,null,null,null,null,null,null,null,null,null,null,null,null,null,null,null,null,null,null,null,null,null,null,null,null,null,null,null,null,{"$f":"NOW()","v":"2019-04-23T14:59:10.980"}]
[]
[null,null,"※抽選番号",null,null,null,null,null,null,null,null,null,null,{"$f":"IF(入力シート!C151=\"\",\"\",入力シート!C151)","v":""},null,null,null,null,null,null,null,"kg級",null,null,null,{"$f":"入力シート!$O$43","v":"第６８回　全国大会大阪府予選会"}]
[]
[null,null,"学校番号",null,null,null,"学　　　　校　　　　名",null,null,null,null,null,null,null,null,null,null,null,null,null,null,null,null,null,null,null,null,null,null,null,null,null,null,null,null,"監督名",null,null,null,null,null,null,null,null,null,null,null,null,null,null,"校長名"]
[null,null,{"$f":"入力シート!$C$9","v":0},null,null,null,{"$f":"入力シート!$G$9","v":""},null,null,null,null,null,null,null,null,null,null,null,null,null,null,null,null,null,null,"高等学校",null,null,null,null,null,null,null,null,null,{"$f":"入力シート!$AJ$9","v":0},null,null,null,null,null,null,null,null,null,null,null,"印",null,null,{"$f":"入力シート!$AY$9","v":0},null,null,null,null,null,null,null,null,null,null,null,"印"]
[]
[]
[null,null,"ふりがな",null,null,null,null,null,{"$f":"IF(入力シート!I151=\"\",\"\",入力シート!I151)","v":""},null,null,null,null,null,null,null,null,null,null,null,null,null,null,null,{"$f":"IF(入力シート!Y151=\"\",\"\",入力シート!Y151)","v":""},null,null,null,null,null,null,null,null,null,null,null,null,null,"学年",null,null,"段位",null,null,"体重（kg）",null,null,null,null,"身長（cm）",null,null,null,null,"生年月日（西暦）"]
[null,null,"選手名",null,null,null,"（姓）",null,{"$f":"IF(入力シート!I152=\"\",\"\",入力シート!I152)","v":""},null,null,null,null,null,null,null,null,null,null,null,null,null,"（名）",null,{"$f":"IF(入力シート!Y152=\"\",\"\",入力シート!Y152)","v":""},null,null,null,null,null,null,null,null,null,null,null,null,null,{"$f":"IF(入力シート!AM151=\"\",\"\",入力シート!AM151)","v":""},null,null,{"$f":"IF(入力シート!AP151=\"\",\"\",入力シート!AP151)","v":""},null,null,{"$f":"IF(入力シート!AS151=\"\",\"\",入力シート!AS151)","v":""},null,null,null,null,{"$f":"IF(入力シート!AX151=\"\",\"\",入力シート!AX151)","v":""},null,null,null,null,{"$f":"IF(入力シート!BC151=\"\",\"\",入力シート!BC151)","v":""},null,null,null,"・",{"$f":"IF(入力シート!BH151=\"\",\"\",入力シート!BH151)","v":""},null,null,"・",{"$f":"IF(入力シート!BL151=\"\",\"\",入力シート!BL151)","v":""}]
[]
[]
[]
[]
[]
[]
[]
[]
[]
[null,null,null,null,null,null,null,null,null,null,null,null,null,null,null,null,null,null,null,null,null,null,null,null,null,null,null,null,"（","ｷ　ﾘ　ﾄ　ﾘ",null,null,null,null,null,null,null,"）"]
[]
[]
[]
[null,null,null,null,null,null,null,null,null,null,null,null,null,null,"個　人　試　合　申　込　書",null,null,null,null,null,null,null,null,null,null,null,null,null,null,null,null,null,null,null,null,null,null,null,null,null,null,null,null,null,null,null,null,null,null,null,null,null,null,null,{"$f":"NOW()","v":"2019-04-23T14:59:10.980"}]
[]
[null,null,"※抽選番号",null,null,null,null,null,null,null,null,null,null,{"$f":"IF(入力シート!C155=\"\",\"\",入力シート!C155)","v":""},null,null,null,null,null,null,null,"kg級",null,null,null,{"$f":"入力シート!$O$43","v":"第６８回　全国大会大阪府予選会"}]
[]
[null,null,"学校番号",null,null,null,"学　　　　校　　　　名",null,null,null,null,null,null,null,null,null,null,null,null,null,null,null,null,null,null,null,null,null,null,null,null,null,null,null,null,"監督名",null,null,null,null,null,null,null,null,null,null,null,null,null,null,"校長名"]
[null,null,{"$f":"入力シート!$C$9","v":0},null,null,null,{"$f":"入力シート!$G$9","v":""},null,null,null,null,null,null,null,null,null,null,null,null,null,null,null,null,null,null,"高等学校",null,null,null,null,null,null,null,null,null,{"$f":"入力シート!$AJ$9","v":0},null,null,null,null,null,null,null,null,null,null,null,"印",null,null,{"$f":"入力シート!$AY$9","v":0},null,null,null,null,null,null,null,null,null,null,null,"印"]
[]
[]
[null,null,"ふりがな",null,null,null,null,null,{"$f":"IF(入力シート!I155=\"\",\"\",入力シート!I155)","v":""},null,null,null,null,null,null,null,null,null,null,null,null,null,null,null,{"$f":"IF(入力シート!Y155=\"\",\"\",入力シート!Y155)","v":""},null,null,null,null,null,null,null,null,null,null,null,null,null,"学年",null,null,"段位",null,null,"体重（kg）",null,null,null,null,"身長（cm）",null,null,null,null,"生年月日（西暦）"]
[null,null,"選手名",null,null,null,"（姓）",null,{"$f":"IF(入力シート!I156=\"\",\"\",入力シート!I156)","v":""},null,null,null,null,null,null,null,null,null,null,null,null,null,"（名）",null,{"$f":"IF(入力シート!Y156=\"\",\"\",入力シート!Y156)","v":""},null,null,null,null,null,null,null,null,null,null,null,null,null,{"$f":"IF(入力シート!AM155=\"\",\"\",入力シート!AM155)","v":""},null,null,{"$f":"IF(入力シート!AP155=\"\",\"\",入力シート!AP155)","v":""},null,null,{"$f":"IF(入力シート!AS155=\"\",\"\",入力シート!AS155)","v":""},null,null,null,null,{"$f":"IF(入力シート!AX155=\"\",\"\",入力シート!AX155)","v":""},null,null,null,null,{"$f":"IF(入力シート!BC155=\"\",\"\",入力シート!BC155)","v":""},null,null,null,"・",{"$f":"IF(入力シート!BH155=\"\",\"\",入力シート!BH155)","v":""},null,null,"・",{"$f":"IF(入力シート!BL155=\"\",\"\",入力シート!BL155)","v":""}]
[]
[]
[]
[]
[]
[]
[]
[]
[]
[]
[]
[]
[]
[null,null,null,null,null,null,null,null,null,null,null,null,null,null,"個　人　試　合　申　込　書",null,null,null,null,null,null,null,null,null,null,null,null,null,null,null,null,null,null,null,null,null,null,null,null,null,null,null,null,null,null,null,null,null,null,null,null,null,null,null,{"$f":"NOW()","v":"2019-04-23T14:59:10.980"}]
[]
[null,null,"※抽選番号",null,null,null,null,null,null,null,null,null,null,{"$f":"IF(入力シート!C159=\"\",\"\",入力シート!C159)","v":""},null,null,null,null,null,null,null,"kg級",null,null,null,{"$f":"入力シート!$O$43","v":"第６８回　全国大会大阪府予選会"}]
[]
[null,null,"学校番号",null,null,null,"学　　　　校　　　　名",null,null,null,null,null,null,null,null,null,null,null,null,null,null,null,null,null,null,null,null,null,null,null,null,null,null,null,null,"監督名",null,null,null,null,null,null,null,null,null,null,null,null,null,null,"校長名"]
[null,null,{"$f":"入力シート!$C$9","v":0},null,null,null,{"$f":"入力シート!$G$9","v":""},null,null,null,null,null,null,null,null,null,null,null,null,null,null,null,null,null,null,"高等学校",null,null,null,null,null,null,null,null,null,{"$f":"入力シート!$AJ$9","v":0},null,null,null,null,null,null,null,null,null,null,null,"印",null,null,{"$f":"入力シート!$AY$9","v":0},null,null,null,null,null,null,null,null,null,null,null,"印"]
[]
[]
[null,null,"ふりがな",null,null,null,null,null,{"$f":"IF(入力シート!I159=\"\",\"\",入力シート!I159)","v":""},null,null,null,null,null,null,null,null,null,null,null,null,null,null,null,{"$f":"IF(入力シート!Y159=\"\",\"\",入力シート!Y159)","v":""},null,null,null,null,null,null,null,null,null,null,null,null,null,"学年",null,null,"段位",null,null,"体重（kg）",null,null,null,null,"身長（cm）",null,null,null,null,"生年月日（西暦）"]
[null,null,"選手名",null,null,null,"（姓）",null,{"$f":"IF(入力シート!I160=\"\",\"\",入力シート!I160)","v":""},null,null,null,null,null,null,null,null,null,null,null,null,null,"（名）",null,{"$f":"IF(入力シート!Y160=\"\",\"\",入力シート!Y160)","v":""},null,null,null,null,null,null,null,null,null,null,null,null,null,{"$f":"IF(入力シート!AM159=\"\",\"\",入力シート!AM159)","v":""},null,null,{"$f":"IF(入力シート!AP159=\"\",\"\",入力シート!AP159)","v":""},null,null,{"$f":"IF(入力シート!AS159=\"\",\"\",入力シート!AS159)","v":""},null,null,null,null,{"$f":"IF(入力シート!AX159=\"\",\"\",入力シート!AX159)","v":""},null,null,null,null,{"$f":"IF(入力シート!BC159=\"\",\"\",入力シート!BC159)","v":""},null,null,null,"・",{"$f":"IF(入力シート!BH159=\"\",\"\",入力シート!BH159)","v":""},null,null,"・",{"$f":"IF(入力シート!BL159=\"\",\"\",入力シート!BL159)","v":""}]
[]
[]
[]
[]
[]
[]
[]
[]
[]
[null,null,null,null,null,null,null,null,null,null,null,null,null,null,null,null,null,null,null,null,null,null,null,null,null,null,null,null,"（","ｷ　ﾘ　ﾄ　ﾘ",null,null,null,null,null,null,null,"）"]
[]
[]
[]
[null,null,null,null,null,null,null,null,null,null,null,null,null,null,"個　人　試　合　申　込　書",null,null,null,null,null,null,null,null,null,null,null,null,null,null,null,null,null,null,null,null,null,null,null,null,null,null,null,null,null,null,null,null,null,null,null,null,null,null,null,{"$f":"NOW()","v":"2019-04-23T14:59:10.980"}]
[]
[null,null,"※抽選番号",null,null,null,null,null,null,null,null,null,null,{"$f":"IF(入力シート!C163=\"\",\"\",入力シート!C163)","v":""},null,null,null,null,null,null,null,"kg級",null,null,null,{"$f":"入力シート!$O$43","v":"第６８回　全国大会大阪府予選会"}]
[]
[null,null,"学校番号",null,null,null,"学　　　　校　　　　名",null,null,null,null,null,null,null,null,null,null,null,null,null,null,null,null,null,null,null,null,null,null,null,null,null,null,null,null,"監督名",null,null,null,null,null,null,null,null,null,null,null,null,null,null,"校長名"]
[null,null,{"$f":"入力シート!$C$9","v":0},null,null,null,{"$f":"入力シート!$G$9","v":""},null,null,null,null,null,null,null,null,null,null,null,null,null,null,null,null,null,null,"高等学校",null,null,null,null,null,null,null,null,null,{"$f":"入力シート!$AJ$9","v":0},null,null,null,null,null,null,null,null,null,null,null,"印",null,null,{"$f":"入力シート!$AY$9","v":0},null,null,null,null,null,null,null,null,null,null,null,"印"]
[]
[]
[null,null,"ふりがな",null,null,null,null,null,{"$f":"IF(入力シート!I163=\"\",\"\",入力シート!I163)","v":""},null,null,null,null,null,null,null,null,null,null,null,null,null,null,null,{"$f":"IF(入力シート!Y163=\"\",\"\",入力シート!Y163)","v":""},null,null,null,null,null,null,null,null,null,null,null,null,null,"学年",null,null,"段位",null,null,"体重（kg）",null,null,null,null,"身長（cm）",null,null,null,null,"生年月日（西暦）"]
[null,null,"選手名",null,null,null,"（姓）",null,{"$f":"IF(入力シート!I164=\"\",\"\",入力シート!I164)","v":""},null,null,null,null,null,null,null,null,null,null,null,null,null,"（名）",null,{"$f":"IF(入力シート!Y164=\"\",\"\",入力シート!Y164)","v":""},null,null,null,null,null,null,null,null,null,null,null,null,null,{"$f":"IF(入力シート!AM163=\"\",\"\",入力シート!AM163)","v":""},null,null,{"$f":"IF(入力シート!AP163=\"\",\"\",入力シート!AP163)","v":""},null,null,{"$f":"IF(入力シート!AS163=\"\",\"\",入力シート!AS163)","v":""},null,null,null,null,{"$f":"IF(入力シート!AX163=\"\",\"\",入力シート!AX163)","v":""},null,null,null,null,{"$f":"IF(入力シート!BC163=\"\",\"\",入力シート!BC163)","v":""},null,null,null,"・",{"$f":"IF(入力シート!BH163=\"\",\"\",入力シート!BH163)","v":""},null,null,"・",{"$f":"IF(入力シート!BL163=\"\",\"\",入力シート!BL163)","v":""}]
[]
[]
[]
[]
[]
[]
[]
[]
[]
[]
[]
[]
[]
[null,null,null,null,null,null,null,null,null,null,null,null,null,null,"個　人　試　合　申　込　書",null,null,null,null,null,null,null,null,null,null,null,null,null,null,null,null,null,null,null,null,null,null,null,null,null,null,null,null,null,null,null,null,null,null,null,null,null,null,null,{"$f":"NOW()","v":"2019-04-23T14:59:10.980"}]
[]
[null,null,"※抽選番号",null,null,null,null,null,null,null,null,null,null,{"$f":"IF(入力シート!C167=\"\",\"\",入力シート!C167)","v":""},null,null,null,null,null,null,null,"kg級",null,null,null,{"$f":"入力シート!$O$43","v":"第６８回　全国大会大阪府予選会"}]
[]
[null,null,"学校番号",null,null,null,"学　　　　校　　　　名",null,null,null,null,null,null,null,null,null,null,null,null,null,null,null,null,null,null,null,null,null,null,null,null,null,null,null,null,"監督名",null,null,null,null,null,null,null,null,null,null,null,null,null,null,"校長名"]
[null,null,{"$f":"入力シート!$C$9","v":0},null,null,null,{"$f":"入力シート!$G$9","v":""},null,null,null,null,null,null,null,null,null,null,null,null,null,null,null,null,null,null,"高等学校",null,null,null,null,null,null,null,null,null,{"$f":"入力シート!$AJ$9","v":0},null,null,null,null,null,null,null,null,null,null,null,"印",null,null,{"$f":"入力シート!$AY$9","v":0},null,null,null,null,null,null,null,null,null,null,null,"印"]
[]
[]
[null,null,"ふりがな",null,null,null,null,null,{"$f":"IF(入力シート!I167=\"\",\"\",入力シート!I167)","v":""},null,null,null,null,null,null,null,null,null,null,null,null,null,null,null,{"$f":"IF(入力シート!Y167=\"\",\"\",入力シート!Y167)","v":""},null,null,null,null,null,null,null,null,null,null,null,null,null,"学年",null,null,"段位",null,null,"体重（kg）",null,null,null,null,"身長（cm）",null,null,null,null,"生年月日（西暦）"]
[null,null,"選手名",null,null,null,"（姓）",null,{"$f":"IF(入力シート!I168=\"\",\"\",入力シート!I168)","v":""},null,null,null,null,null,null,null,null,null,null,null,null,null,"（名）",null,{"$f":"IF(入力シート!Y168=\"\",\"\",入力シート!Y168)","v":""},null,null,null,null,null,null,null,null,null,null,null,null,null,{"$f":"IF(入力シート!AM167=\"\",\"\",入力シート!AM167)","v":""},null,null,{"$f":"IF(入力シート!AP167=\"\",\"\",入力シート!AP167)","v":""},null,null,{"$f":"IF(入力シート!AS167=\"\",\"\",入力シート!AS167)","v":""},null,null,null,null,{"$f":"IF(入力シート!AX167=\"\",\"\",入力シート!AX167)","v":""},null,null,null,null,{"$f":"IF(入力シート!BC167=\"\",\"\",入力シート!BC167)","v":""},null,null,null,"・",{"$f":"IF(入力シート!BH167=\"\",\"\",入力シート!BH167)","v":""},null,null,"・",{"$f":"IF(入力シート!BL167=\"\",\"\",入力シート!BL167)","v":""}]
[]
[]
[]
[]
[]
[]
[]
[]
[]
[null,null,null,null,null,null,null,null,null,null,null,null,null,null,null,null,null,null,null,null,null,null,null,null,null,null,null,null,"（","ｷ　ﾘ　ﾄ　ﾘ",null,null,null,null,null,null,null,"）"]
[]
[]
[]
[null,null,null,null,null,null,null,null,null,null,null,null,null,null,"個　人　試　合　申　込　書",null,null,null,null,null,null,null,null,null,null,null,null,null,null,null,null,null,null,null,null,null,null,null,null,null,null,null,null,null,null,null,null,null,null,null,null,null,null,null,{"$f":"NOW()","v":"2019-04-23T14:59:10.980"}]
[]
[null,null,"※抽選番号",null,null,null,null,null,null,null,null,null,null,{"$f":"IF(入力シート!C171=\"\",\"\",入力シート!C171)","v":""},null,null,null,null,null,null,null,"kg級",null,null,null,{"$f":"入力シート!$O$43","v":"第６８回　全国大会大阪府予選会"}]
[]
[null,null,"学校番号",null,null,null,"学　　　　校　　　　名",null,null,null,null,null,null,null,null,null,null,null,null,null,null,null,null,null,null,null,null,null,null,null,null,null,null,null,null,"監督名",null,null,null,null,null,null,null,null,null,null,null,null,null,null,"校長名"]
[null,null,{"$f":"入力シート!$C$9","v":0},null,null,null,{"$f":"入力シート!$G$9","v":""},null,null,null,null,null,null,null,null,null,null,null,null,null,null,null,null,null,null,"高等学校",null,null,null,null,null,null,null,null,null,{"$f":"入力シート!$AJ$9","v":0},null,null,null,null,null,null,null,null,null,null,null,"印",null,null,{"$f":"入力シート!$AY$9","v":0},null,null,null,null,null,null,null,null,null,null,null,"印"]
[]
[]
[null,null,"ふりがな",null,null,null,null,null,{"$f":"IF(入力シート!I171=\"\",\"\",入力シート!I171)","v":""},null,null,null,null,null,null,null,null,null,null,null,null,null,null,null,{"$f":"IF(入力シート!Y171=\"\",\"\",入力シート!Y171)","v":""},null,null,null,null,null,null,null,null,null,null,null,null,null,"学年",null,null,"段位",null,null,"体重（kg）",null,null,null,null,"身長（cm）",null,null,null,null,"生年月日（西暦）"]
[null,null,"選手名",null,null,null,"（姓）",null,{"$f":"IF(入力シート!I172=\"\",\"\",入力シート!I172)","v":""},null,null,null,null,null,null,null,null,null,null,null,null,null,"（名）",null,{"$f":"IF(入力シート!Y172=\"\",\"\",入力シート!Y172)","v":""},null,null,null,null,null,null,null,null,null,null,null,null,null,{"$f":"IF(入力シート!AM171=\"\",\"\",入力シート!AM171)","v":""},null,null,{"$f":"IF(入力シート!AP171=\"\",\"\",入力シート!AP171)","v":""},null,null,{"$f":"IF(入力シート!AS171=\"\",\"\",入力シート!AS171)","v":""},null,null,null,null,{"$f":"IF(入力シート!AX171=\"\",\"\",入力シート!AX171)","v":""},null,null,null,null,{"$f":"IF(入力シート!BC171=\"\",\"\",入力シート!BC171)","v":""},null,null,null,"・",{"$f":"IF(入力シート!BH171=\"\",\"\",入力シート!BH171)","v":""},null,null,"・",{"$f":"IF(入力シート!BL171=\"\",\"\",入力シート!BL171)","v":""}]
[]
[]
[]
[]
[]
[]
[]
[]
[]
[]
[]
[]
[]
[null,null,null,null,null,null,null,null,null,null,null,null,null,null,"個　人　試　合　申　込　書",null,null,null,null,null,null,null,null,null,null,null,null,null,null,null,null,null,null,null,null,null,null,null,null,null,null,null,null,null,null,null,null,null,null,null,null,null,null,null,{"$f":"NOW()","v":"2019-04-23T14:59:10.980"}]
[]
[null,null,"※抽選番号",null,null,null,null,null,null,null,null,null,null,{"$f":"IF(入力シート!C175=\"\",\"\",入力シート!C175)","v":""},null,null,null,null,null,null,null,"kg級",null,null,null,{"$f":"入力シート!$O$43","v":"第６８回　全国大会大阪府予選会"}]
[]
[null,null,"学校番号",null,null,null,"学　　　　校　　　　名",null,null,null,null,null,null,null,null,null,null,null,null,null,null,null,null,null,null,null,null,null,null,null,null,null,null,null,null,"監督名",null,null,null,null,null,null,null,null,null,null,null,null,null,null,"校長名"]
[null,null,{"$f":"入力シート!$C$9","v":0},null,null,null,{"$f":"入力シート!$G$9","v":""},null,null,null,null,null,null,null,null,null,null,null,null,null,null,null,null,null,null,"高等学校",null,null,null,null,null,null,null,null,null,{"$f":"入力シート!$AJ$9","v":0},null,null,null,null,null,null,null,null,null,null,null,"印",null,null,{"$f":"入力シート!$AY$9","v":0},null,null,null,null,null,null,null,null,null,null,null,"印"]
[]
[]
[null,null,"ふりがな",null,null,null,null,null,{"$f":"IF(入力シート!I175=\"\",\"\",入力シート!I175)","v":""},null,null,null,null,null,null,null,null,null,null,null,null,null,null,null,{"$f":"IF(入力シート!Y175=\"\",\"\",入力シート!Y175)","v":""},null,null,null,null,null,null,null,null,null,null,null,null,null,"学年",null,null,"段位",null,null,"体重（kg）",null,null,null,null,"身長（cm）",null,null,null,null,"生年月日（西暦）"]
[null,null,"選手名",null,null,null,"（姓）",null,{"$f":"IF(入力シート!I176=\"\",\"\",入力シート!I176)","v":""},null,null,null,null,null,null,null,null,null,null,null,null,null,"（名）",null,{"$f":"IF(入力シート!Y176=\"\",\"\",入力シート!Y176)","v":""},null,null,null,null,null,null,null,null,null,null,null,null,null,{"$f":"IF(入力シート!AM175=\"\",\"\",入力シート!AM175)","v":""},null,null,{"$f":"IF(入力シート!AP175=\"\",\"\",入力シート!AP175)","v":""},null,null,{"$f":"IF(入力シート!AS175=\"\",\"\",入力シート!AS175)","v":""},null,null,null,null,{"$f":"IF(入力シート!AX175=\"\",\"\",入力シート!AX175)","v":""},null,null,null,null,{"$f":"IF(入力シート!BC175=\"\",\"\",入力シート!BC175)","v":""},null,null,null,"・",{"$f":"IF(入力シート!BH175=\"\",\"\",入力シート!BH175)","v":""},null,null,"・",{"$f":"IF(入力シート!BL175=\"\",\"\",入力シート!BL175)","v":""}]
[]
[]
[]
[]
[]
[]
[]
[]
[]
[null,null,null,null,null,null,null,null,null,null,null,null,null,null,null,null,null,null,null,null,null,null,null,null,null,null,null,null,"（","ｷ　ﾘ　ﾄ　ﾘ",null,null,null,null,null,null,null,"）"]
[]
[]
[]
[null,null,null,null,null,null,null,null,null,null,null,null,null,null,"個　人　試　合　申　込　書",null,null,null,null,null,null,null,null,null,null,null,null,null,null,null,null,null,null,null,null,null,null,null,null,null,null,null,null,null,null,null,null,null,null,null,null,null,null,null,{"$f":"NOW()","v":"2019-04-23T14:59:10.980"}]
[]
[null,null,"※抽選番号",null,null,null,null,null,null,null,null,null,null,{"$f":"IF(入力シート!C179=\"\",\"\",入力シート!C179)","v":""},null,null,null,null,null,null,null,"kg級",null,null,null,{"$f":"入力シート!$O$43","v":"第６８回　全国大会大阪府予選会"}]
[]
[null,null,"学校番号",null,null,null,"学　　　　校　　　　名",null,null,null,null,null,null,null,null,null,null,null,null,null,null,null,null,null,null,null,null,null,null,null,null,null,null,null,null,"監督名",null,null,null,null,null,null,null,null,null,null,null,null,null,null,"校長名"]
[null,null,{"$f":"入力シート!$C$9","v":0},null,null,null,{"$f":"入力シート!$G$9","v":""},null,null,null,null,null,null,null,null,null,null,null,null,null,null,null,null,null,null,"高等学校",null,null,null,null,null,null,null,null,null,{"$f":"入力シート!$AJ$9","v":0},null,null,null,null,null,null,null,null,null,null,null,"印",null,null,{"$f":"入力シート!$AY$9","v":0},null,null,null,null,null,null,null,null,null,null,null,"印"]
[]
[]
[null,null,"ふりがな",null,null,null,null,null,{"$f":"IF(入力シート!I179=\"\",\"\",入力シート!I179)","v":""},null,null,null,null,null,null,null,null,null,null,null,null,null,null,null,{"$f":"IF(入力シート!Y179=\"\",\"\",入力シート!Y179)","v":""},null,null,null,null,null,null,null,null,null,null,null,null,null,"学年",null,null,"段位",null,null,"体重（kg）",null,null,null,null,"身長（cm）",null,null,null,null,"生年月日（西暦）"]
[null,null,"選手名",null,null,null,"（姓）",null,{"$f":"IF(入力シート!I180=\"\",\"\",入力シート!I180)","v":""},null,null,null,null,null,null,null,null,null,null,null,null,null,"（名）",null,{"$f":"IF(入力シート!Y180=\"\",\"\",入力シート!Y180)","v":""},null,null,null,null,null,null,null,null,null,null,null,null,null,{"$f":"IF(入力シート!AM179=\"\",\"\",入力シート!AM179)","v":""},null,null,{"$f":"IF(入力シート!AP179=\"\",\"\",入力シート!AP179)","v":""},null,null,{"$f":"IF(入力シート!AS179=\"\",\"\",入力シート!AS179)","v":""},null,null,null,null,{"$f":"IF(入力シート!AX179=\"\",\"\",入力シート!AX179)","v":""},null,null,null,null,{"$f":"IF(入力シート!BC179=\"\",\"\",入力シート!BC179)","v":""},null,null,null,"・",{"$f":"IF(入力シート!BH179=\"\",\"\",入力シート!BH179)","v":""},null,null,"・",{"$f":"IF(入力シート!BL179=\"\",\"\",入力シート!BL179)","v":""}]
[]
[]
[]
[]
[]
[]
[]
[]
[]
[]
[]
[]
[]
[null,null,null,null,null,null,null,null,null,null,null,null,null,null,"個　人　試　合　申　込　書",null,null,null,null,null,null,null,null,null,null,null,null,null,null,null,null,null,null,null,null,null,null,null,null,null,null,null,null,null,null,null,null,null,null,null,null,null,null,null,{"$f":"NOW()","v":"2019-04-23T14:59:10.980"}]
[]
[null,null,"※抽選番号",null,null,null,null,null,null,null,null,null,null,{"$f":"IF(入力シート!C183=\"\",\"\",入力シート!C183)","v":""},null,null,null,null,null,null,null,"kg級",null,null,null,{"$f":"入力シート!$O$43","v":"第６８回　全国大会大阪府予選会"}]
[]
[null,null,"学校番号",null,null,null,"学　　　　校　　　　名",null,null,null,null,null,null,null,null,null,null,null,null,null,null,null,null,null,null,null,null,null,null,null,null,null,null,null,null,"監督名",null,null,null,null,null,null,null,null,null,null,null,null,null,null,"校長名"]
[null,null,{"$f":"入力シート!$C$9","v":0},null,null,null,{"$f":"入力シート!$G$9","v":""},null,null,null,null,null,null,null,null,null,null,null,null,null,null,null,null,null,null,"高等学校",null,null,null,null,null,null,null,null,null,{"$f":"入力シート!$AJ$9","v":0},null,null,null,null,null,null,null,null,null,null,null,"印",null,null,{"$f":"入力シート!$AY$9","v":0},null,null,null,null,null,null,null,null,null,null,null,"印"]
[]
[]
[null,null,"ふりがな",null,null,null,null,null,{"$f":"IF(入力シート!I183=\"\",\"\",入力シート!I183)","v":""},null,null,null,null,null,null,null,null,null,null,null,null,null,null,null,{"$f":"IF(入力シート!Y183=\"\",\"\",入力シート!Y183)","v":""},null,null,null,null,null,null,null,null,null,null,null,null,null,"学年",null,null,"段位",null,null,"体重（kg）",null,null,null,null,"身長（cm）",null,null,null,null,"生年月日（西暦）"]
[null,null,"選手名",null,null,null,"（姓）",null,{"$f":"IF(入力シート!I184=\"\",\"\",入力シート!I184)","v":""},null,null,null,null,null,null,null,null,null,null,null,null,null,"（名）",null,{"$f":"IF(入力シート!Y184=\"\",\"\",入力シート!Y184)","v":""},null,null,null,null,null,null,null,null,null,null,null,null,null,{"$f":"IF(入力シート!AM183=\"\",\"\",入力シート!AM183)","v":""},null,null,{"$f":"IF(入力シート!AP183=\"\",\"\",入力シート!AP183)","v":""},null,null,{"$f":"IF(入力シート!AS183=\"\",\"\",入力シート!AS183)","v":""},null,null,null,null,{"$f":"IF(入力シート!AX183=\"\",\"\",入力シート!AX183)","v":""},null,null,null,null,{"$f":"IF(入力シート!BC183=\"\",\"\",入力シート!BC183)","v":""},null,null,null,"・",{"$f":"IF(入力シート!BH183=\"\",\"\",入力シート!BH183)","v":""},null,null,"・",{"$f":"IF(入力シート!BL183=\"\",\"\",入力シート!BL183)","v":""}]
[]
[]
[]
[]
[]
[]
[]
[]
[]
[null,null,null,null,null,null,null,null,null,null,null,null,null,null,null,null,null,null,null,null,null,null,null,null,null,null,null,null,"（","ｷ　ﾘ　ﾄ　ﾘ",null,null,null,null,null,null,null,"）"]
[]
[]
[]
[null,null,null,null,null,null,null,null,null,null,null,null,null,null,"個　人　試　合　申　込　書",null,null,null,null,null,null,null,null,null,null,null,null,null,null,null,null,null,null,null,null,null,null,null,null,null,null,null,null,null,null,null,null,null,null,null,null,null,null,null,{"$f":"NOW()","v":"2019-04-23T14:59:10.980"}]
[]
[null,null,"※抽選番号",null,null,null,null,null,null,null,null,null,null,{"$f":"IF(入力シート!C187=\"\",\"\",入力シート!C187)","v":""},null,null,null,null,null,null,null,"kg級",null,null,null,{"$f":"入力シート!$O$43","v":"第６８回　全国大会大阪府予選会"}]
[]
[null,null,"学校番号",null,null,null,"学　　　　校　　　　名",null,null,null,null,null,null,null,null,null,null,null,null,null,null,null,null,null,null,null,null,null,null,null,null,null,null,null,null,"監督名",null,null,null,null,null,null,null,null,null,null,null,null,null,null,"校長名"]
[null,null,{"$f":"入力シート!$C$9","v":0},null,null,null,{"$f":"入力シート!$G$9","v":""},null,null,null,null,null,null,null,null,null,null,null,null,null,null,null,null,null,null,"高等学校",null,null,null,null,null,null,null,null,null,{"$f":"入力シート!$AJ$9","v":0},null,null,null,null,null,null,null,null,null,null,null,"印",null,null,{"$f":"入力シート!$AY$9","v":0},null,null,null,null,null,null,null,null,null,null,null,"印"]
[]
[]
[null,null,"ふりがな",null,null,null,null,null,{"$f":"IF(入力シート!I187=\"\",\"\",入力シート!I187)","v":""},null,null,null,null,null,null,null,null,null,null,null,null,null,null,null,{"$f":"IF(入力シート!Y187=\"\",\"\",入力シート!Y187)","v":""},null,null,null,null,null,null,null,null,null,null,null,null,null,"学年",null,null,"段位",null,null,"体重（kg）",null,null,null,null,"身長（cm）",null,null,null,null,"生年月日（西暦）"]
[null,null,"選手名",null,null,null,"（姓）",null,{"$f":"IF(入力シート!I188=\"\",\"\",入力シート!I188)","v":""},null,null,null,null,null,null,null,null,null,null,null,null,null,"（名）",null,{"$f":"IF(入力シート!Y188=\"\",\"\",入力シート!Y188)","v":""},null,null,null,null,null,null,null,null,null,null,null,null,null,{"$f":"IF(入力シート!AM187=\"\",\"\",入力シート!AM187)","v":""},null,null,{"$f":"IF(入力シート!AP187=\"\",\"\",入力シート!AP187)","v":""},null,null,{"$f":"IF(入力シート!AS187=\"\",\"\",入力シート!AS187)","v":""},null,null,null,null,{"$f":"IF(入力シート!AX187=\"\",\"\",入力シート!AX187)","v":""},null,null,null,null,{"$f":"IF(入力シート!BC187=\"\",\"\",入力シート!BC187)","v":""},null,null,null,"・",{"$f":"IF(入力シート!BH187=\"\",\"\",入力シート!BH187)","v":""},null,null,"・",{"$f":"IF(入力シート!BL187=\"\",\"\",入力シート!BL187)","v":""}]

{"sheet":"プログラム女子","index":3,"n_rows":6,"n_cols":8,"rows_kept":6,"cut":false,"hidden":false,"merged":[[6,2,6,5],[4,2,4,5],[1,5,1,7],[2,2,2,5],[3,2,3,5],[5,2,5,5],[1,2,1,4]]}
[]
[null,null,{"$f":"入力シート!L2","v":{"$error":"#N/A"}},null,null,{"$f":"入力シート!AJ9","v":0}]
[null,"先",{"$f":"IF(入力シート!I14=\"\",\"\",入力シート!I14&\"　\"&入力シート!Y14)","v":""},null,null,null,{"$f":"IF(入力シート!AM13=\"\",\"\",入力シート!AM13)","v":""},{"$f":"IF(入力シート!AP13=\"\",\"\",入力シート!AP13)","v":""}]
[null,"中",{"$f":"IF(入力シート!I18=\"\",\"\",入力シート!I18&\"　\"&入力シート!Y18)","v":""},null,null,null,{"$f":"IF(入力シート!AM17=\"\",\"\",入力シート!AM17)","v":""},{"$f":"IF(入力シート!AP17=\"\",\"\",入力シート!AP17)","v":""}]
[null,"大",{"$f":"IF(入力シート!I22=\"\",\"\",入力シート!I22&\"　\"&入力シート!Y22)","v":""},null,null,null,{"$f":"IF(入力シート!AM21=\"\",\"\",入力シート!AM21)","v":""},{"$f":"IF(入力シート!AP21=\"\",\"\",入力シート!AP21)","v":""}]
[null,"補",{"$f":"IF(入力シート!I26=\"\",\"\",入力シート!I26&\"　\"&入力シート!Y26)","v":""},null,null,null,{"$f":"IF(入力シート!AM25=\"\",\"\",入力シート!AM25)","v":""},{"$f":"IF(入力シート!AP25=\"\",\"\",入力シート!AP25)","v":""}]

{"sheet":"入力規則","index":4,"n_rows":198,"n_cols":19,"rows_kept":198,"cut":false,"hidden":true,"merged":[]}
["順序","学年","段位","西暦","月","日","個人戦年度","ランク","男子階級","入賞","女子階級","登録番号","校名",null,null,null,null,"大会名（女子）","大会名（男子）"]
["先鋒",1,"無",1996,1,1,25,"A",60,1,48,331,"桜宮",null,null,null,null,"全国大会大阪府予選会女子団体戦","全国大会大阪府予選会男子団体戦"]
["次鋒",2,"初",1997,2,2,26,"B",66,2,52,332,"汎愛",null,null,null,null,"全国大会大阪府予選会女子個人戦","全国大会大阪府予選会男子個人戦"]
["中堅",3,"弐",1998,3,3,27,"C",73,3,57,333,"東",null,null,null,null,"大阪高等学校女子体重別選手権大会","大阪高等学校総合体育大会柔道の部（男子団体戦）"]
["副将",4,"参",1999,4,4,28,"D",81,null,63,334,"南",null,null,null,null,"全国高等学校柔道選手権大会大阪府予選会","大阪高等学校総合体育大会柔道の部（男子個人戦）"]
["大将",null,null,2000,5,5,29,null,90,null,70,335,"生野工業",null,null,null,null,"全国高等学校柔道選手権大会女子個人試合大阪府一次予選会","全国高等学校柔道選手権大会大阪府予選会"]
["補欠1",null,null,2001,6,6,30,null,100,null,78,336,"都島工業",null,null,null,null,"全国高等学校柔道選手権大会男女個人試合大阪府予選会","全国高等学校柔道選手権大会男女個人試合大阪府予選会"]
["補欠2",null,null,2002,7,7,31,null,"+100",null,"+78",337,"東商"]
["補欠3",null,null,2003,8,8,32,null,55,null,44,338,"常翔学園"]
[null,null,null,2004,9,9,33,null,null,null,null,339,"大阪産業大学附属"]
[null,null,null,2005,10,10,34,null,null,null,null,340,"追手門大手前"]
[null,null,null,2006,11,11,35,null,null,null,null,341,"常翔啓光"]
[null,null,null,2007,12,12,36,null,null,null,null,342,"大阪偕星学園"]
[null,null,null,2008,null,13,37,null,null,null,null,343,"太成学院大学"]
[null,null,null,2009,null,14,38,null,null,null,null,344,"電通大"]
[null,null,null,2010,null,15,39,null,null,null,null,345,"同志社香里"]
[null,null,null,2011,null,16,40,null,null,null,null,346,"開明"]
[null,null,null,2012,null,17,41,null,null,null,null,347,"東海大学付属仰星"]
[null,null,null,2013,null,18,42,null,null,null,null,348,"泉尾"]
[null,null,null,2014,null,19,43,null,null,null,null,349,"和泉"]
[null,null,null,2015,null,20,44,null,null,null,null,350,"泉大津"]
[null,null,null,2016,null,21,45,null,null,null,null,351,"泉鳥取"]
[null,null,null,2017,null,22,46,null,null,null,null,352,"市岡"]
[null,null,null,2018,null,23,47,null,null,null,null,353,"今宮"]
[null,null,null,2019,null,24,48,null,null,null,null,354,"鳳"]
[null,null,null,2020,null,25,49,null,null,null,null,355,"貝塚"]
[null,null,null,null,null,26,50,null,null,null,null,356,"貝塚南"]
[null,null,null,null,null,27,51,null,null,null,null,357,"金岡"]
[null,null,null,null,null,28,52,null,null,null,null,358,"岸和田"]
[null,null,null,null,null,29,53,null,null,null,null,359,"港南造形"]
[null,null,null,null,null,30,54,null,null,null,null,360,"久米田"]
[null,null,null,null,null,31,55,null,null,null,null,361,"堺上"]
[null,null,null,null,null,null,null,null,null,null,null,362,"堺西"]
[null,null,null,null,null,null,null,null,null,null,null,363,"堺東"]
[null,null,null,null,null,null,null,null,null,null,null,364,"佐野"]
[null,null,null,null,null,null,null,null,null,null,null,365,"狭山"]
[null,null,null,null,null,null,null,null,null,null,null,366,"信太"]
[null,null,null,null,null,null,null,null,null,null,null,367,"咲洲"]
[null,null,null,null,null,null,null,null,null,null,null,368,"りんくう翔南"]
[null,null,null,null,null,null,null,null,null,null,null,369,"泉北"]
[null,null,null,null,null,null,null,null,null,null,null,370,"泉陽"]
[null,null,null,null,null,null,null,null,null,null,null,371,"大正"]
[null,null,null,null,null,null,null,null,null,null,null,372,"高石"]
[null,null,null,null,null,null,null,null,null,null,null,373,"登美丘"]
[null,null,null,null,null,null,null,null,null,null,null,374,"西成"]
[null,null,null,null,null,null,null,null,null,null,null,376,"伯太"]
[null,null,null,null,null,null,null,null,null,null,null,377,"阪南大学"]
[null,null,null,null,null,null,null,null,null,null,null,378,"東百舌鳥"]
[null,null,null,null,null,null,null,null,null,null,null,379,"福泉"]
[null,null,null,null,null,null,null,null,null,null,null,380,"成美"]
[null,null,null,null,null,null,null,null,null,null,null,381,"三国丘"]
[null,null,null,null,null,null,null,null,null,null,null,382,"岬"]
[null,null,null,null,null,null,null,null,null,null,null,383,"港"]
[null,null,null,null,null,null,null,null,null,null,null,384,"大和川"]
[null,null,null,null,null,null,null,null,null,null,null,385,"横山"]
[null,null,null,null,null,null,null,null,null,null,null,386,"和泉総合"]
[null,null,null,null,null,null,null,null,null,null,null,387,"今宮工科"]
[null,null,null,null,null,null,null,null,null,null,null,388,"堺工科"]
[null,null,null,null,null,null,null,null,null,null,null,389,"佐野工科"]
[null,null,null,null,null,null,null,null,null,null,null,390,"西野田工科"]
[null,null,null,null,null,null,null,null,null,null,null,391,"日根野"]
[null,null,null,null,null,null,null,null,null,null,null,392,"扇町"]
[null,null,null,null,null,null,null,null,null,null,null,393,"堺市商"]
[null,null,null,null,null,null,null,null,null,null,null,394,"泉尾工業"]
[null,null,null,null,null,null,null,null,null,null,null,395,"岸和田市立産業"]
[null,null,null,null,null,null,null,null,null,null,null,396,"咲くやこの花"]
[null,null,null,null,null,null,null,null,null,null,null,397,"堺市立堺"]
[null,null,null,null,null,null,null,null,null,null,null,398,"大阪商業大学堺　"]
[null,null,null,null,null,null,null,null,null,null,null,399,"大阪学芸"]
[null,null,null,null,null,null,null,null,null,null,null,400,"清教学園"]
[null,null,null,null,null,null,null,null,null,null,null,401,"浪速"]
[null,null,null,null,null,null,null,null,null,null,null,402,"初芝立命館"]
[null,null,null,null,null,null,null,null,null,null,null,404,"帝塚山泉ヶ丘"]
[null,null,null,null,null,null,null,null,null,null,null,405,"金剛学園"]
[null,null,null,null,null,null,null,null,null,null,null,406,"大体大浪商"]
[null,null,null,null,null,null,null,null,null,null,null,407,"教育大天王寺"]
[null,null,null,null,null,null,null,null,null,null,null,408,"教育大附平野"]
[null,null,null,null,null,null,null,null,null,null,null,409,"阿倍野"]
[null,null,null,null,null,null,null,null,null,null,null,410,"生野"]
[null,null,null,null,null,null,null,null,null,null,null,411,"池島"]
[null,null,null,null,null,null,null,null,null,null,null,412,"大塚"]
[null,null,null,null,null,null,null,null,null,null,null,413,"柏原東"]
[null,null,null,null,null,null,null,null,null,null,null,414,"河南"]
[null,null,null,null,null,null,null,null,null,null,null,416,"金剛"]
[null,null,null,null,null,null,null,null,null,null,null,417,"住吉"]
[null,null,null,null,null,null,null,null,null,null,null,418,"清友"]
[null,null,null,null,null,null,null,null,null,null,null,419,"天王寺"]
[null,null,null,null,null,null,null,null,null,null,null,420,"富田林"]
[null,null,null,null,null,null,null,null,null,null,null,421,"長野"]
[null,null,null,null,null,null,null,null,null,null,null,422,"長野北"]
[null,null,null,null,null,null,null,null,null,null,null,423,"長吉"]
[null,null,null,null,null,null,null,null,null,null,null,424,"西浦"]
[null,null,null,null,null,null,null,null,null,null,null,425,"花園"]
[null,null,null,null,null,null,null,null,null,null,null,426,"懐風館"]
[null,null,null,null,null,null,null,null,null,null,null,427,"東住吉"]
[null,null,null,null,null,null,null,null,null,null,null,428,"平野"]
[null,null,null,null,null,null,null,null,null,null,null,429,"藤井寺"]
[null,null,null,null,null,null,null,null,null,null,null,430,"布施"]
[null,null,null,null,null,null,null,null,null,null,null,431,"布施北"]
[null,null,null,null,null,null,null,null,null,null,null,432,"松原"]
[null,null,null,null,null,null,null,null,null,null,null,433,"美原"]
[null,null,null,null,null,null,null,null,null,null,null,434,"八尾"]
[null,null,null,null,null,null,null,null,null,null,null,435,"八尾北"]
[null,null,null,null,null,null,null,null,null,null,null,436,"八尾翠翔"]
[null,null,null,null,null,null,null,null,null,null,null,438,"山本"]
[null,null,null,null,null,null,null,null,null,null,null,439,"牧岡樟風"]
[null,null,null,null,null,null,null,null,null,null,null,440,"農芸"]
[null,null,null,null,null,null,null,null,null,null,null,441,"東住吉総"]
[null,null,null,null,null,null,null,null,null,null,null,442,"藤井寺工科"]
[null,null,null,null,null,null,null,null,null,null,null,443,"布施工科"]
[null,null,null,null,null,null,null,null,null,null,null,445,"日新"]
[null,null,null,null,null,null,null,null,null,null,null,446,"上宮"]
[null,null,null,null,null,null,null,null,null,null,null,447,"金光八尾"]
[null,null,null,null,null,null,null,null,null,null,null,448,"阪南大学"]
[null,null,null,null,null,null,null,null,null,null,null,449,"大阪商業大学"]
[null,null,null,null,null,null,null,null,null,null,null,450,"東大阪大学柏原"]
[null,null,null,null,null,null,null,null,null,null,null,451,"近畿大学附属"]
[null,null,null,null,null,null,null,null,null,null,null,452,"興國"]
[null,null,null,null,null,null,null,null,null,null,null,453,"四天王寺羽曳丘"]
[null,null,null,null,null,null,null,null,null,null,null,454,"大阪星光学園"]
[null,null,null,null,null,null,null,null,null,null,null,455,"清風"]
[null,null,null,null,null,null,null,null,null,null,null,456,"ＰＬ学園"]
[null,null,null,null,null,null,null,null,null,null,null,457,"桃山学院"]
[null,null,null,null,null,null,null,null,null,null,null,458,"芥川"]
[null,null,null,null,null,null,null,null,null,null,null,459,"阿武野"]
[null,null,null,null,null,null,null,null,null,null,null,460,"池田"]
[null,null,null,null,null,null,null,null,null,null,null,461,"池田北"]
[null,null,null,null,null,null,null,null,null,null,null,462,"茨木"]
[null,null,null,null,null,null,null,null,null,null,null,463,"茨木西"]
[null,null,null,null,null,null,null,null,null,null,null,464,"茨木東"]
[null,null,null,null,null,null,null,null,null,null,null,465,"園芸"]
[null,null,null,null,null,null,null,null,null,null,null,466,"春日丘"]
[null,null,null,null,null,null,null,null,null,null,null,467,"北千里"]
[null,null,null,null,null,null,null,null,null,null,null,468,"北野"]
[null,null,null,null,null,null,null,null,null,null,null,469,"柴島"]
[null,null,null,null,null,null,null,null,null,null,null,470,"桜塚"]
[null,null,null,null,null,null,null,null,null,null,null,471,"渋谷"]
[null,null,null,null,null,null,null,null,null,null,null,472,"少路"]
[null,null,null,null,null,null,null,null,null,null,null,473,"規の木"]
[null,null,null,null,null,null,null,null,null,null,null,474,"島本"]
[null,null,null,null,null,null,null,null,null,null,null,475,"城山"]
[null,null,null,null,null,null,null,null,null,null,null,476,"吹田"]
[null,null,null,null,null,null,null,null,null,null,null,477,"吹田東"]
[null,null,null,null,null,null,null,null,null,null,null,478,"摂津"]
[null,null,null,null,null,null,null,null,null,null,null,479,"千里"]
[null,null,null,null,null,null,null,null,null,null,null,481,"高槻北"]
[null,null,null,null,null,null,null,null,null,null,null,482,"豊島"]
[null,null,null,null,null,null,null,null,null,null,null,483,"豊中"]
[null,null,null,null,null,null,null,null,null,null,null,484,"鳥飼"]
[null,null,null,null,null,null,null,null,null,null,null,485,"西淀川"]
[null,null,null,null,null,null,null,null,null,null,null,486,"東豊中"]
[null,null,null,null,null,null,null,null,null,null,null,487,"東淀川"]
[null,null,null,null,null,null,null,null,null,null,null,488,"福井"]
[null,null,null,null,null,null,null,null,null,null,null,489,"三島"]
[null,null,null,null,null,null,null,null,null,null,null,490,"箕面"]
[null,null,null,null,null,null,null,null,null,null,null,491,"箕面東"]
[null,null,null,null,null,null,null,null,null,null,null,492,"茨木工科"]
[null,null,null,null,null,null,null,null,null,null,null,493,"大冠"]
[null,null,null,null,null,null,null,null,null,null,null,494,"北淀"]
[null,null,null,null,null,null,null,null,null,null,null,495,"淀商"]
[null,null,null,null,null,null,null,null,null,null,null,496,"東淀工業"]
[null,null,null,null,null,null,null,null,null,null,null,497,"大阪学院"]
[null,null,null,null,null,null,null,null,null,null,null,498,"大阪"]
[null,null,null,null,null,null,null,null,null,null,null,499,"大商学園"]
[null,null,null,null,null,null,null,null,null,null,null,500,"追手門学院"]
[null,null,null,null,null,null,null,null,null,null,null,501,"関西大倉"]
[null,null,null,null,null,null,null,null,null,null,null,502,"関大一"]
[null,null,null,null,null,null,null,null,null,null,null,503,"金光大阪"]
[null,null,null,null,null,null,null,null,null,null,null,504,"高槻"]
[null,null,null,null,null,null,null,null,null,null,null,505,"星翔"]
[null,null,null,null,null,null,null,null,null,null,null,506,"履正社"]
[null,null,null,null,null,null,null,null,null,null,null,507,"関大北陽"]
[null,null,null,null,null,null,null,null,null,null,null,508,"箕面学園"]
[null,null,null,null,null,null,null,null,null,null,null,509,"箕面自由学園"]
[null,null,null,null,null,null,null,null,null,null,null,550,"建国"]
[null,null,null,null,null,null,null,null,null,null,null,551,"能勢"]
[null,null,null,null,null,null,null,null,null,null,null,554,"四條畷北"]
[null,null,null,null,null,null,null,null,null,null,null,555,"野崎"]
[null,null,null,null,null,null,null,null,null,null,null,556,"関西創価"]
[null,null,null,null,null,null,null,null,null,null,null,557,"プール学院"]
[null,null,null,null,null,null,null,null,null,null,null,558,"清明学院"]
[null,null,null,null,null,null,null,null,null,null,null,562,"上宮太子"]
[null,null,null,null,null,null,null,null,null,null,null,564,"南寝屋川"]
[null,null,null,null,null,null,null,null,null,null,null,565,"鶴見商業"]
[null,null,null,null,null,null,null,null,null,null,null,569,"東大阪大学敬愛"]
[null,null,null,null,null,null,null,null,null,null,null,571,"英真学園"]
[null,null,null,null,null,null,null,null,null,null,null,597,"大阪朝鮮高級"]
[null,null,null,null,null,null,null,null,null,null,null,403,"清風南海"]
[null,null,null,null,null,null,null,null,null,null,null,560,"天王寺商業"]
[null,null,null,null,null,null,null,null,null,null,null,572,"山田"]
[null,null,null,null,null,null,null,null,null,null,null,575,"交野"]
[null,null,null,null,null,null,null,null,null,null,null,577,"西"]
[null,null,null,null,null,null,null,null,null,null,null,580,"金光藤蔭"]
[null,null,null,null,null,null,null,null,null,null,null,583,"福島女子"]
[null,null,null,null,null,null,null,null,null,null,null,584,"羽衣学園"]
[null,null,null,null,null,null,null,null,null,null,null,585,"国際滝井"]
[null,null,null,null,null,null,null,null,null,null,null,598,"大阪府立大工業高専"]
[null,null,null,null,null,null,null,null,null,null,null,587,"住吉商業"]

{"sheet":"申込選手一覧（個人）","index":5,"n_rows":37,"n_cols":7,"rows_kept":37,"cut":false,"hidden":false,"merged":[]}
[null,"階級","姓","名","ふりがな",null,"学年"]
[1,{"$f":"入力シート!C47","v":0},{"$f":"入力シート!I48","v":0},{"$f":"入力シート!Y48","v":0},{"$f":"入力シート!I47&\"　\"&入力シート!Y47","v":"　"},{"$f":"IF(C2=\"\",\"\",\"（\"&入力シート!$L$2&\"）\")","v":{"$error":"#N/A"}},{"$f":"入力シート!AM47","v":0}]
[2,{"$f":"入力シート!C51","v":0},{"$f":"入力シート!I52","v":0},{"$f":"入力シート!Y52","v":0},{"$f":"入力シート!I51&\"　\"&入力シート!Y51","v":"　"},{"$f":"IF(C3=\"\",\"\",\"（\"&入力シート!$L$2&\"）\")","v":{"$error":"#N/A"}},{"$f":"入力シート!AM51","v":0}]
[3,{"$f":"入力シート!C55","v":0},{"$f":"入力シート!I56","v":0},{"$f":"入力シート!Y56","v":0},{"$f":"入力シート!I55&\"　\"&入力シート!Y55","v":"　"},{"$f":"IF(C4=\"\",\"\",\"（\"&入力シート!$L$2&\"）\")","v":{"$error":"#N/A"}},{"$f":"入力シート!AM55","v":0}]
[4,{"$f":"入力シート!C59","v":0},{"$f":"入力シート!I60","v":0},{"$f":"入力シート!Y60","v":0},{"$f":"入力シート!I59&\"　\"&入力シート!Y59","v":"　"},{"$f":"IF(C5=\"\",\"\",\"（\"&入力シート!$L$2&\"）\")","v":{"$error":"#N/A"}},{"$f":"入力シート!AM59","v":0}]
[5,{"$f":"入力シート!C63","v":0},{"$f":"入力シート!I64","v":0},{"$f":"入力シート!Y64","v":0},{"$f":"入力シート!I63&\"　\"&入力シート!Y63","v":"　"},{"$f":"IF(C6=\"\",\"\",\"（\"&入力シート!$L$2&\"）\")","v":{"$error":"#N/A"}},{"$f":"入力シート!AM63","v":0}]
[6,{"$f":"入力シート!C67","v":0},{"$f":"入力シート!I68","v":0},{"$f":"入力シート!Y68","v":0},{"$f":"入力シート!I67&\"　\"&入力シート!Y67","v":"　"},{"$f":"IF(C7=\"\",\"\",\"（\"&入力シート!$L$2&\"）\")","v":{"$error":"#N/A"}},{"$f":"入力シート!AM67","v":0}]
[7,{"$f":"入力シート!C71","v":0},{"$f":"入力シート!I72","v":0},{"$f":"入力シート!Y72","v":0},{"$f":"入力シート!I71&\"　\"&入力シート!Y71","v":"　"},{"$f":"IF(C8=\"\",\"\",\"（\"&入力シート!$L$2&\"）\")","v":{"$error":"#N/A"}},{"$f":"入力シート!AM71","v":0}]
[8,{"$f":"入力シート!C75","v":0},{"$f":"入力シート!I76","v":0},{"$f":"入力シート!Y76","v":0},{"$f":"入力シート!I75&\"　\"&入力シート!Y75","v":"　"},{"$f":"IF(C9=\"\",\"\",\"（\"&入力シート!$L$2&\"）\")","v":{"$error":"#N/A"}},{"$f":"入力シート!AM75","v":0}]
[9,{"$f":"入力シート!C79","v":0},{"$f":"入力シート!I80","v":0},{"$f":"入力シート!Y80","v":0},{"$f":"入力シート!I79&\"　\"&入力シート!Y79","v":"　"},{"$f":"IF(C10=\"\",\"\",\"（\"&入力シート!$L$2&\"）\")","v":{"$error":"#N/A"}},{"$f":"入力シート!AM79","v":0}]
[10,{"$f":"入力シート!C83","v":0},{"$f":"入力シート!I84","v":0},{"$f":"入力シート!Y84","v":0},{"$f":"入力シート!I83&\"　\"&入力シート!Y83","v":"　"},{"$f":"IF(C11=\"\",\"\",\"（\"&入力シート!$L$2&\"）\")","v":{"$error":"#N/A"}},{"$f":"入力シート!AM83","v":0}]
[11,{"$f":"入力シート!C87","v":0},{"$f":"入力シート!I88","v":0},{"$f":"入力シート!Y88","v":0},{"$f":"入力シート!I87&\"　\"&入力シート!Y87","v":"　"},{"$f":"IF(C12=\"\",\"\",\"（\"&入力シート!$L$2&\"）\")","v":{"$error":"#N/A"}},{"$f":"入力シート!AM87","v":0}]
[12,{"$f":"入力シート!C91","v":0},{"$f":"入力シート!I92","v":0},{"$f":"入力シート!Y92","v":0},{"$f":"入力シート!I91&\"　\"&入力シート!Y91","v":"　"},{"$f":"IF(C13=\"\",\"\",\"（\"&入力シート!$L$2&\"）\")","v":{"$error":"#N/A"}},{"$f":"入力シート!AM91","v":0}]
[13,{"$f":"入力シート!C95","v":0},{"$f":"入力シート!I96","v":0},{"$f":"入力シート!Y96","v":0},{"$f":"入力シート!I95&\"　\"&入力シート!Y95","v":"　"},{"$f":"IF(C14=\"\",\"\",\"（\"&入力シート!$L$2&\"）\")","v":{"$error":"#N/A"}},{"$f":"入力シート!AM95","v":0}]
[14,{"$f":"入力シート!C99","v":0},{"$f":"入力シート!I100","v":0},{"$f":"入力シート!Y100","v":0},{"$f":"入力シート!I99&\"　\"&入力シート!Y99","v":"　"},{"$f":"IF(C15=\"\",\"\",\"（\"&入力シート!$L$2&\"）\")","v":{"$error":"#N/A"}},{"$f":"入力シート!AM99","v":0}]
[15,{"$f":"入力シート!C103","v":0},{"$f":"入力シート!I104","v":0},{"$f":"入力シート!Y104","v":0},{"$f":"入力シート!I103&\"　\"&入力シート!Y103","v":"　"},{"$f":"IF(C16=\"\",\"\",\"（\"&入力シート!$L$2&\"）\")","v":{"$error":"#N/A"}},{"$f":"入力シート!AM103","v":0}]
[16,{"$f":"入力シート!C107","v":0},{"$f":"入力シート!I108","v":0},{"$f":"入力シート!Y108","v":0},{"$f":"入力シート!I107&\"　\"&入力シート!Y107","v":"　"},{"$f":"IF(C17=\"\",\"\",\"（\"&入力シート!$L$2&\"）\")","v":{"$error":"#N/A"}},{"$f":"入力シート!AM107","v":0}]
[17,{"$f":"入力シート!C111","v":0},{"$f":"入力シート!I112","v":0},{"$f":"入力シート!Y112","v":0},{"$f":"入力シート!I111&\"　\"&入力シート!Y111","v":"　"},{"$f":"IF(C18=\"\",\"\",\"（\"&入力シート!$L$2&\"）\")","v":{"$error":"#N/A"}},{"$f":"入力シート!AM111","v":0}]
[18,{"$f":"入力シート!C115","v":0},{"$f":"入力シート!I116","v":0},{"$f":"入力シート!Y116","v":0},{"$f":"入力シート!I115&\"　\"&入力シート!Y115","v":"　"},{"$f":"IF(C19=\"\",\"\",\"（\"&入力シート!$L$2&\"）\")","v":{"$error":"#N/A"}},{"$f":"入力シート!AM115","v":0}]
[19,{"$f":"入力シート!C119","v":0},{"$f":"入力シート!I120","v":0},{"$f":"入力シート!Y120","v":0},{"$f":"入力シート!I119&\"　\"&入力シート!Y119","v":"　"},{"$f":"IF(C20=\"\",\"\",\"（\"&入力シート!$L$2&\"）\")","v":{"$error":"#N/A"}},{"$f":"入力シート!AM119","v":0}]
[20,{"$f":"入力シート!C123","v":0},{"$f":"入力シート!I124","v":0},{"$f":"入力シート!Y124","v":0},{"$f":"入力シート!I123&\"　\"&入力シート!Y123","v":"　"},{"$f":"IF(C21=\"\",\"\",\"（\"&入力シート!$L$2&\"）\")","v":{"$error":"#N/A"}},{"$f":"入力シート!AM123","v":0}]
[21,{"$f":"入力シート!C127","v":0},{"$f":"入力シート!I128","v":0},{"$f":"入力シート!Y128","v":0},{"$f":"入力シート!I127&\"　\"&入力シート!Y127","v":"　"},{"$f":"IF(C22=\"\",\"\",\"（\"&入力シート!$L$2&\"）\")","v":{"$error":"#N/A"}},{"$f":"入力シート!AM127","v":0}]
[22,{"$f":"入力シート!C131","v":0},{"$f":"入力シート!I132","v":0},{"$f":"入力シート!Y132","v":0},{"$f":"入力シート!I131&\"　\"&入力シート!Y131","v":"　"},{"$f":"IF(C23=\"\",\"\",\"（\"&入力シート!$L$2&\"）\")","v":{"$error":"#N/A"}},{"$f":"入力シート!AM131","v":0}]
[23,{"$f":"入力シート!C135","v":0},{"$f":"入力シート!I136","v":0},{"$f":"入力シート!Y136","v":0},{"$f":"入力シート!I135&\"　\"&入力シート!Y135","v":"　"},{"$f":"IF(C24=\"\",\"\",\"（\"&入力シート!$L$2&\"）\")","v":{"$error":"#N/A"}},{"$f":"入力シート!AM135","v":0}]
[24,{"$f":"入力シート!C139","v":0},{"$f":"入力シート!I140","v":0},{"$f":"入力シート!Y140","v":0},{"$f":"入力シート!I139&\"　\"&入力シート!Y139","v":"　"},{"$f":"IF(C25=\"\",\"\",\"（\"&入力シート!$L$2&\"）\")","v":{"$error":"#N/A"}},{"$f":"入力シート!AM139","v":0}]
[25,{"$f":"入力シート!C143","v":0},{"$f":"入力シート!I144","v":0},{"$f":"入力シート!Y144","v":0},{"$f":"入力シート!I143&\"　\"&入力シート!Y143","v":"　"},{"$f":"IF(C26=\"\",\"\",\"（\"&入力シート!$L$2&\"）\")","v":{"$error":"#N/A"}},{"$f":"入力シート!AM143","v":0}]
[26,{"$f":"入力シート!C147","v":0},{"$f":"入力シート!I148","v":0},{"$f":"入力シート!Y148","v":0},{"$f":"入力シート!I147&\"　\"&入力シート!Y147","v":"　"},{"$f":"IF(C27=\"\",\"\",\"（\"&入力シート!$L$2&\"）\")","v":{"$error":"#N/A"}},{"$f":"入力シート!AM147","v":0}]
[27,{"$f":"入力シート!C151","v":0},{"$f":"入力シート!I152","v":0},{"$f":"入力シート!Y152","v":0},{"$f":"入力シート!I151&\"　\"&入力シート!Y151","v":"　"},{"$f":"IF(C28=\"\",\"\",\"（\"&入力シート!$L$2&\"）\")","v":{"$error":"#N/A"}},{"$f":"入力シート!AM151","v":0}]
[28,{"$f":"入力シート!C155","v":0},{"$f":"入力シート!I156","v":0},{"$f":"入力シート!Y156","v":0},{"$f":"入力シート!I155&\"　\"&入力シート!Y155","v":"　"},{"$f":"IF(C29=\"\",\"\",\"（\"&入力シート!$L$2&\"）\")","v":{"$error":"#N/A"}},{"$f":"入力シート!AM155","v":0}]
[29,{"$f":"入力シート!C159","v":0},{"$f":"入力シート!I160","v":0},{"$f":"入力シート!Y160","v":0},{"$f":"入力シート!I159&\"　\"&入力シート!Y159","v":"　"},{"$f":"IF(C30=\"\",\"\",\"（\"&入力シート!$L$2&\"）\")","v":{"$error":"#N/A"}},{"$f":"入力シート!AM159","v":0}]
[30,{"$f":"入力シート!C163","v":0},{"$f":"入力シート!I164","v":0},{"$f":"入力シート!Y164","v":0},{"$f":"入力シート!I163&\"　\"&入力シート!Y163","v":"　"},{"$f":"IF(C31=\"\",\"\",\"（\"&入力シート!$L$2&\"）\")","v":{"$error":"#N/A"}},{"$f":"入力シート!AM163","v":0}]
[31,{"$f":"入力シート!C167","v":0},{"$f":"入力シート!I168","v":0},{"$f":"入力シート!Y168","v":0},{"$f":"入力シート!I167&\"　\"&入力シート!Y167","v":"　"},{"$f":"IF(C32=\"\",\"\",\"（\"&入力シート!$L$2&\"）\")","v":{"$error":"#N/A"}},{"$f":"入力シート!AM167","v":0}]
[32,{"$f":"入力シート!C171","v":0},{"$f":"入力シート!I172","v":0},{"$f":"入力シート!Y172","v":0},{"$f":"入力シート!I171&\"　\"&入力シート!Y171","v":"　"},{"$f":"IF(C33=\"\",\"\",\"（\"&入力シート!$L$2&\"）\")","v":{"$error":"#N/A"}},{"$f":"入力シート!AM171","v":0}]
[33,{"$f":"入力シート!C175","v":0},{"$f":"入力シート!I176","v":0},{"$f":"入力シート!Y176","v":0},{"$f":"入力シート!I175&\"　\"&入力シート!Y175","v":"　"},{"$f":"IF(C34=\"\",\"\",\"（\"&入力シート!$L$2&\"）\")","v":{"$error":"#N/A"}},{"$f":"入力シート!AM175","v":0}]
[34,{"$f":"入力シート!C179","v":0},{"$f":"入力シート!I180","v":0},{"$f":"入力シート!Y180","v":0},{"$f":"入力シート!I179&\"　\"&入力シート!Y179","v":"　"},{"$f":"IF(C35=\"\",\"\",\"（\"&入力シート!$L$2&\"）\")","v":{"$error":"#N/A"}},{"$f":"入力シート!AM179","v":0}]
[35,{"$f":"入力シート!C183","v":0},{"$f":"入力シート!I184","v":0},{"$f":"入力シート!Y184","v":0},{"$f":"入力シート!I183&\"　\"&入力シート!Y183","v":"　"},{"$f":"IF(C36=\"\",\"\",\"（\"&入力シート!$L$2&\"）\")","v":{"$error":"#N/A"}},{"$f":"入力シート!AM183","v":0}]
[36,{"$f":"入力シート!C187","v":0},{"$f":"入力シート!I188","v":0},{"$f":"入力シート!Y188","v":0},{"$f":"入力シート!I187&\"　\"&入力シート!Y187","v":"　"},{"$f":"IF(C37=\"\",\"\",\"（\"&入力シート!$L$2&\"）\")","v":{"$error":"#N/A"}},{"$f":"入力シート!AM187","v":0}]